Workbook

Sheet 【手引き】
B4: ■ | C4: 各シートの説明
C6: シート名 | E6: 説明
C7: 基本データ転記先シート | E7: 実施計画書から事業報告書作成に必要なデータを転記する際に使用するシート。本シートに転記されたデータは、事業報告書の該当箇所に表示されます。
C8: 事業報告書まとめ_計画策定支援 | E8: 事業報告期間3年度間のCO2排出量のまとめが示されます。
C9: 様式16_令和6年度事業報告書 | E9: 環境大臣宛ての事業報告書（様式16）です。
C10: 様式16_令和7年度事業報告書 | E10: 環境大臣宛ての事業報告書（様式16）です。
C11: 様式16_令和8年度事業報告書 | E11: 環境大臣宛ての事業報告書（様式16）です。
C12: 別紙1_CO2排出量_個票1～12 | E12: 対策個票ごとのエネルギー起源CO2排出削減効果を算出するためのシートです。年度ごとに入力欄が用意されています。 初期状態では非表示ですが、事業報告書まとめシートで個票番号を選択すると、該当番号の個票シートが表示され、事業報告書まとめシートに数値が読み込まれます。
C13: 別紙2_CO2排出量_全体 | E13: 工場・事業場全体のエネルギー起源CO2排出量を把握するためのシートです。年度ごとに入力欄が用意されています。
B16: ■ | C16: 作成手順
C18: ＜A．基本データ転記先シートを使用する場合＞
C19: A-① | D19: 実施計画書の基本データ転記元シートを開き、当該シートに記載されている手順に従いデータを取得する。
C20: A-② | D20: 基本データ転記先シートの手順に従い、基本データ転記元シートからデータを貼り付ける（値の貼り付け）。
C21: A-③ | D21: 事業報告書まとめシートにて、未入力・未選択になっている項目を入力・選択をする。 個票番号が未選択になっている場合は、必ず使用する個票番号を選択してください。
C22: A-④ | D22: 該当する事業報告年度の様式16シートにて、必要事項を入力する。
C23: A-⑤ | D23: 別紙1_CO2排出量_個票シートにて、対策概要、対策実施【前】及び対策実施【計画】の活動種別・活動量・係数に未入力・未選択の項目があれば入力・選択する。 当該事業報告年度の対策実施状況を選択し、活動種別ごとの年間活動量とその算出根拠を入力する。
C24: A-⑥ | D24: 別紙2_CO2排出量_全体シートの「活動種別と活動量」の表にて、活動種別を選択して係数を入力し、当該事業報告年度の月別使用量等を入力する。
C25: A-⑦ | D25: 再度、該当する事業報告年度の様式16シートにて、A-④では未入力の項目（例：［実績］二酸化炭素排出量が［計画］二酸化炭素排出量を超過した原因）について、必要に応じて入力・選択をする。
C27: ＜B．基本データ転記先シートを使用しない場合＞
C28: B-① | D28: 事業報告書まとめシートにて、必要事項を入力・選択する。 ここで必ず使用する個票番号を選択してください。
C29: B-② | D29: 該当する報告年度の様式16シートにて、必要事項を入力する。
C30: B-③ | D30: 別紙1_CO2排出量_個票シートにて、実施計画書の対策個票を参照して対策概要、対策実施【前】及び対策実施【計画】の活動種別・活動量・係数を入力する。 当該事業報告年度の対策実施状況を選択し、活動種別ごとの年間活動量とその算出根拠を入力する。
C31: B-④ | D31: 別紙2_CO2排出量_全体シートの「工場・事業場全体のエネルギー起源CO2排出量等の推移」の表にて、基準年度排出量等を入力する。「活動種別と活動量」の表にて、活動種別を選択して係数を入力し、当該事業報告年度の月別使用量等を入力する。
C32: B-⑤ | D32: 再度、該当する事業報告年度の様式16シートにて、B-②では未入力の項目（例：［実績］二酸化炭素排出量が［計画］二酸化炭素排出量を超過した原因）について、必要に応じて入力・選択をする。
B35: ■ | C35: 留意事項
C37: ・ | D37: マクロが必要な動作があります。必ずマクロ有効形式（xlsm）で開き、保存してください。
C38: ・ | D38: 「シート削除」や「シート名の変更」は行わないでください。
C39: ・ | D39: 黄色のセルは直接入力可能なセルです。（黄色のセルでも、基本データ転記先シートからデータを読み込むための計算式が入っている場合があります。）
C40: ・ | D40: 緑色のセルは選択をするセルです。（緑色のセルでも、基本データ転記先シートからデータを読み込むための計算式が入っている場合があります。）
C41: ・ | D41: 事業報告3年度間にわたり同じファイルを使用します。紛失しないよう保存・保管してください。
C42: ・ | D42: DX型計画策定支援の場合は、事業報告書とともにDXシステム計測データも提出してください。DXシステム計測データは、DXシステム計測データ提出用の指定様式に入力してください。
B45: ■ | C45: 事業報告書提出時期と回数
C47: 計画策定支援に採択された事業者は、3年度間にわたり事業報告書の提出が求められます。報告期間中に必ず1つ以上の対策を実施する必要があります。
C48: 設備更新支援に応募し採択された場合は、計画策定支援に係る事業報告書の提出は不要となり、その代わりに、設備更新支援の事業報告書の提出が求められます。
C50: ＜主な提出パターン例（緑色＝計画策定支援関係、青色＝設備更新支援関係）＞
D51: 設備更新支援C：中小企業事業

Sheet 基本データ転記先シート
B2: 環境省 令和４年度（第2次補正予算）・令和5年度二酸化炭素排出抑制対策事業費等補助金 （工場・事業場における先導的な脱炭素化取組推進事業（SHIFT事業））
B4: 基本データ転記先シート
B6: 以下の手順を実行すると、診断報告書/実施計画書からの転記が必要な情報を、事業報告書の当該箇所に一括で転記することができます。
B8: ① | C8: 診断報告書/実施計画書（.xlsm）の「事業報告書用データ転記元シート」を開き、記載の手順にしたがい転記するデータを取得する。
B9: ② | C9: 「事業報告書用データ転記元シート」にある表１の色付きセル範囲（斜線のあるセルを含む）を選択し、コピーする。
B10: ③ | C10: 下記の表１の色付きセル範囲を選択し、張り付ける。
B11: ④ | C11: 表２～表７についても、②、③を行う。
B13: ※注記 | C13: 実施計画書の完成後に変更があった項目については、実施計画書からのデータ転記後、各表の該当箇所に直接入力して修正してください。
C16: 表１：基本情報（実施計画書より）
C17: 事業番号 | F17: xxxxxxx
C18: 事業者名（法人名） | F18: ○○株式会社
C19: 工場・事業場名 | F19: ○○工場
C20: 工場・事業場No.1の業種（中分類・小分類） | F20: 25 はん用機械器具製造業 | G20: 253 一般産業用機械・装置製造業
C21: 工場・事業場No.2の業種（中分類・小分類）
C22: 工場・事業場No.3の業種（中分類・小分類）
C23: 工場・事業場No.4の業種（中分類・小分類）
C24: 工場・事業場No.5の業種（中分類・小分類）
C25: 工場・事業場全体の基準年度排出量（t-CO2/年） | F25: 500.26612
C26: 工場・事業場全体の基準年度エネルギー使用量(GJ/年） | F26: 8218.124
C27: 工場・事業場全体の脱炭素化指標 | F27: 0.06087351809
C28: 主要システム系統の名称 | F28: ボイラ室内設備
C29: 主要システムの基準年度排出量（t-CO2/年） | F29: 395.65882
C30: 主要システムの基準年度エネルギー使用量(GJ/年） | F30: 5876.456
C31: 主要システムの脱炭素化指標 | F31: 0.06732949587
C32: 工場・事業場の計画CO2排出量(対策後） | D32: 計画年度1 | E32: CO2排出量 | F32: 令和5年度 | G32: 500.26612
D33: 計画年度2 | E33: CO2排出量 | F33: 令和6年度 | G33: 390.6457476
D34: 計画年度3 | E34: CO2排出量 | F34: 令和7年度 | G34: 390.6457476
D35: 計画年度4 | E35: CO2排出量 | F35: 令和8年度 | G35: 390.6457476
D36: 計画年度5 | E36: CO2排出量 | F36: 令和9年度 | G36: 390.6457476
C37: 主要システム系統の計画CO2排出量(対策後） | D37: 計画年度1 | E37: CO2排出量 | F37: 令和5年度 | G37: 395.65882
D38: 計画年度2 | E38: CO2排出量 | F38: 令和6年度 | G38: 286.0384476
D39: 計画年度3 | E39: CO2排出量 | F39: 令和7年度 | G39: 286.0384476
D40: 計画年度4 | E40: CO2排出量 | F40: 令和8年度 | G40: 286.0384476
D41: 計画年度5 | E41: CO2排出量 | F41: 令和9年度 | G41: 286.0384476
C44: 表２：脱炭素化計画（実施計画書より）
C45: 対策個票番号 | D45: 対策の種類 | E45: 対策の名称 | F45: 主要システム系統 | G45: 申請予定補助金 | H45: 対策着手時期 | I45: 年間CO2削減量(t-CO2) | J45: 計画年度・CO2削減量 | O45: 以降の活動予定 | P45: 年間エネルギー削減量(GJ) | Q45: 対策メニュー番号 | R45: DX計測に基づく対策
C46: --- | D46: --- | E46: --- | F46: --- | G46: --- | H46: --- | I46: --- | K46: 目標年度 | O46: --- | P46: --- | Q46: --- | R46: ---
C47: --- | D47: --- | E47: --- | F47: --- | G47: --- | H47: --- | I47: --- | J47: 令和5年度 | K47: 令和6年度 | L47: 令和7年度 | M47: 令和8年度 | N47: 令和9年度 | O47: --- | P47: --- | Q47: --- | R47: ---
A48: 1 | B48: 省エネ | C48: 2 | D48: 運用改善 | E48: ボイラ室照明の不要時間帯の消灯 | F48: ○ | G48: 予定なし | H48: 令和5年9月 | I48: 3.9131 | K48: 3.9131 | L48: 3.9131 | M48: 3.9131 | N48: 3.9131 | P48: 87.596 | Q48: 21011 | R48: ―
A49: 2
A50: 3
A51: 4
A52: 5
A53: 6
A54: 7
A55: 8 | B55: 脱炭素化 (エネ転等) | C55: 1 | D55: 燃料低炭素化 | E55: A重油蒸気ボイラから都市ガス蒸気ボイラへの燃料転換 | F55: ○ | G55: 国(SHIFT) | H55: 令和5年9月 | I55: 105.7072724 | K55: 105.7072724 | L55: 105.7072724 | M55: 105.7072724 | N55: 105.7072724 | P55: 123.5326 | Q55: 12142 | R55: ―
A56: 9
A57: 10
A58: 11 | B58: 脱炭素化 (系統電力変更)
A59: 12
A60: 13 | B60: 省エネ
A61: 14
A62: 15
A63: 16
A64: 17
A65: 18
A66: 19
A67: 20 | B67: 脱炭素化 (エネ転等)
A68: 21
A69: 22
A70: 23 | B70: 脱炭素化 (系統電力変更)
A71: 24
C74: 表３：対策個票で使用した係数（実施計画書より）
C75: 活動種別 | D75: 単位 | E75: 単位発熱量 | G75: CO2排出係数 | I75: 単価
E76: 係数 | F76: 単位 | G76: 係数 | H76: 単位 | I76: 単価 | J76: 単位
B77: 1 | C77: 系統電力① | D77: kWh | F77: --- | G77: 0.000436 | H77: t-CO2/kWh | J77: 千円/kWh
B78: 2 | C78: A重油 | D78: kl | E78: 38.9 | F78: GJ/kl | G78: 0.0708 | H78: t-CO2/GJ | J78: 千円/kl
B79: 3 | C79: 都市ガス | D79: 千Nm3 | E79: 44.2 | F79: GJ/千Nm3 | G79: 0.0513 | H79: t-CO2/GJ | J79: 千円/千Nm3
B80: 4 | C80: （未選択）
B81: 5 | C81: （未選択）
B82: 6 | C82: （未選択）
B83: 7 | C83: （未選択）
B84: 8 | C84: （未選択）
B85: 9 | C85: （未選択）
B86: 10 | C86: （未選択）
B87: 11 | C87: （未選択）
B88: 12 | C88: （未使用）
B89: 13 | C89: （未使用）
B90: 14 | C90: （未使用）
C93: 表４：算定年度③で使用した係数（算定報告書より）
C94: 工場・事業場全体 | J94: 主要システム系統
C95: モニタリングポイントNo. | D95: 活動種別 | E95: 単位 | F95: 単位発熱量 | H95: CO2排出係数 | J95: モニタリングポイントNo. | K95: 活動種別 | L95: 単位 | M95: 単位発熱量 | O95: CO2排出係数
F96: 係数 | G96: 単位 | H96: 係数 | I96: 単位 | M96: 係数 | N96: 単位 | O96: 係数 | P96: 単位
B97: 1 | C97: 1 | D97: A重油 | E97: kl | F97: 38.9 | G97: GJ/kl | H97: 0.0708 | I97: t-CO2/GJ | J97: 1 | K97: A重油 | L97: kl | M97: 38.9 | N97: GJ/kl | O97: 0.0708 | P97: t-CO2/GJ
B98: 2 | C98: 3 | D98: 系統電力 | E98: kWh | G98: --- | H98: 0.000436 | I98: t-CO2/kWh | J98: 3 | K98: 系統電力 | L98: kWh | N98: --- | O98: 0.000436 | P98: t-CO2/kWh
B99: 3
B100: 4
B101: 5
B102: 6
B103: 7
B104: 8
B105: 9
B106: 10
B107: 11
B108: 12
B109: 13
B110: 14
B111: 15
B112: 16 | D112: その他（要：備考欄への詳細記載） | K112: その他（要：備考欄への詳細記載）
B113: 17 | D113: その他（要：備考欄への詳細記載） | K113: その他（要：備考欄への詳細記載）
B114: 18 | D114: その他（要：備考欄への詳細記載） | K114: その他（要：備考欄への詳細記載）
B115: 19 | D115: その他（要：備考欄への詳細記載） | K115: その他（要：備考欄への詳細記載）
B116: 20 | D116: その他（要：備考欄への詳細記載） | K116: その他（要：備考欄への詳細記載）
B117: 21 | D117: その他（要：備考欄への詳細記載） | K117: その他（要：備考欄への詳細記載）
B118: 22 | D118: その他（要：備考欄への詳細記載） | K118: その他（要：備考欄への詳細記載）
B119: 23 | D119: その他（要：備考欄への詳細記載） | K119: その他（要：備考欄への詳細記載）
B120: 24 | D120: その他（要：備考欄への詳細記載） | K120: その他（要：備考欄への詳細記載）
B121: 25 | D121: その他（要：備考欄への詳細記載） | K121: その他（要：備考欄への詳細記載）
B122: 26
B123: 27
B124: 28
B125: 29
B126: 30
B127: 31
B128: 32
B129: 33
B130: 34
B131: 35
B132: 36
B133: 37
B134: 38
B135: 39
B136: 40
B137: 41
B138: 42
B139: 43
B140: 44
B141: 45
B142: 46
B143: 47
B144: 48
B145: 49
B146: 50
B147: 51
B148: 52
B149: 53
B150: 54
B151: 55
B152: 56
B153: 57
B154: 58
B155: 59
B156: 60
B157: 61
B158: 62
B159: 63
B160: 64
B161: 65
B162: 66
B163: 67
B164: 68
B165: 69
B166: 70
B167: 71
B168: 72
B169: 73
B170: 74
B171: 75
B172: 76
B173: 77
B174: 78
B175: 79
B176: 80
C179: 表５：基本情報（実施計画書Cより）
C180: 事業番号 | F180: xxxxxxx
C181: 事業者名（法人名） | F181: ○○株式会社
C182: 工場・事業場名 | F182: ○○工場
C183: 工場・事業場No.1の業種（中分類・小分類） | F183: 25 はん用機械器具製造業 | G183: 253 一般産業用機械・装置製造業
C184: 工場・事業場No.2の業種（中分類・小分類）
C185: 工場・事業場No.3の業種（中分類・小分類）
C186: 工場・事業場No.4の業種（中分類・小分類）
C187: 工場・事業場No.5の業種（中分類・小分類）
C188: 工場・事業場全体の基準年度排出量（t-CO2/年）(A) | F188: 500.26612
C189: 工場・事業場全体の基準年度エネルギー使用量(GJ/年） | F189: 8218.124
C190: 工場・事業場全体の脱炭素化指標 | F190: 0.06087351809
C193: 表６：設備CO2削減計画（実施計画書Cより） | O193: (①-②) | P193: (③/①*100) | Q193: (③/(A)*100)
C194: 個票番号 | D194: 6類型 | E194: 対策名称 | F194: 対策メニュー番号 | G194: 工程 | H194: システム/設備区分 | I194: 対象/既存設備 | J194: 導入設備 | K194: 申請予定補助金 | L194: LED照明設備・再生エネ設備 | M194: ①対策実施【前】 CO2排出量 | N194: ②対策実施【計画】CO2排出量 | O194: ③設備CO2削減量 | P194: ④設備CO2削減率 | Q194: ⑤工場・事業場CO2削減率 | R194: DX計測に基づく対策
C195: 1 | D195: 燃料低炭素化 | E195: A重油蒸気ボイラから都市ガス蒸気ボイラへの燃料転換 | F195: 12142 | G195: 原料加熱 | H195: 蒸気システム（発生） | I195: A重油焚きボイラ | J195: 都市ガス焚きボイラ | K195: 国(SHIFT) | M195: 360.78972 | N195: 255.0824476 | O195: 105.7072724 | P195: 29.29885929 | Q195: 21.13020813 | R195: ―
C196: 2 | D196: 運用改善 | E196: ボイラ室照明の不要時間帯の消灯 | F196: 21011 | G196: 照明 | H196: 照明設備 | I196: 照明設備 | K196: 予定なし | M196: 34.8691 | N196: 30.956 | O196: 3.9131 | P196: 11.22225696 | Q196: 0.7822036799 | R196: ―
C205: 小計① | D205: 申請予定補助金：国（SHIFT） | E205: 設備導入対策（LED照明設備・再エネ設備を除く） | M205: 360.78972 | N205: 255.0824476 | O205: 105.7072724 | P205: 29.29885929 | Q205: 21.13020813
C206: 小計② | D206: 申請予定補助金：国（SHIFT） | E206: LED照明設備・再生可能エネルギー設備導入対策 | M206: 0 | N206: 0 | O206: 0 | P206: --- | Q206: 0
C207: 合計（①＋②） | M207: 360.78972 | N207: 255.0824476 | O207: 105.7072724 | P207: 29.29885929 | Q207: 21.13020813
C208: 小計③ | D208: 自主的対策 | E208: SHIFT設備更新支援の補助対象外の対策 | M208: 34.8691 | N208: 30.956 | O208: 3.9131 | P208: 11.22225696 | Q208: 0.7822036799
C209: 合計（①＋②＋③） | M209: 395.65882 | N209: 286.0384476 | O209: 109.6203724 | P209: 27.70578257 | Q209: 21.91241181
C212: 表７：対策個票で選択した活動種別等
C213: 個票番号 | D213: 対策実施【前】 | K213: 対策実施【計画】
D214: 活動種別 | E214: 年間活動量 | G214: 単位発熱量 | I214: CO2排出係数 | K214: 活動種別 | L214: 年間活動量 | N214: 単位発熱量 | P214: CO2排出係数
C215: 1 | D215: A重油 | E215: 131 | F215: kl | G215: 38.9 | H215: GJ/kl | I215: 0.0708 | J215: t-CO2/GJ | K215: 都市ガス | L215: 112.497 | M215: 千Nm3 | N215: 44.2 | O215: GJ/千Nm3 | P215: 0.0513 | Q215: t-CO2/GJ
C216: 1-2
C217: 1-3
C218: 1-4
C219: 2 | D219: 系統電力① | E219: 79975 | F219: kWh | H219: --- | I219: 0.000436 | J219: t-CO2/kWh | K219: 系統電力① | L219: 71000 | M219: kWh | O219: --- | P219: 0.000436 | Q219: t-CO2/kWh
C220: 2-2
C221: 2-3
C222: 2-4
C223: 3
C224: 3-2
C225: 3-3
C226: 3-4
C227: 4
... 83 more rows

Sheet 事業報告書まとめ_計画策定支援
W1: Ver. 1.0 | AL1: セル色表示/非表示
B2: 環境省 令和４年度（第2次補正予算）・令和5年度二酸化炭素排出抑制対策事業費等補助金 | AL2: FALSE
B3: （工場・事業場における先導的な脱炭素化取組推進事業（SHIFT事業））
B5: 【補助事業者情報】
B6: GAJ事業番号 | H6: =IF(基本データ転記先シート!$F$17="","",基本データ転記先シート!$F$17) -> xxxxxxx
B7: 事業者名（法人名） | H7: =IF(基本データ転記先シート!$F$18="","",基本データ転記先シート!$F$18) -> ○○株式会社
B8: 工場・事業場名 | H8: =IF(基本データ転記先シート!$F$19="","",基本データ転記先シート!$F$19) -> ○○工場
B9: 工場・事業場の業種 | H9: =IF(基本データ転記先シート!$G$20="","",基本データ転記先シート!$G$20) -> 253 一般産業用機械・装置製造業 | V9: 区分 | W9: =IF(H9="","",VLOOKUP(H9,部門,2,FALSE)) -> 産業
B11: 【二酸化炭素排出量の推移と計画削減量の達成状況】
B12: エネルギー起源二酸化炭素排出量と削減量の計画値及び、事業報告年度における実績値のまとめ。
B13: １．設備・機器
L15: 計画 | O15: 実績 | AA15: 計画 | AD15: 実績
L16: 対策実施前 | M16: 計画 | N16: 目標 | O16: 令和6年度 | R16: 令和7年度 | U16: 令和8年度 | AA16: 対策実施前 | AB16: 計画 | AD16: =O16 -> 令和6年度 | AF16: =R16 -> 令和7年度 | AH16: =U16 -> 令和8年度
L17: 排出量 | M17: 排出量 | N17: 削減量 | O17: 排出量 | P17: 削減量 | Q17: 削減未達量 | R17: 排出量 | S17: 削減量 | T17: 削減未達量 | U17: 排出量 | V17: 削減量 | W17: 削減未達量 | AA17: 使用量 | AB17: 使用量 | AC17: 削減量 | AD17: 使用量 | AE17: 削減量 | AF17: 使用量 | AG17: 削減量 | AH17: 使用量 | AI17: 削減量
B18: CO2排出量、CO2削減量等：合計(t-CO2/年) | L18: =IF(SUM($B$21:$B$30)=0,"",SUM(L$21:L$30)) -> 395.65882 | M18: =IF(SUM($B$21:$B$30)=0,"",SUM(M$21:M$30)) -> 286.0384476 | N18: =IF(SUM($B$21:$B$30)=0,"",SUM(N$21:N$30)) -> 109.6203724 | O18: =IF(SUM($B$21:$B$30)=0,"",SUM(O$21:O$30)) -> 286.55716 | P18: =IF(SUM($B$21:$B$30)=0,"",SUM(P$21:P$30)) -> 109.10166 | Q18: =IF(SUM($B$21:$B$30)=0,"",SUM(Q$21:Q$30)) -> 0.51871238 | R18: 0 | S18: 0 | T18: 0 | U18: =IF(SUM($B$21:$B$30)=0,"",SUM(U$21:U$30)) -> 0 | V18: =IF(SUM($B$21:$B$30)=0,"",SUM(V$21:V$30)) -> 0 | W18: =IF(SUM($B$21:$B$30)=0,"",SUM(W$21:W$30)) -> 0 | Z18: エネルギー使用量・削減量：合計(GJ/年) | AA18: =IF(SUM($B$21:$B$30)=0,"",SUM(AA$21:AA$30)) -> 5876.456 | AB18: =IF(SUM($B$21:$B$30)=0,"",SUM(AB$21:AB$30)) -> 5665.3274 | AC18: =IF(SUM($B$21:$B$30)=0,"",SUM(AC$21:AC$30)) -> 211.1286 | AD18: 5686.756 | AE18: 189.7 | AF18: =IF(SUM($B$21:$B$30)=0,"",SUM(AF$21:AF$30)) -> 0 | AG18: =IF(SUM($B$21:$B$30)=0,"",SUM(AG$21:AG$30)) -> 0 | AH18: =IF(SUM($B$21:$B$30)=0,"",SUM(AH$21:AH$30)) -> 0 | AI18: =IF(SUM($B$21:$B$30)=0,"",SUM(AI$21:AI$30)) -> 0
L19: 計画 | O19: 実績 | AA19: 計画 | AD19: 実績
B20: 個票 | C20: 対策名称 | L20: 排出量 | M20: 排出量 | N20: 削減量 | O20: 排出量 | P20: 削減量 | Q20: 削減未達量 | R20: 排出量 | S20: 削減量 | T20: 削減未達量 | U20: 排出量 | V20: 削減量 | W20: 削減未達量 | AA20: 使用量 | AB20: 使用量 | AC20: 削減量 | AD20: 使用量 | AE20: 削減量 | AF20: 使用量 | AG20: 削減量 | AH20: 使用量 | AI20: 削減量
B21: =IF(基本データ転記先シート!C195="","",基本データ転記先シート!C195) -> 1 | C21: =IF($B21="","",IFERROR(INDIRECT("別紙1_CO2排出量_個票"&$B21&"!"&"D13"),"---")) -> A重油蒸気ボイラから都市ガス蒸気ボイラへの燃料転換 | L21: =IF($B21="","",IFERROR(INDIRECT("別紙1_CO2排出量_個票"&$B21&"!"&"K25"),"---")) -> 360.78972 | M21: =IF($B21="","",IFERROR(INDIRECT("別紙1_CO2排出量_個票"&$B21&"!"&"K29"),"---")) -> 255.0824476 | N21: =IF($B21="","",IFERROR(INDIRECT("別紙1_CO2排出量_個票"&$B21&"!"&"L29"),"---")) -> 105.7072724 | O21: =IF($B21="","",IFERROR(INDIRECT("別紙1_CO2排出量_個票"&$B21&"!"&"K38"),"---")) -> 251.68806 | P21: =IF($B21="","",IFERROR(INDIRECT("別紙1_CO2排出量_個票"&$B21&"!"&"L38"),"---")) -> 109.10166 | Q21: =IF($B21="","",IFERROR($N21-$P21,"---")) -> -3.39438762 | R21: =IF($B21="","",IFERROR(INDIRECT("別紙1_CO2排出量_個票"&$B21&"!"&"K42"),"---")) ->  | S21: =IF($B21="","",IFERROR(INDIRECT("別紙1_CO2排出量_個票"&$B21&"!"&"L42"),"---")) -> --- | T21: =IF($B21="","",IFERROR($N21-$S21,"---")) -> --- | U21: =IF($B21="","",IFERROR(INDIRECT("別紙1_CO2排出量_個票"&$B21&"!"&"K46"),"--")) ->  | V21: =IF($B21="","",IFERROR(INDIRECT("別紙1_CO2排出量_個票"&$B21&"!"&"L46"),"---")) -> --- | W21: =IF($B21="","",IFERROR($N21-$V21,"---")) -> --- | AA21: =IF($B21="","",IFERROR(INDIRECT("別紙1_CO2排出量_個票"&$B21&"!"&"S25"),"---")) -> 5095.9 | AB21: =IF($B21="","",IFERROR(INDIRECT("別紙1_CO2排出量_個票"&$B21&"!"&"S29"),"---")) -> 4972.3674 | AC21: =IF($B21="","",IFERROR(INDIRECT("別紙1_CO2排出量_個票"&$B21&"!"&"T29"),"---")) -> 123.5326 | AD21: =IF($B21="","",IFERROR(INDIRECT("別紙1_CO2排出量_個票"&$B21&"!"&"S38"),"---")) -> 4906.2 | AE21: =IF($B21="","",IFERROR(INDIRECT("別紙1_CO2排出量_個票"&$B21&"!"&"T38"),"---")) -> 189.7 | AF21: =IF($B21="","",IFERROR(INDIRECT("別紙1_CO2排出量_個票"&$B21&"!"&"S42"),"---")) ->  | AG21: =IF($B21="","",IFERROR(INDIRECT("別紙1_CO2排出量_個票"&$B21&"!"&"T42"),"---")) -> --- | AH21: =IF($B21="","",IFERROR(INDIRECT("別紙1_CO2排出量_個票"&$B21&"!"&"S46"),"---")) ->  | AI21: =IF($B21="","",IFERROR(INDIRECT("別紙1_CO2排出量_個票"&$B21&"!"&"T46"),"---")) -> ---
B22: =IF(基本データ転記先シート!C196="","",基本データ転記先シート!C196) -> 2 | C22: =IF($B22="","",IFERROR(INDIRECT("別紙1_CO2排出量_個票"&$B22&"!"&"D13"),"---")) -> ボイラ室照明の不要時間帯の消灯 | L22: =IF($B22="","",IFERROR(INDIRECT("別紙1_CO2排出量_個票"&$B22&"!"&"K25"),"---")) -> 34.8691 | M22: =IF($B22="","",IFERROR(INDIRECT("別紙1_CO2排出量_個票"&$B22&"!"&"K29"),"---")) -> 30.956 | N22: =IF($B22="","",IFERROR(INDIRECT("別紙1_CO2排出量_個票"&$B22&"!"&"L29"),"---")) -> 3.9131 | O22: =IF($B22="","",IFERROR(INDIRECT("別紙1_CO2排出量_個票"&$B22&"!"&"K38"),"---")) -> 34.8691 | P22: =IF($B22="","",IFERROR(INDIRECT("別紙1_CO2排出量_個票"&$B22&"!"&"L38"),"---")) -> 0 | Q22: =IF($B22="","",IFERROR($N22-$P22,"---")) -> 3.9131 | R22: =IF($B22="","",IFERROR(INDIRECT("別紙1_CO2排出量_個票"&$B22&"!"&"K42"),"---")) ->  | S22: =IF($B22="","",IFERROR(INDIRECT("別紙1_CO2排出量_個票"&$B22&"!"&"L42"),"---")) -> --- | T22: =IF($B22="","",IFERROR($N22-$S22,"---")) -> --- | U22: =IF($B22="","",IFERROR(INDIRECT("別紙1_CO2排出量_個票"&$B22&"!"&"K46"),"--")) ->  | V22: =IF($B22="","",IFERROR(INDIRECT("別紙1_CO2排出量_個票"&$B22&"!"&"L46"),"---")) -> --- | W22: =IF($B22="","",IFERROR($N22-$V22,"---")) -> --- | AA22: =IF($B22="","",IFERROR(INDIRECT("別紙1_CO2排出量_個票"&$B22&"!"&"S25"),"---")) -> 780.556 | AB22: =IF($B22="","",IFERROR(INDIRECT("別紙1_CO2排出量_個票"&$B22&"!"&"S29"),"---")) -> 692.96 | AC22: =IF($B22="","",IFERROR(INDIRECT("別紙1_CO2排出量_個票"&$B22&"!"&"T29"),"---")) -> 87.596 | AD22: =IF($B22="","",IFERROR(INDIRECT("別紙1_CO2排出量_個票"&$B22&"!"&"S38"),"---")) -> 780.556 | AE22: =IF($B22="","",IFERROR(INDIRECT("別紙1_CO2排出量_個票"&$B22&"!"&"T38"),"---")) -> 0 | AF22: =IF($B22="","",IFERROR(INDIRECT("別紙1_CO2排出量_個票"&$B22&"!"&"S42"),"---")) ->  | AG22: =IF($B22="","",IFERROR(INDIRECT("別紙1_CO2排出量_個票"&$B22&"!"&"T42"),"---")) -> --- | AH22: =IF($B22="","",IFERROR(INDIRECT("別紙1_CO2排出量_個票"&$B22&"!"&"S46"),"---")) ->  | AI22: =IF($B22="","",IFERROR(INDIRECT("別紙1_CO2排出量_個票"&$B22&"!"&"T46"),"---")) -> ---
B23: =IF(基本データ転記先シート!C197="","",基本データ転記先シート!C197) ->  | C23: =IF($B23="","",IFERROR(INDIRECT("別紙1_CO2排出量_個票"&$B23&"!"&"D13"),"---")) ->  | L23: =IF($B23="","",IFERROR(INDIRECT("別紙1_CO2排出量_個票"&$B23&"!"&"K25"),"---")) ->  | M23: =IF($B23="","",IFERROR(INDIRECT("別紙1_CO2排出量_個票"&$B23&"!"&"K29"),"---")) ->  | N23: =IF($B23="","",IFERROR(INDIRECT("別紙1_CO2排出量_個票"&$B23&"!"&"L29"),"---")) ->  | O23: =IF($B23="","",IFERROR(INDIRECT("別紙1_CO2排出量_個票"&$B23&"!"&"K38"),"---")) ->  | P23: =IF($B23="","",IFERROR(INDIRECT("別紙1_CO2排出量_個票"&$B23&"!"&"L38"),"---")) ->  | Q23: =IF($B23="","",IFERROR($N23-$P23,"---")) ->  | R23: =IF($B23="","",IFERROR(INDIRECT("別紙1_CO2排出量_個票"&$B23&"!"&"K42"),"---")) ->  | S23: =IF($B23="","",IFERROR(INDIRECT("別紙1_CO2排出量_個票"&$B23&"!"&"L42"),"---")) ->  | U23: =IF($B23="","",IFERROR(INDIRECT("別紙1_CO2排出量_個票"&$B23&"!"&"K46"),"--")) ->  | V23: =IF($B23="","",IFERROR(INDIRECT("別紙1_CO2排出量_個票"&$B23&"!"&"L46"),"---")) ->  | AA23: =IF($B23="","",IFERROR(INDIRECT("別紙1_CO2排出量_個票"&$B23&"!"&"S25"),"---")) ->  | AB23: =IF($B23="","",IFERROR(INDIRECT("別紙1_CO2排出量_個票"&$B23&"!"&"S29"),"---")) ->  | AC23: =IF($B23="","",IFERROR(INDIRECT("別紙1_CO2排出量_個票"&$B23&"!"&"T29"),"---")) ->  | AD23: =IF($B23="","",IFERROR(INDIRECT("別紙1_CO2排出量_個票"&$B23&"!"&"S38"),"---")) ->  | AE23: =IF($B23="","",IFERROR(INDIRECT("別紙1_CO2排出量_個票"&$B23&"!"&"T38"),"---")) ->  | AF23: =IF($B23="","",IFERROR(INDIRECT("別紙1_CO2排出量_個票"&$B23&"!"&"S42"),"---")) ->  | AG23: =IF($B23="","",IFERROR(INDIRECT("別紙1_CO2排出量_個票"&$B23&"!"&"T42"),"---")) ->  | AH23: =IF($B23="","",IFERROR(INDIRECT("別紙1_CO2排出量_個票"&$B23&"!"&"S46"),"---")) ->  | AI23: =IF($B23="","",IFERROR(INDIRECT("別紙1_CO2排出量_個票"&$B23&"!"&"T46"),"---")) -> 
B24: =IF(基本データ転記先シート!C198="","",基本データ転記先シート!C198) ->  | C24: =IF($B24="","",IFERROR(INDIRECT("別紙1_CO2排出量_個票"&$B24&"!"&"D13"),"---")) ->  | L24: =IF($B24="","",IFERROR(INDIRECT("別紙1_CO2排出量_個票"&$B24&"!"&"K25"),"---")) ->  | M24: =IF($B24="","",IFERROR(INDIRECT("別紙1_CO2排出量_個票"&$B24&"!"&"K29"),"---")) ->  | N24: =IF($B24="","",IFERROR(INDIRECT("別紙1_CO2排出量_個票"&$B24&"!"&"L29"),"---")) ->  | O24: =IF($B24="","",IFERROR(INDIRECT("別紙1_CO2排出量_個票"&$B24&"!"&"K38"),"---")) ->  | P24: =IF($B24="","",IFERROR(INDIRECT("別紙1_CO2排出量_個票"&$B24&"!"&"L38"),"---")) ->  | R24: =IF($B24="","",IFERROR(INDIRECT("別紙1_CO2排出量_個票"&$B24&"!"&"K42"),"---")) ->  | S24: =IF($B24="","",IFERROR(INDIRECT("別紙1_CO2排出量_個票"&$B24&"!"&"L42"),"---")) ->  | U24: =IF($B24="","",IFERROR(INDIRECT("別紙1_CO2排出量_個票"&$B24&"!"&"K46"),"--")) ->  | V24: =IF($B24="","",IFERROR(INDIRECT("別紙1_CO2排出量_個票"&$B24&"!"&"L46"),"---")) ->  | AA24: =IF($B24="","",IFERROR(INDIRECT("別紙1_CO2排出量_個票"&$B24&"!"&"S25"),"---")) ->  | AB24: =IF($B24="","",IFERROR(INDIRECT("別紙1_CO2排出量_個票"&$B24&"!"&"S29"),"---")) ->  | AC24: =IF($B24="","",IFERROR(INDIRECT("別紙1_CO2排出量_個票"&$B24&"!"&"T29"),"---")) ->  | AD24: =IF($B24="","",IFERROR(INDIRECT("別紙1_CO2排出量_個票"&$B24&"!"&"S38"),"---")) ->  | AE24: =IF($B24="","",IFERROR(INDIRECT("別紙1_CO2排出量_個票"&$B24&"!"&"T38"),"---")) ->  | AF24: =IF($B24="","",IFERROR(INDIRECT("別紙1_CO2排出量_個票"&$B24&"!"&"S42"),"---")) ->  | AG24: =IF($B24="","",IFERROR(INDIRECT("別紙1_CO2排出量_個票"&$B24&"!"&"T42"),"---")) ->  | AH24: =IF($B24="","",IFERROR(INDIRECT("別紙1_CO2排出量_個票"&$B24&"!"&"S46"),"---")) ->  | AI24: =IF($B24="","",IFERROR(INDIRECT("別紙1_CO2排出量_個票"&$B24&"!"&"T46"),"---")) -> 
B25: =IF(基本データ転記先シート!C199="","",基本データ転記先シート!C199) ->  | C25: =IF($B25="","",IFERROR(INDIRECT("別紙1_CO2排出量_個票"&$B25&"!"&"D13"),"---")) ->  | L25: =IF($B25="","",IFERROR(INDIRECT("別紙1_CO2排出量_個票"&$B25&"!"&"K25"),"---")) ->  | M25: =IF($B25="","",IFERROR(INDIRECT("別紙1_CO2排出量_個票"&$B25&"!"&"K29"),"---")) ->  | N25: =IF($B25="","",IFERROR(INDIRECT("別紙1_CO2排出量_個票"&$B25&"!"&"L29"),"---")) ->  | O25: =IF($B25="","",IFERROR(INDIRECT("別紙1_CO2排出量_個票"&$B25&"!"&"K38"),"---")) ->  | P25: =IF($B25="","",IFERROR(INDIRECT("別紙1_CO2排出量_個票"&$B25&"!"&"L38"),"---")) ->  | R25: =IF($B25="","",IFERROR(INDIRECT("別紙1_CO2排出量_個票"&$B25&"!"&"K42"),"---")) ->  | S25: =IF($B25="","",IFERROR(INDIRECT("別紙1_CO2排出量_個票"&$B25&"!"&"L42"),"---")) ->  | U25: =IF($B25="","",IFERROR(INDIRECT("別紙1_CO2排出量_個票"&$B25&"!"&"K46"),"--")) ->  | V25: =IF($B25="","",IFERROR(INDIRECT("別紙1_CO2排出量_個票"&$B25&"!"&"L46"),"---")) ->  | AA25: =IF($B25="","",IFERROR(INDIRECT("別紙1_CO2排出量_個票"&$B25&"!"&"S25"),"---")) ->  | AB25: =IF($B25="","",IFERROR(INDIRECT("別紙1_CO2排出量_個票"&$B25&"!"&"S29"),"---")) ->  | AC25: =IF($B25="","",IFERROR(INDIRECT("別紙1_CO2排出量_個票"&$B25&"!"&"T29"),"---")) ->  | AD25: =IF($B25="","",IFERROR(INDIRECT("別紙1_CO2排出量_個票"&$B25&"!"&"S38"),"---")) ->  | AE25: =IF($B25="","",IFERROR(INDIRECT("別紙1_CO2排出量_個票"&$B25&"!"&"T38"),"---")) ->  | AF25: =IF($B25="","",IFERROR(INDIRECT("別紙1_CO2排出量_個票"&$B25&"!"&"S42"),"---")) ->  | AG25: =IF($B25="","",IFERROR(INDIRECT("別紙1_CO2排出量_個票"&$B25&"!"&"T42"),"---")) ->  | AH25: =IF($B25="","",IFERROR(INDIRECT("別紙1_CO2排出量_個票"&$B25&"!"&"S46"),"---")) ->  | AI25: =IF($B25="","",IFERROR(INDIRECT("別紙1_CO2排出量_個票"&$B25&"!"&"T46"),"---")) -> 
B26: =IF(基本データ転記先シート!C200="","",基本データ転記先シート!C200) ->  | C26: =IF($B26="","",IFERROR(INDIRECT("別紙1_CO2排出量_個票"&$B26&"!"&"D13"),"---")) ->  | L26: =IF($B26="","",IFERROR(INDIRECT("別紙1_CO2排出量_個票"&$B26&"!"&"K25"),"---")) ->  | M26: =IF($B26="","",IFERROR(INDIRECT("別紙1_CO2排出量_個票"&$B26&"!"&"K29"),"---")) ->  | N26: =IF($B26="","",IFERROR(INDIRECT("別紙1_CO2排出量_個票"&$B26&"!"&"L29"),"---")) ->  | O26: =IF($B26="","",IFERROR(INDIRECT("別紙1_CO2排出量_個票"&$B26&"!"&"K38"),"---")) ->  | P26: =IF($B26="","",IFERROR(INDIRECT("別紙1_CO2排出量_個票"&$B26&"!"&"L38"),"---")) ->  | R26: =IF($B26="","",IFERROR(INDIRECT("別紙1_CO2排出量_個票"&$B26&"!"&"K42"),"---")) ->  | S26: =IF($B26="","",IFERROR(INDIRECT("別紙1_CO2排出量_個票"&$B26&"!"&"L42"),"---")) ->  | U26: =IF($B26="","",IFERROR(INDIRECT("別紙1_CO2排出量_個票"&$B26&"!"&"K46"),"--")) ->  | V26: =IF($B26="","",IFERROR(INDIRECT("別紙1_CO2排出量_個票"&$B26&"!"&"L46"),"---")) ->  | AA26: =IF($B26="","",IFERROR(INDIRECT("別紙1_CO2排出量_個票"&$B26&"!"&"S25"),"---")) ->  | AB26: =IF($B26="","",IFERROR(INDIRECT("別紙1_CO2排出量_個票"&$B26&"!"&"S29"),"---")) ->  | AC26: =IF($B26="","",IFERROR(INDIRECT("別紙1_CO2排出量_個票"&$B26&"!"&"T29"),"---")) ->  | AD26: =IF($B26="","",IFERROR(INDIRECT("別紙1_CO2排出量_個票"&$B26&"!"&"S38"),"---")) ->  | AE26: =IF($B26="","",IFERROR(INDIRECT("別紙1_CO2排出量_個票"&$B26&"!"&"T38"),"---")) ->  | AF26: =IF($B26="","",IFERROR(INDIRECT("別紙1_CO2排出量_個票"&$B26&"!"&"S42"),"---")) ->  | AG26: =IF($B26="","",IFERROR(INDIRECT("別紙1_CO2排出量_個票"&$B26&"!"&"T42"),"---")) ->  | AH26: =IF($B26="","",IFERROR(INDIRECT("別紙1_CO2排出量_個票"&$B26&"!"&"S46"),"---")) ->  | AI26: =IF($B26="","",IFERROR(INDIRECT("別紙1_CO2排出量_個票"&$B26&"!"&"T46"),"---")) -> 
B27: =IF(基本データ転記先シート!C201="","",基本データ転記先シート!C201) ->  | C27: =IF($B27="","",IFERROR(INDIRECT("別紙1_CO2排出量_個票"&$B27&"!"&"D13"),"---")) ->  | L27: =IF($B27="","",IFERROR(INDIRECT("別紙1_CO2排出量_個票"&$B27&"!"&"K25"),"---")) ->  | M27: =IF($B27="","",IFERROR(INDIRECT("別紙1_CO2排出量_個票"&$B27&"!"&"K29"),"---")) ->  | N27: =IF($B27="","",IFERROR(INDIRECT("別紙1_CO2排出量_個票"&$B27&"!"&"L29"),"---")) ->  | O27: =IF($B27="","",IFERROR(INDIRECT("別紙1_CO2排出量_個票"&$B27&"!"&"K38"),"---")) ->  | P27: =IF($B27="","",IFERROR(INDIRECT("別紙1_CO2排出量_個票"&$B27&"!"&"L38"),"---")) ->  | R27: =IF($B27="","",IFERROR(INDIRECT("別紙1_CO2排出量_個票"&$B27&"!"&"K42"),"---")) ->  | S27: =IF($B27="","",IFERROR(INDIRECT("別紙1_CO2排出量_個票"&$B27&"!"&"L42"),"---")) ->  | U27: =IF($B27="","",IFERROR(INDIRECT("別紙1_CO2排出量_個票"&$B27&"!"&"K46"),"--")) ->  | V27: =IF($B27="","",IFERROR(INDIRECT("別紙1_CO2排出量_個票"&$B27&"!"&"L46"),"---")) ->  | AA27: =IF($B27="","",IFERROR(INDIRECT("別紙1_CO2排出量_個票"&$B27&"!"&"S25"),"---")) ->  | AB27: =IF($B27="","",IFERROR(INDIRECT("別紙1_CO2排出量_個票"&$B27&"!"&"S29"),"---")) ->  | AC27: =IF($B27="","",IFERROR(INDIRECT("別紙1_CO2排出量_個票"&$B27&"!"&"T29"),"---")) ->  | AD27: =IF($B27="","",IFERROR(INDIRECT("別紙1_CO2排出量_個票"&$B27&"!"&"S38"),"---")) ->  | AE27: =IF($B27="","",IFERROR(INDIRECT("別紙1_CO2排出量_個票"&$B27&"!"&"T38"),"---")) ->  | AF27: =IF($B27="","",IFERROR(INDIRECT("別紙1_CO2排出量_個票"&$B27&"!"&"S42"),"---")) ->  | AG27: =IF($B27="","",IFERROR(INDIRECT("別紙1_CO2排出量_個票"&$B27&"!"&"T42"),"---")) ->  | AH27: =IF($B27="","",IFERROR(INDIRECT("別紙1_CO2排出量_個票"&$B27&"!"&"S46"),"---")) ->  | AI27: =IF($B27="","",IFERROR(INDIRECT("別紙1_CO2排出量_個票"&$B27&"!"&"T46"),"---")) -> 
B28: =IF(基本データ転記先シート!C202="","",基本データ転記先シート!C202) ->  | C28: =IF($B28="","",IFERROR(INDIRECT("別紙1_CO2排出量_個票"&$B28&"!"&"D13"),"---")) ->  | L28: =IF($B28="","",IFERROR(INDIRECT("別紙1_CO2排出量_個票"&$B28&"!"&"K25"),"---")) ->  | M28: =IF($B28="","",IFERROR(INDIRECT("別紙1_CO2排出量_個票"&$B28&"!"&"K29"),"---")) ->  | N28: =IF($B28="","",IFERROR(INDIRECT("別紙1_CO2排出量_個票"&$B28&"!"&"L29"),"---")) ->  | O28: =IF($B28="","",IFERROR(INDIRECT("別紙1_CO2排出量_個票"&$B28&"!"&"K38"),"---")) ->  | P28: =IF($B28="","",IFERROR(INDIRECT("別紙1_CO2排出量_個票"&$B28&"!"&"L38"),"---")) ->  | R28: =IF($B28="","",IFERROR(INDIRECT("別紙1_CO2排出量_個票"&$B28&"!"&"K42"),"---")) ->  | S28: =IF($B28="","",IFERROR(INDIRECT("別紙1_CO2排出量_個票"&$B28&"!"&"L42"),"---")) ->  | U28: =IF($B28="","",IFERROR(INDIRECT("別紙1_CO2排出量_個票"&$B28&"!"&"K46"),"--")) ->  | V28: =IF($B28="","",IFERROR(INDIRECT("別紙1_CO2排出量_個票"&$B28&"!"&"L46"),"---")) ->  | AA28: =IF($B28="","",IFERROR(INDIRECT("別紙1_CO2排出量_個票"&$B28&"!"&"S25"),"---")) ->  | AB28: =IF($B28="","",IFERROR(INDIRECT("別紙1_CO2排出量_個票"&$B28&"!"&"S29"),"---")) ->  | AC28: =IF($B28="","",IFERROR(INDIRECT("別紙1_CO2排出量_個票"&$B28&"!"&"T29"),"---")) ->  | AD28: =IF($B28="","",IFERROR(INDIRECT("別紙1_CO2排出量_個票"&$B28&"!"&"S38"),"---")) ->  | AE28: =IF($B28="","",IFERROR(INDIRECT("別紙1_CO2排出量_個票"&$B28&"!"&"T38"),"---")) ->  | AF28: =IF($B28="","",IFERROR(INDIRECT("別紙1_CO2排出量_個票"&$B28&"!"&"S42"),"---")) ->  | AG28: =IF($B28="","",IFERROR(INDIRECT("別紙1_CO2排出量_個票"&$B28&"!"&"T42"),"---")) ->  | AH28: =IF($B28="","",IFERROR(INDIRECT("別紙1_CO2排出量_個票"&$B28&"!"&"S46"),"---")) ->  | AI28: =IF($B28="","",IFERROR(INDIRECT("別紙1_CO2排出量_個票"&$B28&"!"&"T46"),"---")) -> 
B29: =IF(基本データ転記先シート!C203="","",基本データ転記先シート!C203) ->  | C29: =IF($B29="","",IFERROR(INDIRECT("別紙1_CO2排出量_個票"&$B29&"!"&"D13"),"---")) ->  | L29: =IF($B29="","",IFERROR(INDIRECT("別紙1_CO2排出量_個票"&$B29&"!"&"K25"),"---")) ->  | M29: =IF($B29="","",IFERROR(INDIRECT("別紙1_CO2排出量_個票"&$B29&"!"&"K29"),"---")) ->  | N29: =IF($B29="","",IFERROR(INDIRECT("別紙1_CO2排出量_個票"&$B29&"!"&"L29"),"---")) ->  | O29: =IF($B29="","",IFERROR(INDIRECT("別紙1_CO2排出量_個票"&$B29&"!"&"K38"),"---")) ->  | P29: =IF($B29="","",IFERROR(INDIRECT("別紙1_CO2排出量_個票"&$B29&"!"&"L38"),"---")) ->  | R29: =IF($B29="","",IFERROR(INDIRECT("別紙1_CO2排出量_個票"&$B29&"!"&"K42"),"---")) ->  | S29: =IF($B29="","",IFERROR(INDIRECT("別紙1_CO2排出量_個票"&$B29&"!"&"L42"),"---")) ->  | U29: =IF($B29="","",IFERROR(INDIRECT("別紙1_CO2排出量_個票"&$B29&"!"&"K46"),"--")) ->  | V29: =IF($B29="","",IFERROR(INDIRECT("別紙1_CO2排出量_個票"&$B29&"!"&"L46"),"---")) ->  | AA29: =IF($B29="","",IFERROR(INDIRECT("別紙1_CO2排出量_個票"&$B29&"!"&"S25"),"---")) ->  | AB29: =IF($B29="","",IFERROR(INDIRECT("別紙1_CO2排出量_個票"&$B29&"!"&"S29"),"---")) ->  | AC29: =IF($B29="","",IFERROR(INDIRECT("別紙1_CO2排出量_個票"&$B29&"!"&"T29"),"---")) ->  | AD29: =IF($B29="","",IFERROR(INDIRECT("別紙1_CO2排出量_個票"&$B29&"!"&"S38"),"---")) ->  | AE29: =IF($B29="","",IFERROR(INDIRECT("別紙1_CO2排出量_個票"&$B29&"!"&"T38"),"---")) ->  | AF29: =IF($B29="","",IFERROR(INDIRECT("別紙1_CO2排出量_個票"&$B29&"!"&"S42"),"---")) ->  | AG29: =IF($B29="","",IFERROR(INDIRECT("別紙1_CO2排出量_個票"&$B29&"!"&"T42"),"---")) ->  | AH29: =IF($B29="","",IFERROR(INDIRECT("別紙1_CO2排出量_個票"&$B29&"!"&"S46"),"---")) ->  | AI29: =IF($B29="","",IFERROR(INDIRECT("別紙1_CO2排出量_個票"&$B29&"!"&"T46"),"---")) -> 
B30: =IF(基本データ転記先シート!C204="","",基本データ転記先シート!C204) ->  | C30: =IF($B30="","",IFERROR(INDIRECT("別紙1_CO2排出量_個票"&$B30&"!"&"D13"),"---")) ->  | L30: =IF($B30="","",IFERROR(INDIRECT("別紙1_CO2排出量_個票"&$B30&"!"&"K25"),"---")) ->  | M30: =IF($B30="","",IFERROR(INDIRECT("別紙1_CO2排出量_個票"&$B30&"!"&"K29"),"---")) ->  | N30: =IF($B30="","",IFERROR(INDIRECT("別紙1_CO2排出量_個票"&$B30&"!"&"L29"),"---")) ->  | O30: =IF($B30="","",IFERROR(INDIRECT("別紙1_CO2排出量_個票"&$B30&"!"&"K38"),"---")) ->  | P30: =IF($B30="","",IFERROR(INDIRECT("別紙1_CO2排出量_個票"&$B30&"!"&"L38"),"---")) ->  | R30: =IF($B30="","",IFERROR(INDIRECT("別紙1_CO2排出量_個票"&$B30&"!"&"K42"),"---")) ->  | S30: =IF($B30="","",IFERROR(INDIRECT("別紙1_CO2排出量_個票"&$B30&"!"&"L42"),"---")) ->  | U30: =IF($B30="","",IFERROR(INDIRECT("別紙1_CO2排出量_個票"&$B30&"!"&"K46"),"--")) ->  | V30: =IF($B30="","",IFERROR(INDIRECT("別紙1_CO2排出量_個票"&$B30&"!"&"L46"),"---")) ->  | AA30: =IF($B30="","",IFERROR(INDIRECT("別紙1_CO2排出量_個票"&$B30&"!"&"S25"),"---")) ->  | AB30: =IF($B30="","",IFERROR(INDIRECT("別紙1_CO2排出量_個票"&$B30&"!"&"S29"),"---")) ->  | AC30: =IF($B30="","",IFERROR(INDIRECT("別紙1_CO2排出量_個票"&$B30&"!"&"T29"),"---")) ->  | AD30: =IF($B30="","",IFERROR(INDIRECT("別紙1_CO2排出量_個票"&$B30&"!"&"S38"),"---")) ->  | AE30: =IF($B30="","",IFERROR(INDIRECT("別紙1_CO2排出量_個票"&$B30&"!"&"T38"),"---")) ->  | AF30: =IF($B30="","",IFERROR(INDIRECT("別紙1_CO2排出量_個票"&$B30&"!"&"S42"),"---")) ->  | AG30: =IF($B30="","",IFERROR(INDIRECT("別紙1_CO2排出量_個票"&$B30&"!"&"T42"),"---")) ->  | AH30: =IF($B30="","",IFERROR(INDIRECT("別紙1_CO2排出量_個票"&$B30&"!"&"S46"),"---")) ->  | AI30: =IF($B30="","",IFERROR(INDIRECT("別紙1_CO2排出量_個票"&$B30&"!"&"T46"),"---")) -> 
B31: ※排出量及び削減量は、小数点以下を四捨五入した整数で表示されています（関数による端数処理なし）。
B33: ２．工場・事業場全体
L34: 基準年度 | O34: 実績（対策実施後） | AA34: 基準年度 | AD34: 実績
O35: =O16 -> 令和6年度 | R35: =R16 -> 令和7年度 | U35: =U16 -> 令和8年度 | AD35: =O16 -> 令和6年度 | AF35: =R16 -> 令和7年度 | AH35: =U16 -> 令和8年度
L36: 排出量 | O36: 排出量 | P36: 削減量 | R36: 排出量 | S36: 削減量 | U36: 排出量 | V36: 削減量 | AA36: 使用量 | AD36: 使用量 | AE36: 削減量 | AF36: 使用量 | AG36: 削減量 | AH36: 使用量 | AI36: 削減量
B37: CO2排出量、CO2削減量（t-CO2/年） | L37: =IF(基本データ転記先シート!$F$25="","",基本データ転記先シート!$F$25) -> 500.26612 | O37: =IF($L$37="","",別紙2_CO2排出量_全体!$E$15) -> 391.1644426 | P37: =IF(OR($L$37="",O37=""),"",$L$37-O37) -> 109.1016774 | R37: =IF($L$37="","",別紙2_CO2排出量_全体!$F$15) -> 0 | S37: =IF(OR($L$37="",R37=""),"",$L$37-R37) -> 500.26612 | U37: =IF($L$37="","",別紙2_CO2排出量_全体!$G$15) -> 0 | V37: =IF(OR($L$37="",U37=""),"",$L$37-U37) -> 500.26612 | Z37: エネルギー使用量合計(GJ/年) | AA37: =IF(基本データ転記先シート!$F$26="","",基本データ転記先シート!$F$26) -> 8218.124 | AD37: =IF($AA$37="","",別紙2_CO2排出量_全体!$E$16) -> 8028.42361 | AE37: =IF(OR($AA$37="",AD37=""),"",$AA$37-AD37) -> 189.7003904 | AF37: =IF($AA$37="","",別紙2_CO2排出量_全体!$F$16) -> 0 | AG37: =IF(OR($AA$37="",AF37=""),"",$AA$37-AF37) -> 8218.124 | AH37: =IF($AA$37="","",別紙2_CO2排出量_全体!$G$16) -> 0 | AI37: =IF(OR($AA$37="",AH37=""),"",$AA$37-AH37) -> 8218.124
B38: ※排出量及び削減量は、小数点以下を四捨五入した整数で表示されています（関数による端数処理なし）。
AA41: 設備・機器 | AB41: 計画 | AC41: 実績
AB42: 対策実施後目標 | AC42: =O16 -> 令和6年度 | AD42: =R16 -> 令和7年度 | AE42: =U16 -> 令和8年度
AA43: 排出量 | AB43: =$M$18 -> 286.0384476 | AC43: =$O$18 -> 286.55716 | AD43: =$R$18 -> 0 | AE43: =$U$18 -> 0
AA44: 対基準年度_削減量 | AB44: =$N$18 -> 109.6203724 | AC44: =IF($P$18<0,0,$P$18) -> 109.10166 | AD44: =IF($S$18<0,0,$S$18) -> 0 | AE44: =IF($V$18<0,0,$V$18) -> 0
AA46: 工場・事業場 | AB46: 基準年度 | AC46: 実績
AC47: =O16 -> 令和6年度 | AD47: =R16 -> 令和7年度 | AE47: =U16 -> 令和8年度
AA48: 排出量 | AB48: =$L$37 -> 500.26612 | AC48: =$O$37 -> 391.1644426 | AD48: =$R$37 -> 0 | AE48: =$U$37 -> 0
AA49: 対基準年度_削減量 | AB49: --- | AC49: =IF($P$37<0,0,$P$37) -> 109.1016774 | AD49: =IF($S$37<0,0,$S$37) -> 500.26612 | AE49: =IF($V$37<0,0,$V$37) -> 500.26612

Sheet 様式16_令和6年度事業報告書
B2: 様式第１６ (第１６条関係) | AR2: FALSE
AC3: プロジェクト番号：
AC4: GAJ事業番号：
Z5: 令和 | AB5: 7 | AD5: 年 | AE5: 4 | AG5: 月 | AJ5: 日
B7: 環 境 大 臣 殿
O9: 補助事業者 | S9: 住所: | Y9: ●●県●●市●●
S11: 氏名又は名称: | Y11: ○○株式会社
S13: 代表者の職・氏名: | Y13: ○○○○○○
B16: 令和４年度(第２次補正予算)・令和５年度二酸化炭素排出抑制対策事業費等補助金
B17: （工場・事業場における先導的な脱炭素化取組推進事業）
N18: 令和 | P18: =MID(CELL("filename",$N$18),FIND("]",CELL("filename",$N$18))+8,1) -> 6 | R18: 年度 事業報告書
C20: 令和5 | F20: 年 | I20: 月 | L20: 日付け | T20: 第 | Z20: 号で交付決定の通知を受けた
B21: 二酸化炭素排出抑制対策事業費等補助金（工場・事業場における先導的な脱炭素化取組推進事業）について、令和４年度(第２次補正予算)・令和５年度二酸化炭素排出抑制対策事業費等補助金（工場・事業場における先導的な脱炭素化取組推進事業）CO2削減計画策定支援・省CO2型設備更新支援 交付規程第１６条第１項の規定に基づき下記のとおり報告します。
B25: 記
B27: １ CO2削減計画に記された取組の実施状況
B29: （１） | D29: 令和 | F29: =IF($P$18="","",$P$18) -> 6 | H29: 年度の省CO2型設備更新支援事業への申請状況 | AR29: 設備更新補助への申請状況
E31: 申請した | W31: 申請していない | AR31: 0
B33: （２） | D33: 令和 | F33: =IF($P$18="","",$P$18) -> 6 | H33: 年度のその他の補助事業の利用状況 | AR33: その他の補助事業利用状況
E35: その他の補助事業を利用した | W35: その他の補助事業を利用していない | AR35: 0
E36: → | F36: その他補助事業の名称及び、実施した対策内容・対象設備等
B41: （３） | D41: 令和 | F41: =IF($P$18="","",$P$18) -> 6 | H41: 年度の対策実施状況 | AR41: 対策実施状況
E43: 当初の計画どおりに対策を実施した | W43: 当初の計画から変更があった | AR43: 0
B45: ２ 事業実施による二酸化炭素排出削減効果について（設備・機器）
B47: （１） | D47: 令和 | F47: =IF($P$18="","",$P$18) -> 6 | H47: 年度の[実績]二酸化炭素排出量
D49: [計画]二酸化炭素排出量 | L49: =IF(事業報告書まとめ_計画策定支援!$M$18="","",事業報告書まとめ_計画策定支援!$M$18) -> 286.0384476 | U49: t-CO2/年
D50: [実績]二酸化炭素排出量 | L50: =IF(事業報告書まとめ_計画策定支援!$O$18="","",事業報告書まとめ_計画策定支援!$O$18) -> 286.55716 | U50: t-CO2/年
B52: （２） | D52: [実績]二酸化炭素排出量が[計画]二酸化炭素排出量を超過した場合の原因
B58: 【本件責任者及び担当者の氏名、連絡先等】
B59: 責任者の所属部署・職名・氏名 | M59: ○○株式会社 ●●部 部長 △△△△△△
B60: 担当者の所属部署・職名・氏名 | M60: ○○株式会社 ●●部 ▲▲▲▲▲
B61: 連絡先 | E61: 電話番号 | M61: 123-456-789
E62: メールアドレス | M62: ▲▲▲@○○○
B64: 責任者の所属部署・職名・氏名
B65: 担当者の所属部署・職名・氏名
B66: 連絡先 | E66: 電話番号
E67: メールアドレス
B68: 注 交付規程第３条第３項の規定に基づき共同で交付申請した場合は、代表事業者が報告すること。2者が代表事業者で申請する場合は、連名で申請すること。

Sheet 様式16_令和7年度事業報告書
B2: 様式第１６ (第１６条関係) | AR2: FALSE
AC3: プロジェクト番号： | AD3: =IF(様式16_令和6年度事業報告書!$AD$3="","",様式16_令和6年度事業報告書!$AD$3) -> 
AC4: GAJ事業番号： | AD4: =IF(様式16_令和6年度事業報告書!$AD$4="","",様式16_令和6年度事業報告書!$AD$4) -> 
Z5: 令和 | AB5: 8 | AD5: 年 | AE5: 4 | AG5: 月 | AJ5: 日
B7: 環 境 大 臣 殿
O9: 補助事業者 | S9: 住所: | Y9: =IF(様式16_令和6年度事業報告書!$Y$9="","",様式16_令和6年度事業報告書!$Y$9) -> ●●県●●市●●
S11: 氏名又は名称: | Y11: =IF(様式16_令和6年度事業報告書!$Y$11="","",様式16_令和6年度事業報告書!$Y$11) -> ○○株式会社
S13: 代表者の職・氏名: | Y13: =IF(様式16_令和6年度事業報告書!$Y$13="","",様式16_令和6年度事業報告書!$Y$13) -> ○○○○○○
B16: 令和４年度(第２次補正予算)・令和５年度二酸化炭素排出抑制対策事業費等補助金
B17: （工場・事業場における先導的な脱炭素化取組推進事業）
N18: 令和 | P18: =MID(CELL("filename",$N$18),FIND("]",CELL("filename",$N$18))+8,1) -> 7 | R18: 年度 事業報告書
C20: =IF(様式16_令和6年度事業報告書!$C$20="","",様式16_令和6年度事業報告書!$C$20) -> 令和5 | F20: 年 | G20: =IF(様式16_令和6年度事業報告書!$G$20="","",様式16_令和6年度事業報告書!$G$20) ->  | I20: 月 | J20: =IF(様式16_令和6年度事業報告書!$J$20="","",様式16_令和6年度事業報告書!$J$20) ->  | L20: 日付け | O20: =IF(様式16_令和6年度事業報告書!$O$20="","",様式16_令和6年度事業報告書!$O$20) ->  | T20: 第 | U20: =IF(様式16_令和6年度事業報告書!$U$20="","",様式16_令和6年度事業報告書!$U$20) ->  | Z20: 号で交付決定の通知を受けた
B21: 二酸化炭素排出抑制対策事業費等補助金（工場・事業場における先導的な脱炭素化取組推進事業）について、令和４年度(第２次補正予算)・令和５年度二酸化炭素排出抑制対策事業費等補助金（工場・事業場における先導的な脱炭素化取組推進事業）CO2削減計画策定支援・省CO2型設備更新支援 交付規程第１６条第１項の規定に基づき下記のとおり報告します。
B25: 記
B27: １ CO2削減計画に記された取組の実施状況
B29: （１） | D29: 令和 | F29: =IF($P$18="","",$P$18) -> 7 | H29: 年度の省CO2型設備更新支援事業への申請状況 | AR29: 設備更新補助への申請状況
E31: 申請した | W31: 申請していない | AR31: 0
B33: （２） | D33: 令和 | F33: =IF($P$18="","",$P$18) -> 7 | H33: 年度のその他の補助事業の利用状況 | AR33: その他の補助事業利用状況
N34: 1
E35: その他の補助事業を利用した | W35: その他の補助事業を利用していない | AR35: 0
E36: → | F36: その他補助事業の名称及び、実施した対策内容・対象設備等
B41: （３） | D41: 令和 | F41: =IF($P$18="","",$P$18) -> 7 | H41: 年度の対策実施状況 | AR41: 対策実施状況
E43: 当初の計画どおりに対策を実施した | W43: 当初の計画から変更があった | AR43: 0
B45: ２ 事業実施による二酸化炭素排出削減効果について（設備・機器）
B47: （１） | D47: 令和 | F47: =IF($P$18="","",$P$18) -> 7 | H47: 年度の[実績]二酸化炭素排出量
D49: [計画]二酸化炭素排出量 | L49: =IF(事業報告書まとめ_計画策定支援!$M$18="","",事業報告書まとめ_計画策定支援!$M$18) -> 286.0384476 | U49: t-CO2/年
D50: [実績]二酸化炭素排出量 | L50: =IF(事業報告書まとめ_計画策定支援!$R$18="","",事業報告書まとめ_計画策定支援!$R$18) -> 0 | U50: t-CO2/年
B52: （２） | D52: [実績]二酸化炭素排出量が[計画]二酸化炭素排出量を超過した場合の原因
B58: 【本件責任者及び担当者の氏名、連絡先等】
B59: 責任者の所属部署・職名・氏名 | M59: =IF(様式16_令和6年度事業報告書!$M$59="","",様式16_令和6年度事業報告書!$M$59) -> ○○株式会社 ●●部 部長 △△△△△△
B60: 担当者の所属部署・職名・氏名 | M60: =IF(様式16_令和6年度事業報告書!$M$60="","",様式16_令和6年度事業報告書!$M$60) -> ○○株式会社 ●●部 ▲▲▲▲▲
B61: 連絡先 | E61: 電話番号 | M61: =IF(様式16_令和6年度事業報告書!$M$61="","",様式16_令和6年度事業報告書!$M$61) -> 123-456-789
E62: メールアドレス | M62: =IF(様式16_令和6年度事業報告書!$M$62="","",様式16_令和6年度事業報告書!$M$62) -> ▲▲▲@○○○
B64: 責任者の所属部署・職名・氏名 | M64: =IF(様式16_令和6年度事業報告書!$M$64="","",様式16_令和6年度事業報告書!$M$64) -> 
B65: 担当者の所属部署・職名・氏名 | M65: =IF(様式16_令和6年度事業報告書!$M$65="","",様式16_令和6年度事業報告書!$M$65) -> 
B66: 連絡先 | E66: 電話番号 | M66: =IF(様式16_令和6年度事業報告書!$M$66="","",様式16_令和6年度事業報告書!$M$66) -> 
E67: メールアドレス | M67: =IF(様式16_令和6年度事業報告書!$M$67="","",様式16_令和6年度事業報告書!$M$67) -> 
B68: 注 交付規程第３条第３項の規定に基づき共同で交付申請した場合は、代表事業者が報告すること。2者が代表事業者で申請する場合は、連名で申請すること。

Sheet 様式16_令和8年度事業報告書
B2: 様式第１６ (第１６条関係) | AR2: FALSE
AC3: プロジェクト番号： | AD3: =IF(様式16_令和7年度事業報告書!$AD$3="","",様式16_令和7年度事業報告書!$AD$3) -> 
AC4: GAJ事業番号： | AD4: =IF(様式16_令和7年度事業報告書!$AD$4="","",様式16_令和7年度事業報告書!$AD$4) -> 
Z5: 令和 | AB5: 9 | AD5: 年 | AE5: 4 | AG5: 月 | AJ5: 日
B7: 環 境 大 臣 殿
O9: 補助事業者 | S9: 住所: | Y9: =IF(様式16_令和7年度事業報告書!$Y$9="","",様式16_令和7年度事業報告書!$Y$9) -> ●●県●●市●●
S11: 氏名又は名称: | Y11: =IF(様式16_令和7年度事業報告書!$Y$11="","",様式16_令和7年度事業報告書!$Y$11) -> ○○株式会社
S13: 代表者の職・氏名: | Y13: =IF(様式16_令和7年度事業報告書!$Y$13="","",様式16_令和7年度事業報告書!$Y$13) -> ○○○○○○
B16: 令和４年度(第２次補正予算)・令和５年度二酸化炭素排出抑制対策事業費等補助金
B17: （工場・事業場における先導的な脱炭素化取組推進事業）
N18: 令和 | P18: =MID(CELL("filename",$N$18),FIND("]",CELL("filename",$N$18))+8,1) -> 8 | R18: 年度 事業報告書
C20: =IF(様式16_令和6年度事業報告書!$C$20="","",様式16_令和6年度事業報告書!$C$20) -> 令和5 | F20: 年 | G20: =IF(様式16_令和6年度事業報告書!$G$20="","",様式16_令和6年度事業報告書!$G$20) ->  | I20: 月 | J20: =IF(様式16_令和6年度事業報告書!$J$20="","",様式16_令和6年度事業報告書!$J$20) ->  | L20: 日付け | O20: =IF(様式16_令和6年度事業報告書!$O$20="","",様式16_令和6年度事業報告書!$O$20) ->  | T20: 第 | U20: =IF(様式16_令和6年度事業報告書!$U$20="","",様式16_令和6年度事業報告書!$U$20) ->  | Z20: 号で交付決定の通知を受けた
B21: 二酸化炭素排出抑制対策事業費等補助金（工場・事業場における先導的な脱炭素化取組推進事業）について、令和４年度(第２次補正予算)・令和５年度二酸化炭素排出抑制対策事業費等補助金（工場・事業場における先導的な脱炭素化取組推進事業）CO2削減計画策定支援・省CO2型設備更新支援 交付規程第１６条第１項の規定に基づき下記のとおり報告します。
B25: 記
B27: １ CO2削減計画に記された取組の実施状況
B29: （１） | D29: 令和 | F29: =IF($P$18="","",$P$18) -> 8 | H29: 年度の省CO2型設備更新支援事業への申請状況 | AR29: 設備更新補助への申請状況
E31: 申請した | W31: 申請していない | AR31: 0
B33: （２） | D33: 令和 | F33: =IF($P$18="","",$P$18) -> 8 | H33: 年度のその他の補助事業の利用状況 | AR33: その他の補助事業利用状況
E35: その他の補助事業を利用した | W35: その他の補助事業を利用していない | AR35: 0
E36: → | F36: その他補助事業の名称及び、実施した対策内容・対象設備等
B41: （３） | D41: 令和 | F41: =IF($P$18="","",$P$18) -> 8 | H41: 年度の対策実施状況 | AR41: 対策実施状況
E43: 当初の計画どおりに対策を実施した | W43: 当初の計画から変更があった | AR43: 0
B45: ２ 事業実施による二酸化炭素排出削減効果について（設備・機器）
B47: （１） | D47: 令和 | F47: =IF($P$18="","",$P$18) -> 8 | H47: 年度の[実績]二酸化炭素排出量
D49: [計画]二酸化炭素排出量 | L49: =IF(事業報告書まとめ_計画策定支援!$M$18="","",事業報告書まとめ_計画策定支援!$M$18) -> 286.0384476 | U49: t-CO2/年
D50: [実績]二酸化炭素排出量 | L50: =IF(事業報告書まとめ_計画策定支援!$U$18="","",事業報告書まとめ_計画策定支援!$U$18) -> 0 | U50: t-CO2/年
B52: （２） | D52: [実績]二酸化炭素排出量が[計画]二酸化炭素排出量を超過した場合の原因
B58: 【本件責任者及び担当者の氏名、連絡先等】
B59: 責任者の所属部署・職名・氏名 | M59: =IF(様式16_令和7年度事業報告書!$M$59="","",様式16_令和7年度事業報告書!$M$59) -> ○○株式会社 ●●部 部長 △△△△△△
B60: 担当者の所属部署・職名・氏名 | M60: =IF(様式16_令和7年度事業報告書!$M$60="","",様式16_令和7年度事業報告書!$M$60) -> ○○株式会社 ●●部 ▲▲▲▲▲
B61: 連絡先 | E61: 電話番号 | M61: =IF(様式16_令和7年度事業報告書!$M$61="","",様式16_令和7年度事業報告書!$M$61) -> 123-456-789
E62: メールアドレス | M62: =IF(様式16_令和7年度事業報告書!$M$62="","",様式16_令和7年度事業報告書!$M$62) -> ▲▲▲@○○○
B64: 責任者の所属部署・職名・氏名 | M64: =IF(様式16_令和7年度事業報告書!$M$64="","",様式16_令和7年度事業報告書!$M$64) -> 
B65: 担当者の所属部署・職名・氏名 | M65: =IF(様式16_令和7年度事業報告書!$M$65="","",様式16_令和7年度事業報告書!$M$65) -> 
B66: 連絡先 | E66: 電話番号 | M66: =IF(様式16_令和7年度事業報告書!$M$66="","",様式16_令和7年度事業報告書!$M$66) -> 
E67: メールアドレス | M67: =IF(様式16_令和7年度事業報告書!$M$67="","",様式16_令和7年度事業報告書!$M$67) -> 
B68: 注 交付規程第３条第３項の規定に基づき共同で交付申請した場合は、代表事業者が報告すること。2者が代表事業者で申請する場合は、連名で申請すること。

Sheet 別紙1_CO2排出量_個票1
V1: セル色表示/非表示
B2: 環境省 令和４年度（第2次補正予算）・令和5年度二酸化炭素排出抑制対策事業費等補助金 | V2: FALSE
B3: （工場・事業場における先導的な脱炭素化取組推進事業（SHIFT事業））
B5: 事業者名（法人名） | D5: =IF(事業報告書まとめ_計画策定支援!$H$7="","",事業報告書まとめ_計画策定支援!$H$7) -> ○○株式会社
B6: 工場・事業場名 | D6: =IF(事業報告書まとめ_計画策定支援!$H$8="","",事業報告書まとめ_計画策定支援!$H$8) -> ○○工場
B8: ="【様式第16 事業報告書】 別紙1_CO2排出量_個票"&$D$12 -> 【様式第16 事業報告書】 別紙1_CO2排出量_個票1
B10: １．対策概要
B12: 個票番号 | D12: =MID(CELL("filename",$A$1),FIND("]",CELL("filename",$A$1))+14,LEN(CELL("filename",$A$1))) -> 1 | H12: 統合した対策個票番号
B13: 対策名称 | D13: =IF(VLOOKUP(VALUE($D$12),個票概要,3,FALSE)="","",VLOOKUP(VALUE($D$12),個票概要,3,FALSE)) -> A重油蒸気ボイラから都市ガス蒸気ボイラへの燃料転換
B14: 対策種類 | D14: =IF(VLOOKUP(VALUE($D$12),個票概要,2,FALSE)="","",VLOOKUP(VALUE($D$12),個票概要,2,FALSE)) -> 燃料低炭素化
B15: 対象システム／設備 | D15: =IF(VLOOKUP(VALUE($D$12),個票概要,6,FALSE)="","",VLOOKUP(VALUE($D$12),個票概要,6,FALSE)) -> 蒸気システム（発生）
B16: 工程 | D16: =IF(VLOOKUP(VALUE($D$12),個票概要,5,FALSE)="","",VLOOKUP(VALUE($D$12),個票概要,5,FALSE)) -> 原料加熱
B17: 既存設備名称 | D17: =IF(VLOOKUP(VALUE($D$12),個票概要,7,FALSE)="","",VLOOKUP(VALUE($D$12),個票概要,7,FALSE)) -> A重油焚きボイラ
B18: 導入設備名称 | D18: =IF(VLOOKUP(VALUE($D$12),個票概要,8,FALSE)="","",VLOOKUP(VALUE($D$12),個票概要,8,FALSE)) -> 都市ガス焚きボイラ
B21: ２．CO2排出量
C23: 活動種別 | D23: 年間活動量 | F23: 単位発熱量 | H23: CO2排出係数 | J23: CO2排出量 (t-CO2/年) | K23: CO2排出量合計 (t-CO2/年) | L23: CO2削減量 (t-CO2/年) | O23: 活動種別 | P23: 単位発熱量 | R23: GJ換算量 (GJ/年) | S23: GJ換算量合計 (GJ/年) | T23: GJ削減量 (GJ/年)
B24: ■計画 | O24: ■計画
A25: =IF($C25="","",VLOOKUP($C25,活動の種別と単位_個票,2,FALSE)) -> 0 | B25: 【前】 対策実施 | C25: =IF(VLOOKUP(VALUE($D$12),対策前後,2,FALSE)="","",VLOOKUP(VALUE($D$12),対策前後,2,FALSE)) -> A重油 | D25: =IF(VLOOKUP(VALUE($D$12),対策前後,3,FALSE)="","",VLOOKUP(VALUE($D$12),対策前後,3,FALSE)) -> 131 | E25: =IF($C25="","",VLOOKUP($C25,活動の種別と単位_個票,4,FALSE)) -> kl | F25: =IF(VLOOKUP(VALUE($D$12),対策前後,5,FALSE)="","",VLOOKUP(VALUE($D$12),対策前後,5,FALSE)) -> 38.9 | G25: =IF($C25="","",VLOOKUP($C25,活動の種別と単位_個票,5,FALSE)) -> GJ/kl | H25: =IF(VLOOKUP(VALUE($D$12),対策前後,7,FALSE)="","",VLOOKUP(VALUE($D$12),対策前後,7,FALSE)) -> 0.0708 | I25: =IF($C25="","",VLOOKUP($C25,活動の種別と単位_個票,6,FALSE)) -> t-CO2/GJ | J25: =IFERROR(IF($D25="","",IF($A25=0,$D25*$F25*$H25,$D25*$H25)),"---") -> 360.78972 | K25: =IF(SUM(LEN($J25),LEN($J26),LEN($J27),LEN($J28))=0,"",SUM($J25:$J28)) -> 360.78972 | O25: =IF($C25="","",IF(COUNTIF($C25,"*系統電力*"),"*系統電力*",IF(COUNTIF($C25,"*産業用蒸気*"),"*産業用蒸気*",IF(COUNTIF($C25,"*温水*"),"*温水*",IF(COUNTIF($C25,"*冷水*"),"*冷水*",IF(COUNTIF($C25,"*蒸気（産業用以外）*"),"*蒸気（産業用以外）*",$C25)))))) -> A重油 | P25: =IF($O25="","",IFERROR(VLOOKUP($O25,電力等のGJ換算係数_個票,2,FALSE),F25)) -> 38.9 | Q25: =IF($O25="","",IFERROR(VLOOKUP($O25,電力等のGJ換算係数_個票,3,FALSE),VLOOKUP($O25,活動の種別と単位_個票,5,FALSE))) -> GJ/kl | R25: =IF(OR($D25="",$P25=""),"",$D25*$P25) -> 5095.9 | S25: =IF(SUM(LEN($R25),LEN($R26),LEN($R27),LEN($R28))=0,"",SUM($R25:$R28)) -> 5095.9
C26: =IF(VLOOKUP(VALUE($D$12)&"-2",対策前後,2,FALSE)="","",VLOOKUP(VALUE($D$12)&"-2",対策前後,2,FALSE)) ->  | D26: =IF(VLOOKUP(VALUE($D$12)&"-2",対策前後,3,FALSE)="","",VLOOKUP(VALUE($D$12)&"-2",対策前後,3,FALSE)) ->  | E26: =IF($C26="","",VLOOKUP($C26,活動の種別と単位_個票,4,FALSE)) ->  | F26: =IF(VLOOKUP(VALUE($D$12)&"-2",対策前後,5,FALSE)="","",VLOOKUP(VALUE($D$12)&"-2",対策前後,5,FALSE)) ->  | H26: =IF(VLOOKUP(VALUE($D$12)&"-2",対策前後,7,FALSE)="","",VLOOKUP(VALUE($D$12)&"-2",対策前後,7,FALSE)) ->  | K26: (a) | O26: =IF($C26="","",IF(COUNTIF($C26,"*系統電力*"),"*系統電力*",IF(COUNTIF($C26,"*産業用蒸気*"),"*産業用蒸気*",IF(COUNTIF($C26,"*温水*"),"*温水*",IF(COUNTIF($C26,"*冷水*"),"*冷水*",IF(COUNTIF($C26,"*蒸気（産業用以外）*"),"*蒸気（産業用以外）*",$C26)))))) ->  | P26: =IF($O26="","",IFERROR(VLOOKUP($O26,電力等のGJ換算係数_個票,2,FALSE),F26)) ->  | Q26: =IF($O26="","",IFERROR(VLOOKUP($O26,電力等のGJ換算係数_個票,3,FALSE),VLOOKUP($O26,活動の種別と単位_個票,5,FALSE))) ->  | R26: =IF(OR($D26="",$P26=""),"",$D26*$P26) ->  | S26: (A)
C27: =IF(VLOOKUP(VALUE($D$12)&"-3",対策前後,2,FALSE)="","",VLOOKUP(VALUE($D$12)&"-3",対策前後,2,FALSE)) ->  | D27: =IF(VLOOKUP(VALUE($D$12)&"-3",対策前後,3,FALSE)="","",VLOOKUP(VALUE($D$12)&"-3",対策前後,3,FALSE)) ->  | F27: =IF(VLOOKUP(VALUE($D$12)&"-3",対策前後,5,FALSE)="","",VLOOKUP(VALUE($D$12)&"-3",対策前後,5,FALSE)) ->  | H27: =IF(VLOOKUP(VALUE($D$12)&"-3",対策前後,7,FALSE)="","",VLOOKUP(VALUE($D$12)&"-3",対策前後,7,FALSE)) ->  | Q27: =IF($O27="","",IFERROR(VLOOKUP($O27,電力等のGJ換算係数_個票,3,FALSE),VLOOKUP($O27,活動の種別と単位_個票,5,FALSE))) -> 
C28: =IF(VLOOKUP(VALUE($D$12)&"-4",対策前後,2,FALSE)="","",VLOOKUP(VALUE($D$12)&"-4",対策前後,2,FALSE)) ->  | D28: =IF(VLOOKUP(VALUE($D$12)&"-4",対策前後,3,FALSE)="","",VLOOKUP(VALUE($D$12)&"-4",対策前後,3,FALSE)) ->  | F28: =IF(VLOOKUP(VALUE($D$12)&"-4",対策前後,5,FALSE)="","",VLOOKUP(VALUE($D$12)&"-4",対策前後,5,FALSE)) ->  | H28: =IF(VLOOKUP(VALUE($D$12)&"-4",対策前後,7,FALSE)="","",VLOOKUP(VALUE($D$12)&"-4",対策前後,7,FALSE)) -> 
A29: 0 | B29: 【計画】 対策実施 | C29: =IF(VLOOKUP(VALUE($D$12),対策前後,9,FALSE)="","",VLOOKUP(VALUE($D$12),対策前後,9,FALSE)) -> 都市ガス | D29: =IF(VLOOKUP(VALUE($D$12),対策前後,10,FALSE)="","",VLOOKUP(VALUE($D$12),対策前後,10,FALSE)) -> 112.497 | E29: 千Nm3 | F29: =IF(VLOOKUP(VALUE($D$12),対策前後,12,FALSE)="","",VLOOKUP(VALUE($D$12),対策前後,12,FALSE)) -> 44.2 | G29: GJ/千Nm3 | H29: =IF(VLOOKUP(VALUE($D$12),対策前後,14,FALSE)="","",VLOOKUP(VALUE($D$12),対策前後,14,FALSE)) -> 0.0513 | I29: t-CO2/GJ | J29: 255.0824476 | K29: =IF(SUM(LEN($J29),LEN($J30),LEN($J31),LEN($J32))=0,"",SUM($J29:$J32)) -> 255.0824476 | L29: =IFERROR($K$25-$K$29,"---") -> 105.7072724 | O29: 都市ガス | P29: 44.2 | Q29: GJ/千Nm3 | R29: 4972.3674 | S29: =IF(SUM(LEN($R29),LEN($R30),LEN($R31),LEN($R32))=0,"",SUM($R29:$R32)) -> 4972.3674 | T29: =IFERROR($S$25-$S$29,"---") -> 123.5326
C30: =IF(VLOOKUP(VALUE($D$12)&"-2",対策前後,9,FALSE)="","",VLOOKUP(VALUE($D$12)&"-2",対策前後,9,FALSE)) ->  | D30: =IF(VLOOKUP(VALUE($D$12)&"-2",対策前後,10,FALSE)="","",VLOOKUP(VALUE($D$12)&"-2",対策前後,10,FALSE)) ->  | F30: =IF(VLOOKUP(VALUE($D$12)&"-2",対策前後,12,FALSE)="","",VLOOKUP(VALUE($D$12)&"-2",対策前後,12,FALSE)) ->  | H30: =IF(VLOOKUP(VALUE($D$12)&"-2",対策前後,14,FALSE)="","",VLOOKUP(VALUE($D$12)&"-2",対策前後,14,FALSE)) ->  | K30: (b) | L30: (a-b) | S30: (B) | T30: (A-B)
C31: =IF(VLOOKUP(VALUE($D$12)&"-3",対策前後,9,FALSE)="","",VLOOKUP(VALUE($D$12)&"-3",対策前後,9,FALSE)) ->  | D31: =IF(VLOOKUP(VALUE($D$12)&"-3",対策前後,10,FALSE)="","",VLOOKUP(VALUE($D$12)&"-3",対策前後,10,FALSE)) ->  | F31: =IF(VLOOKUP(VALUE($D$12)&"-3",対策前後,12,FALSE)="","",VLOOKUP(VALUE($D$12)&"-3",対策前後,12,FALSE)) ->  | H31: =IF(VLOOKUP(VALUE($D$12)&"-3",対策前後,14,FALSE)="","",VLOOKUP(VALUE($D$12)&"-3",対策前後,14,FALSE)) -> 
C32: =IF(VLOOKUP(VALUE($D$12)&"-4",対策前後,9,FALSE)="","",VLOOKUP(VALUE($D$12)&"-4",対策前後,9,FALSE)) ->  | D32: =IF(VLOOKUP(VALUE($D$12)&"-4",対策前後,10,FALSE)="","",VLOOKUP(VALUE($D$12)&"-4",対策前後,10,FALSE)) ->  | F32: =IF(VLOOKUP(VALUE($D$12)&"-4",対策前後,12,FALSE)="","",VLOOKUP(VALUE($D$12)&"-4",対策前後,12,FALSE)) ->  | H32: =IF(VLOOKUP(VALUE($D$12)&"-4",対策前後,14,FALSE)="","",VLOOKUP(VALUE($D$12)&"-4",対策前後,14,FALSE)) -> 
B33: ■対策実施状況 | V33: 計画変更状況
B34: 令和6年度 | D34: 実施済み（CO2削減効果算定） | J34: 当初計画から変更あり | V34: FALSE
B35: 令和7年度 | J35: 当初計画から変更あり | V35: FALSE
B36: 令和8年度 | J36: 当初計画から変更あり | V36: FALSE
B37: ■実績 | O37: ■実績
A38: =IF($C38="","",VLOOKUP($C38,活動の種別と単位_個票,2,FALSE)) -> 0 | B38: =B34 -> 令和6年度 | C38: =IF($D$34="","",IF(COUNTIF($D$34,"*済*"),$C$29,$C$25)) -> 都市ガス | D38: 111 | E38: =IF($C38="","",VLOOKUP($C38,活動の種別と単位_個票,4,FALSE)) -> 千Nm3 | F38: =IF($D$34="","",IF(COUNTIF($D$34,"*済*"),$F$29,$F$25)) -> 44.2 | G38: =IF($C38="","",VLOOKUP($C38,活動の種別と単位_個票,5,FALSE)) -> GJ/千Nm3 | H38: =IF($D$34="","",IF(COUNTIF($D$34,"*済*"),$H$29,$H$25)) -> 0.0513 | I38: =IF($C38="","",VLOOKUP($C38,活動の種別と単位_個票,6,FALSE)) -> t-CO2/GJ | J38: =IFERROR(IF($D38="","",IF($A38=0,$D38*$F38*$H38,$D38*$H38)),"---") -> 251.68806 | K38: =IF(SUM(LEN($J38),LEN($J39),LEN($J40),LEN($J41))=0,"",SUM($J38:$J41)) -> 251.68806 | L38: =IFERROR($K$25-$K$38,"---") -> 109.10166 | O38: =IF($C38="","",IF(COUNTIF($C38,"*系統電力*"),"*系統電力*",IF(COUNTIF($C38,"*産業用蒸気*"),"*産業用蒸気*",IF(COUNTIF($C38,"*温水*"),"*温水*",IF(COUNTIF($C38,"*冷水*"),"*冷水*",IF(COUNTIF($C38,"*蒸気（産業用以外）*"),"*蒸気（産業用以外）*",$C38)))))) -> 都市ガス | P38: =IF($O38="","",IFERROR(VLOOKUP($O38,電力等のGJ換算係数_個票,2,FALSE),F38)) -> 44.2 | Q38: =IF($O38="","",IFERROR(VLOOKUP($O38,電力等のGJ換算係数_個票,3,FALSE),VLOOKUP($O38,活動の種別と単位_個票,5,FALSE))) -> GJ/千Nm3 | R38: =IF(OR($D38="",$P38=""),"",$D38*$P38) -> 4906.2 | S38: =IF(SUM(LEN($R38),LEN($R39),LEN($R40),LEN($R41))=0,"",SUM($R38:$R41)) -> 4906.2 | T38: =IFERROR($S$25-$S$38,"---") -> 189.7
C39: =IF($D$34="","",IF(COUNTIF($D$34,"*済*"),$C$30,$C$26)) ->  | D39: =IF($D$34="","",IF(COUNTIF($D$34,"*済*"),"",$D$26)) ->  | F39: =IF($D$34="","",IF(COUNTIF($D$34,"*済*"),$F$30,$F$26)) ->  | H39: =IF($D$34="","",IF(COUNTIF($D$34,"*済*"),$H$30,$H$26)) ->  | K39: (c1) | L39: (a-c1) | O39: =IF($C39="","",IF(COUNTIF($C39,"*系統電力*"),"*系統電力*",IF(COUNTIF($C39,"*産業用蒸気*"),"*産業用蒸気*",IF(COUNTIF($C39,"*温水*"),"*温水*",IF(COUNTIF($C39,"*冷水*"),"*冷水*",IF(COUNTIF($C39,"*蒸気（産業用以外）*"),"*蒸気（産業用以外）*",$C39)))))) ->  | S39: (C1) | T39: (A-C1)
C40: =IF($D$34="","",IF(COUNTIF($D$34,"*済*"),$C$31,$C$27)) ->  | D40: =IF($D$34="","",IF(COUNTIF($D$34,"*済*"),"",$D$27)) ->  | F40: =IF($D$34="","",IF(COUNTIF($D$34,"*済*"),$F$31,$F$27)) ->  | H40: =IF($D$34="","",IF(COUNTIF($D$34,"*済*"),$H$31,$H$27)) -> 
C41: =IF($D$34="","",IF(COUNTIF($D$34,"*済*"),$C$32,$C$28)) ->  | D41: =IF($D$34="","",IF(COUNTIF($D$34,"*済*"),"",$D$28)) ->  | F41: =IF($D$34="","",IF(COUNTIF($D$34,"*済*"),$F$32,$F$28)) ->  | H41: =IF($D$34="","",IF(COUNTIF($D$34,"*済*"),$H$32,$H$28)) -> 
B42: =B35 -> 令和7年度 | C42: =IF($D$35="","",IF(COUNTIF($D$35,"*済*"),$C$29,$C$25)) ->  | D42: =IF($D$35="","",IF(COUNTIF($D$35,"*済*"),"",$D$25)) ->  | F42: =IF($D$35="","",IF(COUNTIF($D$35,"*済*"),$F$29,$F$25)) ->  | H42: =IF($D$35="","",IF(COUNTIF($D$35,"*済*"),$H$29,$H$25)) ->  | K42: =IF(SUM(LEN($J42),LEN($J43),LEN($J44),LEN($J45))=0,"",SUM($J42:$J45)) ->  | L42: =IFERROR($K$25-$K$42,"---") -> --- | S42: =IF(SUM(LEN($R42),LEN($R43),LEN($R44),LEN($R45))=0,"",SUM($R42:$R45)) ->  | T42: =IFERROR($S$25-$S$42,"---") -> ---
C43: =IF($D$35="","",IF(COUNTIF($D$35,"*済*"),$C$30,$C$26)) ->  | D43: =IF($D$35="","",IF(COUNTIF($D$35,"*済*"),"",$D$26)) ->  | F43: =IF($D$35="","",IF(COUNTIF($D$35,"*済*"),$F$30,$F$26)) ->  | H43: =IF($D$35="","",IF(COUNTIF($D$35,"*済*"),$H$30,$H$26)) ->  | K43: (c2) | L43: (a-c2) | S43: (C2) | T43: (A-C2)
C44: =IF($D$35="","",IF(COUNTIF($D$35,"*済*"),$C$31,$C$27)) ->  | D44: =IF($D$35="","",IF(COUNTIF($D$35,"*済*"),"",$D$27)) ->  | F44: =IF($D$35="","",IF(COUNTIF($D$35,"*済*"),$F$31,$F$27)) ->  | H44: =IF($D$35="","",IF(COUNTIF($D$35,"*済*"),$H$31,$H$27)) -> 
C45: =IF($D$35="","",IF(COUNTIF($D$35,"*済*"),$C$32,$C$28)) ->  | D45: =IF($D$35="","",IF(COUNTIF($D$35,"*済*"),"",$D$28)) ->  | F45: =IF($D$35="","",IF(COUNTIF($D$35,"*済*"),$F$32,$F$28)) ->  | H45: =IF($D$35="","",IF(COUNTIF($D$35,"*済*"),$H$32,$H$28)) -> 
B46: =B36 -> 令和8年度 | C46: =IF($D$36="","",IF(COUNTIF($D$36,"*済*"),$C$29,$C$25)) ->  | D46: =IF($D$36="","",IF(COUNTIF($D$36,"*済*"),"",$D$25)) ->  | F46: =IF($D$36="","",IF(COUNTIF($D$36,"*済*"),$F$29,$F$25)) ->  | H46: =IF($D$36="","",IF(COUNTIF($D$36,"*済*"),$H$29,$H$25)) ->  | K46: =IF(SUM(LEN($J46),LEN($J47),LEN($J48),LEN($J49))=0,"",SUM($J46:$J49)) ->  | L46: =IFERROR($K$25-$K$46,"---") -> --- | S46: =IF(SUM(LEN($R46),LEN($R47),LEN($R48),LEN($R49))=0,"",SUM($R46:$R49)) ->  | T46: =IFERROR($S$25-$S$46,"---") -> ---
C47: =IF($D$36="","",IF(COUNTIF($D$36,"*済*"),$C$30,$C$26)) ->  | D47: =IF($D$36="","",IF(COUNTIF($D$36,"*済*"),"",$D$26)) ->  | F47: =IF($D$36="","",IF(COUNTIF($D$36,"*済*"),$F$30,$F$26)) ->  | H47: =IF($D$36="","",IF(COUNTIF($D$36,"*済*"),$H$30,$H$26)) ->  | K47: (c3) | L47: (a-c3) | S47: (C3) | T47: (A-C3)
C48: =IF($D$36="","",IF(COUNTIF($D$36,"*済*"),$C$31,$C$27)) ->  | D48: =IF($D$36="","",IF(COUNTIF($D$36,"*済*"),"",$D$27)) ->  | F48: =IF($D$36="","",IF(COUNTIF($D$36,"*済*"),$F$31,$F$27)) ->  | H48: =IF($D$36="","",IF(COUNTIF($D$36,"*済*"),$H$31,$H$27)) -> 
C49: =IF($D$36="","",IF(COUNTIF($D$36,"*済*"),$C$32,$C$28)) ->  | D49: =IF($D$36="","",IF(COUNTIF($D$36,"*済*"),"",$D$28)) ->  | F49: =IF($D$36="","",IF(COUNTIF($D$36,"*済*"),$F$32,$F$28)) ->  | H49: =IF($D$36="","",IF(COUNTIF($D$36,"*済*"),$H$32,$H$28)) -> 
B50: ※活動量、排出量及び削減量は、小数点以下を四捨五入した整数で表示されています（端数処理なし）。
L51: ="個票"&$D$12 -> 個票1
B53: ３．CO2排出量の算出根拠
B55: =$B$38 -> 令和6年度 | D55: =IF($D$34="","",$D$34) -> 実施済み（CO2削減効果算定） | J55: =IF(D55="","",IF($V$34=FALSE,"当初計画どおり","当初計画から変更あり")) -> 当初計画どおり
B56: CO2排出量の計算式で使用する「活動種別ごとの年間活動量」の算出根拠 ※「対策実施済み」の場合は、実施計画書の対策個票「7.報告時のCO2排出量算定のための活動量把握方法」に基づき算出すること。
B99: 備考
L106: ="個票"&$D$12 -> 個票1
B110: =$B$42 -> 令和7年度 | D110: =IF($D$35="","",$D$35) ->  | J110: =IF(D110="","",IF($V$35=FALSE,"当初計画どおり","当初計画から変更あり")) -> 
B111: CO2排出量の計算式で使用する「活動種別ごとの年間活動量」の算出根拠 ※「対策実施済み」の場合は、実施計画書の対策個票「7.報告時のCO2排出量算定のための活動量把握方法」に基づき算出すること。
B154: 備考
L161: ="個票"&$D$12 -> 個票1
B165: =$B$46 -> 令和8年度 | D165: =IF($D$36="","",$D$36) ->  | J165: =IF(D165="","",IF($V$36=FALSE,"当初計画どおり","当初計画から変更あり")) -> 
B166: CO2排出量の計算式で使用する「活動種別ごとの年間活動量」の算出根拠 ※「対策実施済み」の場合は、実施計画書の対策個票「7.報告時のCO2排出量算定のための活動量把握方法」に基づき算出すること。
B209: 備考

Sheet 別紙1_CO2排出量_個票2
V1: セル色表示/非表示
B2: 環境省 令和４年度（第2次補正予算）・令和5年度二酸化炭素排出抑制対策事業費等補助金 | V2: FALSE
B3: （工場・事業場における先導的な脱炭素化取組推進事業（SHIFT事業））
B5: 事業者名（法人名） | D5: =IF(事業報告書まとめ_計画策定支援!$H$7="","",事業報告書まとめ_計画策定支援!$H$7) -> ○○株式会社
B6: 工場・事業場名 | D6: =IF(事業報告書まとめ_計画策定支援!$H$8="","",事業報告書まとめ_計画策定支援!$H$8) -> ○○工場
B8: ="【様式第16 事業報告書】 別紙1_CO2排出量_個票"&$D$12 -> 【様式第16 事業報告書】 別紙1_CO2排出量_個票2
B10: １．対策概要
B12: 個票番号 | D12: =MID(CELL("filename",$A$1),FIND("]",CELL("filename",$A$1))+14,LEN(CELL("filename",$A$1))) -> 2 | H12: 統合した対策個票番号
B13: 対策名称 | D13: =IF(VLOOKUP(VALUE($D$12),個票概要,3,FALSE)="","",VLOOKUP(VALUE($D$12),個票概要,3,FALSE)) -> ボイラ室照明の不要時間帯の消灯
B14: 対策種類 | D14: =IF(VLOOKUP(VALUE($D$12),個票概要,2,FALSE)="","",VLOOKUP(VALUE($D$12),個票概要,2,FALSE)) -> 運用改善
B15: 対象システム／設備 | D15: =IF(VLOOKUP(VALUE($D$12),個票概要,6,FALSE)="","",VLOOKUP(VALUE($D$12),個票概要,6,FALSE)) -> 照明設備
B16: 工程 | D16: =IF(VLOOKUP(VALUE($D$12),個票概要,5,FALSE)="","",VLOOKUP(VALUE($D$12),個票概要,5,FALSE)) -> 照明
B17: 既存設備名称 | D17: =IF(VLOOKUP(VALUE($D$12),個票概要,7,FALSE)="","",VLOOKUP(VALUE($D$12),個票概要,7,FALSE)) -> 照明設備
B18: 導入設備名称 | D18: =IF(VLOOKUP(VALUE($D$12),個票概要,8,FALSE)="","",VLOOKUP(VALUE($D$12),個票概要,8,FALSE)) -> 
B21: ２．CO2排出量
C23: 活動種別 | D23: 年間活動量 | F23: 単位発熱量 | H23: CO2排出係数 | J23: CO2排出量 (t-CO2/年) | K23: CO2排出量合計 (t-CO2/年) | L23: CO2削減量 (t-CO2/年) | O23: 活動種別 | P23: 単位発熱量 | R23: GJ換算量 (GJ/年) | S23: GJ換算量合計 (GJ/年) | T23: GJ削減量 (GJ/年)
B24: ■計画 | O24: ■計画
A25: =IF($C25="","",VLOOKUP($C25,活動の種別と単位_個票,2,FALSE)) -> 1 | B25: 【前】 対策実施 | C25: =IF(VLOOKUP(VALUE($D$12),対策前後,2,FALSE)="","",VLOOKUP(VALUE($D$12),対策前後,2,FALSE)) -> 系統電力① | D25: =IF(VLOOKUP(VALUE($D$12),対策前後,3,FALSE)="","",VLOOKUP(VALUE($D$12),対策前後,3,FALSE)) -> 79975 | E25: =IF($C25="","",VLOOKUP($C25,活動の種別と単位_個票,4,FALSE)) -> kWh | F25: =IF(VLOOKUP(VALUE($D$12),対策前後,5,FALSE)="","",VLOOKUP(VALUE($D$12),対策前後,5,FALSE)) ->  | G25: =IF($C25="","",VLOOKUP($C25,活動の種別と単位_個票,5,FALSE)) -> --- | H25: =IF(VLOOKUP(VALUE($D$12),対策前後,7,FALSE)="","",VLOOKUP(VALUE($D$12),対策前後,7,FALSE)) -> 0.000436 | I25: =IF($C25="","",VLOOKUP($C25,活動の種別と単位_個票,6,FALSE)) -> t-CO2/kWh | J25: =IFERROR(IF($D25="","",IF($A25=0,$D25*$F25*$H25,$D25*$H25)),"---") -> 34.8691 | K25: =IF(SUM(LEN($J25),LEN($J26),LEN($J27),LEN($J28))=0,"",SUM($J25:$J28)) -> 34.8691 | O25: =IF($C25="","",IF(COUNTIF($C25,"*系統電力*"),"*系統電力*",IF(COUNTIF($C25,"*産業用蒸気*"),"*産業用蒸気*",IF(COUNTIF($C25,"*温水*"),"*温水*",IF(COUNTIF($C25,"*冷水*"),"*冷水*",IF(COUNTIF($C25,"*蒸気（産業用以外）*"),"*蒸気（産業用以外）*",$C25)))))) -> *系統電力* | P25: =IF($O25="","",IFERROR(VLOOKUP($O25,電力等のGJ換算係数_個票,2,FALSE),F25)) -> 0.00976 | Q25: =IF($O25="","",IFERROR(VLOOKUP($O25,電力等のGJ換算係数_個票,3,FALSE),VLOOKUP($O25,活動の種別と単位_個票,5,FALSE))) -> GJ/kWh | R25: =IF(OR($D25="",$P25=""),"",$D25*$P25) -> 780.556 | S25: =IF(SUM(LEN($R25),LEN($R26),LEN($R27),LEN($R28))=0,"",SUM($R25:$R28)) -> 780.556
C26: =IF(VLOOKUP(VALUE($D$12)&"-2",対策前後,2,FALSE)="","",VLOOKUP(VALUE($D$12)&"-2",対策前後,2,FALSE)) ->  | D26: =IF(VLOOKUP(VALUE($D$12)&"-2",対策前後,3,FALSE)="","",VLOOKUP(VALUE($D$12)&"-2",対策前後,3,FALSE)) ->  | E26: =IF($C26="","",VLOOKUP($C26,活動の種別と単位_個票,4,FALSE)) ->  | F26: =IF(VLOOKUP(VALUE($D$12)&"-2",対策前後,5,FALSE)="","",VLOOKUP(VALUE($D$12)&"-2",対策前後,5,FALSE)) ->  | H26: =IF(VLOOKUP(VALUE($D$12)&"-2",対策前後,7,FALSE)="","",VLOOKUP(VALUE($D$12)&"-2",対策前後,7,FALSE)) ->  | K26: (a) | O26: =IF($C26="","",IF(COUNTIF($C26,"*系統電力*"),"*系統電力*",IF(COUNTIF($C26,"*産業用蒸気*"),"*産業用蒸気*",IF(COUNTIF($C26,"*温水*"),"*温水*",IF(COUNTIF($C26,"*冷水*"),"*冷水*",IF(COUNTIF($C26,"*蒸気（産業用以外）*"),"*蒸気（産業用以外）*",$C26)))))) ->  | P26: =IF($O26="","",IFERROR(VLOOKUP($O26,電力等のGJ換算係数_個票,2,FALSE),F26)) ->  | Q26: =IF($O26="","",IFERROR(VLOOKUP($O26,電力等のGJ換算係数_個票,3,FALSE),VLOOKUP($O26,活動の種別と単位_個票,5,FALSE))) ->  | R26: =IF(OR($D26="",$P26=""),"",$D26*$P26) ->  | S26: (A)
C27: =IF(VLOOKUP(VALUE($D$12)&"-3",対策前後,2,FALSE)="","",VLOOKUP(VALUE($D$12)&"-3",対策前後,2,FALSE)) ->  | D27: =IF(VLOOKUP(VALUE($D$12)&"-3",対策前後,3,FALSE)="","",VLOOKUP(VALUE($D$12)&"-3",対策前後,3,FALSE)) ->  | F27: =IF(VLOOKUP(VALUE($D$12)&"-3",対策前後,5,FALSE)="","",VLOOKUP(VALUE($D$12)&"-3",対策前後,5,FALSE)) ->  | H27: =IF(VLOOKUP(VALUE($D$12)&"-3",対策前後,7,FALSE)="","",VLOOKUP(VALUE($D$12)&"-3",対策前後,7,FALSE)) ->  | Q27: =IF($O27="","",IFERROR(VLOOKUP($O27,電力等のGJ換算係数_個票,3,FALSE),VLOOKUP($O27,活動の種別と単位_個票,5,FALSE))) -> 
C28: =IF(VLOOKUP(VALUE($D$12)&"-4",対策前後,2,FALSE)="","",VLOOKUP(VALUE($D$12)&"-4",対策前後,2,FALSE)) ->  | D28: =IF(VLOOKUP(VALUE($D$12)&"-4",対策前後,3,FALSE)="","",VLOOKUP(VALUE($D$12)&"-4",対策前後,3,FALSE)) ->  | F28: =IF(VLOOKUP(VALUE($D$12)&"-4",対策前後,5,FALSE)="","",VLOOKUP(VALUE($D$12)&"-4",対策前後,5,FALSE)) ->  | H28: =IF(VLOOKUP(VALUE($D$12)&"-4",対策前後,7,FALSE)="","",VLOOKUP(VALUE($D$12)&"-4",対策前後,7,FALSE)) -> 
A29: 1 | B29: 【計画】 対策実施 | C29: =IF(VLOOKUP(VALUE($D$12),対策前後,9,FALSE)="","",VLOOKUP(VALUE($D$12),対策前後,9,FALSE)) -> 系統電力① | D29: =IF(VLOOKUP(VALUE($D$12),対策前後,10,FALSE)="","",VLOOKUP(VALUE($D$12),対策前後,10,FALSE)) -> 71000 | E29: kWh | F29: =IF(VLOOKUP(VALUE($D$12),対策前後,12,FALSE)="","",VLOOKUP(VALUE($D$12),対策前後,12,FALSE)) ->  | G29: --- | H29: =IF(VLOOKUP(VALUE($D$12),対策前後,14,FALSE)="","",VLOOKUP(VALUE($D$12),対策前後,14,FALSE)) -> 0.000436 | I29: t-CO2/kWh | J29: 30.956 | K29: =IF(SUM(LEN($J29),LEN($J30),LEN($J31),LEN($J32))=0,"",SUM($J29:$J32)) -> 30.956 | L29: =IFERROR($K$25-$K$29,"---") -> 3.9131 | O29: *系統電力* | P29: 0.00976 | Q29: GJ/kWh | R29: 692.96 | S29: =IF(SUM(LEN($R29),LEN($R30),LEN($R31),LEN($R32))=0,"",SUM($R29:$R32)) -> 692.96 | T29: =IFERROR($S$25-$S$29,"---") -> 87.596
C30: =IF(VLOOKUP(VALUE($D$12)&"-2",対策前後,9,FALSE)="","",VLOOKUP(VALUE($D$12)&"-2",対策前後,9,FALSE)) ->  | D30: =IF(VLOOKUP(VALUE($D$12)&"-2",対策前後,10,FALSE)="","",VLOOKUP(VALUE($D$12)&"-2",対策前後,10,FALSE)) ->  | F30: =IF(VLOOKUP(VALUE($D$12)&"-2",対策前後,12,FALSE)="","",VLOOKUP(VALUE($D$12)&"-2",対策前後,12,FALSE)) ->  | H30: =IF(VLOOKUP(VALUE($D$12)&"-2",対策前後,14,FALSE)="","",VLOOKUP(VALUE($D$12)&"-2",対策前後,14,FALSE)) ->  | K30: (b) | L30: (a-b) | S30: (B) | T30: (A-B)
C31: =IF(VLOOKUP(VALUE($D$12)&"-3",対策前後,9,FALSE)="","",VLOOKUP(VALUE($D$12)&"-3",対策前後,9,FALSE)) ->  | D31: =IF(VLOOKUP(VALUE($D$12)&"-3",対策前後,10,FALSE)="","",VLOOKUP(VALUE($D$12)&"-3",対策前後,10,FALSE)) ->  | F31: =IF(VLOOKUP(VALUE($D$12)&"-3",対策前後,12,FALSE)="","",VLOOKUP(VALUE($D$12)&"-3",対策前後,12,FALSE)) ->  | H31: =IF(VLOOKUP(VALUE($D$12)&"-3",対策前後,14,FALSE)="","",VLOOKUP(VALUE($D$12)&"-3",対策前後,14,FALSE)) -> 
C32: =IF(VLOOKUP(VALUE($D$12)&"-4",対策前後,9,FALSE)="","",VLOOKUP(VALUE($D$12)&"-4",対策前後,9,FALSE)) ->  | D32: =IF(VLOOKUP(VALUE($D$12)&"-4",対策前後,10,FALSE)="","",VLOOKUP(VALUE($D$12)&"-4",対策前後,10,FALSE)) ->  | F32: =IF(VLOOKUP(VALUE($D$12)&"-4",対策前後,12,FALSE)="","",VLOOKUP(VALUE($D$12)&"-4",対策前後,12,FALSE)) ->  | H32: =IF(VLOOKUP(VALUE($D$12)&"-4",対策前後,14,FALSE)="","",VLOOKUP(VALUE($D$12)&"-4",対策前後,14,FALSE)) -> 
B33: ■対策実施状況 | V33: 計画変更状況
B34: 令和6年度 | D34: 未実施 | J34: 当初計画から変更あり | V34: TRUE
B35: 令和7年度 | J35: 当初計画から変更あり | V35: FALSE
B36: 令和8年度 | J36: 当初計画から変更あり | V36: FALSE
B37: ■実績 | O37: ■実績
A38: =IF($C38="","",VLOOKUP($C38,活動の種別と単位_個票,2,FALSE)) -> 1 | B38: =B34 -> 令和6年度 | C38: =IF($D$34="","",IF(COUNTIF($D$34,"*済*"),$C$29,$C$25)) -> 系統電力① | D38: =IF($D$34="","",IF(COUNTIF($D$34,"*済*"),"",$D$25)) -> 79975 | E38: =IF($C38="","",VLOOKUP($C38,活動の種別と単位_個票,4,FALSE)) -> kWh | F38: =IF($D$34="","",IF(COUNTIF($D$34,"*済*"),$F$29,$F$25)) ->  | G38: =IF($C38="","",VLOOKUP($C38,活動の種別と単位_個票,5,FALSE)) -> --- | H38: =IF($D$34="","",IF(COUNTIF($D$34,"*済*"),$H$29,$H$25)) -> 0.000436 | I38: =IF($C38="","",VLOOKUP($C38,活動の種別と単位_個票,6,FALSE)) -> t-CO2/kWh | J38: =IFERROR(IF($D38="","",IF($A38=0,$D38*$F38*$H38,$D38*$H38)),"---") -> 34.8691 | K38: =IF(SUM(LEN($J38),LEN($J39),LEN($J40),LEN($J41))=0,"",SUM($J38:$J41)) -> 34.8691 | L38: =IFERROR($K$25-$K$38,"---") -> 0 | O38: =IF($C38="","",IF(COUNTIF($C38,"*系統電力*"),"*系統電力*",IF(COUNTIF($C38,"*産業用蒸気*"),"*産業用蒸気*",IF(COUNTIF($C38,"*温水*"),"*温水*",IF(COUNTIF($C38,"*冷水*"),"*冷水*",IF(COUNTIF($C38,"*蒸気（産業用以外）*"),"*蒸気（産業用以外）*",$C38)))))) -> *系統電力* | P38: =IF($O38="","",IFERROR(VLOOKUP($O38,電力等のGJ換算係数_個票,2,FALSE),F38)) -> 0.00976 | Q38: =IF($O38="","",IFERROR(VLOOKUP($O38,電力等のGJ換算係数_個票,3,FALSE),VLOOKUP($O38,活動の種別と単位_個票,5,FALSE))) -> GJ/kWh | R38: =IF(OR($D38="",$P38=""),"",$D38*$P38) -> 780.556 | S38: =IF(SUM(LEN($R38),LEN($R39),LEN($R40),LEN($R41))=0,"",SUM($R38:$R41)) -> 780.556 | T38: =IFERROR($S$25-$S$38,"---") -> 0
C39: =IF($D$34="","",IF(COUNTIF($D$34,"*済*"),$C$30,$C$26)) ->  | D39: =IF($D$34="","",IF(COUNTIF($D$34,"*済*"),"",$D$26)) ->  | F39: =IF($D$34="","",IF(COUNTIF($D$34,"*済*"),$F$30,$F$26)) ->  | H39: =IF($D$34="","",IF(COUNTIF($D$34,"*済*"),$H$30,$H$26)) ->  | K39: (c1) | L39: (a-c1) | O39: =IF($C39="","",IF(COUNTIF($C39,"*系統電力*"),"*系統電力*",IF(COUNTIF($C39,"*産業用蒸気*"),"*産業用蒸気*",IF(COUNTIF($C39,"*温水*"),"*温水*",IF(COUNTIF($C39,"*冷水*"),"*冷水*",IF(COUNTIF($C39,"*蒸気（産業用以外）*"),"*蒸気（産業用以外）*",$C39)))))) ->  | S39: (C1) | T39: (A-C1)
C40: =IF($D$34="","",IF(COUNTIF($D$34,"*済*"),$C$31,$C$27)) ->  | D40: =IF($D$34="","",IF(COUNTIF($D$34,"*済*"),"",$D$27)) ->  | F40: =IF($D$34="","",IF(COUNTIF($D$34,"*済*"),$F$31,$F$27)) ->  | H40: =IF($D$34="","",IF(COUNTIF($D$34,"*済*"),$H$31,$H$27)) -> 
C41: =IF($D$34="","",IF(COUNTIF($D$34,"*済*"),$C$32,$C$28)) ->  | D41: =IF($D$34="","",IF(COUNTIF($D$34,"*済*"),"",$D$28)) ->  | F41: =IF($D$34="","",IF(COUNTIF($D$34,"*済*"),$F$32,$F$28)) ->  | H41: =IF($D$34="","",IF(COUNTIF($D$34,"*済*"),$H$32,$H$28)) -> 
B42: =B35 -> 令和7年度 | C42: =IF($D$35="","",IF(COUNTIF($D$35,"*済*"),$C$29,$C$25)) ->  | D42: =IF($D$35="","",IF(COUNTIF($D$35,"*済*"),"",$D$25)) ->  | F42: =IF($D$35="","",IF(COUNTIF($D$35,"*済*"),$F$29,$F$25)) ->  | H42: =IF($D$35="","",IF(COUNTIF($D$35,"*済*"),$H$29,$H$25)) ->  | K42: =IF(SUM(LEN($J42),LEN($J43),LEN($J44),LEN($J45))=0,"",SUM($J42:$J45)) ->  | L42: =IFERROR($K$25-$K$42,"---") -> --- | S42: =IF(SUM(LEN($R42),LEN($R43),LEN($R44),LEN($R45))=0,"",SUM($R42:$R45)) ->  | T42: =IFERROR($S$25-$S$42,"---") -> ---
C43: =IF($D$35="","",IF(COUNTIF($D$35,"*済*"),$C$30,$C$26)) ->  | D43: =IF($D$35="","",IF(COUNTIF($D$35,"*済*"),"",$D$26)) ->  | F43: =IF($D$35="","",IF(COUNTIF($D$35,"*済*"),$F$30,$F$26)) ->  | H43: =IF($D$35="","",IF(COUNTIF($D$35,"*済*"),$H$30,$H$26)) ->  | K43: (c2) | L43: (a-c2) | S43: (C2) | T43: (A-C2)
C44: =IF($D$35="","",IF(COUNTIF($D$35,"*済*"),$C$31,$C$27)) ->  | D44: =IF($D$35="","",IF(COUNTIF($D$35,"*済*"),"",$D$27)) ->  | F44: =IF($D$35="","",IF(COUNTIF($D$35,"*済*"),$F$31,$F$27)) ->  | H44: =IF($D$35="","",IF(COUNTIF($D$35,"*済*"),$H$31,$H$27)) -> 
C45: =IF($D$35="","",IF(COUNTIF($D$35,"*済*"),$C$32,$C$28)) ->  | D45: =IF($D$35="","",IF(COUNTIF($D$35,"*済*"),"",$D$28)) ->  | F45: =IF($D$35="","",IF(COUNTIF($D$35,"*済*"),$F$32,$F$28)) ->  | H45: =IF($D$35="","",IF(COUNTIF($D$35,"*済*"),$H$32,$H$28)) -> 
B46: =B36 -> 令和8年度 | C46: =IF($D$36="","",IF(COUNTIF($D$36,"*済*"),$C$29,$C$25)) ->  | D46: =IF($D$36="","",IF(COUNTIF($D$36,"*済*"),"",$D$25)) ->  | F46: =IF($D$36="","",IF(COUNTIF($D$36,"*済*"),$F$29,$F$25)) ->  | H46: =IF($D$36="","",IF(COUNTIF($D$36,"*済*"),$H$29,$H$25)) ->  | K46: =IF(SUM(LEN($J46),LEN($J47),LEN($J48),LEN($J49))=0,"",SUM($J46:$J49)) ->  | L46: =IFERROR($K$25-$K$46,"---") -> --- | S46: =IF(SUM(LEN($R46),LEN($R47),LEN($R48),LEN($R49))=0,"",SUM($R46:$R49)) ->  | T46: =IFERROR($S$25-$S$46,"---") -> ---
C47: =IF($D$36="","",IF(COUNTIF($D$36,"*済*"),$C$30,$C$26)) ->  | D47: =IF($D$36="","",IF(COUNTIF($D$36,"*済*"),"",$D$26)) ->  | F47: =IF($D$36="","",IF(COUNTIF($D$36,"*済*"),$F$30,$F$26)) ->  | H47: =IF($D$36="","",IF(COUNTIF($D$36,"*済*"),$H$30,$H$26)) ->  | K47: (c3) | L47: (a-c3) | S47: (C3) | T47: (A-C3)
C48: =IF($D$36="","",IF(COUNTIF($D$36,"*済*"),$C$31,$C$27)) ->  | D48: =IF($D$36="","",IF(COUNTIF($D$36,"*済*"),"",$D$27)) ->  | F48: =IF($D$36="","",IF(COUNTIF($D$36,"*済*"),$F$31,$F$27)) ->  | H48: =IF($D$36="","",IF(COUNTIF($D$36,"*済*"),$H$31,$H$27)) -> 
C49: =IF($D$36="","",IF(COUNTIF($D$36,"*済*"),$C$32,$C$28)) ->  | D49: =IF($D$36="","",IF(COUNTIF($D$36,"*済*"),"",$D$28)) ->  | F49: =IF($D$36="","",IF(COUNTIF($D$36,"*済*"),$F$32,$F$28)) ->  | H49: =IF($D$36="","",IF(COUNTIF($D$36,"*済*"),$H$32,$H$28)) -> 
B50: ※活動量、排出量及び削減量は、小数点以下を四捨五入した整数で表示されています（端数処理なし）。
L51: ="個票"&$D$12 -> 個票2
B53: ３．CO2排出量の算出根拠
B55: =$B$38 -> 令和6年度 | D55: =IF($D$34="","",$D$34) -> 未実施 | J55: =IF(D55="","",IF($V$34=FALSE,"当初計画どおり","当初計画から変更あり")) -> 当初計画から変更あり
B56: CO2排出量の計算式で使用する「活動種別ごとの年間活動量」の算出根拠 ※「対策実施済み」の場合は、実施計画書の対策個票「7.報告時のCO2排出量算定のための活動量把握方法」に基づき算出すること。
B99: 備考
L106: ="個票"&$D$12 -> 個票2
B110: =$B$42 -> 令和7年度 | D110: =IF($D$35="","",$D$35) ->  | J110: =IF(D110="","",IF($V$35=FALSE,"当初計画どおり","当初計画から変更あり")) -> 
B111: CO2排出量の計算式で使用する「活動種別ごとの年間活動量」の算出根拠 ※「対策実施済み」の場合は、実施計画書の対策個票「7.報告時のCO2排出量算定のための活動量把握方法」に基づき算出すること。
B154: 備考
L161: ="個票"&$D$12 -> 個票2
B165: =$B$46 -> 令和8年度 | D165: =IF($D$36="","",$D$36) ->  | J165: =IF(D165="","",IF($V$36=FALSE,"当初計画どおり","当初計画から変更あり")) -> 
B166: CO2排出量の計算式で使用する「活動種別ごとの年間活動量」の算出根拠 ※「対策実施済み」の場合は、実施計画書の対策個票「7.報告時のCO2排出量算定のための活動量把握方法」に基づき算出すること。
B209: 備考

Sheet 別紙1_CO2排出量_個票3 (hidden)
V1: セル色表示/非表示
B2: 環境省 令和４年度（第2次補正予算）・令和5年度二酸化炭素排出抑制対策事業費等補助金 | V2: FALSE
B3: （工場・事業場における先導的な脱炭素化取組推進事業（SHIFT事業））
B5: 事業者名（法人名） | D5: =IF(事業報告書まとめ_計画策定支援!$H$7="","",事業報告書まとめ_計画策定支援!$H$7) -> ○○株式会社
B6: 工場・事業場名 | D6: =IF(事業報告書まとめ_計画策定支援!$H$8="","",事業報告書まとめ_計画策定支援!$H$8) -> ○○工場
B8: ="【様式第16 事業報告書】 別紙1_CO2排出量_個票"&$D$12 -> 【様式第16 事業報告書】 別紙1_CO2排出量_個票3
B10: １．対策概要
B12: 個票番号 | D12: =MID(CELL("filename",$A$1),FIND("]",CELL("filename",$A$1))+14,LEN(CELL("filename",$A$1))) -> 3 | H12: 統合した対策個票番号
B13: 対策名称 | D13: =IF(VLOOKUP(VALUE($D$12),個票概要,3,FALSE)="","",VLOOKUP(VALUE($D$12),個票概要,3,FALSE)) -> 
B14: 対策種類 | D14: =IF(VLOOKUP(VALUE($D$12),個票概要,2,FALSE)="","",VLOOKUP(VALUE($D$12),個票概要,2,FALSE)) -> 
B15: 対象システム／設備 | D15: =IF(VLOOKUP(VALUE($D$12),個票概要,6,FALSE)="","",VLOOKUP(VALUE($D$12),個票概要,6,FALSE)) -> 
B16: 工程 | D16: =IF(VLOOKUP(VALUE($D$12),個票概要,5,FALSE)="","",VLOOKUP(VALUE($D$12),個票概要,5,FALSE)) -> 
B17: 既存設備名称 | D17: =IF(VLOOKUP(VALUE($D$12),個票概要,7,FALSE)="","",VLOOKUP(VALUE($D$12),個票概要,7,FALSE)) -> 
B18: 導入設備名称 | D18: =IF(VLOOKUP(VALUE($D$12),個票概要,8,FALSE)="","",VLOOKUP(VALUE($D$12),個票概要,8,FALSE)) -> 
B21: ２．CO2排出量
C23: 活動種別 | D23: 年間活動量 | F23: 単位発熱量 | H23: CO2排出係数 | J23: CO2排出量 (t-CO2/年) | K23: CO2排出量合計 (t-CO2/年) | L23: CO2削減量 (t-CO2/年) | O23: 活動種別 | P23: 単位発熱量 | R23: GJ換算量 (GJ/年) | S23: GJ換算量合計 (GJ/年) | T23: GJ削減量 (GJ/年)
B24: ■計画 | O24: ■計画
A25: =IF($C25="","",VLOOKUP($C25,活動の種別と単位_個票,2,FALSE)) ->  | B25: 【前】 対策実施 | C25: =IF(VLOOKUP(VALUE($D$12),対策前後,2,FALSE)="","",VLOOKUP(VALUE($D$12),対策前後,2,FALSE)) ->  | D25: =IF(VLOOKUP(VALUE($D$12),対策前後,3,FALSE)="","",VLOOKUP(VALUE($D$12),対策前後,3,FALSE)) ->  | E25: =IF($C25="","",VLOOKUP($C25,活動の種別と単位_個票,4,FALSE)) ->  | F25: =IF(VLOOKUP(VALUE($D$12),対策前後,5,FALSE)="","",VLOOKUP(VALUE($D$12),対策前後,5,FALSE)) ->  | G25: =IF($C25="","",VLOOKUP($C25,活動の種別と単位_個票,5,FALSE)) ->  | H25: =IF(VLOOKUP(VALUE($D$12),対策前後,7,FALSE)="","",VLOOKUP(VALUE($D$12),対策前後,7,FALSE)) ->  | I25: =IF($C25="","",VLOOKUP($C25,活動の種別と単位_個票,6,FALSE)) ->  | J25: =IFERROR(IF($D25="","",IF($A25=0,$D25*$F25*$H25,$D25*$H25)),"---") ->  | K25: =IF(SUM(LEN($J25),LEN($J26),LEN($J27),LEN($J28))=0,"",SUM($J25:$J28)) ->  | O25: =IF($C25="","",IF(COUNTIF($C25,"*系統電力*"),"*系統電力*",IF(COUNTIF($C25,"*産業用蒸気*"),"*産業用蒸気*",IF(COUNTIF($C25,"*温水*"),"*温水*",IF(COUNTIF($C25,"*冷水*"),"*冷水*",IF(COUNTIF($C25,"*蒸気（産業用以外）*"),"*蒸気（産業用以外）*",$C25)))))) ->  | P25: =IF($O25="","",IFERROR(VLOOKUP($O25,電力等のGJ換算係数_個票,2,FALSE),F25)) ->  | Q25: =IF($O25="","",IFERROR(VLOOKUP($O25,電力等のGJ換算係数_個票,3,FALSE),VLOOKUP($O25,活動の種別と単位_個票,5,FALSE))) ->  | R25: =IF(OR($D25="",$P25=""),"",$D25*$P25) ->  | S25: =IF(SUM(LEN($R25),LEN($R26),LEN($R27),LEN($R28))=0,"",SUM($R25:$R28)) -> 
C26: =IF(VLOOKUP(VALUE($D$12)&"-2",対策前後,2,FALSE)="","",VLOOKUP(VALUE($D$12)&"-2",対策前後,2,FALSE)) ->  | D26: =IF(VLOOKUP(VALUE($D$12)&"-2",対策前後,3,FALSE)="","",VLOOKUP(VALUE($D$12)&"-2",対策前後,3,FALSE)) ->  | E26: =IF($C26="","",VLOOKUP($C26,活動の種別と単位_個票,4,FALSE)) ->  | F26: =IF(VLOOKUP(VALUE($D$12)&"-2",対策前後,5,FALSE)="","",VLOOKUP(VALUE($D$12)&"-2",対策前後,5,FALSE)) ->  | H26: =IF(VLOOKUP(VALUE($D$12)&"-2",対策前後,7,FALSE)="","",VLOOKUP(VALUE($D$12)&"-2",対策前後,7,FALSE)) ->  | K26: (a) | O26: =IF($C26="","",IF(COUNTIF($C26,"*系統電力*"),"*系統電力*",IF(COUNTIF($C26,"*産業用蒸気*"),"*産業用蒸気*",IF(COUNTIF($C26,"*温水*"),"*温水*",IF(COUNTIF($C26,"*冷水*"),"*冷水*",IF(COUNTIF($C26,"*蒸気（産業用以外）*"),"*蒸気（産業用以外）*",$C26)))))) ->  | P26: =IF($O26="","",IFERROR(VLOOKUP($O26,電力等のGJ換算係数_個票,2,FALSE),F26)) ->  | Q26: =IF($O26="","",IFERROR(VLOOKUP($O26,電力等のGJ換算係数_個票,3,FALSE),VLOOKUP($O26,活動の種別と単位_個票,5,FALSE))) ->  | R26: =IF(OR($D26="",$P26=""),"",$D26*$P26) ->  | S26: (A)
C27: =IF(VLOOKUP(VALUE($D$12)&"-3",対策前後,2,FALSE)="","",VLOOKUP(VALUE($D$12)&"-3",対策前後,2,FALSE)) ->  | D27: =IF(VLOOKUP(VALUE($D$12)&"-3",対策前後,3,FALSE)="","",VLOOKUP(VALUE($D$12)&"-3",対策前後,3,FALSE)) ->  | F27: =IF(VLOOKUP(VALUE($D$12)&"-3",対策前後,5,FALSE)="","",VLOOKUP(VALUE($D$12)&"-3",対策前後,5,FALSE)) ->  | H27: =IF(VLOOKUP(VALUE($D$12)&"-3",対策前後,7,FALSE)="","",VLOOKUP(VALUE($D$12)&"-3",対策前後,7,FALSE)) ->  | Q27: =IF($O27="","",IFERROR(VLOOKUP($O27,電力等のGJ換算係数_個票,3,FALSE),VLOOKUP($O27,活動の種別と単位_個票,5,FALSE))) -> 
C28: =IF(VLOOKUP(VALUE($D$12)&"-4",対策前後,2,FALSE)="","",VLOOKUP(VALUE($D$12)&"-4",対策前後,2,FALSE)) ->  | D28: =IF(VLOOKUP(VALUE($D$12)&"-4",対策前後,3,FALSE)="","",VLOOKUP(VALUE($D$12)&"-4",対策前後,3,FALSE)) ->  | F28: =IF(VLOOKUP(VALUE($D$12)&"-4",対策前後,5,FALSE)="","",VLOOKUP(VALUE($D$12)&"-4",対策前後,5,FALSE)) ->  | H28: =IF(VLOOKUP(VALUE($D$12)&"-4",対策前後,7,FALSE)="","",VLOOKUP(VALUE($D$12)&"-4",対策前後,7,FALSE)) -> 
B29: 【計画】 対策実施 | C29: =IF(VLOOKUP(VALUE($D$12),対策前後,9,FALSE)="","",VLOOKUP(VALUE($D$12),対策前後,9,FALSE)) ->  | D29: =IF(VLOOKUP(VALUE($D$12),対策前後,10,FALSE)="","",VLOOKUP(VALUE($D$12),対策前後,10,FALSE)) ->  | F29: =IF(VLOOKUP(VALUE($D$12),対策前後,12,FALSE)="","",VLOOKUP(VALUE($D$12),対策前後,12,FALSE)) ->  | H29: =IF(VLOOKUP(VALUE($D$12),対策前後,14,FALSE)="","",VLOOKUP(VALUE($D$12),対策前後,14,FALSE)) ->  | K29: =IF(SUM(LEN($J29),LEN($J30),LEN($J31),LEN($J32))=0,"",SUM($J29:$J32)) ->  | L29: =IFERROR($K$25-$K$29,"---") -> --- | S29: =IF(SUM(LEN($R29),LEN($R30),LEN($R31),LEN($R32))=0,"",SUM($R29:$R32)) ->  | T29: =IFERROR($S$25-$S$29,"---") -> ---
C30: =IF(VLOOKUP(VALUE($D$12)&"-2",対策前後,9,FALSE)="","",VLOOKUP(VALUE($D$12)&"-2",対策前後,9,FALSE)) ->  | D30: =IF(VLOOKUP(VALUE($D$12)&"-2",対策前後,10,FALSE)="","",VLOOKUP(VALUE($D$12)&"-2",対策前後,10,FALSE)) ->  | F30: =IF(VLOOKUP(VALUE($D$12)&"-2",対策前後,12,FALSE)="","",VLOOKUP(VALUE($D$12)&"-2",対策前後,12,FALSE)) ->  | H30: =IF(VLOOKUP(VALUE($D$12)&"-2",対策前後,14,FALSE)="","",VLOOKUP(VALUE($D$12)&"-2",対策前後,14,FALSE)) ->  | K30: (b) | L30: (a-b) | S30: (B) | T30: (A-B)
C31: =IF(VLOOKUP(VALUE($D$12)&"-3",対策前後,9,FALSE)="","",VLOOKUP(VALUE($D$12)&"-3",対策前後,9,FALSE)) ->  | D31: =IF(VLOOKUP(VALUE($D$12)&"-3",対策前後,10,FALSE)="","",VLOOKUP(VALUE($D$12)&"-3",対策前後,10,FALSE)) ->  | F31: =IF(VLOOKUP(VALUE($D$12)&"-3",対策前後,12,FALSE)="","",VLOOKUP(VALUE($D$12)&"-3",対策前後,12,FALSE)) ->  | H31: =IF(VLOOKUP(VALUE($D$12)&"-3",対策前後,14,FALSE)="","",VLOOKUP(VALUE($D$12)&"-3",対策前後,14,FALSE)) -> 
C32: =IF(VLOOKUP(VALUE($D$12)&"-4",対策前後,9,FALSE)="","",VLOOKUP(VALUE($D$12)&"-4",対策前後,9,FALSE)) ->  | D32: =IF(VLOOKUP(VALUE($D$12)&"-4",対策前後,10,FALSE)="","",VLOOKUP(VALUE($D$12)&"-4",対策前後,10,FALSE)) ->  | F32: =IF(VLOOKUP(VALUE($D$12)&"-4",対策前後,12,FALSE)="","",VLOOKUP(VALUE($D$12)&"-4",対策前後,12,FALSE)) ->  | H32: =IF(VLOOKUP(VALUE($D$12)&"-4",対策前後,14,FALSE)="","",VLOOKUP(VALUE($D$12)&"-4",対策前後,14,FALSE)) -> 
B33: ■対策実施状況 | V33: 計画変更状況
B34: 令和6年度 | J34: 当初計画から変更あり | V34: FALSE
B35: 令和7年度 | J35: 当初計画から変更あり | V35: FALSE
B36: 令和8年度 | J36: 当初計画から変更あり | V36: FALSE
B37: ■実績 | O37: ■実績
A38: =IF($C38="","",VLOOKUP($C38,活動の種別と単位_個票,2,FALSE)) ->  | B38: =B34 -> 令和6年度 | C38: =IF($D$34="","",IF(COUNTIF($D$34,"*済*"),$C$29,$C$25)) ->  | D38: =IF($D$34="","",IF(COUNTIF($D$34,"*済*"),"",$D$25)) ->  | E38: =IF($C38="","",VLOOKUP($C38,活動の種別と単位_個票,4,FALSE)) ->  | F38: =IF($D$34="","",IF(COUNTIF($D$34,"*済*"),$F$29,$F$25)) ->  | G38: =IF($C38="","",VLOOKUP($C38,活動の種別と単位_個票,5,FALSE)) ->  | H38: =IF($D$34="","",IF(COUNTIF($D$34,"*済*"),$H$29,$H$25)) ->  | I38: =IF($C38="","",VLOOKUP($C38,活動の種別と単位_個票,6,FALSE)) ->  | J38: =IFERROR(IF($D38="","",IF($A38=0,$D38*$F38*$H38,$D38*$H38)),"---") ->  | K38: =IF(SUM(LEN($J38),LEN($J39),LEN($J40),LEN($J41))=0,"",SUM($J38:$J41)) ->  | L38: =IFERROR($K$25-$K$38,"---") -> --- | O38: =IF($C38="","",IF(COUNTIF($C38,"*系統電力*"),"*系統電力*",IF(COUNTIF($C38,"*産業用蒸気*"),"*産業用蒸気*",IF(COUNTIF($C38,"*温水*"),"*温水*",IF(COUNTIF($C38,"*冷水*"),"*冷水*",IF(COUNTIF($C38,"*蒸気（産業用以外）*"),"*蒸気（産業用以外）*",$C38)))))) ->  | P38: =IF($O38="","",IFERROR(VLOOKUP($O38,電力等のGJ換算係数_個票,2,FALSE),F38)) ->  | Q38: =IF($O38="","",IFERROR(VLOOKUP($O38,電力等のGJ換算係数_個票,3,FALSE),VLOOKUP($O38,活動の種別と単位_個票,5,FALSE))) ->  | R38: =IF(OR($D38="",$P38=""),"",$D38*$P38) ->  | S38: =IF(SUM(LEN($R38),LEN($R39),LEN($R40),LEN($R41))=0,"",SUM($R38:$R41)) ->  | T38: =IFERROR($S$25-$S$38,"---") -> ---
C39: =IF($D$34="","",IF(COUNTIF($D$34,"*済*"),$C$30,$C$26)) ->  | D39: =IF($D$34="","",IF(COUNTIF($D$34,"*済*"),"",$D$26)) ->  | F39: =IF($D$34="","",IF(COUNTIF($D$34,"*済*"),$F$30,$F$26)) ->  | H39: =IF($D$34="","",IF(COUNTIF($D$34,"*済*"),$H$30,$H$26)) ->  | K39: (c1) | L39: (a-c1) | O39: =IF($C39="","",IF(COUNTIF($C39,"*系統電力*"),"*系統電力*",IF(COUNTIF($C39,"*産業用蒸気*"),"*産業用蒸気*",IF(COUNTIF($C39,"*温水*"),"*温水*",IF(COUNTIF($C39,"*冷水*"),"*冷水*",IF(COUNTIF($C39,"*蒸気（産業用以外）*"),"*蒸気（産業用以外）*",$C39)))))) ->  | S39: (C1) | T39: (A-C1)
C40: =IF($D$34="","",IF(COUNTIF($D$34,"*済*"),$C$31,$C$27)) ->  | D40: =IF($D$34="","",IF(COUNTIF($D$34,"*済*"),"",$D$27)) ->  | F40: =IF($D$34="","",IF(COUNTIF($D$34,"*済*"),$F$31,$F$27)) ->  | H40: =IF($D$34="","",IF(COUNTIF($D$34,"*済*"),$H$31,$H$27)) -> 
C41: =IF($D$34="","",IF(COUNTIF($D$34,"*済*"),$C$32,$C$28)) ->  | D41: =IF($D$34="","",IF(COUNTIF($D$34,"*済*"),"",$D$28)) ->  | F41: =IF($D$34="","",IF(COUNTIF($D$34,"*済*"),$F$32,$F$28)) ->  | H41: =IF($D$34="","",IF(COUNTIF($D$34,"*済*"),$H$32,$H$28)) -> 
B42: =B35 -> 令和7年度 | C42: =IF($D$35="","",IF(COUNTIF($D$35,"*済*"),$C$29,$C$25)) ->  | D42: =IF($D$35="","",IF(COUNTIF($D$35,"*済*"),"",$D$25)) ->  | F42: =IF($D$35="","",IF(COUNTIF($D$35,"*済*"),$F$29,$F$25)) ->  | H42: =IF($D$35="","",IF(COUNTIF($D$35,"*済*"),$H$29,$H$25)) ->  | K42: =IF(SUM(LEN($J42),LEN($J43),LEN($J44),LEN($J45))=0,"",SUM($J42:$J45)) ->  | L42: =IFERROR($K$25-$K$42,"---") -> --- | S42: =IF(SUM(LEN($R42),LEN($R43),LEN($R44),LEN($R45))=0,"",SUM($R42:$R45)) ->  | T42: =IFERROR($S$25-$S$42,"---") -> ---
C43: =IF($D$35="","",IF(COUNTIF($D$35,"*済*"),$C$30,$C$26)) ->  | D43: =IF($D$35="","",IF(COUNTIF($D$35,"*済*"),"",$D$26)) ->  | F43: =IF($D$35="","",IF(COUNTIF($D$35,"*済*"),$F$30,$F$26)) ->  | H43: =IF($D$35="","",IF(COUNTIF($D$35,"*済*"),$H$30,$H$26)) ->  | K43: (c2) | L43: (a-c2) | S43: (C2) | T43: (A-C2)
C44: =IF($D$35="","",IF(COUNTIF($D$35,"*済*"),$C$31,$C$27)) ->  | D44: =IF($D$35="","",IF(COUNTIF($D$35,"*済*"),"",$D$27)) ->  | F44: =IF($D$35="","",IF(COUNTIF($D$35,"*済*"),$F$31,$F$27)) ->  | H44: =IF($D$35="","",IF(COUNTIF($D$35,"*済*"),$H$31,$H$27)) -> 
C45: =IF($D$35="","",IF(COUNTIF($D$35,"*済*"),$C$32,$C$28)) ->  | D45: =IF($D$35="","",IF(COUNTIF($D$35,"*済*"),"",$D$28)) ->  | F45: =IF($D$35="","",IF(COUNTIF($D$35,"*済*"),$F$32,$F$28)) ->  | H45: =IF($D$35="","",IF(COUNTIF($D$35,"*済*"),$H$32,$H$28)) -> 
B46: =B36 -> 令和8年度 | C46: =IF($D$36="","",IF(COUNTIF($D$36,"*済*"),$C$29,$C$25)) ->  | D46: =IF($D$36="","",IF(COUNTIF($D$36,"*済*"),"",$D$25)) ->  | F46: =IF($D$36="","",IF(COUNTIF($D$36,"*済*"),$F$29,$F$25)) ->  | H46: =IF($D$36="","",IF(COUNTIF($D$36,"*済*"),$H$29,$H$25)) ->  | K46: =IF(SUM(LEN($J46),LEN($J47),LEN($J48),LEN($J49))=0,"",SUM($J46:$J49)) ->  | L46: =IFERROR($K$25-$K$46,"---") -> --- | S46: =IF(SUM(LEN($R46),LEN($R47),LEN($R48),LEN($R49))=0,"",SUM($R46:$R49)) ->  | T46: =IFERROR($S$25-$S$46,"---") -> ---
C47: =IF($D$36="","",IF(COUNTIF($D$36,"*済*"),$C$30,$C$26)) ->  | D47: =IF($D$36="","",IF(COUNTIF($D$36,"*済*"),"",$D$26)) ->  | F47: =IF($D$36="","",IF(COUNTIF($D$36,"*済*"),$F$30,$F$26)) ->  | H47: =IF($D$36="","",IF(COUNTIF($D$36,"*済*"),$H$30,$H$26)) ->  | K47: (c3) | L47: (a-c3) | S47: (C3) | T47: (A-C3)
C48: =IF($D$36="","",IF(COUNTIF($D$36,"*済*"),$C$31,$C$27)) ->  | D48: =IF($D$36="","",IF(COUNTIF($D$36,"*済*"),"",$D$27)) ->  | F48: =IF($D$36="","",IF(COUNTIF($D$36,"*済*"),$F$31,$F$27)) ->  | H48: =IF($D$36="","",IF(COUNTIF($D$36,"*済*"),$H$31,$H$27)) -> 
C49: =IF($D$36="","",IF(COUNTIF($D$36,"*済*"),$C$32,$C$28)) ->  | D49: =IF($D$36="","",IF(COUNTIF($D$36,"*済*"),"",$D$28)) ->  | F49: =IF($D$36="","",IF(COUNTIF($D$36,"*済*"),$F$32,$F$28)) ->  | H49: =IF($D$36="","",IF(COUNTIF($D$36,"*済*"),$H$32,$H$28)) -> 
B50: ※活動量、排出量及び削減量は、小数点以下を四捨五入した整数で表示されています（端数処理なし）。
L51: ="個票"&$D$12 -> 個票3
B53: ３．CO2排出量の算出根拠
B55: =$B$38 -> 令和6年度 | D55: =IF($D$34="","",$D$34) ->  | J55: =IF(D55="","",IF($V$34=FALSE,"当初計画どおり","当初計画から変更あり")) -> 
B56: CO2排出量の計算式で使用する「活動種別ごとの年間活動量」の算出根拠 ※「対策実施済み」の場合は、実施計画書の対策個票「7.報告時のCO2排出量算定のための活動量把握方法」に基づき算出すること。
B99: 備考
L106: ="個票"&$D$12 -> 個票3
B110: =$B$42 -> 令和7年度 | D110: =IF($D$35="","",$D$35) ->  | J110: =IF(D110="","",IF($V$35=FALSE,"当初計画どおり","当初計画から変更あり")) -> 
B111: CO2排出量の計算式で使用する「活動種別ごとの年間活動量」の算出根拠 ※「対策実施済み」の場合は、実施計画書の対策個票「7.報告時のCO2排出量算定のための活動量把握方法」に基づき算出すること。
B154: 備考
L161: ="個票"&$D$12 -> 個票3
B165: =$B$46 -> 令和8年度 | D165: =IF($D$36="","",$D$36) ->  | J165: =IF(D165="","",IF($V$36=FALSE,"当初計画どおり","当初計画から変更あり")) -> 
B166: CO2排出量の計算式で使用する「活動種別ごとの年間活動量」の算出根拠 ※「対策実施済み」の場合は、実施計画書の対策個票「7.報告時のCO2排出量算定のための活動量把握方法」に基づき算出すること。
B209: 備考

Sheet 別紙1_CO2排出量_個票4 (hidden)
V1: セル色表示/非表示
B2: 環境省 令和４年度（第2次補正予算）・令和5年度二酸化炭素排出抑制対策事業費等補助金 | V2: FALSE
B3: （工場・事業場における先導的な脱炭素化取組推進事業（SHIFT事業））
B5: 事業者名（法人名） | D5: =IF(事業報告書まとめ_計画策定支援!$H$7="","",事業報告書まとめ_計画策定支援!$H$7) -> ○○株式会社
B6: 工場・事業場名 | D6: =IF(事業報告書まとめ_計画策定支援!$H$8="","",事業報告書まとめ_計画策定支援!$H$8) -> ○○工場
B8: ="【様式第16 事業報告書】 別紙1_CO2排出量_個票"&$D$12 -> 【様式第16 事業報告書】 別紙1_CO2排出量_個票4
B10: １．対策概要
B12: 個票番号 | D12: =MID(CELL("filename",$A$1),FIND("]",CELL("filename",$A$1))+14,LEN(CELL("filename",$A$1))) -> 4 | H12: 統合した対策個票番号
B13: 対策名称 | D13: =IF(VLOOKUP(VALUE($D$12),個票概要,3,FALSE)="","",VLOOKUP(VALUE($D$12),個票概要,3,FALSE)) -> 
B14: 対策種類 | D14: =IF(VLOOKUP(VALUE($D$12),個票概要,2,FALSE)="","",VLOOKUP(VALUE($D$12),個票概要,2,FALSE)) -> 
B15: 対象システム／設備 | D15: =IF(VLOOKUP(VALUE($D$12),個票概要,6,FALSE)="","",VLOOKUP(VALUE($D$12),個票概要,6,FALSE)) -> 
B16: 工程 | D16: =IF(VLOOKUP(VALUE($D$12),個票概要,5,FALSE)="","",VLOOKUP(VALUE($D$12),個票概要,5,FALSE)) -> 
B17: 既存設備名称 | D17: =IF(VLOOKUP(VALUE($D$12),個票概要,7,FALSE)="","",VLOOKUP(VALUE($D$12),個票概要,7,FALSE)) -> 
B18: 導入設備名称 | D18: =IF(VLOOKUP(VALUE($D$12),個票概要,8,FALSE)="","",VLOOKUP(VALUE($D$12),個票概要,8,FALSE)) -> 
B21: ２．CO2排出量
C23: 活動種別 | D23: 年間活動量 | F23: 単位発熱量 | H23: CO2排出係数 | J23: CO2排出量 (t-CO2/年) | K23: CO2排出量合計 (t-CO2/年) | L23: CO2削減量 (t-CO2/年) | O23: 活動種別 | P23: 単位発熱量 | R23: GJ換算量 (GJ/年) | S23: GJ換算量合計 (GJ/年) | T23: GJ削減量 (GJ/年)
B24: ■計画 | O24: ■計画
A25: =IF($C25="","",VLOOKUP($C25,活動の種別と単位_個票,2,FALSE)) ->  | B25: 【前】 対策実施 | C25: =IF(VLOOKUP(VALUE($D$12),対策前後,2,FALSE)="","",VLOOKUP(VALUE($D$12),対策前後,2,FALSE)) ->  | D25: =IF(VLOOKUP(VALUE($D$12),対策前後,3,FALSE)="","",VLOOKUP(VALUE($D$12),対策前後,3,FALSE)) ->  | E25: =IF($C25="","",VLOOKUP($C25,活動の種別と単位_個票,4,FALSE)) ->  | F25: =IF(VLOOKUP(VALUE($D$12),対策前後,5,FALSE)="","",VLOOKUP(VALUE($D$12),対策前後,5,FALSE)) ->  | G25: =IF($C25="","",VLOOKUP($C25,活動の種別と単位_個票,5,FALSE)) ->  | H25: =IF(VLOOKUP(VALUE($D$12),対策前後,7,FALSE)="","",VLOOKUP(VALUE($D$12),対策前後,7,FALSE)) ->  | I25: =IF($C25="","",VLOOKUP($C25,活動の種別と単位_個票,6,FALSE)) ->  | J25: =IFERROR(IF($D25="","",IF($A25=0,$D25*$F25*$H25,$D25*$H25)),"---") ->  | K25: =IF(SUM(LEN($J25),LEN($J26),LEN($J27),LEN($J28))=0,"",SUM($J25:$J28)) ->  | O25: =IF($C25="","",IF(COUNTIF($C25,"*系統電力*"),"*系統電力*",IF(COUNTIF($C25,"*産業用蒸気*"),"*産業用蒸気*",IF(COUNTIF($C25,"*温水*"),"*温水*",IF(COUNTIF($C25,"*冷水*"),"*冷水*",IF(COUNTIF($C25,"*蒸気（産業用以外）*"),"*蒸気（産業用以外）*",$C25)))))) ->  | P25: =IF($O25="","",IFERROR(VLOOKUP($O25,電力等のGJ換算係数_個票,2,FALSE),F25)) ->  | Q25: =IF($O25="","",IFERROR(VLOOKUP($O25,電力等のGJ換算係数_個票,3,FALSE),VLOOKUP($O25,活動の種別と単位_個票,5,FALSE))) ->  | R25: =IF(OR($D25="",$P25=""),"",$D25*$P25) ->  | S25: =IF(SUM(LEN($R25),LEN($R26),LEN($R27),LEN($R28))=0,"",SUM($R25:$R28)) -> 
C26: =IF(VLOOKUP(VALUE($D$12)&"-2",対策前後,2,FALSE)="","",VLOOKUP(VALUE($D$12)&"-2",対策前後,2,FALSE)) ->  | D26: =IF(VLOOKUP(VALUE($D$12)&"-2",対策前後,3,FALSE)="","",VLOOKUP(VALUE($D$12)&"-2",対策前後,3,FALSE)) ->  | E26: =IF($C26="","",VLOOKUP($C26,活動の種別と単位_個票,4,FALSE)) ->  | F26: =IF(VLOOKUP(VALUE($D$12)&"-2",対策前後,5,FALSE)="","",VLOOKUP(VALUE($D$12)&"-2",対策前後,5,FALSE)) ->  | H26: =IF(VLOOKUP(VALUE($D$12)&"-2",対策前後,7,FALSE)="","",VLOOKUP(VALUE($D$12)&"-2",対策前後,7,FALSE)) ->  | K26: (a) | O26: =IF($C26="","",IF(COUNTIF($C26,"*系統電力*"),"*系統電力*",IF(COUNTIF($C26,"*産業用蒸気*"),"*産業用蒸気*",IF(COUNTIF($C26,"*温水*"),"*温水*",IF(COUNTIF($C26,"*冷水*"),"*冷水*",IF(COUNTIF($C26,"*蒸気（産業用以外）*"),"*蒸気（産業用以外）*",$C26)))))) ->  | P26: =IF($O26="","",IFERROR(VLOOKUP($O26,電力等のGJ換算係数_個票,2,FALSE),F26)) ->  | Q26: =IF($O26="","",IFERROR(VLOOKUP($O26,電力等のGJ換算係数_個票,3,FALSE),VLOOKUP($O26,活動の種別と単位_個票,5,FALSE))) ->  | R26: =IF(OR($D26="",$P26=""),"",$D26*$P26) ->  | S26: (A)
C27: =IF(VLOOKUP(VALUE($D$12)&"-3",対策前後,2,FALSE)="","",VLOOKUP(VALUE($D$12)&"-3",対策前後,2,FALSE)) ->  | D27: =IF(VLOOKUP(VALUE($D$12)&"-3",対策前後,3,FALSE)="","",VLOOKUP(VALUE($D$12)&"-3",対策前後,3,FALSE)) ->  | F27: =IF(VLOOKUP(VALUE($D$12)&"-3",対策前後,5,FALSE)="","",VLOOKUP(VALUE($D$12)&"-3",対策前後,5,FALSE)) ->  | H27: =IF(VLOOKUP(VALUE($D$12)&"-3",対策前後,7,FALSE)="","",VLOOKUP(VALUE($D$12)&"-3",対策前後,7,FALSE)) ->  | Q27: =IF($O27="","",IFERROR(VLOOKUP($O27,電力等のGJ換算係数_個票,3,FALSE),VLOOKUP($O27,活動の種別と単位_個票,5,FALSE))) -> 
C28: =IF(VLOOKUP(VALUE($D$12)&"-4",対策前後,2,FALSE)="","",VLOOKUP(VALUE($D$12)&"-4",対策前後,2,FALSE)) ->  | D28: =IF(VLOOKUP(VALUE($D$12)&"-4",対策前後,3,FALSE)="","",VLOOKUP(VALUE($D$12)&"-4",対策前後,3,FALSE)) ->  | F28: =IF(VLOOKUP(VALUE($D$12)&"-4",対策前後,5,FALSE)="","",VLOOKUP(VALUE($D$12)&"-4",対策前後,5,FALSE)) ->  | H28: =IF(VLOOKUP(VALUE($D$12)&"-4",対策前後,7,FALSE)="","",VLOOKUP(VALUE($D$12)&"-4",対策前後,7,FALSE)) -> 
B29: 【計画】 対策実施 | C29: =IF(VLOOKUP(VALUE($D$12),対策前後,9,FALSE)="","",VLOOKUP(VALUE($D$12),対策前後,9,FALSE)) ->  | D29: =IF(VLOOKUP(VALUE($D$12),対策前後,10,FALSE)="","",VLOOKUP(VALUE($D$12),対策前後,10,FALSE)) ->  | F29: =IF(VLOOKUP(VALUE($D$12),対策前後,12,FALSE)="","",VLOOKUP(VALUE($D$12),対策前後,12,FALSE)) ->  | H29: =IF(VLOOKUP(VALUE($D$12),対策前後,14,FALSE)="","",VLOOKUP(VALUE($D$12),対策前後,14,FALSE)) ->  | K29: =IF(SUM(LEN($J29),LEN($J30),LEN($J31),LEN($J32))=0,"",SUM($J29:$J32)) ->  | L29: =IFERROR($K$25-$K$29,"---") -> --- | S29: =IF(SUM(LEN($R29),LEN($R30),LEN($R31),LEN($R32))=0,"",SUM($R29:$R32)) ->  | T29: =IFERROR($S$25-$S$29,"---") -> ---
C30: =IF(VLOOKUP(VALUE($D$12)&"-2",対策前後,9,FALSE)="","",VLOOKUP(VALUE($D$12)&"-2",対策前後,9,FALSE)) ->  | D30: =IF(VLOOKUP(VALUE($D$12)&"-2",対策前後,10,FALSE)="","",VLOOKUP(VALUE($D$12)&"-2",対策前後,10,FALSE)) ->  | F30: =IF(VLOOKUP(VALUE($D$12)&"-2",対策前後,12,FALSE)="","",VLOOKUP(VALUE($D$12)&"-2",対策前後,12,FALSE)) ->  | H30: =IF(VLOOKUP(VALUE($D$12)&"-2",対策前後,14,FALSE)="","",VLOOKUP(VALUE($D$12)&"-2",対策前後,14,FALSE)) ->  | K30: (b) | L30: (a-b) | S30: (B) | T30: (A-B)
C31: =IF(VLOOKUP(VALUE($D$12)&"-3",対策前後,9,FALSE)="","",VLOOKUP(VALUE($D$12)&"-3",対策前後,9,FALSE)) ->  | D31: =IF(VLOOKUP(VALUE($D$12)&"-3",対策前後,10,FALSE)="","",VLOOKUP(VALUE($D$12)&"-3",対策前後,10,FALSE)) ->  | F31: =IF(VLOOKUP(VALUE($D$12)&"-3",対策前後,12,FALSE)="","",VLOOKUP(VALUE($D$12)&"-3",対策前後,12,FALSE)) ->  | H31: =IF(VLOOKUP(VALUE($D$12)&"-3",対策前後,14,FALSE)="","",VLOOKUP(VALUE($D$12)&"-3",対策前後,14,FALSE)) -> 
C32: =IF(VLOOKUP(VALUE($D$12)&"-4",対策前後,9,FALSE)="","",VLOOKUP(VALUE($D$12)&"-4",対策前後,9,FALSE)) ->  | D32: =IF(VLOOKUP(VALUE($D$12)&"-4",対策前後,10,FALSE)="","",VLOOKUP(VALUE($D$12)&"-4",対策前後,10,FALSE)) ->  | F32: =IF(VLOOKUP(VALUE($D$12)&"-4",対策前後,12,FALSE)="","",VLOOKUP(VALUE($D$12)&"-4",対策前後,12,FALSE)) ->  | H32: =IF(VLOOKUP(VALUE($D$12)&"-4",対策前後,14,FALSE)="","",VLOOKUP(VALUE($D$12)&"-4",対策前後,14,FALSE)) -> 
B33: ■対策実施状況 | V33: 計画変更状況
B34: 令和6年度 | J34: 当初計画から変更あり | V34: FALSE
B35: 令和7年度 | J35: 当初計画から変更あり | V35: FALSE
B36: 令和8年度 | J36: 当初計画から変更あり | V36: FALSE
B37: ■実績 | O37: ■実績
A38: =IF($C38="","",VLOOKUP($C38,活動の種別と単位_個票,2,FALSE)) ->  | B38: =B34 -> 令和6年度 | C38: =IF($D$34="","",IF(COUNTIF($D$34,"*済*"),$C$29,$C$25)) ->  | D38: =IF($D$34="","",IF(COUNTIF($D$34,"*済*"),"",$D$25)) ->  | E38: =IF($C38="","",VLOOKUP($C38,活動の種別と単位_個票,4,FALSE)) ->  | F38: =IF($D$34="","",IF(COUNTIF($D$34,"*済*"),$F$29,$F$25)) ->  | G38: =IF($C38="","",VLOOKUP($C38,活動の種別と単位_個票,5,FALSE)) ->  | H38: =IF($D$34="","",IF(COUNTIF($D$34,"*済*"),$H$29,$H$25)) ->  | I38: =IF($C38="","",VLOOKUP($C38,活動の種別と単位_個票,6,FALSE)) ->  | J38: =IFERROR(IF($D38="","",IF($A38=0,$D38*$F38*$H38,$D38*$H38)),"---") ->  | K38: =IF(SUM(LEN($J38),LEN($J39),LEN($J40),LEN($J41))=0,"",SUM($J38:$J41)) ->  | L38: =IFERROR($K$25-$K$38,"---") -> --- | O38: =IF($C38="","",IF(COUNTIF($C38,"*系統電力*"),"*系統電力*",IF(COUNTIF($C38,"*産業用蒸気*"),"*産業用蒸気*",IF(COUNTIF($C38,"*温水*"),"*温水*",IF(COUNTIF($C38,"*冷水*"),"*冷水*",IF(COUNTIF($C38,"*蒸気（産業用以外）*"),"*蒸気（産業用以外）*",$C38)))))) ->  | P38: =IF($O38="","",IFERROR(VLOOKUP($O38,電力等のGJ換算係数_個票,2,FALSE),F38)) ->  | Q38: =IF($O38="","",IFERROR(VLOOKUP($O38,電力等のGJ換算係数_個票,3,FALSE),VLOOKUP($O38,活動の種別と単位_個票,5,FALSE))) ->  | R38: =IF(OR($D38="",$P38=""),"",$D38*$P38) ->  | S38: =IF(SUM(LEN($R38),LEN($R39),LEN($R40),LEN($R41))=0,"",SUM($R38:$R41)) ->  | T38: =IFERROR($S$25-$S$38,"---") -> ---
C39: =IF($D$34="","",IF(COUNTIF($D$34,"*済*"),$C$30,$C$26)) ->  | D39: =IF($D$34="","",IF(COUNTIF($D$34,"*済*"),"",$D$26)) ->  | F39: =IF($D$34="","",IF(COUNTIF($D$34,"*済*"),$F$30,$F$26)) ->  | H39: =IF($D$34="","",IF(COUNTIF($D$34,"*済*"),$H$30,$H$26)) ->  | K39: (c1) | L39: (a-c1) | O39: =IF($C39="","",IF(COUNTIF($C39,"*系統電力*"),"*系統電力*",IF(COUNTIF($C39,"*産業用蒸気*"),"*産業用蒸気*",IF(COUNTIF($C39,"*温水*"),"*温水*",IF(COUNTIF($C39,"*冷水*"),"*冷水*",IF(COUNTIF($C39,"*蒸気（産業用以外）*"),"*蒸気（産業用以外）*",$C39)))))) ->  | S39: (C1) | T39: (A-C1)
C40: =IF($D$34="","",IF(COUNTIF($D$34,"*済*"),$C$31,$C$27)) ->  | D40: =IF($D$34="","",IF(COUNTIF($D$34,"*済*"),"",$D$27)) ->  | F40: =IF($D$34="","",IF(COUNTIF($D$34,"*済*"),$F$31,$F$27)) ->  | H40: =IF($D$34="","",IF(COUNTIF($D$34,"*済*"),$H$31,$H$27)) -> 
C41: =IF($D$34="","",IF(COUNTIF($D$34,"*済*"),$C$32,$C$28)) ->  | D41: =IF($D$34="","",IF(COUNTIF($D$34,"*済*"),"",$D$28)) ->  | F41: =IF($D$34="","",IF(COUNTIF($D$34,"*済*"),$F$32,$F$28)) ->  | H41: =IF($D$34="","",IF(COUNTIF($D$34,"*済*"),$H$32,$H$28)) -> 
B42: =B35 -> 令和7年度 | C42: =IF($D$35="","",IF(COUNTIF($D$35,"*済*"),$C$29,$C$25)) ->  | D42: =IF($D$35="","",IF(COUNTIF($D$35,"*済*"),"",$D$25)) ->  | F42: =IF($D$35="","",IF(COUNTIF($D$35,"*済*"),$F$29,$F$25)) ->  | H42: =IF($D$35="","",IF(COUNTIF($D$35,"*済*"),$H$29,$H$25)) ->  | K42: =IF(SUM(LEN($J42),LEN($J43),LEN($J44),LEN($J45))=0,"",SUM($J42:$J45)) ->  | L42: =IFERROR($K$25-$K$42,"---") -> --- | S42: =IF(SUM(LEN($R42),LEN($R43),LEN($R44),LEN($R45))=0,"",SUM($R42:$R45)) ->  | T42: =IFERROR($S$25-$S$42,"---") -> ---
C43: =IF($D$35="","",IF(COUNTIF($D$35,"*済*"),$C$30,$C$26)) ->  | D43: =IF($D$35="","",IF(COUNTIF($D$35,"*済*"),"",$D$26)) ->  | F43: =IF($D$35="","",IF(COUNTIF($D$35,"*済*"),$F$30,$F$26)) ->  | H43: =IF($D$35="","",IF(COUNTIF($D$35,"*済*"),$H$30,$H$26)) ->  | K43: (c2) | L43: (a-c2) | S43: (C2) | T43: (A-C2)
C44: =IF($D$35="","",IF(COUNTIF($D$35,"*済*"),$C$31,$C$27)) ->  | D44: =IF($D$35="","",IF(COUNTIF($D$35,"*済*"),"",$D$27)) ->  | F44: =IF($D$35="","",IF(COUNTIF($D$35,"*済*"),$F$31,$F$27)) ->  | H44: =IF($D$35="","",IF(COUNTIF($D$35,"*済*"),$H$31,$H$27)) -> 
C45: =IF($D$35="","",IF(COUNTIF($D$35,"*済*"),$C$32,$C$28)) ->  | D45: =IF($D$35="","",IF(COUNTIF($D$35,"*済*"),"",$D$28)) ->  | F45: =IF($D$35="","",IF(COUNTIF($D$35,"*済*"),$F$32,$F$28)) ->  | H45: =IF($D$35="","",IF(COUNTIF($D$35,"*済*"),$H$32,$H$28)) -> 
B46: =B36 -> 令和8年度 | C46: =IF($D$36="","",IF(COUNTIF($D$36,"*済*"),$C$29,$C$25)) ->  | D46: =IF($D$36="","",IF(COUNTIF($D$36,"*済*"),"",$D$25)) ->  | F46: =IF($D$36="","",IF(COUNTIF($D$36,"*済*"),$F$29,$F$25)) ->  | H46: =IF($D$36="","",IF(COUNTIF($D$36,"*済*"),$H$29,$H$25)) ->  | K46: =IF(SUM(LEN($J46),LEN($J47),LEN($J48),LEN($J49))=0,"",SUM($J46:$J49)) ->  | L46: =IFERROR($K$25-$K$46,"---") -> --- | S46: =IF(SUM(LEN($R46),LEN($R47),LEN($R48),LEN($R49))=0,"",SUM($R46:$R49)) ->  | T46: =IFERROR($S$25-$S$46,"---") -> ---
C47: =IF($D$36="","",IF(COUNTIF($D$36,"*済*"),$C$30,$C$26)) ->  | D47: =IF($D$36="","",IF(COUNTIF($D$36,"*済*"),"",$D$26)) ->  | F47: =IF($D$36="","",IF(COUNTIF($D$36,"*済*"),$F$30,$F$26)) ->  | H47: =IF($D$36="","",IF(COUNTIF($D$36,"*済*"),$H$30,$H$26)) ->  | K47: (c3) | L47: (a-c3) | S47: (C3) | T47: (A-C3)
C48: =IF($D$36="","",IF(COUNTIF($D$36,"*済*"),$C$31,$C$27)) ->  | D48: =IF($D$36="","",IF(COUNTIF($D$36,"*済*"),"",$D$27)) ->  | F48: =IF($D$36="","",IF(COUNTIF($D$36,"*済*"),$F$31,$F$27)) ->  | H48: =IF($D$36="","",IF(COUNTIF($D$36,"*済*"),$H$31,$H$27)) -> 
C49: =IF($D$36="","",IF(COUNTIF($D$36,"*済*"),$C$32,$C$28)) ->  | D49: =IF($D$36="","",IF(COUNTIF($D$36,"*済*"),"",$D$28)) ->  | F49: =IF($D$36="","",IF(COUNTIF($D$36,"*済*"),$F$32,$F$28)) ->  | H49: =IF($D$36="","",IF(COUNTIF($D$36,"*済*"),$H$32,$H$28)) -> 
B50: ※活動量、排出量及び削減量は、小数点以下を四捨五入した整数で表示されています（端数処理なし）。
L51: ="個票"&$D$12 -> 個票4
B53: ３．CO2排出量の算出根拠
B55: =$B$38 -> 令和6年度 | D55: =IF($D$34="","",$D$34) ->  | J55: =IF(D55="","",IF($V$34=FALSE,"当初計画どおり","当初計画から変更あり")) -> 
B56: CO2排出量の計算式で使用する「活動種別ごとの年間活動量」の算出根拠 ※「対策実施済み」の場合は、実施計画書の対策個票「7.報告時のCO2排出量算定のための活動量把握方法」に基づき算出すること。
B99: 備考
L106: ="個票"&$D$12 -> 個票4
B110: =$B$42 -> 令和7年度 | D110: =IF($D$35="","",$D$35) ->  | J110: =IF(D110="","",IF($V$35=FALSE,"当初計画どおり","当初計画から変更あり")) -> 
B111: CO2排出量の計算式で使用する「活動種別ごとの年間活動量」の算出根拠 ※「対策実施済み」の場合は、実施計画書の対策個票「7.報告時のCO2排出量算定のための活動量把握方法」に基づき算出すること。
B154: 備考
L161: ="個票"&$D$12 -> 個票4
B165: =$B$46 -> 令和8年度 | D165: =IF($D$36="","",$D$36) ->  | J165: =IF(D165="","",IF($V$36=FALSE,"当初計画どおり","当初計画から変更あり")) -> 
B166: CO2排出量の計算式で使用する「活動種別ごとの年間活動量」の算出根拠 ※「対策実施済み」の場合は、実施計画書の対策個票「7.報告時のCO2排出量算定のための活動量把握方法」に基づき算出すること。
B209: 備考

Sheet 別紙1_CO2排出量_個票5 (hidden)
V1: セル色表示/非表示
B2: 環境省 令和４年度（第2次補正予算）・令和5年度二酸化炭素排出抑制対策事業費等補助金 | V2: FALSE
B3: （工場・事業場における先導的な脱炭素化取組推進事業（SHIFT事業））
B5: 事業者名（法人名） | D5: =IF(事業報告書まとめ_計画策定支援!$H$7="","",事業報告書まとめ_計画策定支援!$H$7) -> ○○株式会社
B6: 工場・事業場名 | D6: =IF(事業報告書まとめ_計画策定支援!$H$8="","",事業報告書まとめ_計画策定支援!$H$8) -> ○○工場
B8: ="【様式第16 事業報告書】 別紙1_CO2排出量_個票"&$D$12 -> 【様式第16 事業報告書】 別紙1_CO2排出量_個票5
B10: １．対策概要
B12: 個票番号 | D12: =MID(CELL("filename",$A$1),FIND("]",CELL("filename",$A$1))+14,LEN(CELL("filename",$A$1))) -> 5 | H12: 統合した対策個票番号
B13: 対策名称 | D13: =IF(VLOOKUP(VALUE($D$12),個票概要,3,FALSE)="","",VLOOKUP(VALUE($D$12),個票概要,3,FALSE)) -> 
B14: 対策種類 | D14: =IF(VLOOKUP(VALUE($D$12),個票概要,2,FALSE)="","",VLOOKUP(VALUE($D$12),個票概要,2,FALSE)) -> 
B15: 対象システム／設備 | D15: =IF(VLOOKUP(VALUE($D$12),個票概要,6,FALSE)="","",VLOOKUP(VALUE($D$12),個票概要,6,FALSE)) -> 
B16: 工程 | D16: =IF(VLOOKUP(VALUE($D$12),個票概要,5,FALSE)="","",VLOOKUP(VALUE($D$12),個票概要,5,FALSE)) -> 
B17: 既存設備名称 | D17: =IF(VLOOKUP(VALUE($D$12),個票概要,7,FALSE)="","",VLOOKUP(VALUE($D$12),個票概要,7,FALSE)) -> 
B18: 導入設備名称 | D18: =IF(VLOOKUP(VALUE($D$12),個票概要,8,FALSE)="","",VLOOKUP(VALUE($D$12),個票概要,8,FALSE)) -> 
B21: ２．CO2排出量
C23: 活動種別 | D23: 年間活動量 | F23: 単位発熱量 | H23: CO2排出係数 | J23: CO2排出量 (t-CO2/年) | K23: CO2排出量合計 (t-CO2/年) | L23: CO2削減量 (t-CO2/年) | O23: 活動種別 | P23: 単位発熱量 | R23: GJ換算量 (GJ/年) | S23: GJ換算量合計 (GJ/年) | T23: GJ削減量 (GJ/年)
B24: ■計画 | O24: ■計画
A25: =IF($C25="","",VLOOKUP($C25,活動の種別と単位_個票,2,FALSE)) ->  | B25: 【前】 対策実施 | C25: =IF(VLOOKUP(VALUE($D$12),対策前後,2,FALSE)="","",VLOOKUP(VALUE($D$12),対策前後,2,FALSE)) ->  | D25: =IF(VLOOKUP(VALUE($D$12),対策前後,3,FALSE)="","",VLOOKUP(VALUE($D$12),対策前後,3,FALSE)) ->  | E25: =IF($C25="","",VLOOKUP($C25,活動の種別と単位_個票,4,FALSE)) ->  | F25: =IF(VLOOKUP(VALUE($D$12),対策前後,5,FALSE)="","",VLOOKUP(VALUE($D$12),対策前後,5,FALSE)) ->  | G25: =IF($C25="","",VLOOKUP($C25,活動の種別と単位_個票,5,FALSE)) ->  | H25: =IF(VLOOKUP(VALUE($D$12),対策前後,7,FALSE)="","",VLOOKUP(VALUE($D$12),対策前後,7,FALSE)) ->  | I25: =IF($C25="","",VLOOKUP($C25,活動の種別と単位_個票,6,FALSE)) ->  | J25: =IFERROR(IF($D25="","",IF($A25=0,$D25*$F25*$H25,$D25*$H25)),"---") ->  | K25: =IF(SUM(LEN($J25),LEN($J26),LEN($J27),LEN($J28))=0,"",SUM($J25:$J28)) ->  | O25: =IF($C25="","",IF(COUNTIF($C25,"*系統電力*"),"*系統電力*",IF(COUNTIF($C25,"*産業用蒸気*"),"*産業用蒸気*",IF(COUNTIF($C25,"*温水*"),"*温水*",IF(COUNTIF($C25,"*冷水*"),"*冷水*",IF(COUNTIF($C25,"*蒸気（産業用以外）*"),"*蒸気（産業用以外）*",$C25)))))) ->  | P25: =IF($O25="","",IFERROR(VLOOKUP($O25,電力等のGJ換算係数_個票,2,FALSE),F25)) ->  | Q25: =IF($O25="","",IFERROR(VLOOKUP($O25,電力等のGJ換算係数_個票,3,FALSE),VLOOKUP($O25,活動の種別と単位_個票,5,FALSE))) ->  | R25: =IF(OR($D25="",$P25=""),"",$D25*$P25) ->  | S25: =IF(SUM(LEN($R25),LEN($R26),LEN($R27),LEN($R28))=0,"",SUM($R25:$R28)) -> 
C26: =IF(VLOOKUP(VALUE($D$12)&"-2",対策前後,2,FALSE)="","",VLOOKUP(VALUE($D$12)&"-2",対策前後,2,FALSE)) ->  | D26: =IF(VLOOKUP(VALUE($D$12)&"-2",対策前後,3,FALSE)="","",VLOOKUP(VALUE($D$12)&"-2",対策前後,3,FALSE)) ->  | E26: =IF($C26="","",VLOOKUP($C26,活動の種別と単位_個票,4,FALSE)) ->  | F26: =IF(VLOOKUP(VALUE($D$12)&"-2",対策前後,5,FALSE)="","",VLOOKUP(VALUE($D$12)&"-2",対策前後,5,FALSE)) ->  | H26: =IF(VLOOKUP(VALUE($D$12)&"-2",対策前後,7,FALSE)="","",VLOOKUP(VALUE($D$12)&"-2",対策前後,7,FALSE)) ->  | K26: (a) | O26: =IF($C26="","",IF(COUNTIF($C26,"*系統電力*"),"*系統電力*",IF(COUNTIF($C26,"*産業用蒸気*"),"*産業用蒸気*",IF(COUNTIF($C26,"*温水*"),"*温水*",IF(COUNTIF($C26,"*冷水*"),"*冷水*",IF(COUNTIF($C26,"*蒸気（産業用以外）*"),"*蒸気（産業用以外）*",$C26)))))) ->  | P26: =IF($O26="","",IFERROR(VLOOKUP($O26,電力等のGJ換算係数_個票,2,FALSE),F26)) ->  | Q26: =IF($O26="","",IFERROR(VLOOKUP($O26,電力等のGJ換算係数_個票,3,FALSE),VLOOKUP($O26,活動の種別と単位_個票,5,FALSE))) ->  | R26: =IF(OR($D26="",$P26=""),"",$D26*$P26) ->  | S26: (A)
C27: =IF(VLOOKUP(VALUE($D$12)&"-3",対策前後,2,FALSE)="","",VLOOKUP(VALUE($D$12)&"-3",対策前後,2,FALSE)) ->  | D27: =IF(VLOOKUP(VALUE($D$12)&"-3",対策前後,3,FALSE)="","",VLOOKUP(VALUE($D$12)&"-3",対策前後,3,FALSE)) ->  | F27: =IF(VLOOKUP(VALUE($D$12)&"-3",対策前後,5,FALSE)="","",VLOOKUP(VALUE($D$12)&"-3",対策前後,5,FALSE)) ->  | H27: =IF(VLOOKUP(VALUE($D$12)&"-3",対策前後,7,FALSE)="","",VLOOKUP(VALUE($D$12)&"-3",対策前後,7,FALSE)) ->  | Q27: =IF($O27="","",IFERROR(VLOOKUP($O27,電力等のGJ換算係数_個票,3,FALSE),VLOOKUP($O27,活動の種別と単位_個票,5,FALSE))) -> 
C28: =IF(VLOOKUP(VALUE($D$12)&"-4",対策前後,2,FALSE)="","",VLOOKUP(VALUE($D$12)&"-4",対策前後,2,FALSE)) ->  | D28: =IF(VLOOKUP(VALUE($D$12)&"-4",対策前後,3,FALSE)="","",VLOOKUP(VALUE($D$12)&"-4",対策前後,3,FALSE)) ->  | F28: =IF(VLOOKUP(VALUE($D$12)&"-4",対策前後,5,FALSE)="","",VLOOKUP(VALUE($D$12)&"-4",対策前後,5,FALSE)) ->  | H28: =IF(VLOOKUP(VALUE($D$12)&"-4",対策前後,7,FALSE)="","",VLOOKUP(VALUE($D$12)&"-4",対策前後,7,FALSE)) -> 
B29: 【計画】 対策実施 | C29: =IF(VLOOKUP(VALUE($D$12),対策前後,9,FALSE)="","",VLOOKUP(VALUE($D$12),対策前後,9,FALSE)) ->  | D29: =IF(VLOOKUP(VALUE($D$12),対策前後,10,FALSE)="","",VLOOKUP(VALUE($D$12),対策前後,10,FALSE)) ->  | F29: =IF(VLOOKUP(VALUE($D$12),対策前後,12,FALSE)="","",VLOOKUP(VALUE($D$12),対策前後,12,FALSE)) ->  | H29: =IF(VLOOKUP(VALUE($D$12),対策前後,14,FALSE)="","",VLOOKUP(VALUE($D$12),対策前後,14,FALSE)) ->  | K29: =IF(SUM(LEN($J29),LEN($J30),LEN($J31),LEN($J32))=0,"",SUM($J29:$J32)) ->  | L29: =IFERROR($K$25-$K$29,"---") -> --- | S29: =IF(SUM(LEN($R29),LEN($R30),LEN($R31),LEN($R32))=0,"",SUM($R29:$R32)) ->  | T29: =IFERROR($S$25-$S$29,"---") -> ---
C30: =IF(VLOOKUP(VALUE($D$12)&"-2",対策前後,9,FALSE)="","",VLOOKUP(VALUE($D$12)&"-2",対策前後,9,FALSE)) ->  | D30: =IF(VLOOKUP(VALUE($D$12)&"-2",対策前後,10,FALSE)="","",VLOOKUP(VALUE($D$12)&"-2",対策前後,10,FALSE)) ->  | F30: =IF(VLOOKUP(VALUE($D$12)&"-2",対策前後,12,FALSE)="","",VLOOKUP(VALUE($D$12)&"-2",対策前後,12,FALSE)) ->  | H30: =IF(VLOOKUP(VALUE($D$12)&"-2",対策前後,14,FALSE)="","",VLOOKUP(VALUE($D$12)&"-2",対策前後,14,FALSE)) ->  | K30: (b) | L30: (a-b) | S30: (B) | T30: (A-B)
C31: =IF(VLOOKUP(VALUE($D$12)&"-3",対策前後,9,FALSE)="","",VLOOKUP(VALUE($D$12)&"-3",対策前後,9,FALSE)) ->  | D31: =IF(VLOOKUP(VALUE($D$12)&"-3",対策前後,10,FALSE)="","",VLOOKUP(VALUE($D$12)&"-3",対策前後,10,FALSE)) ->  | F31: =IF(VLOOKUP(VALUE($D$12)&"-3",対策前後,12,FALSE)="","",VLOOKUP(VALUE($D$12)&"-3",対策前後,12,FALSE)) ->  | H31: =IF(VLOOKUP(VALUE($D$12)&"-3",対策前後,14,FALSE)="","",VLOOKUP(VALUE($D$12)&"-3",対策前後,14,FALSE)) -> 
C32: =IF(VLOOKUP(VALUE($D$12)&"-4",対策前後,9,FALSE)="","",VLOOKUP(VALUE($D$12)&"-4",対策前後,9,FALSE)) ->  | D32: =IF(VLOOKUP(VALUE($D$12)&"-4",対策前後,10,FALSE)="","",VLOOKUP(VALUE($D$12)&"-4",対策前後,10,FALSE)) ->  | F32: =IF(VLOOKUP(VALUE($D$12)&"-4",対策前後,12,FALSE)="","",VLOOKUP(VALUE($D$12)&"-4",対策前後,12,FALSE)) ->  | H32: =IF(VLOOKUP(VALUE($D$12)&"-4",対策前後,14,FALSE)="","",VLOOKUP(VALUE($D$12)&"-4",対策前後,14,FALSE)) -> 
B33: ■対策実施状況 | V33: 計画変更状況
B34: 令和6年度 | J34: 当初計画から変更あり | V34: FALSE
B35: 令和7年度 | J35: 当初計画から変更あり | V35: FALSE
B36: 令和8年度 | J36: 当初計画から変更あり | V36: FALSE
B37: ■実績 | O37: ■実績
A38: =IF($C38="","",VLOOKUP($C38,活動の種別と単位_個票,2,FALSE)) ->  | B38: =B34 -> 令和6年度 | C38: =IF($D$34="","",IF(COUNTIF($D$34,"*済*"),$C$29,$C$25)) ->  | D38: =IF($D$34="","",IF(COUNTIF($D$34,"*済*"),"",$D$25)) ->  | E38: =IF($C38="","",VLOOKUP($C38,活動の種別と単位_個票,4,FALSE)) ->  | F38: =IF($D$34="","",IF(COUNTIF($D$34,"*済*"),$F$29,$F$25)) ->  | G38: =IF($C38="","",VLOOKUP($C38,活動の種別と単位_個票,5,FALSE)) ->  | H38: =IF($D$34="","",IF(COUNTIF($D$34,"*済*"),$H$29,$H$25)) ->  | I38: =IF($C38="","",VLOOKUP($C38,活動の種別と単位_個票,6,FALSE)) ->  | J38: =IFERROR(IF($D38="","",IF($A38=0,$D38*$F38*$H38,$D38*$H38)),"---") ->  | K38: =IF(SUM(LEN($J38),LEN($J39),LEN($J40),LEN($J41))=0,"",SUM($J38:$J41)) ->  | L38: =IFERROR($K$25-$K$38,"---") -> --- | O38: =IF($C38="","",IF(COUNTIF($C38,"*系統電力*"),"*系統電力*",IF(COUNTIF($C38,"*産業用蒸気*"),"*産業用蒸気*",IF(COUNTIF($C38,"*温水*"),"*温水*",IF(COUNTIF($C38,"*冷水*"),"*冷水*",IF(COUNTIF($C38,"*蒸気（産業用以外）*"),"*蒸気（産業用以外）*",$C38)))))) ->  | P38: =IF($O38="","",IFERROR(VLOOKUP($O38,電力等のGJ換算係数_個票,2,FALSE),F38)) ->  | Q38: =IF($O38="","",IFERROR(VLOOKUP($O38,電力等のGJ換算係数_個票,3,FALSE),VLOOKUP($O38,活動の種別と単位_個票,5,FALSE))) ->  | R38: =IF(OR($D38="",$P38=""),"",$D38*$P38) ->  | S38: =IF(SUM(LEN($R38),LEN($R39),LEN($R40),LEN($R41))=0,"",SUM($R38:$R41)) ->  | T38: =IFERROR($S$25-$S$38,"---") -> ---
C39: =IF($D$34="","",IF(COUNTIF($D$34,"*済*"),$C$30,$C$26)) ->  | D39: =IF($D$34="","",IF(COUNTIF($D$34,"*済*"),"",$D$26)) ->  | F39: =IF($D$34="","",IF(COUNTIF($D$34,"*済*"),$F$30,$F$26)) ->  | H39: =IF($D$34="","",IF(COUNTIF($D$34,"*済*"),$H$30,$H$26)) ->  | K39: (c1) | L39: (a-c1) | O39: =IF($C39="","",IF(COUNTIF($C39,"*系統電力*"),"*系統電力*",IF(COUNTIF($C39,"*産業用蒸気*"),"*産業用蒸気*",IF(COUNTIF($C39,"*温水*"),"*温水*",IF(COUNTIF($C39,"*冷水*"),"*冷水*",IF(COUNTIF($C39,"*蒸気（産業用以外）*"),"*蒸気（産業用以外）*",$C39)))))) ->  | S39: (C1) | T39: (A-C1)
C40: =IF($D$34="","",IF(COUNTIF($D$34,"*済*"),$C$31,$C$27)) ->  | D40: =IF($D$34="","",IF(COUNTIF($D$34,"*済*"),"",$D$27)) ->  | F40: =IF($D$34="","",IF(COUNTIF($D$34,"*済*"),$F$31,$F$27)) ->  | H40: =IF($D$34="","",IF(COUNTIF($D$34,"*済*"),$H$31,$H$27)) -> 
C41: =IF($D$34="","",IF(COUNTIF($D$34,"*済*"),$C$32,$C$28)) ->  | D41: =IF($D$34="","",IF(COUNTIF($D$34,"*済*"),"",$D$28)) ->  | F41: =IF($D$34="","",IF(COUNTIF($D$34,"*済*"),$F$32,$F$28)) ->  | H41: =IF($D$34="","",IF(COUNTIF($D$34,"*済*"),$H$32,$H$28)) -> 
B42: =B35 -> 令和7年度 | C42: =IF($D$35="","",IF(COUNTIF($D$35,"*済*"),$C$29,$C$25)) ->  | D42: =IF($D$35="","",IF(COUNTIF($D$35,"*済*"),"",$D$25)) ->  | F42: =IF($D$35="","",IF(COUNTIF($D$35,"*済*"),$F$29,$F$25)) ->  | H42: =IF($D$35="","",IF(COUNTIF($D$35,"*済*"),$H$29,$H$25)) ->  | K42: =IF(SUM(LEN($J42),LEN($J43),LEN($J44),LEN($J45))=0,"",SUM($J42:$J45)) ->  | L42: =IFERROR($K$25-$K$42,"---") -> --- | S42: =IF(SUM(LEN($R42),LEN($R43),LEN($R44),LEN($R45))=0,"",SUM($R42:$R45)) ->  | T42: =IFERROR($S$25-$S$42,"---") -> ---
C43: =IF($D$35="","",IF(COUNTIF($D$35,"*済*"),$C$30,$C$26)) ->  | D43: =IF($D$35="","",IF(COUNTIF($D$35,"*済*"),"",$D$26)) ->  | F43: =IF($D$35="","",IF(COUNTIF($D$35,"*済*"),$F$30,$F$26)) ->  | H43: =IF($D$35="","",IF(COUNTIF($D$35,"*済*"),$H$30,$H$26)) ->  | K43: (c2) | L43: (a-c2) | S43: (C2) | T43: (A-C2)
C44: =IF($D$35="","",IF(COUNTIF($D$35,"*済*"),$C$31,$C$27)) ->  | D44: =IF($D$35="","",IF(COUNTIF($D$35,"*済*"),"",$D$27)) ->  | F44: =IF($D$35="","",IF(COUNTIF($D$35,"*済*"),$F$31,$F$27)) ->  | H44: =IF($D$35="","",IF(COUNTIF($D$35,"*済*"),$H$31,$H$27)) -> 
C45: =IF($D$35="","",IF(COUNTIF($D$35,"*済*"),$C$32,$C$28)) ->  | D45: =IF($D$35="","",IF(COUNTIF($D$35,"*済*"),"",$D$28)) ->  | F45: =IF($D$35="","",IF(COUNTIF($D$35,"*済*"),$F$32,$F$28)) ->  | H45: =IF($D$35="","",IF(COUNTIF($D$35,"*済*"),$H$32,$H$28)) -> 
B46: =B36 -> 令和8年度 | C46: =IF($D$36="","",IF(COUNTIF($D$36,"*済*"),$C$29,$C$25)) ->  | D46: =IF($D$36="","",IF(COUNTIF($D$36,"*済*"),"",$D$25)) ->  | F46: =IF($D$36="","",IF(COUNTIF($D$36,"*済*"),$F$29,$F$25)) ->  | H46: =IF($D$36="","",IF(COUNTIF($D$36,"*済*"),$H$29,$H$25)) ->  | K46: =IF(SUM(LEN($J46),LEN($J47),LEN($J48),LEN($J49))=0,"",SUM($J46:$J49)) ->  | L46: =IFERROR($K$25-$K$46,"---") -> --- | S46: =IF(SUM(LEN($R46),LEN($R47),LEN($R48),LEN($R49))=0,"",SUM($R46:$R49)) ->  | T46: =IFERROR($S$25-$S$46,"---") -> ---
C47: =IF($D$36="","",IF(COUNTIF($D$36,"*済*"),$C$30,$C$26)) ->  | D47: =IF($D$36="","",IF(COUNTIF($D$36,"*済*"),"",$D$26)) ->  | F47: =IF($D$36="","",IF(COUNTIF($D$36,"*済*"),$F$30,$F$26)) ->  | H47: =IF($D$36="","",IF(COUNTIF($D$36,"*済*"),$H$30,$H$26)) ->  | K47: (c3) | L47: (a-c3) | S47: (C3) | T47: (A-C3)
C48: =IF($D$36="","",IF(COUNTIF($D$36,"*済*"),$C$31,$C$27)) ->  | D48: =IF($D$36="","",IF(COUNTIF($D$36,"*済*"),"",$D$27)) ->  | F48: =IF($D$36="","",IF(COUNTIF($D$36,"*済*"),$F$31,$F$27)) ->  | H48: =IF($D$36="","",IF(COUNTIF($D$36,"*済*"),$H$31,$H$27)) -> 
C49: =IF($D$36="","",IF(COUNTIF($D$36,"*済*"),$C$32,$C$28)) ->  | D49: =IF($D$36="","",IF(COUNTIF($D$36,"*済*"),"",$D$28)) ->  | F49: =IF($D$36="","",IF(COUNTIF($D$36,"*済*"),$F$32,$F$28)) ->  | H49: =IF($D$36="","",IF(COUNTIF($D$36,"*済*"),$H$32,$H$28)) -> 
B50: ※活動量、排出量及び削減量は、小数点以下を四捨五入した整数で表示されています（端数処理なし）。
L51: ="個票"&$D$12 -> 個票5
B53: ３．CO2排出量の算出根拠
B55: =$B$38 -> 令和6年度 | D55: =IF($D$34="","",$D$34) ->  | J55: =IF(D55="","",IF($V$34=FALSE,"当初計画どおり","当初計画から変更あり")) -> 
B56: CO2排出量の計算式で使用する「活動種別ごとの年間活動量」の算出根拠 ※「対策実施済み」の場合は、実施計画書の対策個票「7.報告時のCO2排出量算定のための活動量把握方法」に基づき算出すること。
B99: 備考
L106: ="個票"&$D$12 -> 個票5
B110: =$B$42 -> 令和7年度 | D110: =IF($D$35="","",$D$35) ->  | J110: =IF(D110="","",IF($V$35=FALSE,"当初計画どおり","当初計画から変更あり")) -> 
B111: CO2排出量の計算式で使用する「活動種別ごとの年間活動量」の算出根拠 ※「対策実施済み」の場合は、実施計画書の対策個票「7.報告時のCO2排出量算定のための活動量把握方法」に基づき算出すること。
B154: 備考
L161: ="個票"&$D$12 -> 個票5
B165: =$B$46 -> 令和8年度 | D165: =IF($D$36="","",$D$36) ->  | J165: =IF(D165="","",IF($V$36=FALSE,"当初計画どおり","当初計画から変更あり")) -> 
B166: CO2排出量の計算式で使用する「活動種別ごとの年間活動量」の算出根拠 ※「対策実施済み」の場合は、実施計画書の対策個票「7.報告時のCO2排出量算定のための活動量把握方法」に基づき算出すること。
B209: 備考

Sheet 別紙1_CO2排出量_個票6 (hidden)
V1: セル色表示/非表示
B2: 環境省 令和４年度（第2次補正予算）・令和5年度二酸化炭素排出抑制対策事業費等補助金 | V2: FALSE
B3: （工場・事業場における先導的な脱炭素化取組推進事業（SHIFT事業））
B5: 事業者名（法人名） | D5: =IF(事業報告書まとめ_計画策定支援!$H$7="","",事業報告書まとめ_計画策定支援!$H$7) -> ○○株式会社
B6: 工場・事業場名 | D6: =IF(事業報告書まとめ_計画策定支援!$H$8="","",事業報告書まとめ_計画策定支援!$H$8) -> ○○工場
B8: ="【様式第16 事業報告書】 別紙1_CO2排出量_個票"&$D$12 -> 【様式第16 事業報告書】 別紙1_CO2排出量_個票6
B10: １．対策概要
B12: 個票番号 | D12: =MID(CELL("filename",$A$1),FIND("]",CELL("filename",$A$1))+14,LEN(CELL("filename",$A$1))) -> 6 | H12: 統合した対策個票番号
B13: 対策名称 | D13: =IF(VLOOKUP(VALUE($D$12),個票概要,3,FALSE)="","",VLOOKUP(VALUE($D$12),個票概要,3,FALSE)) -> 
B14: 対策種類 | D14: =IF(VLOOKUP(VALUE($D$12),個票概要,2,FALSE)="","",VLOOKUP(VALUE($D$12),個票概要,2,FALSE)) -> 
B15: 対象システム／設備 | D15: =IF(VLOOKUP(VALUE($D$12),個票概要,6,FALSE)="","",VLOOKUP(VALUE($D$12),個票概要,6,FALSE)) -> 
B16: 工程 | D16: =IF(VLOOKUP(VALUE($D$12),個票概要,5,FALSE)="","",VLOOKUP(VALUE($D$12),個票概要,5,FALSE)) -> 
B17: 既存設備名称 | D17: =IF(VLOOKUP(VALUE($D$12),個票概要,7,FALSE)="","",VLOOKUP(VALUE($D$12),個票概要,7,FALSE)) -> 
B18: 導入設備名称 | D18: =IF(VLOOKUP(VALUE($D$12),個票概要,8,FALSE)="","",VLOOKUP(VALUE($D$12),個票概要,8,FALSE)) -> 
B21: ２．CO2排出量
C23: 活動種別 | D23: 年間活動量 | F23: 単位発熱量 | H23: CO2排出係数 | J23: CO2排出量 (t-CO2/年) | K23: CO2排出量合計 (t-CO2/年) | L23: CO2削減量 (t-CO2/年) | O23: 活動種別 | P23: 単位発熱量 | R23: GJ換算量 (GJ/年) | S23: GJ換算量合計 (GJ/年) | T23: GJ削減量 (GJ/年)
B24: ■計画 | O24: ■計画
A25: =IF($C25="","",VLOOKUP($C25,活動の種別と単位_個票,2,FALSE)) ->  | B25: 【前】 対策実施 | C25: =IF(VLOOKUP(VALUE($D$12),対策前後,2,FALSE)="","",VLOOKUP(VALUE($D$12),対策前後,2,FALSE)) ->  | D25: =IF(VLOOKUP(VALUE($D$12),対策前後,3,FALSE)="","",VLOOKUP(VALUE($D$12),対策前後,3,FALSE)) ->  | E25: =IF($C25="","",VLOOKUP($C25,活動の種別と単位_個票,4,FALSE)) ->  | F25: =IF(VLOOKUP(VALUE($D$12),対策前後,5,FALSE)="","",VLOOKUP(VALUE($D$12),対策前後,5,FALSE)) ->  | G25: =IF($C25="","",VLOOKUP($C25,活動の種別と単位_個票,5,FALSE)) ->  | H25: =IF(VLOOKUP(VALUE($D$12),対策前後,7,FALSE)="","",VLOOKUP(VALUE($D$12),対策前後,7,FALSE)) ->  | I25: =IF($C25="","",VLOOKUP($C25,活動の種別と単位_個票,6,FALSE)) ->  | J25: =IFERROR(IF($D25="","",IF($A25=0,$D25*$F25*$H25,$D25*$H25)),"---") ->  | K25: =IF(SUM(LEN($J25),LEN($J26),LEN($J27),LEN($J28))=0,"",SUM($J25:$J28)) ->  | O25: =IF($C25="","",IF(COUNTIF($C25,"*系統電力*"),"*系統電力*",IF(COUNTIF($C25,"*産業用蒸気*"),"*産業用蒸気*",IF(COUNTIF($C25,"*温水*"),"*温水*",IF(COUNTIF($C25,"*冷水*"),"*冷水*",IF(COUNTIF($C25,"*蒸気（産業用以外）*"),"*蒸気（産業用以外）*",$C25)))))) ->  | P25: =IF($O25="","",IFERROR(VLOOKUP($O25,電力等のGJ換算係数_個票,2,FALSE),F25)) ->  | Q25: =IF($O25="","",IFERROR(VLOOKUP($O25,電力等のGJ換算係数_個票,3,FALSE),VLOOKUP($O25,活動の種別と単位_個票,5,FALSE))) ->  | R25: =IF(OR($D25="",$P25=""),"",$D25*$P25) ->  | S25: =IF(SUM(LEN($R25),LEN($R26),LEN($R27),LEN($R28))=0,"",SUM($R25:$R28)) -> 
C26: =IF(VLOOKUP(VALUE($D$12)&"-2",対策前後,2,FALSE)="","",VLOOKUP(VALUE($D$12)&"-2",対策前後,2,FALSE)) ->  | D26: =IF(VLOOKUP(VALUE($D$12)&"-2",対策前後,3,FALSE)="","",VLOOKUP(VALUE($D$12)&"-2",対策前後,3,FALSE)) ->  | E26: =IF($C26="","",VLOOKUP($C26,活動の種別と単位_個票,4,FALSE)) ->  | F26: =IF(VLOOKUP(VALUE($D$12)&"-2",対策前後,5,FALSE)="","",VLOOKUP(VALUE($D$12)&"-2",対策前後,5,FALSE)) ->  | H26: =IF(VLOOKUP(VALUE($D$12)&"-2",対策前後,7,FALSE)="","",VLOOKUP(VALUE($D$12)&"-2",対策前後,7,FALSE)) ->  | K26: (a) | O26: =IF($C26="","",IF(COUNTIF($C26,"*系統電力*"),"*系統電力*",IF(COUNTIF($C26,"*産業用蒸気*"),"*産業用蒸気*",IF(COUNTIF($C26,"*温水*"),"*温水*",IF(COUNTIF($C26,"*冷水*"),"*冷水*",IF(COUNTIF($C26,"*蒸気（産業用以外）*"),"*蒸気（産業用以外）*",$C26)))))) ->  | P26: =IF($O26="","",IFERROR(VLOOKUP($O26,電力等のGJ換算係数_個票,2,FALSE),F26)) ->  | Q26: =IF($O26="","",IFERROR(VLOOKUP($O26,電力等のGJ換算係数_個票,3,FALSE),VLOOKUP($O26,活動の種別と単位_個票,5,FALSE))) ->  | R26: =IF(OR($D26="",$P26=""),"",$D26*$P26) ->  | S26: (A)
C27: =IF(VLOOKUP(VALUE($D$12)&"-3",対策前後,2,FALSE)="","",VLOOKUP(VALUE($D$12)&"-3",対策前後,2,FALSE)) ->  | D27: =IF(VLOOKUP(VALUE($D$12)&"-3",対策前後,3,FALSE)="","",VLOOKUP(VALUE($D$12)&"-3",対策前後,3,FALSE)) ->  | F27: =IF(VLOOKUP(VALUE($D$12)&"-3",対策前後,5,FALSE)="","",VLOOKUP(VALUE($D$12)&"-3",対策前後,5,FALSE)) ->  | H27: =IF(VLOOKUP(VALUE($D$12)&"-3",対策前後,7,FALSE)="","",VLOOKUP(VALUE($D$12)&"-3",対策前後,7,FALSE)) ->  | Q27: =IF($O27="","",IFERROR(VLOOKUP($O27,電力等のGJ換算係数_個票,3,FALSE),VLOOKUP($O27,活動の種別と単位_個票,5,FALSE))) -> 
C28: =IF(VLOOKUP(VALUE($D$12)&"-4",対策前後,2,FALSE)="","",VLOOKUP(VALUE($D$12)&"-4",対策前後,2,FALSE)) ->  | D28: =IF(VLOOKUP(VALUE($D$12)&"-4",対策前後,3,FALSE)="","",VLOOKUP(VALUE($D$12)&"-4",対策前後,3,FALSE)) ->  | F28: =IF(VLOOKUP(VALUE($D$12)&"-4",対策前後,5,FALSE)="","",VLOOKUP(VALUE($D$12)&"-4",対策前後,5,FALSE)) ->  | H28: =IF(VLOOKUP(VALUE($D$12)&"-4",対策前後,7,FALSE)="","",VLOOKUP(VALUE($D$12)&"-4",対策前後,7,FALSE)) -> 
B29: 【計画】 対策実施 | C29: =IF(VLOOKUP(VALUE($D$12),対策前後,9,FALSE)="","",VLOOKUP(VALUE($D$12),対策前後,9,FALSE)) ->  | D29: =IF(VLOOKUP(VALUE($D$12),対策前後,10,FALSE)="","",VLOOKUP(VALUE($D$12),対策前後,10,FALSE)) ->  | F29: =IF(VLOOKUP(VALUE($D$12),対策前後,12,FALSE)="","",VLOOKUP(VALUE($D$12),対策前後,12,FALSE)) ->  | H29: =IF(VLOOKUP(VALUE($D$12),対策前後,14,FALSE)="","",VLOOKUP(VALUE($D$12),対策前後,14,FALSE)) ->  | K29: =IF(SUM(LEN($J29),LEN($J30),LEN($J31),LEN($J32))=0,"",SUM($J29:$J32)) ->  | L29: =IFERROR($K$25-$K$29,"---") -> --- | S29: =IF(SUM(LEN($R29),LEN($R30),LEN($R31),LEN($R32))=0,"",SUM($R29:$R32)) ->  | T29: =IFERROR($S$25-$S$29,"---") -> ---
C30: =IF(VLOOKUP(VALUE($D$12)&"-2",対策前後,9,FALSE)="","",VLOOKUP(VALUE($D$12)&"-2",対策前後,9,FALSE)) ->  | D30: =IF(VLOOKUP(VALUE($D$12)&"-2",対策前後,10,FALSE)="","",VLOOKUP(VALUE($D$12)&"-2",対策前後,10,FALSE)) ->  | F30: =IF(VLOOKUP(VALUE($D$12)&"-2",対策前後,12,FALSE)="","",VLOOKUP(VALUE($D$12)&"-2",対策前後,12,FALSE)) ->  | H30: =IF(VLOOKUP(VALUE($D$12)&"-2",対策前後,14,FALSE)="","",VLOOKUP(VALUE($D$12)&"-2",対策前後,14,FALSE)) ->  | K30: (b) | L30: (a-b) | S30: (B) | T30: (A-B)
C31: =IF(VLOOKUP(VALUE($D$12)&"-3",対策前後,9,FALSE)="","",VLOOKUP(VALUE($D$12)&"-3",対策前後,9,FALSE)) ->  | D31: =IF(VLOOKUP(VALUE($D$12)&"-3",対策前後,10,FALSE)="","",VLOOKUP(VALUE($D$12)&"-3",対策前後,10,FALSE)) ->  | F31: =IF(VLOOKUP(VALUE($D$12)&"-3",対策前後,12,FALSE)="","",VLOOKUP(VALUE($D$12)&"-3",対策前後,12,FALSE)) ->  | H31: =IF(VLOOKUP(VALUE($D$12)&"-3",対策前後,14,FALSE)="","",VLOOKUP(VALUE($D$12)&"-3",対策前後,14,FALSE)) -> 
C32: =IF(VLOOKUP(VALUE($D$12)&"-4",対策前後,9,FALSE)="","",VLOOKUP(VALUE($D$12)&"-4",対策前後,9,FALSE)) ->  | D32: =IF(VLOOKUP(VALUE($D$12)&"-4",対策前後,10,FALSE)="","",VLOOKUP(VALUE($D$12)&"-4",対策前後,10,FALSE)) ->  | F32: =IF(VLOOKUP(VALUE($D$12)&"-4",対策前後,12,FALSE)="","",VLOOKUP(VALUE($D$12)&"-4",対策前後,12,FALSE)) ->  | H32: =IF(VLOOKUP(VALUE($D$12)&"-4",対策前後,14,FALSE)="","",VLOOKUP(VALUE($D$12)&"-4",対策前後,14,FALSE)) -> 
B33: ■対策実施状況 | V33: 計画変更状況
B34: 令和6年度 | J34: 当初計画から変更あり | V34: FALSE
B35: 令和7年度 | J35: 当初計画から変更あり | V35: FALSE
B36: 令和8年度 | J36: 当初計画から変更あり | V36: FALSE
B37: ■実績 | O37: ■実績
A38: =IF($C38="","",VLOOKUP($C38,活動の種別と単位_個票,2,FALSE)) ->  | B38: =B34 -> 令和6年度 | C38: =IF($D$34="","",IF(COUNTIF($D$34,"*済*"),$C$29,$C$25)) ->  | D38: =IF($D$34="","",IF(COUNTIF($D$34,"*済*"),"",$D$25)) ->  | E38: =IF($C38="","",VLOOKUP($C38,活動の種別と単位_個票,4,FALSE)) ->  | F38: =IF($D$34="","",IF(COUNTIF($D$34,"*済*"),$F$29,$F$25)) ->  | G38: =IF($C38="","",VLOOKUP($C38,活動の種別と単位_個票,5,FALSE)) ->  | H38: =IF($D$34="","",IF(COUNTIF($D$34,"*済*"),$H$29,$H$25)) ->  | I38: =IF($C38="","",VLOOKUP($C38,活動の種別と単位_個票,6,FALSE)) ->  | J38: =IFERROR(IF($D38="","",IF($A38=0,$D38*$F38*$H38,$D38*$H38)),"---") ->  | K38: =IF(SUM(LEN($J38),LEN($J39),LEN($J40),LEN($J41))=0,"",SUM($J38:$J41)) ->  | L38: =IFERROR($K$25-$K$38,"---") -> --- | O38: =IF($C38="","",IF(COUNTIF($C38,"*系統電力*"),"*系統電力*",IF(COUNTIF($C38,"*産業用蒸気*"),"*産業用蒸気*",IF(COUNTIF($C38,"*温水*"),"*温水*",IF(COUNTIF($C38,"*冷水*"),"*冷水*",IF(COUNTIF($C38,"*蒸気（産業用以外）*"),"*蒸気（産業用以外）*",$C38)))))) ->  | P38: =IF($O38="","",IFERROR(VLOOKUP($O38,電力等のGJ換算係数_個票,2,FALSE),F38)) ->  | Q38: =IF($O38="","",IFERROR(VLOOKUP($O38,電力等のGJ換算係数_個票,3,FALSE),VLOOKUP($O38,活動の種別と単位_個票,5,FALSE))) ->  | R38: =IF(OR($D38="",$P38=""),"",$D38*$P38) ->  | S38: =IF(SUM(LEN($R38),LEN($R39),LEN($R40),LEN($R41))=0,"",SUM($R38:$R41)) ->  | T38: =IFERROR($S$25-$S$38,"---") -> ---
C39: =IF($D$34="","",IF(COUNTIF($D$34,"*済*"),$C$30,$C$26)) ->  | D39: =IF($D$34="","",IF(COUNTIF($D$34,"*済*"),"",$D$26)) ->  | F39: =IF($D$34="","",IF(COUNTIF($D$34,"*済*"),$F$30,$F$26)) ->  | H39: =IF($D$34="","",IF(COUNTIF($D$34,"*済*"),$H$30,$H$26)) ->  | K39: (c1) | L39: (a-c1) | O39: =IF($C39="","",IF(COUNTIF($C39,"*系統電力*"),"*系統電力*",IF(COUNTIF($C39,"*産業用蒸気*"),"*産業用蒸気*",IF(COUNTIF($C39,"*温水*"),"*温水*",IF(COUNTIF($C39,"*冷水*"),"*冷水*",IF(COUNTIF($C39,"*蒸気（産業用以外）*"),"*蒸気（産業用以外）*",$C39)))))) ->  | S39: (C1) | T39: (A-C1)
C40: =IF($D$34="","",IF(COUNTIF($D$34,"*済*"),$C$31,$C$27)) ->  | D40: =IF($D$34="","",IF(COUNTIF($D$34,"*済*"),"",$D$27)) ->  | F40: =IF($D$34="","",IF(COUNTIF($D$34,"*済*"),$F$31,$F$27)) ->  | H40: =IF($D$34="","",IF(COUNTIF($D$34,"*済*"),$H$31,$H$27)) -> 
C41: =IF($D$34="","",IF(COUNTIF($D$34,"*済*"),$C$32,$C$28)) ->  | D41: =IF($D$34="","",IF(COUNTIF($D$34,"*済*"),"",$D$28)) ->  | F41: =IF($D$34="","",IF(COUNTIF($D$34,"*済*"),$F$32,$F$28)) ->  | H41: =IF($D$34="","",IF(COUNTIF($D$34,"*済*"),$H$32,$H$28)) -> 
B42: =B35 -> 令和7年度 | C42: =IF($D$35="","",IF(COUNTIF($D$35,"*済*"),$C$29,$C$25)) ->  | D42: =IF($D$35="","",IF(COUNTIF($D$35,"*済*"),"",$D$25)) ->  | F42: =IF($D$35="","",IF(COUNTIF($D$35,"*済*"),$F$29,$F$25)) ->  | H42: =IF($D$35="","",IF(COUNTIF($D$35,"*済*"),$H$29,$H$25)) ->  | K42: =IF(SUM(LEN($J42),LEN($J43),LEN($J44),LEN($J45))=0,"",SUM($J42:$J45)) ->  | L42: =IFERROR($K$25-$K$42,"---") -> --- | S42: =IF(SUM(LEN($R42),LEN($R43),LEN($R44),LEN($R45))=0,"",SUM($R42:$R45)) ->  | T42: =IFERROR($S$25-$S$42,"---") -> ---
C43: =IF($D$35="","",IF(COUNTIF($D$35,"*済*"),$C$30,$C$26)) ->  | D43: =IF($D$35="","",IF(COUNTIF($D$35,"*済*"),"",$D$26)) ->  | F43: =IF($D$35="","",IF(COUNTIF($D$35,"*済*"),$F$30,$F$26)) ->  | H43: =IF($D$35="","",IF(COUNTIF($D$35,"*済*"),$H$30,$H$26)) ->  | K43: (c2) | L43: (a-c2) | S43: (C2) | T43: (A-C2)
C44: =IF($D$35="","",IF(COUNTIF($D$35,"*済*"),$C$31,$C$27)) ->  | D44: =IF($D$35="","",IF(COUNTIF($D$35,"*済*"),"",$D$27)) ->  | F44: =IF($D$35="","",IF(COUNTIF($D$35,"*済*"),$F$31,$F$27)) ->  | H44: =IF($D$35="","",IF(COUNTIF($D$35,"*済*"),$H$31,$H$27)) -> 
C45: =IF($D$35="","",IF(COUNTIF($D$35,"*済*"),$C$32,$C$28)) ->  | D45: =IF($D$35="","",IF(COUNTIF($D$35,"*済*"),"",$D$28)) ->  | F45: =IF($D$35="","",IF(COUNTIF($D$35,"*済*"),$F$32,$F$28)) ->  | H45: =IF($D$35="","",IF(COUNTIF($D$35,"*済*"),$H$32,$H$28)) -> 
B46: =B36 -> 令和8年度 | C46: =IF($D$36="","",IF(COUNTIF($D$36,"*済*"),$C$29,$C$25)) ->  | D46: =IF($D$36="","",IF(COUNTIF($D$36,"*済*"),"",$D$25)) ->  | F46: =IF($D$36="","",IF(COUNTIF($D$36,"*済*"),$F$29,$F$25)) ->  | H46: =IF($D$36="","",IF(COUNTIF($D$36,"*済*"),$H$29,$H$25)) ->  | K46: =IF(SUM(LEN($J46),LEN($J47),LEN($J48),LEN($J49))=0,"",SUM($J46:$J49)) ->  | L46: =IFERROR($K$25-$K$46,"---") -> --- | S46: =IF(SUM(LEN($R46),LEN($R47),LEN($R48),LEN($R49))=0,"",SUM($R46:$R49)) ->  | T46: =IFERROR($S$25-$S$46,"---") -> ---
C47: =IF($D$36="","",IF(COUNTIF($D$36,"*済*"),$C$30,$C$26)) ->  | D47: =IF($D$36="","",IF(COUNTIF($D$36,"*済*"),"",$D$26)) ->  | F47: =IF($D$36="","",IF(COUNTIF($D$36,"*済*"),$F$30,$F$26)) ->  | H47: =IF($D$36="","",IF(COUNTIF($D$36,"*済*"),$H$30,$H$26)) ->  | K47: (c3) | L47: (a-c3) | S47: (C3) | T47: (A-C3)
C48: =IF($D$36="","",IF(COUNTIF($D$36,"*済*"),$C$31,$C$27)) ->  | D48: =IF($D$36="","",IF(COUNTIF($D$36,"*済*"),"",$D$27)) ->  | F48: =IF($D$36="","",IF(COUNTIF($D$36,"*済*"),$F$31,$F$27)) ->  | H48: =IF($D$36="","",IF(COUNTIF($D$36,"*済*"),$H$31,$H$27)) -> 
C49: =IF($D$36="","",IF(COUNTIF($D$36,"*済*"),$C$32,$C$28)) ->  | D49: =IF($D$36="","",IF(COUNTIF($D$36,"*済*"),"",$D$28)) ->  | F49: =IF($D$36="","",IF(COUNTIF($D$36,"*済*"),$F$32,$F$28)) ->  | H49: =IF($D$36="","",IF(COUNTIF($D$36,"*済*"),$H$32,$H$28)) -> 
B50: ※活動量、排出量及び削減量は、小数点以下を四捨五入した整数で表示されています（端数処理なし）。
L51: ="個票"&$D$12 -> 個票6
B53: ３．CO2排出量の算出根拠
B55: =$B$38 -> 令和6年度 | D55: =IF($D$34="","",$D$34) ->  | J55: =IF(D55="","",IF($V$34=FALSE,"当初計画どおり","当初計画から変更あり")) -> 
B56: CO2排出量の計算式で使用する「活動種別ごとの年間活動量」の算出根拠 ※「対策実施済み」の場合は、実施計画書の対策個票「7.報告時のCO2排出量算定のための活動量把握方法」に基づき算出すること。
B99: 備考
L106: ="個票"&$D$12 -> 個票6
B110: =$B$42 -> 令和7年度 | D110: =IF($D$35="","",$D$35) ->  | J110: =IF(D110="","",IF($V$35=FALSE,"当初計画どおり","当初計画から変更あり")) -> 
B111: CO2排出量の計算式で使用する「活動種別ごとの年間活動量」の算出根拠 ※「対策実施済み」の場合は、実施計画書の対策個票「7.報告時のCO2排出量算定のための活動量把握方法」に基づき算出すること。
B154: 備考
L161: ="個票"&$D$12 -> 個票6
B165: =$B$46 -> 令和8年度 | D165: =IF($D$36="","",$D$36) ->  | J165: =IF(D165="","",IF($V$36=FALSE,"当初計画どおり","当初計画から変更あり")) -> 
B166: CO2排出量の計算式で使用する「活動種別ごとの年間活動量」の算出根拠 ※「対策実施済み」の場合は、実施計画書の対策個票「7.報告時のCO2排出量算定のための活動量把握方法」に基づき算出すること。
B209: 備考

Sheet 別紙2_CO2排出量_全体
BT1: セル色表示／非表示
BT2: FALSE
B4: 環境省 令和４年度（第2次補正予算）・令和5年度二酸化炭素排出抑制対策事業費等補助金 （工場・事業場における先導的な脱炭素化取組推進事業（SHIFT事業））
B6: 【様式第16 事業報告書】 別紙1_工場・事業場全体のCO2排出量
B8: 事業者名（法人名） | D8: =IF(事業報告書まとめ_計画策定支援!$H$7="","",事業報告書まとめ_計画策定支援!$H$7) -> ○○株式会社
B9: 工場・事業場名 | D9: =IF(事業報告書まとめ_計画策定支援!$H$8="","",事業報告書まとめ_計画策定支援!$H$8) -> ○○工場
B12: ■工場・事業場全体のエネルギー起源CO2排出量等の推移
D14: 基準年度 | E14: =$B$23 -> 令和6年度 | F14: =$B$24 -> 令和7年度 | G14: =$B$25 -> 令和8年度
B15: CO2排出量(t-CO2) | D15: =IF(基本データ転記先シート!$F$25="","",基本データ転記先シート!$F$25) -> 500.26612 | E15: =IF($M$56="","",$M$56) -> 391.1644426 | F15: =IF($N$56="","",$N$56) -> 0 | G15: =IF($O$56="","",$O$56) -> 0
B16: エネルギー使用量(GJ) | D16: =IF(基本データ転記先シート!$F$26="","",基本データ転記先シート!$F$26) -> 8218.124 | E16: =IF($BL$55="","",$BL$55) -> 8028.42361 | F16: =IF($BM$55="","",$BM$55) -> 0 | G16: =IF($BN$55="","",$BN$55) -> 0
B17: 脱炭素化指標(t-CO2/GJ) | D17: =IF(基本データ転記先シート!$F$27="","",基本データ転記先シート!$F$27) -> 0.06087351809 | E17: =IF($BL$56="","",$BL$56) -> 0.04872244684 | F17: =IF($BM$56="","",$BM$56) -> --- | G17: =IF($BN$56="","",$BN$56) -> ---
B20: ■活動種別と活動量
B22: チェックを外すと、当該年度分が非表示となります。チェックを入れると再表示されます。
B23: =事業報告書まとめ_計画策定支援!$O$16 -> 令和6年度 | C23: TRUE | E23: =MID(CELL("address",$E$26),2,1) -> E | F23: =MID(CELL("address",$M$26),2,1) -> M | G23: =MID(CELL("address",$R$26),2,1)&":"&MID(CELL("address",$AF$26),2,2) -> R:AF | H23: =MID(CELL("address",$BL$26),2,2) -> BL
B24: =事業報告書まとめ_計画策定支援!$R$16 -> 令和7年度 | C24: TRUE | E24: =MID(CELL("address",$F$26),2,1) -> F | F24: =MID(CELL("address",$N$26),2,1) -> N | G24: =MID(CELL("address",$AG$26),2,2)&":"&MID(CELL("address",$AU$26),2,2) -> AG:AU | H24: =MID(CELL("address",$BM$26),2,2) -> BM
B25: =事業報告書まとめ_計画策定支援!$U$16 -> 令和8年度 | C25: TRUE | E25: =MID(CELL("address",$G$26),2,1) -> G | F25: =MID(CELL("address",$O$26),2,1) -> O | G25: =MID(CELL("address",$AV$26),2,2)&":"&MID(CELL("address",$BJ$26),2,2) -> AV:BJ | H25: =MID(CELL("address",$BN$26),2,2) -> BN
B27: 事業所No. | C27: モニタリング ポイントNo. | D27: 活動種別 | E27: 活動量 | I27: 単位発熱量 | K27: CO2排出係数 | M27: CO2排出量[t-CO2] | P27: 備考 | Q27: 活動量 | R27: =$B$23 -> 令和6年度 | AG27: =$B$24 -> 令和7年度 | AV27: =$B$25 -> 令和8年度 | BK27: GJ換算
R28: 月別の購買量 ※「活動量」の単位（H列）と整合するように記入ください。 | AG28: 月別の購買量 ※「活動量」の単位（H列）と整合するように記入ください。 | AV28: 月別の購買量 ※「活動量」の単位（H列）と整合するように記入ください。 | BK28: 対象 | BL28: GJ換算量
E29: =$B$23 -> 令和6年度 | F29: =$B$24 -> 令和7年度 | G29: =$B$25 -> 令和8年度 | H29: 単位 | I29: 係数 | J29: 単位 | K29: 係数 | L29: 単位 | M29: =$B$23 -> 令和6年度 | N29: =$B$24 -> 令和7年度 | O29: =$B$25 -> 令和8年度 | Q29: 把握対象 | R29: 年度開始 時点の 在庫量 | S29: ４月 | T29: ５月 | U29: ６月 | V29: ７月 | W29: ８月 | X29: ９月 | Y29: １０月 | Z29: １１月 | AA29: １２月 | AB29: １月 | AC29: ２月 | AD29: ３月 | AE29: 年度終了 時点の 在庫量 | AF29: 製品中への注入量 | AG29: 年度開始 時点の 在庫量 | AH29: ４月 | AI29: ５月 | AJ29: ６月 | AK29: ７月 | AL29: ８月 | AM29: ９月 | AN29: １０月 | AO29: １１月 | AP29: １２月 | AQ29: １月 | AR29: ２月 | AS29: ３月 | AT29: 年度終了 時点の 在庫量 | AU29: 製品中への注入量 | AV29: 年度開始 時点の 在庫量 | AW29: ４月 | AX29: ５月 | AY29: ６月 | AZ29: ７月 | BA29: ８月 | BB29: ９月 | BC29: １０月 | BD29: １１月 | BE29: １２月 | BF29: １月 | BG29: ２月 | BH29: ３月 | BI29: 年度終了 時点の 在庫量 | BJ29: 製品中への注入量 | BL29: =$B$23 -> 令和6年度 | BM29: =$B$24 -> 令和7年度 | BN29: =$B$25 -> 令和8年度
A30: =IF($D30="","",VLOOKUP($D30,活動の種別と単位_全体,2,FALSE)) -> 1 | D30: 系統電力 | E30: =SUM($S30:$AD30)+($R30-$AE30)-$AF30 -> 319899.96 | F30: =SUM($AH30:$AS30)+($AG30-$AT30)-$AU30 -> 0 | G30: =SUM($AW30:$BH30)+($AV30-$BI30)-$BJ30 -> 0 | H30: =IF($D30="","",VLOOKUP($D30,活動の種別と単位_全体,4,FALSE)) -> kWh | J30: =IF($D30="","",VLOOKUP($D30,活動の種別と単位_全体,5,FALSE)) -> --- | K30: 0.000436 | L30: =IF($D30="","",VLOOKUP($D30,活動の種別と単位_全体,6,FALSE)) -> t-CO2/kWh | M30: =IF($D30="","",IF($A30=0,$E30*$I30*$K30,$E30*$K30)) -> 139.4763826 | N30: =IF($D30="","",IF($A30=0,$F30*$I30*$K30,$F30*$K30)) -> 0 | O30: =IF($D30="","",IF($A30=0,$G30*$I30*$K30,$G30*$K30)) -> 0 | Q30: =IF($D30="","",VLOOKUP($D30,活動の種別と単位_全体,3,FALSE)) -> 使用量 | S30: 26658.33 | T30: 26658.33 | U30: 26658.33 | V30: 26658.33 | W30: 26658.33 | X30: 26658.33 | Y30: 26658.33 | Z30: 26658.33 | AA30: 26658.33 | AB30: 26658.33 | AC30: 26658.33 | AD30: 26658.33 | AG30: =AE30 -> 0 | AV30: =AT30 -> 0 | BK30: =IF($D30="","",VLOOKUP($D30,活動の種別と単位_全体,7,FALSE)) -> 対象 | BL30: =IF($D30="","",IF($BK30="対象",IF(OR($D30="系統電力",$D30="産業用蒸気",$D30="温水",$D30="冷水",$D30="蒸気（産業用以外）"),$E30*VLOOKUP($D30,電力等のGJ換算係数_全体,2,FALSE),$E30*$I30),"---")) -> 3122.22361 | BM30: =IF($D30="","",IF($BK30="対象",IF(OR($D30="系統電力",$D30="産業用蒸気",$D30="温水",$D30="冷水",$D30="蒸気（産業用以外）"),$F30*VLOOKUP($D30,電力等のGJ換算係数_全体,2,FALSE),$F30*$I30),"---")) -> 0 | BN30: =IF($D30="","",IF($BK30="対象",IF(OR($D30="系統電力",$D30="産業用蒸気",$D30="温水",$D30="冷水",$D30="蒸気（産業用以外）"),$G30*VLOOKUP($D30,電力等のGJ換算係数_全体,2,FALSE),$G30*$I30),"---")) -> 0
A31: 0 | D31: 都市ガス | E31: =SUM($S31:$AD31)+($R31-$AE31)-$AF31 -> 111 | F31: =SUM($AH31:$AS31)+($AG31-$AT31)-$AU31 -> 0 | G31: =SUM($AW31:$BH31)+($AV31-$BI31)-$BJ31 -> 0 | H31: 千Nm3 | I31: 44.2 | J31: GJ/千Nm3 | K31: 0.0513 | L31: t-CO2/GJ | M31: =IF($D31="","",IF($A31=0,$E31*$I31*$K31,$E31*$K31)) -> 251.68806 | N31: =IF($D31="","",IF($A31=0,$F31*$I31*$K31,$F31*$K31)) -> 0 | O31: =IF($D31="","",IF($A31=0,$G31*$I31*$K31,$G31*$K31)) -> 0 | Q31: 使用量 | S31: 9.25 | T31: 9.25 | U31: 9.25 | V31: 9.25 | W31: 9.25 | X31: 9.25 | Y31: 9.25 | Z31: 9.25 | AA31: 9.25 | AB31: 9.25 | AC31: 9.25 | AD31: 9.25 | AG31: 0 | AV31: 0 | BK31: 対象 | BL31: 4906.2 | BM31: 0 | BN31: 0
E32: 0 | F32: 0 | G32: 0 | AG32: 0 | AV32: 0
E33: 0 | F33: 0 | G33: 0 | AG33: 0 | AV33: 0
E34: =SUM($S34:$AD34)+($R34-$AE34)-$AF34 -> 0 | F34: =SUM($AH34:$AS34)+($AG34-$AT34)-$AU34 -> 0 | G34: =SUM($AW34:$BH34)+($AV34-$BI34)-$BJ34 -> 0 | AG34: =AE34 -> 0 | AV34: 0
E35: 0 | F35: 0 | G35: 0 | AG35: 0 | AV35: 0
E36: 0 | F36: 0 | G36: 0 | AG36: 0 | AV36: 0
E37: 0 | F37: 0 | G37: 0 | AG37: 0 | AV37: 0
E38: 0 | F38: 0 | G38: 0 | AG38: 0 | AV38: 0
E39: 0 | F39: 0 | G39: 0 | AG39: 0 | AV39: 0
E40: 0 | F40: 0 | G40: 0 | AG40: 0 | AV40: 0
E41: 0 | F41: 0 | G41: 0 | AG41: 0 | AV41: 0
E42: 0 | F42: 0 | G42: 0 | AG42: 0 | AV42: 0
E43: 0 | F43: 0 | G43: 0 | AG43: 0 | AV43: 0
E44: 0 | F44: 0 | G44: 0 | AG44: 0 | AV44: 0
A45: =IF($I45="",1,0) -> 1 | D45: その他（要：備考欄への詳細記載） | E45: 0 | F45: 0 | G45: 0 | M45: 0 | N45: 0 | O45: 0 | AG45: 0 | AV45: 0 | BL45: --- | BM45: --- | BN45: ---
A46: =IF($I46="",1,0) -> 1 | D46: その他（要：備考欄への詳細記載） | E46: 0 | F46: 0 | G46: 0 | M46: 0 | N46: 0 | O46: 0 | AG46: 0 | AV46: 0 | BL46: --- | BM46: --- | BN46: ---
A47: 1 | D47: その他（要：備考欄への詳細記載） | E47: 0 | F47: 0 | G47: 0 | M47: 0 | N47: 0 | O47: 0 | AG47: 0 | AV47: 0 | BL47: --- | BM47: --- | BN47: ---
A48: 1 | D48: その他（要：備考欄への詳細記載） | E48: 0 | F48: 0 | G48: 0 | M48: 0 | N48: 0 | O48: 0 | AG48: 0 | AV48: 0 | BL48: --- | BM48: --- | BN48: ---
A49: 1 | D49: その他（要：備考欄への詳細記載） | E49: 0 | F49: 0 | G49: 0 | M49: 0 | N49: 0 | O49: 0 | AG49: 0 | AV49: 0 | BL49: --- | BM49: --- | BN49: ---
A50: 1 | D50: その他（要：備考欄への詳細記載） | E50: 0 | F50: 0 | G50: 0 | M50: 0 | N50: 0 | O50: 0 | AG50: 0 | AV50: 0 | BL50: --- | BM50: --- | BN50: ---
A51: 1 | D51: その他（要：備考欄への詳細記載） | E51: 0 | F51: 0 | G51: 0 | M51: 0 | N51: 0 | O51: 0 | AG51: 0 | AV51: 0 | BL51: --- | BM51: --- | BN51: ---
A52: 1 | D52: その他（要：備考欄への詳細記載） | E52: 0 | F52: 0 | G52: 0 | M52: 0 | N52: 0 | O52: 0 | AG52: 0 | AV52: 0 | BL52: --- | BM52: --- | BN52: ---
A53: 1 | D53: その他（要：備考欄への詳細記載） | E53: 0 | F53: 0 | G53: 0 | M53: 0 | N53: 0 | O53: 0 | AG53: 0 | AV53: 0 | BL53: --- | BM53: --- | BN53: ---
A54: =IF($I54="",1,0) -> 1 | D54: その他（要：備考欄への詳細記載） | E54: 0 | F54: 0 | G54: 0 | M54: 0 | N54: 0 | O54: 0 | AG54: 0 | AV54: 0 | BL54: --- | BM54: --- | BN54: ---
B55: 1) 年度開始時点の在庫量・月別の購買量・年度終了時点の在庫量・製品中への注入量は小数点以下を切り捨てずに記入してください。 2) 活動種別が「その他」の場合には、指定されている行を使用し、活動量単位や係数等の必要な情報を入力してください。 3) 記入欄が足りない場合には、下表に記入してください。 | K55: CO2排出量の合計 | M55: =SUM($M$30:$M$54)+SUM($M$62:$M$109) -> 391.1644426 | N55: =SUM($N$30:$N$54)+SUM($N$62:$N$109) -> 0 | O55: =SUM($O$30:$O$54)+SUM($O$62:$O$109) -> 0 | BK55: GJ換算量の合計(b) | BL55: =SUM($BL30:$BL54)+SUM($BL62:$BL109) -> 8028.42361 | BM55: =SUM($BM30:$BM54)+SUM($BM62:$BM109) -> 0 | BN55: =SUM($BN30:$BN54)+SUM($BN62:$BN109) -> 0
K56: エネルギー起源 CO2排出量の合計(a) | M56: =SUMIFS($M30:$M54,$BK30:$BK54,"対象")+SUMIFS($M62:$M109,$BK62:$BK109,"対象") -> 391.1644426 | N56: =SUMIFS($N30:$N54,$BK30:$BK54,"対象")+SUMIFS($N62:$N109,$BK62:$BK109,"対象") -> 0 | O56: =SUMIFS($O30:$O54,$BK30:$BK54,"対象")+SUMIFS($O62:$O109,$BK62:$BK109,"対象") -> 0 | BK56: 脱炭素化指標(a)/(b) | BL56: =IFERROR($M56/$BL55,"---") -> 0.04872244684 | BM56: =IFERROR($N56/$BM55,"---") -> --- | BN56: =IFERROR($O56/$BN55,"---") -> ---
B59: 事業所No. | C59: モニタリング ポイント No. | D59: 活動種別 | E59: 活動量 | I59: 単位発熱量 | K59: CO2排出係数 | M59: CO2排出量[t-CO2] | P59: 備考 | Q59: 活動量 | R59: =$B$23 -> 令和6年度 | AG59: =$B$24 -> 令和7年度 | AV59: =$B$25 -> 令和8年度 | BK59: GJ換算
R60: 月別の購買量 ※「活動量」の単位（I列）と整合するように記入ください。 | AG60: 月別の購買量 ※「活動量」の単位（I列）と整合するように記入ください。 | AV60: 月別の購買量 ※「活動量」の単位（I列）と整合するように記入ください。 | BK60: 対象 | BL60: GJ換算量
E61: =$B$23 -> 令和6年度 | F61: =$B$24 -> 令和7年度 | G61: =$B$25 -> 令和8年度 | H61: 単位 | I61: 係数 | J61: 単位 | K61: 係数 | L61: 単位 | M61: =$B$23 -> 令和6年度 | N61: =$B$24 -> 令和7年度 | O61: =$B$25 -> 令和8年度 | Q61: 把握対象 | R61: 年度開始 時点の 在庫量 | S61: ４月 | T61: ５月 | U61: ６月 | V61: ７月 | W61: ８月 | X61: ９月 | Y61: １０月 | Z61: １１月 | AA61: １２月 | AB61: １月 | AC61: ２月 | AD61: ３月 | AE61: 年度終了 時点の 在庫量 | AF61: 製品中への注入量 | AG61: 年度開始 時点の 在庫量 | AH61: ４月 | AI61: ５月 | AJ61: ６月 | AK61: ７月 | AL61: ８月 | AM61: ９月 | AN61: １０月 | AO61: １１月 | AP61: １２月 | AQ61: １月 | AR61: ２月 | AS61: ３月 | AT61: 年度終了 時点の 在庫量 | AU61: 製品中への注入量 | AV61: 年度開始 時点の 在庫量 | AW61: ４月 | AX61: ５月 | AY61: ６月 | AZ61: ７月 | BA61: ８月 | BB61: ９月 | BC61: １０月 | BD61: １１月 | BE61: １２月 | BF61: １月 | BG61: ２月 | BH61: ３月 | BI61: 年度終了 時点の 在庫量 | BJ61: 製品中への注入量 | BL61: =$B$23 -> 令和6年度 | BM61: =$B$24 -> 令和7年度 | BN61: =$B$25 -> 令和8年度
A62: =IF($D62="","",VLOOKUP($D62,活動の種別と単位_全体,2,FALSE)) ->  | E62: =SUM($S62:$AD62)+($R62-$AE62)-$AF62 -> 0 | F62: =SUM($AH62:$AS62)+($AG62-$AT62)-$AU62 -> 0 | G62: =SUM($AW62:$BH62)+($AV62-$BI62)-$BJ62 -> 0 | H62: =IF($D62="","",VLOOKUP($D62,活動の種別と単位_全体,4,FALSE)) ->  | J62: =IF($D62="","",VLOOKUP($D62,活動の種別と単位_全体,5,FALSE)) ->  | L62: =IF($D62="","",VLOOKUP($D62,活動の種別と単位_全体,6,FALSE)) ->  | M62: =IF($D62="","",IF($A62=0,$E62*$I62*$K62,$E62*$K62)) ->  | N62: =IF($D62="","",IF($A62=0,$F62*$I62*$K62,$F62*$K62)) ->  | O62: =IF($D62="","",IF($A62=0,$G62*$I62*$K62,$G62*$K62)) ->  | Q62: =IF($D62="","",VLOOKUP($D62,活動の種別と単位_全体,3,FALSE)) ->  | AG62: =AE62 -> 0 | AV62: =AT62 -> 0 | BK62: =IF($D62="","",VLOOKUP($D62,活動の種別と単位_全体,7,FALSE)) ->  | BL62: =IF($D62="","",IF($BK62="対象",IF(OR($D62="系統電力",$D62="産業用蒸気",$D62="温水",$D62="冷水",$D62="蒸気（産業用以外）"),$E62*VLOOKUP($D62,電力等のGJ換算係数_全体,2,FALSE),$E62*$I62),"---")) ->  | BM62: =IF($D62="","",IF($BK62="対象",IF(OR($D62="系統電力",$D62="産業用蒸気",$D62="温水",$D62="冷水",$D62="蒸気（産業用以外）"),$F62*VLOOKUP($D62,電力等のGJ換算係数_全体,2,FALSE),$F62*$I62),"---")) ->  | BN62: =IF($D62="","",IF($BK62="対象",IF(OR($D62="系統電力",$D62="産業用蒸気",$D62="温水",$D62="冷水",$D62="蒸気（産業用以外）"),$G62*VLOOKUP($D62,電力等のGJ換算係数_全体,2,FALSE),$G62*$I62),"---")) -> 
E63: =SUM($S63:$AD63)+($R63-$AE63)-$AF63 -> 0 | F63: =SUM($AH63:$AS63)+($AG63-$AT63)-$AU63 -> 0 | G63: =SUM($AW63:$BH63)+($AV63-$BI63)-$BJ63 -> 0 | M63: =IF($D63="","",IF($A63=0,$E63*$I63*$K63,$E63*$K63)) ->  | N63: =IF($D63="","",IF($A63=0,$F63*$I63*$K63,$F63*$K63)) ->  | AG63: 0 | AV63: =AT63 -> 0
E64: 0 | F64: 0 | G64: 0 | AG64: 0 | AV64: 0
E65: 0 | F65: 0 | G65: 0 | AG65: 0 | AV65: 0
E66: 0 | F66: 0 | G66: 0 | AG66: 0 | AV66: 0
E67: 0 | F67: 0 | G67: 0 | AG67: 0 | AV67: 0
E68: 0 | F68: 0 | G68: 0 | AG68: 0 | AV68: 0
E69: 0 | F69: 0 | G69: 0 | AG69: 0 | AV69: 0
E70: 0 | F70: 0 | G70: 0 | AG70: 0 | AV70: 0
E71: 0 | F71: 0 | G71: 0 | AG71: 0 | AV71: 0
E72: 0 | F72: 0 | G72: 0 | AG72: 0 | AV72: 0
E73: 0 | F73: 0 | G73: 0 | AG73: 0 | AV73: 0
E74: 0 | F74: 0 | G74: 0 | AG74: 0 | AV74: 0
E75: 0 | F75: 0 | G75: 0 | AG75: 0 | AV75: 0
E76: 0 | F76: 0 | G76: 0 | AG76: 0 | AV76: 0
E77: 0 | F77: 0 | G77: 0 | AG77: 0 | AV77: 0
E78: 0 | F78: 0 | G78: 0 | AG78: 0 | AV78: 0
E79: 0 | F79: 0 | G79: 0 | AG79: 0 | AV79: 0
E80: 0 | F80: 0 | G80: 0 | AG80: 0 | AV80: 0
E81: 0 | F81: 0 | G81: 0 | AG81: 0 | AV81: 0
E82: 0 | F82: 0 | G82: 0 | AG82: 0 | AV82: 0
E83: 0 | F83: 0 | G83: 0 | AG83: 0 | AV83: 0
E84: 0 | F84: 0 | G84: 0 | AG84: 0 | AV84: 0
E85: 0 | F85: 0 | G85: 0 | AG85: 0 | AV85: 0
E86: 0 | F86: 0 | G86: 0 | AG86: 0 | AV86: 0
E87: 0 | F87: 0 | G87: 0 | AG87: 0 | AV87: 0
E88: 0 | F88: 0 | G88: 0 | AG88: 0 | AV88: 0
E89: 0 | F89: 0 | G89: 0 | AG89: 0 | AV89: 0
E90: 0 | F90: 0 | G90: 0 | AG90: 0 | AV90: 0
E91: 0 | F91: 0 | G91: 0 | AG91: 0 | AV91: 0
E92: 0 | F92: 0 | G92: 0 | AG92: 0 | AV92: 0
E93: 0 | F93: 0 | G93: 0 | AG93: 0 | AV93: 0
E94: 0 | F94: 0 | G94: 0 | AG94: 0 | AV94: 0
E95: 0 | F95: 0 | G95: 0 | AG95: 0 | AV95: 0
E96: 0 | F96: 0 | G96: 0 | AG96: 0 | AV96: 0
E97: 0 | F97: 0 | G97: 0 | AG97: 0 | AV97: 0
E98: 0 | F98: 0 | G98: 0 | AG98: 0 | AV98: 0
E99: 0 | F99: 0 | G99: 0 | AG99: 0 | AV99: 0
E100: 0 | F100: 0 | G100: 0 | AG100: 0 | AV100: 0
E101: 0 | F101: 0 | G101: 0 | AG101: 0 | AV101: 0
E102: 0 | F102: 0 | G102: 0 | AG102: 0 | AV102: 0
E103: 0 | F103: 0 | G103: 0 | AG103: 0 | AV103: 0
E104: 0 | F104: 0 | G104: 0 | AG104: 0 | AV104: 0
E105: 0 | F105: 0 | G105: 0 | AG105: 0 | AV105: 0
E106: 0 | F106: 0 | G106: 0 | AG106: 0 | AV106: 0
E107: 0 | F107: 0 | G107: 0 | AG107: 0 | AV107: 0
E108: 0 | F108: 0 | G108: 0 | AG108: 0 | AV108: 0
E109: 0 | F109: 0 | G109: 0 | M109: =IF($D109="","",IF($A109=0,$E109*$I109*$K109,$E109*$K109)) ->  | N109: =IF($D109="","",IF($A109=0,$F109*$I109*$K109,$F109*$K109)) ->  | O109: =IF($D109="","",IF($A109=0,$G109*$I109*$K109,$G109*$K109)) ->  | AG109: 0 | AV109: 0

Sheet 集計用1_まとめ (hidden)
B2: =MID(CELL("filename",事業報告書まとめ_計画策定支援!A1),FIND("]",CELL("filename",事業報告書まとめ_計画策定支援!A1))+1,LEN(CELL("filename",事業報告書まとめ_計画策定支援!A1)))&"!" -> 事業報告書まとめ_計画策定支援!
H3: L | I3: M | J3: N | K3: O | L3: P | M3: Q | N3: R | O3: S | P3: T | Q3: U | R3: V | S3: W | T3: B | U3: C | V3: L | W3: M | X3: N | Y3: O | Z3: P | AA3: Q | AB3: R | AC3: S | AD3: T | AE3: U | AF3: V | AG3: W | AH3: L | AI3: O | AJ3: P | AK3: R | AL3: S | AM3: U | AN3: V | AP3: AA | AQ3: AB | AR3: AC | AS3: AD | AT3: AE | AU3: AF | AV3: AG | AW3: AH | AX3: AI | BA3: AA | BB3: AB | BC3: AC | BD3: AD | BE3: AE | BF3: AF | BG3: AG | BH3: AH | BI3: AI | BJ3: AA | BK3: AD | BL3: AE | BM3: AF | BN3: AG | BO3: AH | BP3: AI
B4: 【補助事業者情報】 | G4: 【CO2排出量等】 | AO4: 【エネルギー使用量等】
G5: １．設備・機器 | AH5: ２．工場・事業場全体 | AO5: １．設備・機器 | BJ5: ２．工場・事業場全体
H6: CO2排出量、CO2削減量等：合計(t-CO2/年) | T6: CO2排出量、CO2削減量等：個票別(t-CO2/年) | AH6: CO2排出量、CO2削減量（t-CO2/年） | AP6: エネルギー使用量、エネルギー削減量等：合計(GJ換算/年) | AY6: エネルギー使用量、エネルギー削減量等：個票別(GJ換算/年) | BJ6: エネルギー使用量、エネルギー削減量（GJ換算/年）
H7: 計画 | K7: 実績 | V7: 計画 | Y7: 実績 | AI7: 実績 | AP7: 計画 | AS7: 実績 | BA7: 計画 | BD7: 実績 | BK7: 実績
H8: 対策実施前 | I8: 計画 | J8: 目標 | K8: =IF(INDIRECT($B$2&K$3&"16")="","★",INDIRECT($B$2&K$3&"16")) -> 令和6年度 | N8: =IF(INDIRECT($B$2&N$3&"16")="","★",INDIRECT($B$2&N$3&"16")) -> 令和7年度 | Q8: =IF(INDIRECT($B$2&Q$3&"16")="","★",INDIRECT($B$2&Q$3&"16")) -> 令和8年度 | V8: 対策実施前 | W8: 計画 | X8: 目標 | Y8: =IF(INDIRECT($B$2&Y$3&"16")="","★",INDIRECT($B$2&Y$3&"16")) -> 令和6年度 | AB8: =IF(INDIRECT($B$2&AB$3&"16")="","★",INDIRECT($B$2&AB$3&"16")) -> 令和7年度 | AE8: =IF(INDIRECT($B$2&AE$3&"16")="","★",INDIRECT($B$2&AE$3&"16")) -> 令和8年度 | AH8: 基準年度 | AI8: =IF(INDIRECT($B$2&AI$3&"16")="","★",INDIRECT($B$2&AI$3&"16")) -> 令和6年度 | AK8: =IF(INDIRECT($B$2&AK$3&"16")="","★",INDIRECT($B$2&AK$3&"16")) -> 令和7年度 | AM8: =IF(INDIRECT($B$2&AM$3&"16")="","★",INDIRECT($B$2&AM$3&"16")) -> 令和8年度 | AP8: 対策実施前 | AQ8: 計画 | AS8: =IF(INDIRECT($B$2&AS$3&"16")="","★",INDIRECT($B$2&AS$3&"16")) -> 令和6年度 | AU8: =IF(INDIRECT($B$2&AU$3&"16")="","★",INDIRECT($B$2&AU$3&"16")) -> 令和7年度 | AW8: =IF(INDIRECT($B$2&AW$3&"16")="","★",INDIRECT($B$2&AW$3&"16")) -> 令和8年度 | BA8: 対策実施前 | BB8: 計画 | BD8: =IF(INDIRECT($B$2&BD$3&"16")="","★",INDIRECT($B$2&BD$3&"16")) -> 令和6年度 | BF8: =IF(INDIRECT($B$2&BF$3&"16")="","★",INDIRECT($B$2&BF$3&"16")) -> 令和7年度 | BH8: =IF(INDIRECT($B$2&BH$3&"16")="","★",INDIRECT($B$2&BH$3&"16")) -> 令和8年度 | BJ8: 基準年度 | BK8: =IF(INDIRECT($B$2&BK$3&"16")="","★",INDIRECT($B$2&BK$3&"16")) -> 令和6年度 | BM8: =IF(INDIRECT($B$2&BM$3&"16")="","★",INDIRECT($B$2&BM$3&"16")) -> 令和7年度 | BO8: =IF(INDIRECT($B$2&BO$3&"16")="","★",INDIRECT($B$2&BO$3&"16")) -> 令和8年度
B9: 整理番号 | C9: 事業者名（法人名） | D9: 工場・事業場名 | E9: 工場・事業場の業種 | F9: 部門 | G9: 対象設備名 | H9: 排出量 | I9: 排出量 | J9: 削減量 | K9: 排出量 | L9: 削減量 | M9: 削減未達量 | N9: 排出量 | O9: 削減量 | P9: 削減未達量 | Q9: 排出量 | R9: 削減量 | S9: 削減未達量 | T9: 個票 | U9: 対策名称 | V9: 排出量 | W9: 排出量 | X9: 削減量 | Y9: 排出量 | Z9: 削減量 | AA9: 削減未達量 | AB9: 排出量 | AC9: 削減量 | AD9: 削減未達量 | AE9: 排出量 | AF9: 削減量 | AG9: 削減未達量 | AH9: 排出量 | AI9: 排出量 | AJ9: 削減量 | AK9: 排出量 | AL9: 削減量 | AM9: 排出量 | AN9: 削減量 | AO9: 対象設備名 | AP9: 使用量 | AQ9: 使用量 | AR9: 削減量 | AS9: 使用量 | AT9: 削減量 | AU9: 使用量 | AV9: 削減量 | AW9: 使用量 | AX9: 削減量 | AY9: 個票 | AZ9: 対策名称 | BA9: 使用量 | BB9: 使用量 | BC9: 削減量 | BD9: 使用量 | BE9: 削減量 | BF9: 使用量 | BG9: 削減量 | BH9: 使用量 | BI9: 削減量 | BJ9: 使用量 | BK9: 使用量 | BL9: 削減量 | BM9: 使用量 | BN9: 削減量 | BO9: 使用量 | BP9: 削減量
A10: 21 | B10: =IF(INDIRECT($B$2&"H6")="","★",INDIRECT($B$2&"H6")) -> xxxxxxx | C10: =IF(INDIRECT($B$2&"H7")="","★",INDIRECT($B$2&"H7")) -> ○○株式会社 | D10: =IF(INDIRECT($B$2&"H8")="","★",INDIRECT($B$2&"H8")) -> ○○工場 | E10: =IF(INDIRECT($B$2&"H9")="","★",INDIRECT($B$2&"H9")) -> 253 一般産業用機械・装置製造業 | F10: =IF(INDIRECT($B$2&"W9")="","★",INDIRECT($B$2&"W9")) -> 産業 | H10: =IF(INDIRECT($B$2&H$3&"18")="","★",INDIRECT($B$2&H$3&"18")) -> 395.65882 | I10: =IF(INDIRECT($B$2&I$3&"18")="","★",INDIRECT($B$2&I$3&"18")) -> 286.0384476 | J10: =IF(INDIRECT($B$2&J$3&"18")="","★",INDIRECT($B$2&J$3&"18")) -> 109.6203724 | K10: =IF(INDIRECT($B$2&K$3&"18")="","★",INDIRECT($B$2&K$3&"18")) -> 286.55716 | L10: =IF(INDIRECT($B$2&L$3&"18")="","★",INDIRECT($B$2&L$3&"18")) -> 109.10166 | M10: =IF(INDIRECT($B$2&M$3&"18")="","★",INDIRECT($B$2&M$3&"18")) -> 0.51871238 | N10: =IF(INDIRECT($B$2&N$3&"18")="","★",INDIRECT($B$2&N$3&"18")) -> 0 | O10: =IF(INDIRECT($B$2&O$3&"18")="","★",INDIRECT($B$2&O$3&"18")) -> 0 | P10: =IF(INDIRECT($B$2&P$3&"18")="","★",INDIRECT($B$2&P$3&"18")) -> 0 | Q10: =IF(INDIRECT($B$2&Q$3&"18")="","★",INDIRECT($B$2&Q$3&"18")) -> 0 | R10: =IF(INDIRECT($B$2&R$3&"18")="","★",INDIRECT($B$2&R$3&"18")) -> 0 | S10: =IF(INDIRECT($B$2&S$3&"18")="","★",INDIRECT($B$2&S$3&"18")) -> 0 | T10: =IF(INDIRECT($B$2&T$3&$A10)="","★",INDIRECT($B$2&T$3&$A10)) -> 1 | U10: =IF(INDIRECT($B$2&U$3&$A10)="","★",INDIRECT($B$2&U$3&$A10)) -> A重油蒸気ボイラから都市ガス蒸気ボイラへの燃料転換 | V10: =IF(INDIRECT($B$2&V$3&$A10)="","★",INDIRECT($B$2&V$3&$A10)) -> 360.78972 | W10: =IF(INDIRECT($B$2&W$3&$A10)="","★",INDIRECT($B$2&W$3&$A10)) -> 255.0824476 | X10: =IF(INDIRECT($B$2&X$3&$A10)="","★",INDIRECT($B$2&X$3&$A10)) -> 105.7072724 | Y10: =IF(INDIRECT($B$2&Y$3&$A10)="","★",INDIRECT($B$2&Y$3&$A10)) -> 251.68806 | Z10: =IF(INDIRECT($B$2&Z$3&$A10)="","★",INDIRECT($B$2&Z$3&$A10)) -> 109.10166 | AA10: =IF(INDIRECT($B$2&AA$3&$A10)="","★",INDIRECT($B$2&AA$3&$A10)) -> -3.39438762 | AB10: =IF(INDIRECT($B$2&AB$3&$A10)="","★",INDIRECT($B$2&AB$3&$A10)) -> ★ | AC10: =IF(INDIRECT($B$2&AC$3&$A10)="","★",INDIRECT($B$2&AC$3&$A10)) -> --- | AD10: =IF(INDIRECT($B$2&AD$3&$A10)="","★",INDIRECT($B$2&AD$3&$A10)) -> --- | AE10: =IF(INDIRECT($B$2&AE$3&$A10)="","★",INDIRECT($B$2&AE$3&$A10)) -> ★ | AF10: =IF(INDIRECT($B$2&AF$3&$A10)="","★",INDIRECT($B$2&AF$3&$A10)) -> --- | AG10: =IF(INDIRECT($B$2&AG$3&$A10)="","★",INDIRECT($B$2&AG$3&$A10)) -> --- | AH10: =IF(INDIRECT($B$2&AH$3&"37")="","★",INDIRECT($B$2&AH$3&"37")) -> 500.26612 | AI10: =IF(INDIRECT($B$2&AI$3&"37")="","★",INDIRECT($B$2&AI$3&"37")) -> 391.1644426 | AJ10: =IF(INDIRECT($B$2&AJ$3&"37")="","★",INDIRECT($B$2&AJ$3&"37")) -> 109.1016774 | AK10: =IF(INDIRECT($B$2&AK$3&"37")="","★",INDIRECT($B$2&AK$3&"37")) -> 0 | AL10: =IF(INDIRECT($B$2&AL$3&"37")="","★",INDIRECT($B$2&AL$3&"37")) -> 500.26612 | AM10: =IF(INDIRECT($B$2&AM$3&"37")="","★",INDIRECT($B$2&AM$3&"37")) -> 0 | AN10: =IF(INDIRECT($B$2&AN$3&"37")="","★",INDIRECT($B$2&AN$3&"37")) -> 500.26612 | AP10: =IF(INDIRECT($B$2&AP$3&"18")="","★",INDIRECT($B$2&AP$3&"18")) -> 5876.456 | AQ10: =IF(INDIRECT($B$2&AQ$3&"18")="","★",INDIRECT($B$2&AQ$3&"18")) -> 5665.3274 | AR10: =IF(INDIRECT($B$2&AR$3&"18")="","★",INDIRECT($B$2&AR$3&"18")) -> 211.1286 | AS10: =IF(INDIRECT($B$2&AS$3&"18")="","★",INDIRECT($B$2&AS$3&"18")) -> 5686.756 | AT10: =IF(INDIRECT($B$2&AT$3&"18")="","★",INDIRECT($B$2&AT$3&"18")) -> 189.7 | AU10: =IF(INDIRECT($B$2&AU$3&"18")="","★",INDIRECT($B$2&AU$3&"18")) -> 0 | AV10: =IF(INDIRECT($B$2&AV$3&"18")="","★",INDIRECT($B$2&AV$3&"18")) -> 0 | AW10: =IF(INDIRECT($B$2&AW$3&"18")="","★",INDIRECT($B$2&AW$3&"18")) -> 0 | AX10: =IF(INDIRECT($B$2&AX$3&"18")="","★",INDIRECT($B$2&AX$3&"18")) -> 0 | AY10: =IF(T10="★","★",T10) -> 1 | AZ10: =IF(U10="★","★",U10) -> A重油蒸気ボイラから都市ガス蒸気ボイラへの燃料転換 | BA10: =IF(INDIRECT($B$2&BA$3&$A10)="","★",INDIRECT($B$2&BA$3&$A10)) -> 5095.9 | BB10: =IF(INDIRECT($B$2&BB$3&$A10)="","★",INDIRECT($B$2&BB$3&$A10)) -> 4972.3674 | BC10: =IF(INDIRECT($B$2&BC$3&$A10)="","★",INDIRECT($B$2&BC$3&$A10)) -> 123.5326 | BD10: =IF(INDIRECT($B$2&BD$3&$A10)="","★",INDIRECT($B$2&BD$3&$A10)) -> 4906.2 | BE10: =IF(INDIRECT($B$2&BE$3&$A10)="","★",INDIRECT($B$2&BE$3&$A10)) -> 189.7 | BF10: =IF(INDIRECT($B$2&BF$3&$A10)="","★",INDIRECT($B$2&BF$3&$A10)) -> ★ | BG10: =IF(INDIRECT($B$2&BG$3&$A10)="","★",INDIRECT($B$2&BG$3&$A10)) -> --- | BH10: =IF(INDIRECT($B$2&BH$3&$A10)="","★",INDIRECT($B$2&BH$3&$A10)) -> ★ | BI10: =IF(INDIRECT($B$2&BI$3&$A10)="","★",INDIRECT($B$2&BI$3&$A10)) -> --- | BJ10: =IF(INDIRECT($B$2&BJ$3&"37")="","★",INDIRECT($B$2&BJ$3&"37")) -> 8218.124 | BK10: =IF(INDIRECT($B$2&BK$3&"37")="","★",INDIRECT($B$2&BK$3&"37")) -> 8028.42361 | BL10: =IF(INDIRECT($B$2&BL$3&"37")="","★",INDIRECT($B$2&BL$3&"37")) -> 189.7003904 | BM10: =IF(INDIRECT($B$2&BM$3&"37")="","★",INDIRECT($B$2&BM$3&"37")) -> 0 | BN10: =IF(INDIRECT($B$2&BN$3&"37")="","★",INDIRECT($B$2&BN$3&"37")) -> 8218.124 | BO10: =IF(INDIRECT($B$2&BO$3&"37")="","★",INDIRECT($B$2&BO$3&"37")) -> 0 | BP10: =IF(INDIRECT($B$2&BP$3&"37")="","★",INDIRECT($B$2&BP$3&"37")) -> 8218.124
A11: 22 | T11: =IF(INDIRECT($B$2&T$3&$A11)="","★",INDIRECT($B$2&T$3&$A11)) -> 2 | U11: =IF(INDIRECT($B$2&U$3&$A11)="","★",INDIRECT($B$2&U$3&$A11)) -> ボイラ室照明の不要時間帯の消灯 | V11: =IF(INDIRECT($B$2&V$3&$A11)="","★",INDIRECT($B$2&V$3&$A11)) -> 34.8691 | W11: =IF(INDIRECT($B$2&W$3&$A11)="","★",INDIRECT($B$2&W$3&$A11)) -> 30.956 | X11: =IF(INDIRECT($B$2&X$3&$A11)="","★",INDIRECT($B$2&X$3&$A11)) -> 3.9131 | Y11: =IF(INDIRECT($B$2&Y$3&$A11)="","★",INDIRECT($B$2&Y$3&$A11)) -> 34.8691 | Z11: =IF(INDIRECT($B$2&Z$3&$A11)="","★",INDIRECT($B$2&Z$3&$A11)) -> 0 | AA11: =IF(INDIRECT($B$2&AA$3&$A11)="","★",INDIRECT($B$2&AA$3&$A11)) -> 3.9131 | AB11: =IF(INDIRECT($B$2&AB$3&$A11)="","★",INDIRECT($B$2&AB$3&$A11)) -> ★ | AC11: =IF(INDIRECT($B$2&AC$3&$A11)="","★",INDIRECT($B$2&AC$3&$A11)) -> --- | AD11: =IF(INDIRECT($B$2&AD$3&$A11)="","★",INDIRECT($B$2&AD$3&$A11)) -> --- | AE11: =IF(INDIRECT($B$2&AE$3&$A11)="","★",INDIRECT($B$2&AE$3&$A11)) -> ★ | AF11: =IF(INDIRECT($B$2&AF$3&$A11)="","★",INDIRECT($B$2&AF$3&$A11)) -> --- | AG11: =IF(INDIRECT($B$2&AG$3&$A11)="","★",INDIRECT($B$2&AG$3&$A11)) -> --- | AY11: =IF(T11="★","★",T11) -> 2 | AZ11: =IF(U11="★","★",U11) -> ボイラ室照明の不要時間帯の消灯 | BA11: =IF(INDIRECT($B$2&BA$3&$A11)="","★",INDIRECT($B$2&BA$3&$A11)) -> 780.556 | BB11: =IF(INDIRECT($B$2&BB$3&$A11)="","★",INDIRECT($B$2&BB$3&$A11)) -> 692.96 | BC11: =IF(INDIRECT($B$2&BC$3&$A11)="","★",INDIRECT($B$2&BC$3&$A11)) -> 87.596 | BD11: =IF(INDIRECT($B$2&BD$3&$A11)="","★",INDIRECT($B$2&BD$3&$A11)) -> 780.556 | BE11: =IF(INDIRECT($B$2&BE$3&$A11)="","★",INDIRECT($B$2&BE$3&$A11)) -> 0 | BF11: =IF(INDIRECT($B$2&BF$3&$A11)="","★",INDIRECT($B$2&BF$3&$A11)) -> ★ | BG11: =IF(INDIRECT($B$2&BG$3&$A11)="","★",INDIRECT($B$2&BG$3&$A11)) -> --- | BH11: =IF(INDIRECT($B$2&BH$3&$A11)="","★",INDIRECT($B$2&BH$3&$A11)) -> ★ | BI11: =IF(INDIRECT($B$2&BI$3&$A11)="","★",INDIRECT($B$2&BI$3&$A11)) -> ---
A12: 23 | T12: =IF(INDIRECT($B$2&T$3&$A12)="","★",INDIRECT($B$2&T$3&$A12)) -> ★ | U12: =IF(INDIRECT($B$2&U$3&$A12)="","★",INDIRECT($B$2&U$3&$A12)) -> ★ | V12: =IF(INDIRECT($B$2&V$3&$A12)="","★",INDIRECT($B$2&V$3&$A12)) -> ★ | W12: =IF(INDIRECT($B$2&W$3&$A12)="","★",INDIRECT($B$2&W$3&$A12)) -> ★ | X12: =IF(INDIRECT($B$2&X$3&$A12)="","★",INDIRECT($B$2&X$3&$A12)) -> ★ | Y12: =IF(INDIRECT($B$2&Y$3&$A12)="","★",INDIRECT($B$2&Y$3&$A12)) -> ★ | Z12: =IF(INDIRECT($B$2&Z$3&$A12)="","★",INDIRECT($B$2&Z$3&$A12)) -> ★ | AA12: =IF(INDIRECT($B$2&AA$3&$A12)="","★",INDIRECT($B$2&AA$3&$A12)) -> ★ | AB12: =IF(INDIRECT($B$2&AB$3&$A12)="","★",INDIRECT($B$2&AB$3&$A12)) -> ★ | AC12: =IF(INDIRECT($B$2&AC$3&$A12)="","★",INDIRECT($B$2&AC$3&$A12)) -> ★ | AD12: =IF(INDIRECT($B$2&AD$3&$A12)="","★",INDIRECT($B$2&AD$3&$A12)) -> ★ | AE12: =IF(INDIRECT($B$2&AE$3&$A12)="","★",INDIRECT($B$2&AE$3&$A12)) -> ★ | AF12: =IF(INDIRECT($B$2&AF$3&$A12)="","★",INDIRECT($B$2&AF$3&$A12)) -> ★ | AG12: =IF(INDIRECT($B$2&AG$3&$A12)="","★",INDIRECT($B$2&AG$3&$A12)) -> ★ | AY12: ★ | AZ12: ★ | BA12: =IF(INDIRECT($B$2&BA$3&$A12)="","★",INDIRECT($B$2&BA$3&$A12)) -> ★ | BB12: =IF(INDIRECT($B$2&BB$3&$A12)="","★",INDIRECT($B$2&BB$3&$A12)) -> ★ | BC12: =IF(INDIRECT($B$2&BC$3&$A12)="","★",INDIRECT($B$2&BC$3&$A12)) -> ★ | BD12: =IF(INDIRECT($B$2&BD$3&$A12)="","★",INDIRECT($B$2&BD$3&$A12)) -> ★ | BE12: =IF(INDIRECT($B$2&BE$3&$A12)="","★",INDIRECT($B$2&BE$3&$A12)) -> ★ | BF12: =IF(INDIRECT($B$2&BF$3&$A12)="","★",INDIRECT($B$2&BF$3&$A12)) -> ★ | BG12: =IF(INDIRECT($B$2&BG$3&$A12)="","★",INDIRECT($B$2&BG$3&$A12)) -> ★ | BH12: =IF(INDIRECT($B$2&BH$3&$A12)="","★",INDIRECT($B$2&BH$3&$A12)) -> ★ | BI12: =IF(INDIRECT($B$2&BI$3&$A12)="","★",INDIRECT($B$2&BI$3&$A12)) -> ★
A13: 24 | T13: =IF(INDIRECT($B$2&T$3&$A13)="","★",INDIRECT($B$2&T$3&$A13)) -> ★ | U13: =IF(INDIRECT($B$2&U$3&$A13)="","★",INDIRECT($B$2&U$3&$A13)) -> ★ | V13: =IF(INDIRECT($B$2&V$3&$A13)="","★",INDIRECT($B$2&V$3&$A13)) -> ★ | W13: =IF(INDIRECT($B$2&W$3&$A13)="","★",INDIRECT($B$2&W$3&$A13)) -> ★ | X13: =IF(INDIRECT($B$2&X$3&$A13)="","★",INDIRECT($B$2&X$3&$A13)) -> ★ | Y13: =IF(INDIRECT($B$2&Y$3&$A13)="","★",INDIRECT($B$2&Y$3&$A13)) -> ★ | Z13: =IF(INDIRECT($B$2&Z$3&$A13)="","★",INDIRECT($B$2&Z$3&$A13)) -> ★ | AA13: =IF(INDIRECT($B$2&AA$3&$A13)="","★",INDIRECT($B$2&AA$3&$A13)) -> ★ | AB13: =IF(INDIRECT($B$2&AB$3&$A13)="","★",INDIRECT($B$2&AB$3&$A13)) -> ★ | AC13: =IF(INDIRECT($B$2&AC$3&$A13)="","★",INDIRECT($B$2&AC$3&$A13)) -> ★ | AD13: =IF(INDIRECT($B$2&AD$3&$A13)="","★",INDIRECT($B$2&AD$3&$A13)) -> ★ | AE13: =IF(INDIRECT($B$2&AE$3&$A13)="","★",INDIRECT($B$2&AE$3&$A13)) -> ★ | AF13: =IF(INDIRECT($B$2&AF$3&$A13)="","★",INDIRECT($B$2&AF$3&$A13)) -> ★ | AG13: =IF(INDIRECT($B$2&AG$3&$A13)="","★",INDIRECT($B$2&AG$3&$A13)) -> ★ | AY13: ★ | AZ13: ★ | BA13: =IF(INDIRECT($B$2&BA$3&$A13)="","★",INDIRECT($B$2&BA$3&$A13)) -> ★ | BB13: =IF(INDIRECT($B$2&BB$3&$A13)="","★",INDIRECT($B$2&BB$3&$A13)) -> ★ | BC13: =IF(INDIRECT($B$2&BC$3&$A13)="","★",INDIRECT($B$2&BC$3&$A13)) -> ★ | BD13: =IF(INDIRECT($B$2&BD$3&$A13)="","★",INDIRECT($B$2&BD$3&$A13)) -> ★ | BE13: =IF(INDIRECT($B$2&BE$3&$A13)="","★",INDIRECT($B$2&BE$3&$A13)) -> ★ | BF13: =IF(INDIRECT($B$2&BF$3&$A13)="","★",INDIRECT($B$2&BF$3&$A13)) -> ★ | BG13: =IF(INDIRECT($B$2&BG$3&$A13)="","★",INDIRECT($B$2&BG$3&$A13)) -> ★ | BH13: =IF(INDIRECT($B$2&BH$3&$A13)="","★",INDIRECT($B$2&BH$3&$A13)) -> ★ | BI13: =IF(INDIRECT($B$2&BI$3&$A13)="","★",INDIRECT($B$2&BI$3&$A13)) -> ★
A14: 25 | T14: =IF(INDIRECT($B$2&T$3&$A14)="","★",INDIRECT($B$2&T$3&$A14)) -> ★ | U14: =IF(INDIRECT($B$2&U$3&$A14)="","★",INDIRECT($B$2&U$3&$A14)) -> ★ | V14: =IF(INDIRECT($B$2&V$3&$A14)="","★",INDIRECT($B$2&V$3&$A14)) -> ★ | W14: =IF(INDIRECT($B$2&W$3&$A14)="","★",INDIRECT($B$2&W$3&$A14)) -> ★ | X14: =IF(INDIRECT($B$2&X$3&$A14)="","★",INDIRECT($B$2&X$3&$A14)) -> ★ | Y14: =IF(INDIRECT($B$2&Y$3&$A14)="","★",INDIRECT($B$2&Y$3&$A14)) -> ★ | Z14: =IF(INDIRECT($B$2&Z$3&$A14)="","★",INDIRECT($B$2&Z$3&$A14)) -> ★ | AA14: =IF(INDIRECT($B$2&AA$3&$A14)="","★",INDIRECT($B$2&AA$3&$A14)) -> ★ | AB14: =IF(INDIRECT($B$2&AB$3&$A14)="","★",INDIRECT($B$2&AB$3&$A14)) -> ★ | AC14: =IF(INDIRECT($B$2&AC$3&$A14)="","★",INDIRECT($B$2&AC$3&$A14)) -> ★ | AD14: =IF(INDIRECT($B$2&AD$3&$A14)="","★",INDIRECT($B$2&AD$3&$A14)) -> ★ | AE14: =IF(INDIRECT($B$2&AE$3&$A14)="","★",INDIRECT($B$2&AE$3&$A14)) -> ★ | AF14: =IF(INDIRECT($B$2&AF$3&$A14)="","★",INDIRECT($B$2&AF$3&$A14)) -> ★ | AG14: =IF(INDIRECT($B$2&AG$3&$A14)="","★",INDIRECT($B$2&AG$3&$A14)) -> ★ | AY14: ★ | AZ14: ★ | BA14: =IF(INDIRECT($B$2&BA$3&$A14)="","★",INDIRECT($B$2&BA$3&$A14)) -> ★ | BB14: =IF(INDIRECT($B$2&BB$3&$A14)="","★",INDIRECT($B$2&BB$3&$A14)) -> ★ | BC14: =IF(INDIRECT($B$2&BC$3&$A14)="","★",INDIRECT($B$2&BC$3&$A14)) -> ★ | BD14: =IF(INDIRECT($B$2&BD$3&$A14)="","★",INDIRECT($B$2&BD$3&$A14)) -> ★ | BE14: =IF(INDIRECT($B$2&BE$3&$A14)="","★",INDIRECT($B$2&BE$3&$A14)) -> ★ | BF14: =IF(INDIRECT($B$2&BF$3&$A14)="","★",INDIRECT($B$2&BF$3&$A14)) -> ★ | BG14: =IF(INDIRECT($B$2&BG$3&$A14)="","★",INDIRECT($B$2&BG$3&$A14)) -> ★ | BH14: =IF(INDIRECT($B$2&BH$3&$A14)="","★",INDIRECT($B$2&BH$3&$A14)) -> ★ | BI14: =IF(INDIRECT($B$2&BI$3&$A14)="","★",INDIRECT($B$2&BI$3&$A14)) -> ★
A15: 26 | T15: =IF(INDIRECT($B$2&T$3&$A15)="","★",INDIRECT($B$2&T$3&$A15)) -> ★ | U15: =IF(INDIRECT($B$2&U$3&$A15)="","★",INDIRECT($B$2&U$3&$A15)) -> ★ | V15: =IF(INDIRECT($B$2&V$3&$A15)="","★",INDIRECT($B$2&V$3&$A15)) -> ★ | W15: =IF(INDIRECT($B$2&W$3&$A15)="","★",INDIRECT($B$2&W$3&$A15)) -> ★ | X15: =IF(INDIRECT($B$2&X$3&$A15)="","★",INDIRECT($B$2&X$3&$A15)) -> ★ | Y15: =IF(INDIRECT($B$2&Y$3&$A15)="","★",INDIRECT($B$2&Y$3&$A15)) -> ★ | Z15: =IF(INDIRECT($B$2&Z$3&$A15)="","★",INDIRECT($B$2&Z$3&$A15)) -> ★ | AA15: =IF(INDIRECT($B$2&AA$3&$A15)="","★",INDIRECT($B$2&AA$3&$A15)) -> ★ | AB15: =IF(INDIRECT($B$2&AB$3&$A15)="","★",INDIRECT($B$2&AB$3&$A15)) -> ★ | AC15: =IF(INDIRECT($B$2&AC$3&$A15)="","★",INDIRECT($B$2&AC$3&$A15)) -> ★ | AD15: =IF(INDIRECT($B$2&AD$3&$A15)="","★",INDIRECT($B$2&AD$3&$A15)) -> ★ | AE15: =IF(INDIRECT($B$2&AE$3&$A15)="","★",INDIRECT($B$2&AE$3&$A15)) -> ★ | AF15: =IF(INDIRECT($B$2&AF$3&$A15)="","★",INDIRECT($B$2&AF$3&$A15)) -> ★ | AG15: =IF(INDIRECT($B$2&AG$3&$A15)="","★",INDIRECT($B$2&AG$3&$A15)) -> ★ | AY15: ★ | AZ15: ★ | BA15: =IF(INDIRECT($B$2&BA$3&$A15)="","★",INDIRECT($B$2&BA$3&$A15)) -> ★ | BB15: =IF(INDIRECT($B$2&BB$3&$A15)="","★",INDIRECT($B$2&BB$3&$A15)) -> ★ | BC15: =IF(INDIRECT($B$2&BC$3&$A15)="","★",INDIRECT($B$2&BC$3&$A15)) -> ★ | BD15: =IF(INDIRECT($B$2&BD$3&$A15)="","★",INDIRECT($B$2&BD$3&$A15)) -> ★ | BE15: =IF(INDIRECT($B$2&BE$3&$A15)="","★",INDIRECT($B$2&BE$3&$A15)) -> ★ | BF15: =IF(INDIRECT($B$2&BF$3&$A15)="","★",INDIRECT($B$2&BF$3&$A15)) -> ★ | BG15: =IF(INDIRECT($B$2&BG$3&$A15)="","★",INDIRECT($B$2&BG$3&$A15)) -> ★ | BH15: =IF(INDIRECT($B$2&BH$3&$A15)="","★",INDIRECT($B$2&BH$3&$A15)) -> ★ | BI15: =IF(INDIRECT($B$2&BI$3&$A15)="","★",INDIRECT($B$2&BI$3&$A15)) -> ★
A16: 27 | T16: =IF(INDIRECT($B$2&T$3&$A16)="","★",INDIRECT($B$2&T$3&$A16)) -> ★ | U16: =IF(INDIRECT($B$2&U$3&$A16)="","★",INDIRECT($B$2&U$3&$A16)) -> ★ | V16: =IF(INDIRECT($B$2&V$3&$A16)="","★",INDIRECT($B$2&V$3&$A16)) -> ★ | W16: =IF(INDIRECT($B$2&W$3&$A16)="","★",INDIRECT($B$2&W$3&$A16)) -> ★ | X16: =IF(INDIRECT($B$2&X$3&$A16)="","★",INDIRECT($B$2&X$3&$A16)) -> ★ | Y16: =IF(INDIRECT($B$2&Y$3&$A16)="","★",INDIRECT($B$2&Y$3&$A16)) -> ★ | Z16: =IF(INDIRECT($B$2&Z$3&$A16)="","★",INDIRECT($B$2&Z$3&$A16)) -> ★ | AA16: =IF(INDIRECT($B$2&AA$3&$A16)="","★",INDIRECT($B$2&AA$3&$A16)) -> ★ | AB16: =IF(INDIRECT($B$2&AB$3&$A16)="","★",INDIRECT($B$2&AB$3&$A16)) -> ★ | AC16: =IF(INDIRECT($B$2&AC$3&$A16)="","★",INDIRECT($B$2&AC$3&$A16)) -> ★ | AD16: =IF(INDIRECT($B$2&AD$3&$A16)="","★",INDIRECT($B$2&AD$3&$A16)) -> ★ | AE16: =IF(INDIRECT($B$2&AE$3&$A16)="","★",INDIRECT($B$2&AE$3&$A16)) -> ★ | AF16: =IF(INDIRECT($B$2&AF$3&$A16)="","★",INDIRECT($B$2&AF$3&$A16)) -> ★ | AG16: =IF(INDIRECT($B$2&AG$3&$A16)="","★",INDIRECT($B$2&AG$3&$A16)) -> ★ | AY16: ★ | AZ16: ★ | BA16: =IF(INDIRECT($B$2&BA$3&$A16)="","★",INDIRECT($B$2&BA$3&$A16)) -> ★ | BB16: =IF(INDIRECT($B$2&BB$3&$A16)="","★",INDIRECT($B$2&BB$3&$A16)) -> ★ | BC16: =IF(INDIRECT($B$2&BC$3&$A16)="","★",INDIRECT($B$2&BC$3&$A16)) -> ★ | BD16: =IF(INDIRECT($B$2&BD$3&$A16)="","★",INDIRECT($B$2&BD$3&$A16)) -> ★ | BE16: =IF(INDIRECT($B$2&BE$3&$A16)="","★",INDIRECT($B$2&BE$3&$A16)) -> ★ | BF16: =IF(INDIRECT($B$2&BF$3&$A16)="","★",INDIRECT($B$2&BF$3&$A16)) -> ★ | BG16: =IF(INDIRECT($B$2&BG$3&$A16)="","★",INDIRECT($B$2&BG$3&$A16)) -> ★ | BH16: =IF(INDIRECT($B$2&BH$3&$A16)="","★",INDIRECT($B$2&BH$3&$A16)) -> ★ | BI16: =IF(INDIRECT($B$2&BI$3&$A16)="","★",INDIRECT($B$2&BI$3&$A16)) -> ★
A17: 28 | T17: =IF(INDIRECT($B$2&T$3&$A17)="","★",INDIRECT($B$2&T$3&$A17)) -> ★ | U17: =IF(INDIRECT($B$2&U$3&$A17)="","★",INDIRECT($B$2&U$3&$A17)) -> ★ | V17: =IF(INDIRECT($B$2&V$3&$A17)="","★",INDIRECT($B$2&V$3&$A17)) -> ★ | W17: =IF(INDIRECT($B$2&W$3&$A17)="","★",INDIRECT($B$2&W$3&$A17)) -> ★ | X17: =IF(INDIRECT($B$2&X$3&$A17)="","★",INDIRECT($B$2&X$3&$A17)) -> ★ | Y17: =IF(INDIRECT($B$2&Y$3&$A17)="","★",INDIRECT($B$2&Y$3&$A17)) -> ★ | Z17: =IF(INDIRECT($B$2&Z$3&$A17)="","★",INDIRECT($B$2&Z$3&$A17)) -> ★ | AA17: =IF(INDIRECT($B$2&AA$3&$A17)="","★",INDIRECT($B$2&AA$3&$A17)) -> ★ | AB17: =IF(INDIRECT($B$2&AB$3&$A17)="","★",INDIRECT($B$2&AB$3&$A17)) -> ★ | AC17: =IF(INDIRECT($B$2&AC$3&$A17)="","★",INDIRECT($B$2&AC$3&$A17)) -> ★ | AD17: =IF(INDIRECT($B$2&AD$3&$A17)="","★",INDIRECT($B$2&AD$3&$A17)) -> ★ | AE17: =IF(INDIRECT($B$2&AE$3&$A17)="","★",INDIRECT($B$2&AE$3&$A17)) -> ★ | AF17: =IF(INDIRECT($B$2&AF$3&$A17)="","★",INDIRECT($B$2&AF$3&$A17)) -> ★ | AG17: =IF(INDIRECT($B$2&AG$3&$A17)="","★",INDIRECT($B$2&AG$3&$A17)) -> ★ | AY17: ★ | AZ17: ★ | BA17: =IF(INDIRECT($B$2&BA$3&$A17)="","★",INDIRECT($B$2&BA$3&$A17)) -> ★ | BB17: =IF(INDIRECT($B$2&BB$3&$A17)="","★",INDIRECT($B$2&BB$3&$A17)) -> ★ | BC17: =IF(INDIRECT($B$2&BC$3&$A17)="","★",INDIRECT($B$2&BC$3&$A17)) -> ★ | BD17: =IF(INDIRECT($B$2&BD$3&$A17)="","★",INDIRECT($B$2&BD$3&$A17)) -> ★ | BE17: =IF(INDIRECT($B$2&BE$3&$A17)="","★",INDIRECT($B$2&BE$3&$A17)) -> ★ | BF17: =IF(INDIRECT($B$2&BF$3&$A17)="","★",INDIRECT($B$2&BF$3&$A17)) -> ★ | BG17: =IF(INDIRECT($B$2&BG$3&$A17)="","★",INDIRECT($B$2&BG$3&$A17)) -> ★ | BH17: =IF(INDIRECT($B$2&BH$3&$A17)="","★",INDIRECT($B$2&BH$3&$A17)) -> ★ | BI17: =IF(INDIRECT($B$2&BI$3&$A17)="","★",INDIRECT($B$2&BI$3&$A17)) -> ★
A18: 29 | T18: =IF(INDIRECT($B$2&T$3&$A18)="","★",INDIRECT($B$2&T$3&$A18)) -> ★ | U18: =IF(INDIRECT($B$2&U$3&$A18)="","★",INDIRECT($B$2&U$3&$A18)) -> ★ | V18: =IF(INDIRECT($B$2&V$3&$A18)="","★",INDIRECT($B$2&V$3&$A18)) -> ★ | W18: =IF(INDIRECT($B$2&W$3&$A18)="","★",INDIRECT($B$2&W$3&$A18)) -> ★ | X18: =IF(INDIRECT($B$2&X$3&$A18)="","★",INDIRECT($B$2&X$3&$A18)) -> ★ | Y18: =IF(INDIRECT($B$2&Y$3&$A18)="","★",INDIRECT($B$2&Y$3&$A18)) -> ★ | Z18: =IF(INDIRECT($B$2&Z$3&$A18)="","★",INDIRECT($B$2&Z$3&$A18)) -> ★ | AA18: =IF(INDIRECT($B$2&AA$3&$A18)="","★",INDIRECT($B$2&AA$3&$A18)) -> ★ | AB18: =IF(INDIRECT($B$2&AB$3&$A18)="","★",INDIRECT($B$2&AB$3&$A18)) -> ★ | AC18: =IF(INDIRECT($B$2&AC$3&$A18)="","★",INDIRECT($B$2&AC$3&$A18)) -> ★ | AD18: =IF(INDIRECT($B$2&AD$3&$A18)="","★",INDIRECT($B$2&AD$3&$A18)) -> ★ | AE18: =IF(INDIRECT($B$2&AE$3&$A18)="","★",INDIRECT($B$2&AE$3&$A18)) -> ★ | AF18: =IF(INDIRECT($B$2&AF$3&$A18)="","★",INDIRECT($B$2&AF$3&$A18)) -> ★ | AG18: =IF(INDIRECT($B$2&AG$3&$A18)="","★",INDIRECT($B$2&AG$3&$A18)) -> ★ | AY18: ★ | AZ18: ★ | BA18: =IF(INDIRECT($B$2&BA$3&$A18)="","★",INDIRECT($B$2&BA$3&$A18)) -> ★ | BB18: =IF(INDIRECT($B$2&BB$3&$A18)="","★",INDIRECT($B$2&BB$3&$A18)) -> ★ | BC18: =IF(INDIRECT($B$2&BC$3&$A18)="","★",INDIRECT($B$2&BC$3&$A18)) -> ★ | BD18: =IF(INDIRECT($B$2&BD$3&$A18)="","★",INDIRECT($B$2&BD$3&$A18)) -> ★ | BE18: =IF(INDIRECT($B$2&BE$3&$A18)="","★",INDIRECT($B$2&BE$3&$A18)) -> ★ | BF18: =IF(INDIRECT($B$2&BF$3&$A18)="","★",INDIRECT($B$2&BF$3&$A18)) -> ★ | BG18: =IF(INDIRECT($B$2&BG$3&$A18)="","★",INDIRECT($B$2&BG$3&$A18)) -> ★ | BH18: =IF(INDIRECT($B$2&BH$3&$A18)="","★",INDIRECT($B$2&BH$3&$A18)) -> ★ | BI18: =IF(INDIRECT($B$2&BI$3&$A18)="","★",INDIRECT($B$2&BI$3&$A18)) -> ★
A19: 30 | T19: =IF(INDIRECT($B$2&T$3&$A19)="","★",INDIRECT($B$2&T$3&$A19)) -> ★ | U19: =IF(INDIRECT($B$2&U$3&$A19)="","★",INDIRECT($B$2&U$3&$A19)) -> ★ | V19: =IF(INDIRECT($B$2&V$3&$A19)="","★",INDIRECT($B$2&V$3&$A19)) -> ★ | W19: =IF(INDIRECT($B$2&W$3&$A19)="","★",INDIRECT($B$2&W$3&$A19)) -> ★ | X19: =IF(INDIRECT($B$2&X$3&$A19)="","★",INDIRECT($B$2&X$3&$A19)) -> ★ | Y19: =IF(INDIRECT($B$2&Y$3&$A19)="","★",INDIRECT($B$2&Y$3&$A19)) -> ★ | Z19: =IF(INDIRECT($B$2&Z$3&$A19)="","★",INDIRECT($B$2&Z$3&$A19)) -> ★ | AA19: =IF(INDIRECT($B$2&AA$3&$A19)="","★",INDIRECT($B$2&AA$3&$A19)) -> ★ | AB19: =IF(INDIRECT($B$2&AB$3&$A19)="","★",INDIRECT($B$2&AB$3&$A19)) -> ★ | AC19: =IF(INDIRECT($B$2&AC$3&$A19)="","★",INDIRECT($B$2&AC$3&$A19)) -> ★ | AD19: =IF(INDIRECT($B$2&AD$3&$A19)="","★",INDIRECT($B$2&AD$3&$A19)) -> ★ | AE19: =IF(INDIRECT($B$2&AE$3&$A19)="","★",INDIRECT($B$2&AE$3&$A19)) -> ★ | AF19: =IF(INDIRECT($B$2&AF$3&$A19)="","★",INDIRECT($B$2&AF$3&$A19)) -> ★ | AG19: =IF(INDIRECT($B$2&AG$3&$A19)="","★",INDIRECT($B$2&AG$3&$A19)) -> ★ | AY19: ★ | AZ19: ★ | BA19: =IF(INDIRECT($B$2&BA$3&$A19)="","★",INDIRECT($B$2&BA$3&$A19)) -> ★ | BB19: =IF(INDIRECT($B$2&BB$3&$A19)="","★",INDIRECT($B$2&BB$3&$A19)) -> ★ | BC19: =IF(INDIRECT($B$2&BC$3&$A19)="","★",INDIRECT($B$2&BC$3&$A19)) -> ★ | BD19: =IF(INDIRECT($B$2&BD$3&$A19)="","★",INDIRECT($B$2&BD$3&$A19)) -> ★ | BE19: =IF(INDIRECT($B$2&BE$3&$A19)="","★",INDIRECT($B$2&BE$3&$A19)) -> ★ | BF19: =IF(INDIRECT($B$2&BF$3&$A19)="","★",INDIRECT($B$2&BF$3&$A19)) -> ★ | BG19: =IF(INDIRECT($B$2&BG$3&$A19)="","★",INDIRECT($B$2&BG$3&$A19)) -> ★ | BH19: =IF(INDIRECT($B$2&BH$3&$A19)="","★",INDIRECT($B$2&BH$3&$A19)) -> ★ | BI19: =IF(INDIRECT($B$2&BI$3&$A19)="","★",INDIRECT($B$2&BI$3&$A19)) -> ★

Sheet 集計用2_様式16 (hidden)
B2: =MID(CELL("filename",事業報告書まとめ_計画策定支援!$A$1),FIND("]",CELL("filename",事業報告書まとめ_計画策定支援!$A$1))+1,LEN(CELL("filename",事業報告書まとめ_計画策定支援!$A$1)))&"!" -> 事業報告書まとめ_計画策定支援! | C2: =MID(CELL("filename",様式16_令和6年度事業報告書!$A$1),FIND("]",CELL("filename",様式16_令和6年度事業報告書!$A$1))+1,LEN(CELL("filename",様式16_令和6年度事業報告書!$A$1)))&"!" -> 様式16_令和6年度事業報告書! | D2: =MID(CELL("filename",様式16_令和7年度事業報告書!$A$1),FIND("]",CELL("filename",様式16_令和7年度事業報告書!$A$1))+1,LEN(CELL("filename",様式16_令和7年度事業報告書!$A$1)))&"!" -> 様式16_令和7年度事業報告書! | E2: =MID(CELL("filename",様式16_令和8年度事業報告書!$A$1),FIND("]",CELL("filename",様式16_令和8年度事業報告書!$A$1))+1,LEN(CELL("filename",様式16_令和8年度事業報告書!$A$1)))&"!" -> 様式16_令和8年度事業報告書!
B8: 様式16
B10: 様式16
J11: １ 脱炭素化促進計画に記された取組の実施状況・予定 | O11: ２ 事業実施による二酸化炭素排出削減効果について | R11: 本件責任者及び担当者の氏名、連絡先等
D12: 交付日 | G12: 交付番号 | K12: 省CO2型設備更新支援事業への申請状況 | L12: その他の補助事業の利用状況 | N12: 対策実施状況 | O12: 計画二酸化炭素排出量及び実績二酸化炭素排出量 | R12: 代表事業者1 | V12: 代表事業者2
B13: 環境省補助事業ID | C13: GAJ事業番号 | D13: 年 | E13: 月 | F13: 日 | H13: 第～号 | K13: 1＝申請した 2=申請していない | L13: 1＝利用した 2=利用していない | M13: その他補助事業の詳細 | N13: 1=当初の計画どおりに対策を実施した 2=当初の計画から変更があった | O13: 計画二酸化炭素排出量 | P13: 実績二酸化炭素排出量 | Q13: 実績二酸化炭素排出量が計画二酸化炭素排出量を超過した場合の原因 | R13: 責任者の所属部署・職名・氏名 | S13: 担当者の所属部署・職名・氏名 | T13: 電話番号 | U13: メールアドレス | V13: 責任者の所属部署・職名・氏名 | W13: 担当者の所属部署・職名・氏名 | X13: 電話番号 | Y13: メールアドレス
B14: =IF(INDIRECT($C$2&"AD3")="","★",INDIRECT($C$2&"AD3")) -> ★ | C14: =IF(INDIRECT($C$2&"AD4")="","★",INDIRECT($C$2&"AD4")) -> ★ | D14: =IF(INDIRECT($C$2&"C20")="","★",INDIRECT($C$2&"C20")) -> 令和5 | E14: =IF(INDIRECT($C$2&"G20")="","★",INDIRECT($C$2&"G20")) -> ★ | F14: =IF(INDIRECT($C$2&"J20")="","★",INDIRECT($C$2&"J20")) -> ★ | G14: =IF(INDIRECT($C$2&"O20")="","★",INDIRECT($C$2&"O20")) -> ★ | H14: =IF(INDIRECT($C$2&"U20")="","★",INDIRECT($C$2&"U20")) -> ★ | I14: a
I15: b | J15: 令和6年度 | K15: =IF(INDIRECT($C$2&"AR31")="","★",INDIRECT($C$2&"AR31")) -> 0 | L15: =IF(INDIRECT($C$2&"AR35")="","★",INDIRECT($C$2&"AR35")) -> 0 | M15: =IF(INDIRECT($C$2&"F37")="","★",INDIRECT($C$2&"F37")) -> ★ | N15: =IF(INDIRECT($C$2&"AR43")="","★",INDIRECT($C$2&"AR43")) -> 0 | O15: =IF(INDIRECT($C$2&"L49")="","★",INDIRECT($C$2&"L49")) -> 286.0384476 | P15: =IF(INDIRECT($C$2&"L50")="","★",INDIRECT($C$2&"L50")) -> 286.55716 | Q15: =IF(INDIRECT($C$2&"C54")="","★",INDIRECT($C$2&"C54")) -> ★ | R15: =IF(INDIRECT($C$2&"M59")="","★",INDIRECT($C$2&"M59")) -> ○○株式会社 ●●部 部長 △△△△△△ | S15: =IF(INDIRECT($C$2&"M60")="","★",INDIRECT($C$2&"M60")) -> ○○株式会社 ●●部 ▲▲▲▲▲ | T15: =IF(INDIRECT($C$2&"M61")="","★",INDIRECT($C$2&"M61")) -> 123-456-789 | U15: =IF(INDIRECT($C$2&"M62")="","★",INDIRECT($C$2&"M62")) -> ▲▲▲@○○○ | V15: =IF(INDIRECT($C$2&"M64")="","★",INDIRECT($C$2&"M64")) -> ★ | W15: =IF(INDIRECT($C$2&"M65")="","★",INDIRECT($C$2&"M65")) -> ★ | X15: =IF(INDIRECT($C$2&"M66")="","★",INDIRECT($C$2&"M66")) -> ★ | Y15: =IF(INDIRECT($C$2&"M67")="","★",INDIRECT($C$2&"M67")) -> ★
I16: c | J16: 令和7年度 | K16: =IF(INDIRECT($D$2&"AR31")="","★",INDIRECT($D$2&"AR31")) -> 0 | L16: =IF(INDIRECT($D$2&"AR35")="","★",INDIRECT($D$2&"AR35")) -> 0 | M16: =IF(INDIRECT($D$2&"F37")="","★",INDIRECT($D$2&"F37")) -> ★ | N16: =IF(INDIRECT($D$2&"AR43")="","★",INDIRECT($D$2&"AR43")) -> 0 | O16: =IF(INDIRECT($D$2&"L49")="","★",INDIRECT($D$2&"L49")) -> 286.0384476 | P16: =IF(INDIRECT($D$2&"L50")="","★",INDIRECT($D$2&"L50")) -> 0 | Q16: =IF(INDIRECT($D$2&"C54")="","★",INDIRECT($D$2&"C54")) -> ★ | R16: =IF(INDIRECT($D$2&"M59")="","★",INDIRECT($D$2&"M59")) -> ○○株式会社 ●●部 部長 △△△△△△ | S16: =IF(INDIRECT($D$2&"M60")="","★",INDIRECT($D$2&"M60")) -> ○○株式会社 ●●部 ▲▲▲▲▲ | T16: =IF(INDIRECT($D$2&"M61")="","★",INDIRECT($D$2&"M61")) -> 123-456-789 | U16: =IF(INDIRECT($D$2&"M62")="","★",INDIRECT($D$2&"M62")) -> ▲▲▲@○○○ | V16: =IF(INDIRECT($D$2&"M64")="","★",INDIRECT($D$2&"M64")) -> ★ | W16: =IF(INDIRECT($D$2&"M65")="","★",INDIRECT($D$2&"M65")) -> ★ | X16: =IF(INDIRECT($D$2&"M66")="","★",INDIRECT($D$2&"M66")) -> ★ | Y16: =IF(INDIRECT($D$2&"M67")="","★",INDIRECT($D$2&"M67")) -> ★
I17: d | J17: 令和8年度 | K17: =IF(INDIRECT($E$2&"AR31")="","★",INDIRECT($E$2&"AR31")) -> 0 | L17: =IF(INDIRECT($E$2&"AR35")="","★",INDIRECT($E$2&"AR35")) -> 0 | M17: =IF(INDIRECT($E$2&"F37")="","★",INDIRECT($E$2&"F37")) -> ★ | N17: =IF(INDIRECT($E$2&"AR43")="","★",INDIRECT($E$2&"AR43")) -> 0 | O17: =IF(INDIRECT($E$2&"L49")="","★",INDIRECT($E$2&"L49")) -> 286.0384476 | P17: =IF(INDIRECT($E$2&"L50")="","★",INDIRECT($E$2&"L50")) -> 0 | Q17: =IF(INDIRECT($E$2&"C54")="","★",INDIRECT($E$2&"C54")) -> ★ | R17: =IF(INDIRECT($E$2&"M59")="","★",INDIRECT($E$2&"M59")) -> ○○株式会社 ●●部 部長 △△△△△△ | S17: =IF(INDIRECT($E$2&"M60")="","★",INDIRECT($E$2&"M60")) -> ○○株式会社 ●●部 ▲▲▲▲▲ | T17: =IF(INDIRECT($E$2&"M61")="","★",INDIRECT($E$2&"M61")) -> 123-456-789 | U17: =IF(INDIRECT($E$2&"M62")="","★",INDIRECT($E$2&"M62")) -> ▲▲▲@○○○ | V17: =IF(INDIRECT($E$2&"M64")="","★",INDIRECT($E$2&"M64")) -> ★ | W17: =IF(INDIRECT($E$2&"M65")="","★",INDIRECT($E$2&"M65")) -> ★ | X17: =IF(INDIRECT($E$2&"M66")="","★",INDIRECT($E$2&"M66")) -> ★ | Y17: =IF(INDIRECT($E$2&"M67")="","★",INDIRECT($E$2&"M67")) -> ★

Sheet 集計用3_別紙1 (hidden)
B2: =MID(CELL("filename",事業報告書まとめ_計画策定支援!A1),FIND("]",CELL("filename",事業報告書まとめ_計画策定支援!A1))+1,LEN(CELL("filename",事業報告書まとめ_計画策定支援!A1)))&"!" -> 事業報告書まとめ_計画策定支援! | C2: 別紙1_CO2排出量_個票
AG3: TRUE=あり | AI3: TRUE=あり | AK3: TRUE=あり
M4: 25 | V4: 29 | AF4: 34 | AG4: FALSE=なし | AH4: 35 | AI4: FALSE=なし | AJ4: 36 | AK4: FALSE=なし | AN4: 38 | AZ4: 42 | BL4: 46 | BV4: 25 | CC4: 29 | CM4: 38 | CW4: 42 | DG4: 46
M5: C | N5: D | O5: E | P5: F | Q5: G | R5: H | S5: I | T5: J | U5: K | V5: C | W5: D | X5: E | Y5: F | Z5: G | AA5: H | AB5: I | AC5: J | AD5: K | AE5: L | AF5: D | AG5: V | AH5: D | AI5: V | AJ5: D | AK5: V | AN5: C | AO5: D | AP5: E | AQ5: F | AR5: G | AS5: H | AT5: I | AU5: J | AV5: K | AW5: L | AZ5: C | BA5: D | BB5: E | BC5: F | BD5: G | BE5: H | BF5: I | BG5: J | BH5: K | BI5: L | BL5: C | BM5: D | BN5: E | BO5: F | BP5: G | BQ5: H | BR5: I | BS5: J | BT5: K | BU5: L | BV5: O | BW5: D | BX5: E | BY5: P | BZ5: Q | CA5: R | CB5: S | CC5: O | CD5: D | CE5: E | CF5: P | CG5: Q | CH5: R | CI5: S | CJ5: T | CM5: O | CN5: D | CO5: E | CP5: P | CQ5: Q | CR5: R | CS5: S | CT5: T | CW5: O | CX5: D | CY5: E | CZ5: P | DA5: Q | DB5: R | DC5: S | DD5: T | DG5: O | DH5: D | DI5: E | DJ5: P | DK5: Q | DL5: R | DM5: S | DN5: T
D6: 統合した個票番号 | F6: １．対策概要 | L6: ２-１．CO2排出量 | BV6: ２-２．エネルギー使用量 | DO6: ３．CO2排出量の計算式における実績値（年間活動量）の算出根拠
M7: ■計画 | AF7: ■対策実施状況 | AL7: ■実績（対策実施【後】） | BV7: ■計画 | CK7: ■実績（対策実施【後】）
M8: 対策実施【前】 | V8: 対策実施【計画】 | AF8: 令和6年度 | AH8: 令和7年度 | AJ8: 令和8年度 | AL8: 令和6年度 | AX8: 令和7年度 | BJ8: 令和8年度 | BV8: 対策実施【前】 | CC8: 対策実施【計画】 | CK8: 令和6年度 | CU8: 令和7年度 | DE8: 令和8年度 | DO8: 令和6年度 | DQ8: 令和7年度 | DS8: 令和8年度
B9: 整理番号 | C9: 個票番号 | F9: 対策名称 | G9: 対策種類 | H9: 対象システム／設備 | I9: 工程 | J9: 既存設備名称 | K9: 導入設備名称 | M9: 活動種別 | N9: 年間活動量 | P9: 単位発熱量 | R9: CO2排出係数 | T9: CO2排出量 (t-CO2/年) | U9: CO2排出量合計 (t-CO2/年) | V9: 活動種別 | W9: 年間活動量 | Y9: 単位発熱量 | AA9: CO2排出係数 | AC9: CO2排出量 (t-CO2/年) | AD9: CO2排出量合計 (t-CO2/年) | AE9: CO2削減量 (t-CO2/年) | AF9: 対策実施状況 | AG9: 計画変更有無 | AH9: 対策実施状況 | AI9: 計画変更有無 | AJ9: 対策実施状況 | AK9: 計画変更有無 | AL9: 対策実施状況 | AM9: 計画変更有無 | AN9: 活動種別 | AO9: 年間活動量 | AQ9: 単位発熱量 | AS9: CO2排出係数 | AU9: CO2排出量 (t-CO2/年) | AV9: CO2排出量合計 (t-CO2/年) | AW9: CO2削減量 (t-CO2/年) | AX9: 対策実施状況 | AY9: 計画変更有無 | AZ9: 活動種別 | BA9: 年間活動量 | BC9: 単位発熱量 | BE9: CO2排出係数 | BG9: CO2排出量 (t-CO2/年) | BH9: CO2排出量合計 (t-CO2/年) | BI9: CO2削減量 (t-CO2/年) | BJ9: 対策実施状況 | BK9: 計画変更有無 | BL9: 活動種別 | BM9: 年間活動量 | BO9: 単位発熱量 | BQ9: CO2排出係数 | BS9: CO2排出量 (t-CO2/年) | BT9: CO2排出量合計 (t-CO2/年) | BU9: CO2削減量 (t-CO2/年) | BV9: 活動種別 | BW9: 年間活動量 | BY9: 単位発熱量 | CA9: GJ換算量 | CB9: GJ換算量（合計） | CC9: 活動種別 | CD9: 年間活動量 | CF9: 単位発熱量 | CH9: GJ換算量 | CI9: GJ換算量（合計） | CJ9: GJ削減量 (t-CO2/年) | CK9: 対策実施状況 | CL9: 計画変更有無 | CM9: 活動種別 | CN9: 年間活動量 | CP9: 単位発熱量 | CR9: GJ換算量 | CS9: GJ換算量（合計） | CT9: GJ削減量 (t-CO2/年) | CU9: 対策実施状況 | CV9: 計画変更有無 | CW9: 活動種別 | CX9: 年間活動量 | CZ9: 単位発熱量 | DB9: GJ換算量 | DC9: GJ換算量（合計） | DD9: GJ削減量 (t-CO2/年) | DE9: 対策実施状況 | DF9: 計画変更有無 | DG9: 活動種別 | DH9: 年間活動量 | DJ9: 単位発熱量 | DL9: GJ換算量 | DM9: GJ換算量（合計） | DN9: GJ削減量 (t-CO2/年) | DO9: 実績値（活動種別ごとの年間活動量）の算出根拠 | DP9: 備考 | DQ9: 実績値（活動種別ごとの年間活動量）の算出根拠 | DR9: 備考 | DS9: 実績値（活動種別ごとの年間活動量）の算出根拠 | DT9: 備考
B10: =IF(INDIRECT($B$2&"H6")="","★",INDIRECT($B$2&"H6")) -> xxxxxxx | C10: =IF(INDIRECT($B$2&"B21")="","★",INDIRECT($B$2&"B21")) -> 1 | D10: =IF(INDIRECT($C$2&$C10&"!K12")="","★",INDIRECT($C$2&$C10&"!K12")) -> ★ | E10: =IF(INDIRECT($C$2&$C10&"!L12")="","★",INDIRECT($C$2&$C10&"!L12")) -> ★ | F10: =IF(INDIRECT($C$2&$C10&"!D13")="","★",INDIRECT($C$2&$C10&"!D13")) -> A重油蒸気ボイラから都市ガス蒸気ボイラへの燃料転換 | G10: =IF(INDIRECT($C$2&$C10&"!D14")="","★",INDIRECT($C$2&$C10&"!D14")) -> 燃料低炭素化 | H10: =IF(INDIRECT($C$2&$C10&"!D15")="","★",INDIRECT($C$2&$C10&"!D15")) -> 蒸気システム（発生） | I10: =IF(INDIRECT($C$2&$C10&"!D16")="","★",INDIRECT($C$2&$C10&"!D16")) -> 原料加熱 | J10: =IF(INDIRECT($C$2&$C10&"!D17")="","★",INDIRECT($C$2&$C10&"!D17")) -> A重油焚きボイラ | K10: =IF(INDIRECT($C$2&$C10&"!D18")="","★",INDIRECT($C$2&$C10&"!D18")) -> 都市ガス焚きボイラ | L10: =$C10&"-1" -> 1-1 | M10: =IF(INDIRECT($C$2&$C10&"!"&M$5&$M$4)="","★",INDIRECT($C$2&$C10&"!"&M$5&$M$4)) -> A重油 | N10: =IF(INDIRECT($C$2&$C10&"!"&N$5&$M$4)="","★",INDIRECT($C$2&$C10&"!"&N$5&$M$4)) -> 131 | O10: =IF(INDIRECT($C$2&$C10&"!"&O$5&$M$4)="","★",INDIRECT($C$2&$C10&"!"&O$5&$M$4)) -> kl | P10: =IF(INDIRECT($C$2&$C10&"!"&P$5&$M$4)="","★",INDIRECT($C$2&$C10&"!"&P$5&$M$4)) -> 38.9 | Q10: =IF(INDIRECT($C$2&$C10&"!"&Q$5&$M$4)="","★",INDIRECT($C$2&$C10&"!"&Q$5&$M$4)) -> GJ/kl | R10: =IF(INDIRECT($C$2&$C10&"!"&R$5&$M$4)="","★",INDIRECT($C$2&$C10&"!"&R$5&$M$4)) -> 0.0708 | S10: =IF(INDIRECT($C$2&$C10&"!"&S$5&$M$4)="","★",INDIRECT($C$2&$C10&"!"&S$5&$M$4)) -> t-CO2/GJ | T10: =IF(INDIRECT($C$2&$C10&"!"&T$5&$M$4)="","★",INDIRECT($C$2&$C10&"!"&T$5&$M$4)) -> 360.78972 | U10: =IF(INDIRECT($C$2&$C10&"!"&U$5&$M$4)="","★",INDIRECT($C$2&$C10&"!"&U$5&$M$4)) -> 360.78972 | V10: =IF(INDIRECT($C$2&$C10&"!"&V$5&$V$4)="","★",INDIRECT($C$2&$C10&"!"&V$5&$V$4)) -> 都市ガス | W10: =IF(INDIRECT($C$2&$C10&"!"&W$5&$V$4)="","★",INDIRECT($C$2&$C10&"!"&W$5&$V$4)) -> 112.497 | X10: =IF(INDIRECT($C$2&$C10&"!"&X$5&$V$4)="","★",INDIRECT($C$2&$C10&"!"&X$5&$V$4)) -> 千Nm3 | Y10: =IF(INDIRECT($C$2&$C10&"!"&Y$5&$V$4)="","★",INDIRECT($C$2&$C10&"!"&Y$5&$V$4)) -> 44.2 | Z10: =IF(INDIRECT($C$2&$C10&"!"&Z$5&$V$4)="","★",INDIRECT($C$2&$C10&"!"&Z$5&$V$4)) -> GJ/千Nm3 | AA10: =IF(INDIRECT($C$2&$C10&"!"&AA$5&$V$4)="","★",INDIRECT($C$2&$C10&"!"&AA$5&$V$4)) -> 0.0513 | AB10: =IF(INDIRECT($C$2&$C10&"!"&AB$5&$V$4)="","★",INDIRECT($C$2&$C10&"!"&AB$5&$V$4)) -> t-CO2/GJ | AC10: =IF(INDIRECT($C$2&$C10&"!"&AC$5&$V$4)="","★",INDIRECT($C$2&$C10&"!"&AC$5&$V$4)) -> 255.0824476 | AD10: =IF(INDIRECT($C$2&$C10&"!"&AD$5&$V$4)="","★",INDIRECT($C$2&$C10&"!"&AD$5&$V$4)) -> 255.0824476 | AE10: =IF(INDIRECT($C$2&$C10&"!"&AE$5&$V$4)="","★",INDIRECT($C$2&$C10&"!"&AE$5&$V$4)) -> 105.7072724 | AF10: =IF(INDIRECT($C$2&$C10&"!"&AF$5&$AF$4)="","★",INDIRECT($C$2&$C10&"!"&AF$5&$AF$4)) -> 実施済み（CO2削減効果算定） | AG10: =IF(INDIRECT($C$2&$C10&"!"&AG$5&$AF$4)="","★",INDIRECT($C$2&$C10&"!"&AG$5&$AF$4)) -> FALSE | AH10: =IF(INDIRECT($C$2&$C10&"!"&AH$5&$AH$4)="","★",INDIRECT($C$2&$C10&"!"&AH$5&$AH$4)) -> ★ | AI10: =IF(INDIRECT($C$2&$C10&"!"&AI$5&$AH$4)="","★",INDIRECT($C$2&$C10&"!"&AI$5&$AH$4)) -> FALSE | AJ10: =IF(INDIRECT($C$2&$C10&"!"&AJ$5&$AJ$4)="","★",INDIRECT($C$2&$C10&"!"&AJ$5&$AJ$4)) -> ★ | AK10: =IF(INDIRECT($C$2&$C10&"!"&AK$5&$AJ$4)="","★",INDIRECT($C$2&$C10&"!"&AK$5&$AJ$4)) -> FALSE | AL10: =$AF10 -> 実施済み（CO2削減効果算定） | AM10: =$AG10 -> FALSE | AN10: =IF(INDIRECT($C$2&$C10&"!"&AN$5&$AN$4)="","★",INDIRECT($C$2&$C10&"!"&AN$5&$AN$4)) -> 都市ガス | AO10: =IF(INDIRECT($C$2&$C10&"!"&AO$5&$AN$4)="","★",INDIRECT($C$2&$C10&"!"&AO$5&$AN$4)) -> 111 | AP10: =IF(INDIRECT($C$2&$C10&"!"&AP$5&$AN$4)="","★",INDIRECT($C$2&$C10&"!"&AP$5&$AN$4)) -> 千Nm3 | AQ10: =IF(INDIRECT($C$2&$C10&"!"&AQ$5&$AN$4)="","★",INDIRECT($C$2&$C10&"!"&AQ$5&$AN$4)) -> 44.2 | AR10: =IF(INDIRECT($C$2&$C10&"!"&AR$5&$AN$4)="","★",INDIRECT($C$2&$C10&"!"&AR$5&$AN$4)) -> GJ/千Nm3 | AS10: =IF(INDIRECT($C$2&$C10&"!"&AS$5&$AN$4)="","★",INDIRECT($C$2&$C10&"!"&AS$5&$AN$4)) -> 0.0513 | AT10: =IF(INDIRECT($C$2&$C10&"!"&AT$5&$AN$4)="","★",INDIRECT($C$2&$C10&"!"&AT$5&$AN$4)) -> t-CO2/GJ | AU10: =IF(INDIRECT($C$2&$C10&"!"&AU$5&$AN$4)="","★",INDIRECT($C$2&$C10&"!"&AU$5&$AN$4)) -> 251.68806 | AV10: =IF(INDIRECT($C$2&$C10&"!"&AV$5&$AN$4)="","★",INDIRECT($C$2&$C10&"!"&AV$5&$AN$4)) -> 251.68806 | AW10: =IF(INDIRECT($C$2&$C10&"!"&AW$5&$AN$4)="","★",INDIRECT($C$2&$C10&"!"&AW$5&$AN$4)) -> 109.10166 | AX10: =$AH10 -> ★ | AY10: =$AI10 -> FALSE | AZ10: =IF(INDIRECT($C$2&$C10&"!"&AZ$5&$AZ$4)="","★",INDIRECT($C$2&$C10&"!"&AZ$5&$AZ$4)) -> ★ | BA10: =IF(INDIRECT($C$2&$C10&"!"&BA$5&$AZ$4)="","★",INDIRECT($C$2&$C10&"!"&BA$5&$AZ$4)) -> ★ | BB10: =IF(INDIRECT($C$2&$C10&"!"&BB$5&$AZ$4)="","★",INDIRECT($C$2&$C10&"!"&BB$5&$AZ$4)) -> ★ | BC10: =IF(INDIRECT($C$2&$C10&"!"&BC$5&$AZ$4)="","★",INDIRECT($C$2&$C10&"!"&BC$5&$AZ$4)) -> ★ | BD10: =IF(INDIRECT($C$2&$C10&"!"&BD$5&$AZ$4)="","★",INDIRECT($C$2&$C10&"!"&BD$5&$AZ$4)) -> ★ | BE10: =IF(INDIRECT($C$2&$C10&"!"&BE$5&$AZ$4)="","★",INDIRECT($C$2&$C10&"!"&BE$5&$AZ$4)) -> ★ | BF10: =IF(INDIRECT($C$2&$C10&"!"&BF$5&$AZ$4)="","★",INDIRECT($C$2&$C10&"!"&BF$5&$AZ$4)) -> ★ | BG10: =IF(INDIRECT($C$2&$C10&"!"&BG$5&$AZ$4)="","★",INDIRECT($C$2&$C10&"!"&BG$5&$AZ$4)) -> ★ | BH10: =IF(INDIRECT($C$2&$C10&"!"&BH$5&$AZ$4)="","★",INDIRECT($C$2&$C10&"!"&BH$5&$AZ$4)) -> ★ | BI10: =IF(INDIRECT($C$2&$C10&"!"&BI$5&$AZ$4)="","★",INDIRECT($C$2&$C10&"!"&BI$5&$AZ$4)) -> --- | BJ10: =$AJ10 -> ★ | BK10: =$AK10 -> FALSE | BL10: =IF(INDIRECT($C$2&$C10&"!"&BL$5&$BL$4)="","★",INDIRECT($C$2&$C10&"!"&BL$5&$BL$4)) -> ★ | BM10: =IF(INDIRECT($C$2&$C10&"!"&BM$5&$BL$4)="","★",INDIRECT($C$2&$C10&"!"&BM$5&$BL$4)) -> ★ | BN10: =IF(INDIRECT($C$2&$C10&"!"&BN$5&$BL$4)="","★",INDIRECT($C$2&$C10&"!"&BN$5&$BL$4)) -> ★ | BO10: =IF(INDIRECT($C$2&$C10&"!"&BO$5&$BL$4)="","★",INDIRECT($C$2&$C10&"!"&BO$5&$BL$4)) -> ★ | BP10: =IF(INDIRECT($C$2&$C10&"!"&BP$5&$BL$4)="","★",INDIRECT($C$2&$C10&"!"&BP$5&$BL$4)) -> ★ | BQ10: =IF(INDIRECT($C$2&$C10&"!"&BQ$5&$BL$4)="","★",INDIRECT($C$2&$C10&"!"&BQ$5&$BL$4)) -> ★ | BR10: =IF(INDIRECT($C$2&$C10&"!"&BR$5&$BL$4)="","★",INDIRECT($C$2&$C10&"!"&BR$5&$BL$4)) -> ★ | BS10: =IF(INDIRECT($C$2&$C10&"!"&BS$5&$BL$4)="","★",INDIRECT($C$2&$C10&"!"&BS$5&$BL$4)) -> ★ | BT10: =IF(INDIRECT($C$2&$C10&"!"&BT$5&$BL$4)="","★",INDIRECT($C$2&$C10&"!"&BT$5&$BL$4)) -> ★ | BU10: =IF(INDIRECT($C$2&$C10&"!"&BU$5&$BL$4)="","★",INDIRECT($C$2&$C10&"!"&BU$5&$BL$4)) -> --- | BV10: =IF(INDIRECT($C$2&$C10&"!"&BV$5&$BV$4)="","★",INDIRECT($C$2&$C10&"!"&BV$5&$BV$4)) -> A重油 | BW10: =IF(INDIRECT($C$2&$C10&"!"&BW$5&$BV$4)="","★",INDIRECT($C$2&$C10&"!"&BW$5&$BV$4)) -> 131 | BX10: =IF(INDIRECT($C$2&$C10&"!"&BX$5&$BV$4)="","★",INDIRECT($C$2&$C10&"!"&BX$5&$BV$4)) -> kl | BY10: =IF(INDIRECT($C$2&$C10&"!"&BY$5&$BV$4)="","★",INDIRECT($C$2&$C10&"!"&BY$5&$BV$4)) -> 38.9 | BZ10: =IF(INDIRECT($C$2&$C10&"!"&BZ$5&$BV$4)="","★",INDIRECT($C$2&$C10&"!"&BZ$5&$BV$4)) -> GJ/kl | CA10: =IF(INDIRECT($C$2&$C10&"!"&CA$5&$BV$4)="","★",INDIRECT($C$2&$C10&"!"&CA$5&$BV$4)) -> 5095.9 | CB10: =IF(INDIRECT($C$2&$C10&"!"&CB$5&$BV$4)="","★",INDIRECT($C$2&$C10&"!"&CB$5&$BV$4)) -> 5095.9 | CC10: =IF(INDIRECT($C$2&$C10&"!"&CC$5&$CC$4)="","★",INDIRECT($C$2&$C10&"!"&CC$5&$CC$4)) -> 都市ガス | CD10: =IF(INDIRECT($C$2&$C10&"!"&CD$5&$CC$4)="","★",INDIRECT($C$2&$C10&"!"&CD$5&$CC$4)) -> 112.497 | CE10: =IF(INDIRECT($C$2&$C10&"!"&CE$5&$CC$4)="","★",INDIRECT($C$2&$C10&"!"&CE$5&$CC$4)) -> 千Nm3 | CF10: =IF(INDIRECT($C$2&$C10&"!"&CF$5&$CC$4)="","★",INDIRECT($C$2&$C10&"!"&CF$5&$CC$4)) -> 44.2 | CG10: =IF(INDIRECT($C$2&$C10&"!"&CG$5&$CC$4)="","★",INDIRECT($C$2&$C10&"!"&CG$5&$CC$4)) -> GJ/千Nm3 | CH10: =IF(INDIRECT($C$2&$C10&"!"&CH$5&$CC$4)="","★",INDIRECT($C$2&$C10&"!"&CH$5&$CC$4)) -> 4972.3674 | CI10: =IF(INDIRECT($C$2&$C10&"!"&CI$5&$CC$4)="","★",INDIRECT($C$2&$C10&"!"&CI$5&$CC$4)) -> 4972.3674 | CJ10: =IF(INDIRECT($C$2&$C10&"!"&CJ$5&$CC$4)="","★",INDIRECT($C$2&$C10&"!"&CJ$5&$CC$4)) -> 123.5326 | CK10: =$AF10 -> 実施済み（CO2削減効果算定） | CL10: =$AG10 -> FALSE | CM10: =IF(INDIRECT($C$2&$C10&"!"&CM$5&$CM$4)="","★",INDIRECT($C$2&$C10&"!"&CM$5&$CM$4)) -> 都市ガス | CN10: =IF(INDIRECT($C$2&$C10&"!"&CN$5&$CM$4)="","★",INDIRECT($C$2&$C10&"!"&CN$5&$CM$4)) -> 111 | CO10: =IF(INDIRECT($C$2&$C10&"!"&CO$5&$CM$4)="","★",INDIRECT($C$2&$C10&"!"&CO$5&$CM$4)) -> 千Nm3 | CP10: =IF(INDIRECT($C$2&$C10&"!"&CP$5&$CM$4)="","★",INDIRECT($C$2&$C10&"!"&CP$5&$CM$4)) -> 44.2 | CQ10: =IF(INDIRECT($C$2&$C10&"!"&CQ$5&$CM$4)="","★",INDIRECT($C$2&$C10&"!"&CQ$5&$CM$4)) -> GJ/千Nm3 | CR10: =IF(INDIRECT($C$2&$C10&"!"&CR$5&$CM$4)="","★",INDIRECT($C$2&$C10&"!"&CR$5&$CM$4)) -> 4906.2 | CS10: =IF(INDIRECT($C$2&$C10&"!"&CS$5&$CM$4)="","★",INDIRECT($C$2&$C10&"!"&CS$5&$CM$4)) -> 4906.2 | CT10: =IF(INDIRECT($C$2&$C10&"!"&CT$5&$CM$4)="","★",INDIRECT($C$2&$C10&"!"&CT$5&$CM$4)) -> 189.7 | CU10: =$AH10 -> ★ | CV10: =$AI10 -> FALSE | CW10: =IF(INDIRECT($C$2&$C10&"!"&CW$5&$CW$4)="","★",INDIRECT($C$2&$C10&"!"&CW$5&$CW$4)) -> ★ | CX10: =IF(INDIRECT($C$2&$C10&"!"&CX$5&$CW$4)="","★",INDIRECT($C$2&$C10&"!"&CX$5&$CW$4)) -> ★ | CY10: =IF(INDIRECT($C$2&$C10&"!"&CY$5&$CW$4)="","★",INDIRECT($C$2&$C10&"!"&CY$5&$CW$4)) -> ★ | CZ10: =IF(INDIRECT($C$2&$C10&"!"&CZ$5&$CW$4)="","★",INDIRECT($C$2&$C10&"!"&CZ$5&$CW$4)) -> ★ | DA10: =IF(INDIRECT($C$2&$C10&"!"&DA$5&$CW$4)="","★",INDIRECT($C$2&$C10&"!"&DA$5&$CW$4)) -> ★ | DB10: =IF(INDIRECT($C$2&$C10&"!"&DB$5&$CW$4)="","★",INDIRECT($C$2&$C10&"!"&DB$5&$CW$4)) -> ★ | DC10: =IF(INDIRECT($C$2&$C10&"!"&DC$5&$CW$4)="","★",INDIRECT($C$2&$C10&"!"&DC$5&$CW$4)) -> ★ | DD10: =IF(INDIRECT($C$2&$C10&"!"&DD$5&$CW$4)="","★",INDIRECT($C$2&$C10&"!"&DD$5&$CW$4)) -> --- | DE10: =$AJ10 -> ★ | DF10: =$AK10 -> FALSE | DG10: =IF(INDIRECT($C$2&$C10&"!"&DG$5&$DG$4)="","★",INDIRECT($C$2&$C10&"!"&DG$5&$DG$4)) -> ★ | DH10: =IF(INDIRECT($C$2&$C10&"!"&DH$5&$DG$4)="","★",INDIRECT($C$2&$C10&"!"&DH$5&$DG$4)) -> ★ | DI10: =IF(INDIRECT($C$2&$C10&"!"&DI$5&$DG$4)="","★",INDIRECT($C$2&$C10&"!"&DI$5&$DG$4)) -> ★ | DJ10: =IF(INDIRECT($C$2&$C10&"!"&DJ$5&$DG$4)="","★",INDIRECT($C$2&$C10&"!"&DJ$5&$DG$4)) -> ★ | DK10: =IF(INDIRECT($C$2&$C10&"!"&DK$5&$DG$4)="","★",INDIRECT($C$2&$C10&"!"&DK$5&$DG$4)) -> ★ | DL10: =IF(INDIRECT($C$2&$C10&"!"&DL$5&$DG$4)="","★",INDIRECT($C$2&$C10&"!"&DL$5&$DG$4)) -> ★ | DM10: =IF(INDIRECT($C$2&$C10&"!"&DM$5&$DG$4)="","★",INDIRECT($C$2&$C10&"!"&DM$5&$DG$4)) -> ★ | DN10: =IF(INDIRECT($C$2&$C10&"!"&DN$5&$DG$4)="","★",INDIRECT($C$2&$C10&"!"&DN$5&$DG$4)) -> --- | DO10: =IF(INDIRECT($C$2&$C10&"!B57")="","★",INDIRECT($C$2&$C10&"!B57")) -> ★ | DP10: =IF(INDIRECT($C$2&$C10&"!B100")="","★",INDIRECT($C$2&$C10&"!B100")) -> ★ | DQ10: =IF(INDIRECT($C$2&$C10&"!B112")="","★",INDIRECT($C$2&$C10&"!B112")) -> ★ | DR10: =IF(INDIRECT($C$2&$C10&"!B155")="","★",INDIRECT($C$2&$C10&"!B155")) -> ★ | DS10: =IF(INDIRECT($C$2&$C10&"!B167")="","★",INDIRECT($C$2&$C10&"!B167")) -> ★ | DT10: =IF(INDIRECT($C$2&$C10&"!B210")="","★",INDIRECT($C$2&$C10&"!B210")) -> ★
C11: =C10 -> 1 | L11: =$C11&"-2" -> 1-2 | M11: =IF(INDIRECT($C$2&$C11&"!"&M$5&$M$4+1)="","★",INDIRECT($C$2&$C11&"!"&M$5&$M$4+1)) -> ★ | N11: =IF(INDIRECT($C$2&$C11&"!"&N$5&$M$4+1)="","★",INDIRECT($C$2&$C11&"!"&N$5&$M$4+1)) -> ★ | O11: =IF(INDIRECT($C$2&$C11&"!"&O$5&$M$4+1)="","★",INDIRECT($C$2&$C11&"!"&O$5&$M$4+1)) -> ★ | P11: =IF(INDIRECT($C$2&$C11&"!"&P$5&$M$4+1)="","★",INDIRECT($C$2&$C11&"!"&P$5&$M$4+1)) -> ★ | Q11: =IF(INDIRECT($C$2&$C11&"!"&Q$5&$M$4+1)="","★",INDIRECT($C$2&$C11&"!"&Q$5&$M$4+1)) -> ★ | R11: =IF(INDIRECT($C$2&$C11&"!"&R$5&$M$4+1)="","★",INDIRECT($C$2&$C11&"!"&R$5&$M$4+1)) -> ★ | S11: =IF(INDIRECT($C$2&$C11&"!"&S$5&$M$4+1)="","★",INDIRECT($C$2&$C11&"!"&S$5&$M$4+1)) -> ★ | T11: =IF(INDIRECT($C$2&$C11&"!"&T$5&$M$4+1)="","★",INDIRECT($C$2&$C11&"!"&T$5&$M$4+1)) -> ★ | V11: =IF(INDIRECT($C$2&$C11&"!"&V$5&$V$4+1)="","★",INDIRECT($C$2&$C11&"!"&V$5&$V$4+1)) -> ★ | W11: =IF(INDIRECT($C$2&$C11&"!"&W$5&$V$4+1)="","★",INDIRECT($C$2&$C11&"!"&W$5&$V$4+1)) -> ★ | X11: =IF(INDIRECT($C$2&$C11&"!"&X$5&$V$4+1)="","★",INDIRECT($C$2&$C11&"!"&X$5&$V$4+1)) -> ★ | Y11: =IF(INDIRECT($C$2&$C11&"!"&Y$5&$V$4+1)="","★",INDIRECT($C$2&$C11&"!"&Y$5&$V$4+1)) -> ★ | Z11: =IF(INDIRECT($C$2&$C11&"!"&Z$5&$V$4+1)="","★",INDIRECT($C$2&$C11&"!"&Z$5&$V$4+1)) -> ★ | AA11: =IF(INDIRECT($C$2&$C11&"!"&AA$5&$V$4+1)="","★",INDIRECT($C$2&$C11&"!"&AA$5&$V$4+1)) -> ★ | AB11: =IF(INDIRECT($C$2&$C11&"!"&AB$5&$V$4+1)="","★",INDIRECT($C$2&$C11&"!"&AB$5&$V$4+1)) -> ★ | AC11: =IF(INDIRECT($C$2&$C11&"!"&AC$5&$V$4+1)="","★",INDIRECT($C$2&$C11&"!"&AC$5&$V$4+1)) -> ★ | AN11: =IF(INDIRECT($C$2&$C11&"!"&AN$5&$AN$4+1)="","★",INDIRECT($C$2&$C11&"!"&AN$5&$AN$4+1)) -> ★ | AO11: =IF(INDIRECT($C$2&$C11&"!"&AO$5&$AN$4+1)="","★",INDIRECT($C$2&$C11&"!"&AO$5&$AN$4+1)) -> ★ | AP11: =IF(INDIRECT($C$2&$C11&"!"&AP$5&$AN$4+1)="","★",INDIRECT($C$2&$C11&"!"&AP$5&$AN$4+1)) -> ★ | AQ11: =IF(INDIRECT($C$2&$C11&"!"&AQ$5&$AN$4+1)="","★",INDIRECT($C$2&$C11&"!"&AQ$5&$AN$4+1)) -> ★ | AR11: =IF(INDIRECT($C$2&$C11&"!"&AR$5&$AN$4+1)="","★",INDIRECT($C$2&$C11&"!"&AR$5&$AN$4+1)) -> ★ | AS11: =IF(INDIRECT($C$2&$C11&"!"&AS$5&$AN$4+1)="","★",INDIRECT($C$2&$C11&"!"&AS$5&$AN$4+1)) -> ★ | AT11: =IF(INDIRECT($C$2&$C11&"!"&AT$5&$AN$4+1)="","★",INDIRECT($C$2&$C11&"!"&AT$5&$AN$4+1)) -> ★ | AU11: =IF(INDIRECT($C$2&$C11&"!"&AU$5&$AN$4+1)="","★",INDIRECT($C$2&$C11&"!"&AU$5&$AN$4+1)) -> ★ | AZ11: =IF(INDIRECT($C$2&$C11&"!"&AZ$5&$AZ$4+1)="","★",INDIRECT($C$2&$C11&"!"&AZ$5&$AZ$4+1)) -> ★ | BA11: =IF(INDIRECT($C$2&$C11&"!"&BA$5&$AZ$4+1)="","★",INDIRECT($C$2&$C11&"!"&BA$5&$AZ$4+1)) -> ★ | BB11: =IF(INDIRECT($C$2&$C11&"!"&BB$5&$AZ$4+1)="","★",INDIRECT($C$2&$C11&"!"&BB$5&$AZ$4+1)) -> ★ | BC11: =IF(INDIRECT($C$2&$C11&"!"&BC$5&$AZ$4+1)="","★",INDIRECT($C$2&$C11&"!"&BC$5&$AZ$4+1)) -> ★ | BD11: =IF(INDIRECT($C$2&$C11&"!"&BD$5&$AZ$4+1)="","★",INDIRECT($C$2&$C11&"!"&BD$5&$AZ$4+1)) -> ★ | BE11: =IF(INDIRECT($C$2&$C11&"!"&BE$5&$AZ$4+1)="","★",INDIRECT($C$2&$C11&"!"&BE$5&$AZ$4+1)) -> ★ | BF11: =IF(INDIRECT($C$2&$C11&"!"&BF$5&$AZ$4+1)="","★",INDIRECT($C$2&$C11&"!"&BF$5&$AZ$4+1)) -> ★ | BG11: =IF(INDIRECT($C$2&$C11&"!"&BG$5&$AZ$4+1)="","★",INDIRECT($C$2&$C11&"!"&BG$5&$AZ$4+1)) -> ★ | BL11: =IF(INDIRECT($C$2&$C11&"!"&BL$5&$BL$4+1)="","★",INDIRECT($C$2&$C11&"!"&BL$5&$BL$4+1)) -> ★ | BM11: =IF(INDIRECT($C$2&$C11&"!"&BM$5&$BL$4+1)="","★",INDIRECT($C$2&$C11&"!"&BM$5&$BL$4+1)) -> ★ | BN11: =IF(INDIRECT($C$2&$C11&"!"&BN$5&$BL$4+1)="","★",INDIRECT($C$2&$C11&"!"&BN$5&$BL$4+1)) -> ★ | BO11: =IF(INDIRECT($C$2&$C11&"!"&BO$5&$BL$4+1)="","★",INDIRECT($C$2&$C11&"!"&BO$5&$BL$4+1)) -> ★ | BP11: =IF(INDIRECT($C$2&$C11&"!"&BP$5&$BL$4+1)="","★",INDIRECT($C$2&$C11&"!"&BP$5&$BL$4+1)) -> ★ | BQ11: =IF(INDIRECT($C$2&$C11&"!"&BQ$5&$BL$4+1)="","★",INDIRECT($C$2&$C11&"!"&BQ$5&$BL$4+1)) -> ★ | BR11: =IF(INDIRECT($C$2&$C11&"!"&BR$5&$BL$4+1)="","★",INDIRECT($C$2&$C11&"!"&BR$5&$BL$4+1)) -> ★ | BS11: =IF(INDIRECT($C$2&$C11&"!"&BS$5&$BL$4+1)="","★",INDIRECT($C$2&$C11&"!"&BS$5&$BL$4+1)) -> ★ | BV11: =IF(INDIRECT($C$2&$C11&"!"&BV$5&$BV$4+1)="","★",INDIRECT($C$2&$C11&"!"&BV$5&$BV$4+1)) -> ★ | BW11: =IF(INDIRECT($C$2&$C11&"!"&BW$5&$BV$4+1)="","★",INDIRECT($C$2&$C11&"!"&BW$5&$BV$4+1)) -> ★ | BX11: =IF(INDIRECT($C$2&$C11&"!"&BX$5&$BV$4+1)="","★",INDIRECT($C$2&$C11&"!"&BX$5&$BV$4+1)) -> ★ | BY11: =IF(INDIRECT($C$2&$C11&"!"&BY$5&$BV$4+1)="","★",INDIRECT($C$2&$C11&"!"&BY$5&$BV$4+1)) -> ★ | BZ11: =IF(INDIRECT($C$2&$C11&"!"&BZ$5&$BV$4+1)="","★",INDIRECT($C$2&$C11&"!"&BZ$5&$BV$4+1)) -> ★ | CA11: =IF(INDIRECT($C$2&$C11&"!"&CA$5&$BV$4+1)="","★",INDIRECT($C$2&$C11&"!"&CA$5&$BV$4+1)) -> ★ | CC11: =IF(INDIRECT($C$2&$C11&"!"&CC$5&$CC$4+1)="","★",INDIRECT($C$2&$C11&"!"&CC$5&$CC$4+1)) -> ★ | CD11: =IF(INDIRECT($C$2&$C11&"!"&CD$5&$CC$4+1)="","★",INDIRECT($C$2&$C11&"!"&CD$5&$CC$4+1)) -> ★ | CE11: =IF(INDIRECT($C$2&$C11&"!"&CE$5&$CC$4+1)="","★",INDIRECT($C$2&$C11&"!"&CE$5&$CC$4+1)) -> ★ | CF11: =IF(INDIRECT($C$2&$C11&"!"&CF$5&$CC$4+1)="","★",INDIRECT($C$2&$C11&"!"&CF$5&$CC$4+1)) -> ★ | CG11: =IF(INDIRECT($C$2&$C11&"!"&CG$5&$CC$4+1)="","★",INDIRECT($C$2&$C11&"!"&CG$5&$CC$4+1)) -> ★ | CH11: =IF(INDIRECT($C$2&$C11&"!"&CH$5&$CC$4+1)="","★",INDIRECT($C$2&$C11&"!"&CH$5&$CC$4+1)) -> ★ | CM11: =IF(INDIRECT($C$2&$C11&"!"&CM$5&$CM$4+1)="","★",INDIRECT($C$2&$C11&"!"&CM$5&$CM$4+1)) -> ★ | CN11: =IF(INDIRECT($C$2&$C11&"!"&CN$5&$CM$4+1)="","★",INDIRECT($C$2&$C11&"!"&CN$5&$CM$4+1)) -> ★ | CO11: =IF(INDIRECT($C$2&$C11&"!"&CO$5&$CM$4+1)="","★",INDIRECT($C$2&$C11&"!"&CO$5&$CM$4+1)) -> ★ | CP11: =IF(INDIRECT($C$2&$C11&"!"&CP$5&$CM$4+1)="","★",INDIRECT($C$2&$C11&"!"&CP$5&$CM$4+1)) -> ★ | CQ11: =IF(INDIRECT($C$2&$C11&"!"&CQ$5&$CM$4+1)="","★",INDIRECT($C$2&$C11&"!"&CQ$5&$CM$4+1)) -> ★ | CR11: =IF(INDIRECT($C$2&$C11&"!"&CR$5&$CM$4+1)="","★",INDIRECT($C$2&$C11&"!"&CR$5&$CM$4+1)) -> ★ | CW11: =IF(INDIRECT($C$2&$C11&"!"&CW$5&$CW$4+1)="","★",INDIRECT($C$2&$C11&"!"&CW$5&$CW$4+1)) -> ★ | CX11: =IF(INDIRECT($C$2&$C11&"!"&CX$5&$CW$4+1)="","★",INDIRECT($C$2&$C11&"!"&CX$5&$CW$4+1)) -> ★ | CY11: =IF(INDIRECT($C$2&$C11&"!"&CY$5&$CW$4+1)="","★",INDIRECT($C$2&$C11&"!"&CY$5&$CW$4+1)) -> ★ | CZ11: =IF(INDIRECT($C$2&$C11&"!"&CZ$5&$CW$4+1)="","★",INDIRECT($C$2&$C11&"!"&CZ$5&$CW$4+1)) -> ★ | DA11: =IF(INDIRECT($C$2&$C11&"!"&DA$5&$CW$4+1)="","★",INDIRECT($C$2&$C11&"!"&DA$5&$CW$4+1)) -> ★ | DB11: =IF(INDIRECT($C$2&$C11&"!"&DB$5&$CW$4+1)="","★",INDIRECT($C$2&$C11&"!"&DB$5&$CW$4+1)) -> ★ | DG11: =IF(INDIRECT($C$2&$C11&"!"&DG$5&$DG$4+1)="","★",INDIRECT($C$2&$C11&"!"&DG$5&$DG$4+1)) -> ★ | DH11: =IF(INDIRECT($C$2&$C11&"!"&DH$5&$DG$4+1)="","★",INDIRECT($C$2&$C11&"!"&DH$5&$DG$4+1)) -> ★ | DI11: =IF(INDIRECT($C$2&$C11&"!"&DI$5&$DG$4+1)="","★",INDIRECT($C$2&$C11&"!"&DI$5&$DG$4+1)) -> ★ | DJ11: =IF(INDIRECT($C$2&$C11&"!"&DJ$5&$DG$4+1)="","★",INDIRECT($C$2&$C11&"!"&DJ$5&$DG$4+1)) -> ★ | DK11: =IF(INDIRECT($C$2&$C11&"!"&DK$5&$DG$4+1)="","★",INDIRECT($C$2&$C11&"!"&DK$5&$DG$4+1)) -> ★ | DL11: =IF(INDIRECT($C$2&$C11&"!"&DL$5&$DG$4+1)="","★",INDIRECT($C$2&$C11&"!"&DL$5&$DG$4+1)) -> ★
C12: =C11 -> 1 | L12: =$C12&"-3" -> 1-3 | M12: =IF(INDIRECT($C$2&$C12&"!"&M$5&$M$4+2)="","★",INDIRECT($C$2&$C12&"!"&M$5&$M$4+2)) -> ★ | N12: =IF(INDIRECT($C$2&$C12&"!"&N$5&$M$4+2)="","★",INDIRECT($C$2&$C12&"!"&N$5&$M$4+2)) -> ★ | O12: =IF(INDIRECT($C$2&$C12&"!"&O$5&$M$4+2)="","★",INDIRECT($C$2&$C12&"!"&O$5&$M$4+2)) -> ★ | P12: =IF(INDIRECT($C$2&$C12&"!"&P$5&$M$4+2)="","★",INDIRECT($C$2&$C12&"!"&P$5&$M$4+2)) -> ★ | Q12: =IF(INDIRECT($C$2&$C12&"!"&Q$5&$M$4+2)="","★",INDIRECT($C$2&$C12&"!"&Q$5&$M$4+2)) -> ★ | R12: =IF(INDIRECT($C$2&$C12&"!"&R$5&$M$4+2)="","★",INDIRECT($C$2&$C12&"!"&R$5&$M$4+2)) -> ★ | S12: =IF(INDIRECT($C$2&$C12&"!"&S$5&$M$4+2)="","★",INDIRECT($C$2&$C12&"!"&S$5&$M$4+2)) -> ★ | T12: =IF(INDIRECT($C$2&$C12&"!"&T$5&$M$4+2)="","★",INDIRECT($C$2&$C12&"!"&T$5&$M$4+2)) -> ★ | V12: =IF(INDIRECT($C$2&$C12&"!"&V$5&$V$4+2)="","★",INDIRECT($C$2&$C12&"!"&V$5&$V$4+2)) -> ★ | W12: =IF(INDIRECT($C$2&$C12&"!"&W$5&$V$4+2)="","★",INDIRECT($C$2&$C12&"!"&W$5&$V$4+2)) -> ★ | X12: =IF(INDIRECT($C$2&$C12&"!"&X$5&$V$4+2)="","★",INDIRECT($C$2&$C12&"!"&X$5&$V$4+2)) -> ★ | Y12: =IF(INDIRECT($C$2&$C12&"!"&Y$5&$V$4+2)="","★",INDIRECT($C$2&$C12&"!"&Y$5&$V$4+2)) -> ★ | Z12: =IF(INDIRECT($C$2&$C12&"!"&Z$5&$V$4+2)="","★",INDIRECT($C$2&$C12&"!"&Z$5&$V$4+2)) -> ★ | AA12: =IF(INDIRECT($C$2&$C12&"!"&AA$5&$V$4+2)="","★",INDIRECT($C$2&$C12&"!"&AA$5&$V$4+2)) -> ★ | AB12: =IF(INDIRECT($C$2&$C12&"!"&AB$5&$V$4+2)="","★",INDIRECT($C$2&$C12&"!"&AB$5&$V$4+2)) -> ★ | AC12: =IF(INDIRECT($C$2&$C12&"!"&AC$5&$V$4+2)="","★",INDIRECT($C$2&$C12&"!"&AC$5&$V$4+2)) -> ★ | AN12: =IF(INDIRECT($C$2&$C12&"!"&AN$5&$AN$4+2)="","★",INDIRECT($C$2&$C12&"!"&AN$5&$AN$4+2)) -> ★ | AO12: =IF(INDIRECT($C$2&$C12&"!"&AO$5&$AN$4+2)="","★",INDIRECT($C$2&$C12&"!"&AO$5&$AN$4+2)) -> ★ | AP12: =IF(INDIRECT($C$2&$C12&"!"&AP$5&$AN$4+2)="","★",INDIRECT($C$2&$C12&"!"&AP$5&$AN$4+2)) -> ★ | AQ12: =IF(INDIRECT($C$2&$C12&"!"&AQ$5&$AN$4+2)="","★",INDIRECT($C$2&$C12&"!"&AQ$5&$AN$4+2)) -> ★ | AR12: =IF(INDIRECT($C$2&$C12&"!"&AR$5&$AN$4+2)="","★",INDIRECT($C$2&$C12&"!"&AR$5&$AN$4+2)) -> ★ | AS12: =IF(INDIRECT($C$2&$C12&"!"&AS$5&$AN$4+2)="","★",INDIRECT($C$2&$C12&"!"&AS$5&$AN$4+2)) -> ★ | AT12: =IF(INDIRECT($C$2&$C12&"!"&AT$5&$AN$4+2)="","★",INDIRECT($C$2&$C12&"!"&AT$5&$AN$4+2)) -> ★ | AU12: =IF(INDIRECT($C$2&$C12&"!"&AU$5&$AN$4+2)="","★",INDIRECT($C$2&$C12&"!"&AU$5&$AN$4+2)) -> ★ | AZ12: =IF(INDIRECT($C$2&$C12&"!"&AZ$5&$AZ$4+2)="","★",INDIRECT($C$2&$C12&"!"&AZ$5&$AZ$4+2)) -> ★ | BA12: =IF(INDIRECT($C$2&$C12&"!"&BA$5&$AZ$4+2)="","★",INDIRECT($C$2&$C12&"!"&BA$5&$AZ$4+2)) -> ★ | BB12: =IF(INDIRECT($C$2&$C12&"!"&BB$5&$AZ$4+2)="","★",INDIRECT($C$2&$C12&"!"&BB$5&$AZ$4+2)) -> ★ | BC12: =IF(INDIRECT($C$2&$C12&"!"&BC$5&$AZ$4+2)="","★",INDIRECT($C$2&$C12&"!"&BC$5&$AZ$4+2)) -> ★ | BD12: =IF(INDIRECT($C$2&$C12&"!"&BD$5&$AZ$4+2)="","★",INDIRECT($C$2&$C12&"!"&BD$5&$AZ$4+2)) -> ★ | BE12: =IF(INDIRECT($C$2&$C12&"!"&BE$5&$AZ$4+2)="","★",INDIRECT($C$2&$C12&"!"&BE$5&$AZ$4+2)) -> ★ | BF12: =IF(INDIRECT($C$2&$C12&"!"&BF$5&$AZ$4+2)="","★",INDIRECT($C$2&$C12&"!"&BF$5&$AZ$4+2)) -> ★ | BG12: =IF(INDIRECT($C$2&$C12&"!"&BG$5&$AZ$4+2)="","★",INDIRECT($C$2&$C12&"!"&BG$5&$AZ$4+2)) -> ★ | BL12: =IF(INDIRECT($C$2&$C12&"!"&BL$5&$BL$4+2)="","★",INDIRECT($C$2&$C12&"!"&BL$5&$BL$4+2)) -> ★ | BM12: =IF(INDIRECT($C$2&$C12&"!"&BM$5&$BL$4+2)="","★",INDIRECT($C$2&$C12&"!"&BM$5&$BL$4+2)) -> ★ | BN12: =IF(INDIRECT($C$2&$C12&"!"&BN$5&$BL$4+2)="","★",INDIRECT($C$2&$C12&"!"&BN$5&$BL$4+2)) -> ★ | BO12: =IF(INDIRECT($C$2&$C12&"!"&BO$5&$BL$4+2)="","★",INDIRECT($C$2&$C12&"!"&BO$5&$BL$4+2)) -> ★ | BP12: =IF(INDIRECT($C$2&$C12&"!"&BP$5&$BL$4+2)="","★",INDIRECT($C$2&$C12&"!"&BP$5&$BL$4+2)) -> ★ | BQ12: =IF(INDIRECT($C$2&$C12&"!"&BQ$5&$BL$4+2)="","★",INDIRECT($C$2&$C12&"!"&BQ$5&$BL$4+2)) -> ★ | BR12: =IF(INDIRECT($C$2&$C12&"!"&BR$5&$BL$4+2)="","★",INDIRECT($C$2&$C12&"!"&BR$5&$BL$4+2)) -> ★ | BS12: =IF(INDIRECT($C$2&$C12&"!"&BS$5&$BL$4+2)="","★",INDIRECT($C$2&$C12&"!"&BS$5&$BL$4+2)) -> ★ | BV12: =IF(INDIRECT($C$2&$C12&"!"&BV$5&$BV$4+2)="","★",INDIRECT($C$2&$C12&"!"&BV$5&$BV$4+2)) -> ★ | BW12: =IF(INDIRECT($C$2&$C12&"!"&BW$5&$BV$4+2)="","★",INDIRECT($C$2&$C12&"!"&BW$5&$BV$4+2)) -> ★ | BX12: =IF(INDIRECT($C$2&$C12&"!"&BX$5&$BV$4+2)="","★",INDIRECT($C$2&$C12&"!"&BX$5&$BV$4+2)) -> ★ | BY12: =IF(INDIRECT($C$2&$C12&"!"&BY$5&$BV$4+2)="","★",INDIRECT($C$2&$C12&"!"&BY$5&$BV$4+2)) -> ★ | BZ12: =IF(INDIRECT($C$2&$C12&"!"&BZ$5&$BV$4+2)="","★",INDIRECT($C$2&$C12&"!"&BZ$5&$BV$4+2)) -> ★ | CA12: =IF(INDIRECT($C$2&$C12&"!"&CA$5&$BV$4+2)="","★",INDIRECT($C$2&$C12&"!"&CA$5&$BV$4+2)) -> ★ | CC12: =IF(INDIRECT($C$2&$C12&"!"&CC$5&$CC$4+2)="","★",INDIRECT($C$2&$C12&"!"&CC$5&$CC$4+2)) -> ★ | CD12: =IF(INDIRECT($C$2&$C12&"!"&CD$5&$CC$4+2)="","★",INDIRECT($C$2&$C12&"!"&CD$5&$CC$4+2)) -> ★ | CE12: =IF(INDIRECT($C$2&$C12&"!"&CE$5&$CC$4+2)="","★",INDIRECT($C$2&$C12&"!"&CE$5&$CC$4+2)) -> ★ | CF12: =IF(INDIRECT($C$2&$C12&"!"&CF$5&$CC$4+2)="","★",INDIRECT($C$2&$C12&"!"&CF$5&$CC$4+2)) -> ★ | CG12: =IF(INDIRECT($C$2&$C12&"!"&CG$5&$CC$4+2)="","★",INDIRECT($C$2&$C12&"!"&CG$5&$CC$4+2)) -> ★ | CH12: =IF(INDIRECT($C$2&$C12&"!"&CH$5&$CC$4+2)="","★",INDIRECT($C$2&$C12&"!"&CH$5&$CC$4+2)) -> ★ | CM12: =IF(INDIRECT($C$2&$C12&"!"&CM$5&$CM$4+2)="","★",INDIRECT($C$2&$C12&"!"&CM$5&$CM$4+2)) -> ★ | CN12: =IF(INDIRECT($C$2&$C12&"!"&CN$5&$CM$4+2)="","★",INDIRECT($C$2&$C12&"!"&CN$5&$CM$4+2)) -> ★ | CO12: =IF(INDIRECT($C$2&$C12&"!"&CO$5&$CM$4+2)="","★",INDIRECT($C$2&$C12&"!"&CO$5&$CM$4+2)) -> ★ | CP12: =IF(INDIRECT($C$2&$C12&"!"&CP$5&$CM$4+2)="","★",INDIRECT($C$2&$C12&"!"&CP$5&$CM$4+2)) -> ★ | CQ12: =IF(INDIRECT($C$2&$C12&"!"&CQ$5&$CM$4+2)="","★",INDIRECT($C$2&$C12&"!"&CQ$5&$CM$4+2)) -> ★ | CR12: =IF(INDIRECT($C$2&$C12&"!"&CR$5&$CM$4+2)="","★",INDIRECT($C$2&$C12&"!"&CR$5&$CM$4+2)) -> ★ | CW12: =IF(INDIRECT($C$2&$C12&"!"&CW$5&$CW$4+2)="","★",INDIRECT($C$2&$C12&"!"&CW$5&$CW$4+2)) -> ★ | CX12: =IF(INDIRECT($C$2&$C12&"!"&CX$5&$CW$4+2)="","★",INDIRECT($C$2&$C12&"!"&CX$5&$CW$4+2)) -> ★ | CY12: =IF(INDIRECT($C$2&$C12&"!"&CY$5&$CW$4+2)="","★",INDIRECT($C$2&$C12&"!"&CY$5&$CW$4+2)) -> ★ | CZ12: =IF(INDIRECT($C$2&$C12&"!"&CZ$5&$CW$4+2)="","★",INDIRECT($C$2&$C12&"!"&CZ$5&$CW$4+2)) -> ★ | DA12: =IF(INDIRECT($C$2&$C12&"!"&DA$5&$CW$4+2)="","★",INDIRECT($C$2&$C12&"!"&DA$5&$CW$4+2)) -> ★ | DB12: =IF(INDIRECT($C$2&$C12&"!"&DB$5&$CW$4+2)="","★",INDIRECT($C$2&$C12&"!"&DB$5&$CW$4+2)) -> ★ | DG12: =IF(INDIRECT($C$2&$C12&"!"&DG$5&$DG$4+2)="","★",INDIRECT($C$2&$C12&"!"&DG$5&$DG$4+2)) -> ★ | DH12: =IF(INDIRECT($C$2&$C12&"!"&DH$5&$DG$4+2)="","★",INDIRECT($C$2&$C12&"!"&DH$5&$DG$4+2)) -> ★ | DI12: =IF(INDIRECT($C$2&$C12&"!"&DI$5&$DG$4+2)="","★",INDIRECT($C$2&$C12&"!"&DI$5&$DG$4+2)) -> ★ | DJ12: =IF(INDIRECT($C$2&$C12&"!"&DJ$5&$DG$4+2)="","★",INDIRECT($C$2&$C12&"!"&DJ$5&$DG$4+2)) -> ★ | DK12: =IF(INDIRECT($C$2&$C12&"!"&DK$5&$DG$4+2)="","★",INDIRECT($C$2&$C12&"!"&DK$5&$DG$4+2)) -> ★ | DL12: =IF(INDIRECT($C$2&$C12&"!"&DL$5&$DG$4+2)="","★",INDIRECT($C$2&$C12&"!"&DL$5&$DG$4+2)) -> ★
C13: 1 | L13: =$C13&"-4" -> 1-4 | M13: =IF(INDIRECT($C$2&$C13&"!"&M$5&$M$4+3)="","★",INDIRECT($C$2&$C13&"!"&M$5&$M$4+3)) -> ★ | N13: =IF(INDIRECT($C$2&$C13&"!"&N$5&$M$4+3)="","★",INDIRECT($C$2&$C13&"!"&N$5&$M$4+3)) -> ★ | O13: =IF(INDIRECT($C$2&$C13&"!"&O$5&$M$4+3)="","★",INDIRECT($C$2&$C13&"!"&O$5&$M$4+3)) -> ★ | P13: =IF(INDIRECT($C$2&$C13&"!"&P$5&$M$4+3)="","★",INDIRECT($C$2&$C13&"!"&P$5&$M$4+3)) -> ★ | Q13: =IF(INDIRECT($C$2&$C13&"!"&Q$5&$M$4+3)="","★",INDIRECT($C$2&$C13&"!"&Q$5&$M$4+3)) -> ★ | R13: =IF(INDIRECT($C$2&$C13&"!"&R$5&$M$4+3)="","★",INDIRECT($C$2&$C13&"!"&R$5&$M$4+3)) -> ★ | S13: =IF(INDIRECT($C$2&$C13&"!"&S$5&$M$4+3)="","★",INDIRECT($C$2&$C13&"!"&S$5&$M$4+3)) -> ★ | T13: =IF(INDIRECT($C$2&$C13&"!"&T$5&$M$4+3)="","★",INDIRECT($C$2&$C13&"!"&T$5&$M$4+3)) -> ★ | V13: =IF(INDIRECT($C$2&$C13&"!"&V$5&$V$4+3)="","★",INDIRECT($C$2&$C13&"!"&V$5&$V$4+3)) -> ★ | W13: =IF(INDIRECT($C$2&$C13&"!"&W$5&$V$4+3)="","★",INDIRECT($C$2&$C13&"!"&W$5&$V$4+3)) -> ★ | X13: =IF(INDIRECT($C$2&$C13&"!"&X$5&$V$4+3)="","★",INDIRECT($C$2&$C13&"!"&X$5&$V$4+3)) -> ★ | Y13: =IF(INDIRECT($C$2&$C13&"!"&Y$5&$V$4+3)="","★",INDIRECT($C$2&$C13&"!"&Y$5&$V$4+3)) -> ★ | Z13: =IF(INDIRECT($C$2&$C13&"!"&Z$5&$V$4+3)="","★",INDIRECT($C$2&$C13&"!"&Z$5&$V$4+3)) -> ★ | AA13: =IF(INDIRECT($C$2&$C13&"!"&AA$5&$V$4+3)="","★",INDIRECT($C$2&$C13&"!"&AA$5&$V$4+3)) -> ★ | AB13: =IF(INDIRECT($C$2&$C13&"!"&AB$5&$V$4+3)="","★",INDIRECT($C$2&$C13&"!"&AB$5&$V$4+3)) -> ★ | AC13: =IF(INDIRECT($C$2&$C13&"!"&AC$5&$V$4+3)="","★",INDIRECT($C$2&$C13&"!"&AC$5&$V$4+3)) -> ★ | AN13: =IF(INDIRECT($C$2&$C13&"!"&AN$5&$AN$4+3)="","★",INDIRECT($C$2&$C13&"!"&AN$5&$AN$4+3)) -> ★ | AO13: =IF(INDIRECT($C$2&$C13&"!"&AO$5&$AN$4+3)="","★",INDIRECT($C$2&$C13&"!"&AO$5&$AN$4+3)) -> ★ | AP13: =IF(INDIRECT($C$2&$C13&"!"&AP$5&$AN$4+3)="","★",INDIRECT($C$2&$C13&"!"&AP$5&$AN$4+3)) -> ★ | AQ13: =IF(INDIRECT($C$2&$C13&"!"&AQ$5&$AN$4+3)="","★",INDIRECT($C$2&$C13&"!"&AQ$5&$AN$4+3)) -> ★ | AR13: =IF(INDIRECT($C$2&$C13&"!"&AR$5&$AN$4+3)="","★",INDIRECT($C$2&$C13&"!"&AR$5&$AN$4+3)) -> ★ | AS13: =IF(INDIRECT($C$2&$C13&"!"&AS$5&$AN$4+3)="","★",INDIRECT($C$2&$C13&"!"&AS$5&$AN$4+3)) -> ★ | AT13: =IF(INDIRECT($C$2&$C13&"!"&AT$5&$AN$4+3)="","★",INDIRECT($C$2&$C13&"!"&AT$5&$AN$4+3)) -> ★ | AU13: =IF(INDIRECT($C$2&$C13&"!"&AU$5&$AN$4+3)="","★",INDIRECT($C$2&$C13&"!"&AU$5&$AN$4+3)) -> ★ | AZ13: =IF(INDIRECT($C$2&$C13&"!"&AZ$5&$AZ$4+3)="","★",INDIRECT($C$2&$C13&"!"&AZ$5&$AZ$4+3)) -> ★ | BA13: =IF(INDIRECT($C$2&$C13&"!"&BA$5&$AZ$4+3)="","★",INDIRECT($C$2&$C13&"!"&BA$5&$AZ$4+3)) -> ★ | BB13: =IF(INDIRECT($C$2&$C13&"!"&BB$5&$AZ$4+3)="","★",INDIRECT($C$2&$C13&"!"&BB$5&$AZ$4+3)) -> ★ | BC13: =IF(INDIRECT($C$2&$C13&"!"&BC$5&$AZ$4+3)="","★",INDIRECT($C$2&$C13&"!"&BC$5&$AZ$4+3)) -> ★ | BD13: =IF(INDIRECT($C$2&$C13&"!"&BD$5&$AZ$4+3)="","★",INDIRECT($C$2&$C13&"!"&BD$5&$AZ$4+3)) -> ★ | BE13: =IF(INDIRECT($C$2&$C13&"!"&BE$5&$AZ$4+3)="","★",INDIRECT($C$2&$C13&"!"&BE$5&$AZ$4+3)) -> ★ | BF13: =IF(INDIRECT($C$2&$C13&"!"&BF$5&$AZ$4+3)="","★",INDIRECT($C$2&$C13&"!"&BF$5&$AZ$4+3)) -> ★ | BG13: =IF(INDIRECT($C$2&$C13&"!"&BG$5&$AZ$4+3)="","★",INDIRECT($C$2&$C13&"!"&BG$5&$AZ$4+3)) -> ★ | BL13: =IF(INDIRECT($C$2&$C13&"!"&BL$5&$BL$4+3)="","★",INDIRECT($C$2&$C13&"!"&BL$5&$BL$4+3)) -> ★ | BM13: =IF(INDIRECT($C$2&$C13&"!"&BM$5&$BL$4+3)="","★",INDIRECT($C$2&$C13&"!"&BM$5&$BL$4+3)) -> ★ | BN13: =IF(INDIRECT($C$2&$C13&"!"&BN$5&$BL$4+3)="","★",INDIRECT($C$2&$C13&"!"&BN$5&$BL$4+3)) -> ★ | BO13: =IF(INDIRECT($C$2&$C13&"!"&BO$5&$BL$4+3)="","★",INDIRECT($C$2&$C13&"!"&BO$5&$BL$4+3)) -> ★ | BP13: =IF(INDIRECT($C$2&$C13&"!"&BP$5&$BL$4+3)="","★",INDIRECT($C$2&$C13&"!"&BP$5&$BL$4+3)) -> ★ | BQ13: =IF(INDIRECT($C$2&$C13&"!"&BQ$5&$BL$4+3)="","★",INDIRECT($C$2&$C13&"!"&BQ$5&$BL$4+3)) -> ★ | BR13: =IF(INDIRECT($C$2&$C13&"!"&BR$5&$BL$4+3)="","★",INDIRECT($C$2&$C13&"!"&BR$5&$BL$4+3)) -> ★ | BS13: =IF(INDIRECT($C$2&$C13&"!"&BS$5&$BL$4+3)="","★",INDIRECT($C$2&$C13&"!"&BS$5&$BL$4+3)) -> ★ | BV13: =IF(INDIRECT($C$2&$C13&"!"&BV$5&$BV$4+3)="","★",INDIRECT($C$2&$C13&"!"&BV$5&$BV$4+3)) -> ★ | BW13: =IF(INDIRECT($C$2&$C13&"!"&BW$5&$BV$4+3)="","★",INDIRECT($C$2&$C13&"!"&BW$5&$BV$4+3)) -> ★ | BX13: =IF(INDIRECT($C$2&$C13&"!"&BX$5&$BV$4+3)="","★",INDIRECT($C$2&$C13&"!"&BX$5&$BV$4+3)) -> ★ | BY13: =IF(INDIRECT($C$2&$C13&"!"&BY$5&$BV$4+3)="","★",INDIRECT($C$2&$C13&"!"&BY$5&$BV$4+3)) -> ★ | BZ13: =IF(INDIRECT($C$2&$C13&"!"&BZ$5&$BV$4+3)="","★",INDIRECT($C$2&$C13&"!"&BZ$5&$BV$4+3)) -> ★ | CA13: =IF(INDIRECT($C$2&$C13&"!"&CA$5&$BV$4+3)="","★",INDIRECT($C$2&$C13&"!"&CA$5&$BV$4+3)) -> ★ | CC13: =IF(INDIRECT($C$2&$C13&"!"&CC$5&$CC$4+3)="","★",INDIRECT($C$2&$C13&"!"&CC$5&$CC$4+3)) -> ★ | CD13: =IF(INDIRECT($C$2&$C13&"!"&CD$5&$CC$4+3)="","★",INDIRECT($C$2&$C13&"!"&CD$5&$CC$4+3)) -> ★ | CE13: =IF(INDIRECT($C$2&$C13&"!"&CE$5&$CC$4+3)="","★",INDIRECT($C$2&$C13&"!"&CE$5&$CC$4+3)) -> ★ | CF13: =IF(INDIRECT($C$2&$C13&"!"&CF$5&$CC$4+3)="","★",INDIRECT($C$2&$C13&"!"&CF$5&$CC$4+3)) -> ★ | CG13: =IF(INDIRECT($C$2&$C13&"!"&CG$5&$CC$4+3)="","★",INDIRECT($C$2&$C13&"!"&CG$5&$CC$4+3)) -> ★ | CH13: =IF(INDIRECT($C$2&$C13&"!"&CH$5&$CC$4+3)="","★",INDIRECT($C$2&$C13&"!"&CH$5&$CC$4+3)) -> ★ | CM13: =IF(INDIRECT($C$2&$C13&"!"&CM$5&$CM$4+3)="","★",INDIRECT($C$2&$C13&"!"&CM$5&$CM$4+3)) -> ★ | CN13: =IF(INDIRECT($C$2&$C13&"!"&CN$5&$CM$4+3)="","★",INDIRECT($C$2&$C13&"!"&CN$5&$CM$4+3)) -> ★ | CO13: =IF(INDIRECT($C$2&$C13&"!"&CO$5&$CM$4+3)="","★",INDIRECT($C$2&$C13&"!"&CO$5&$CM$4+3)) -> ★ | CP13: =IF(INDIRECT($C$2&$C13&"!"&CP$5&$CM$4+3)="","★",INDIRECT($C$2&$C13&"!"&CP$5&$CM$4+3)) -> ★ | CQ13: =IF(INDIRECT($C$2&$C13&"!"&CQ$5&$CM$4+3)="","★",INDIRECT($C$2&$C13&"!"&CQ$5&$CM$4+3)) -> ★ | CR13: =IF(INDIRECT($C$2&$C13&"!"&CR$5&$CM$4+3)="","★",INDIRECT($C$2&$C13&"!"&CR$5&$CM$4+3)) -> ★ | CW13: =IF(INDIRECT($C$2&$C13&"!"&CW$5&$CW$4+3)="","★",INDIRECT($C$2&$C13&"!"&CW$5&$CW$4+3)) -> ★ | CX13: =IF(INDIRECT($C$2&$C13&"!"&CX$5&$CW$4+3)="","★",INDIRECT($C$2&$C13&"!"&CX$5&$CW$4+3)) -> ★ | CY13: =IF(INDIRECT($C$2&$C13&"!"&CY$5&$CW$4+3)="","★",INDIRECT($C$2&$C13&"!"&CY$5&$CW$4+3)) -> ★ | CZ13: =IF(INDIRECT($C$2&$C13&"!"&CZ$5&$CW$4+3)="","★",INDIRECT($C$2&$C13&"!"&CZ$5&$CW$4+3)) -> ★ | DA13: =IF(INDIRECT($C$2&$C13&"!"&DA$5&$CW$4+3)="","★",INDIRECT($C$2&$C13&"!"&DA$5&$CW$4+3)) -> ★ | DB13: =IF(INDIRECT($C$2&$C13&"!"&DB$5&$CW$4+3)="","★",INDIRECT($C$2&$C13&"!"&DB$5&$CW$4+3)) -> ★ | DG13: =IF(INDIRECT($C$2&$C13&"!"&DG$5&$DG$4+3)="","★",INDIRECT($C$2&$C13&"!"&DG$5&$DG$4+3)) -> ★ | DH13: =IF(INDIRECT($C$2&$C13&"!"&DH$5&$DG$4+3)="","★",INDIRECT($C$2&$C13&"!"&DH$5&$DG$4+3)) -> ★ | DI13: =IF(INDIRECT($C$2&$C13&"!"&DI$5&$DG$4+3)="","★",INDIRECT($C$2&$C13&"!"&DI$5&$DG$4+3)) -> ★ | DJ13: =IF(INDIRECT($C$2&$C13&"!"&DJ$5&$DG$4+3)="","★",INDIRECT($C$2&$C13&"!"&DJ$5&$DG$4+3)) -> ★ | DK13: =IF(INDIRECT($C$2&$C13&"!"&DK$5&$DG$4+3)="","★",INDIRECT($C$2&$C13&"!"&DK$5&$DG$4+3)) -> ★ | DL13: =IF(INDIRECT($C$2&$C13&"!"&DL$5&$DG$4+3)="","★",INDIRECT($C$2&$C13&"!"&DL$5&$DG$4+3)) -> ★
C14: =IF(INDIRECT($B$2&"B22")="","★",INDIRECT($B$2&"B22")) -> 2 | D14: =IF(INDIRECT($C$2&$C14&"!K12")="","★",INDIRECT($C$2&$C14&"!K12")) -> ★ | E14: =IF(INDIRECT($C$2&$C14&"!L12")="","★",INDIRECT($C$2&$C14&"!L12")) -> ★ | F14: =IF(INDIRECT($C$2&$C14&"!D13")="","★",INDIRECT($C$2&$C14&"!D13")) -> ボイラ室照明の不要時間帯の消灯 | G14: =IF(INDIRECT($C$2&$C14&"!D14")="","★",INDIRECT($C$2&$C14&"!D14")) -> 運用改善 | H14: =IF(INDIRECT($C$2&$C14&"!D15")="","★",INDIRECT($C$2&$C14&"!D15")) -> 照明設備 | I14: =IF(INDIRECT($C$2&$C14&"!D16")="","★",INDIRECT($C$2&$C14&"!D16")) -> 照明 | J14: =IF(INDIRECT($C$2&$C14&"!D17")="","★",INDIRECT($C$2&$C14&"!D17")) -> 照明設備 | K14: =IF(INDIRECT($C$2&$C14&"!D18")="","★",INDIRECT($C$2&$C14&"!D18")) -> ★ | L14: =$C14&"-1" -> 2-1 | M14: =IF(INDIRECT($C$2&$C14&"!"&M$5&$M$4)="","★",INDIRECT($C$2&$C14&"!"&M$5&$M$4)) -> 系統電力① | N14: =IF(INDIRECT($C$2&$C14&"!"&N$5&$M$4)="","★",INDIRECT($C$2&$C14&"!"&N$5&$M$4)) -> 79975 | O14: =IF(INDIRECT($C$2&$C14&"!"&O$5&$M$4)="","★",INDIRECT($C$2&$C14&"!"&O$5&$M$4)) -> kWh | P14: =IF(INDIRECT($C$2&$C14&"!"&P$5&$M$4)="","★",INDIRECT($C$2&$C14&"!"&P$5&$M$4)) -> ★ | Q14: =IF(INDIRECT($C$2&$C14&"!"&Q$5&$M$4)="","★",INDIRECT($C$2&$C14&"!"&Q$5&$M$4)) -> --- | R14: =IF(INDIRECT($C$2&$C14&"!"&R$5&$M$4)="","★",INDIRECT($C$2&$C14&"!"&R$5&$M$4)) -> 0.000436 | S14: =IF(INDIRECT($C$2&$C14&"!"&S$5&$M$4)="","★",INDIRECT($C$2&$C14&"!"&S$5&$M$4)) -> t-CO2/kWh | T14: =IF(INDIRECT($C$2&$C14&"!"&T$5&$M$4)="","★",INDIRECT($C$2&$C14&"!"&T$5&$M$4)) -> 34.8691 | U14: =IF(INDIRECT($C$2&$C14&"!"&U$5&$M$4)="","★",INDIRECT($C$2&$C14&"!"&U$5&$M$4)) -> 34.8691 | V14: =IF(INDIRECT($C$2&$C14&"!"&V$5&$V$4)="","★",INDIRECT($C$2&$C14&"!"&V$5&$V$4)) -> 系統電力① | W14: =IF(INDIRECT($C$2&$C14&"!"&W$5&$V$4)="","★",INDIRECT($C$2&$C14&"!"&W$5&$V$4)) -> 71000 | X14: =IF(INDIRECT($C$2&$C14&"!"&X$5&$V$4)="","★",INDIRECT($C$2&$C14&"!"&X$5&$V$4)) -> kWh | Y14: =IF(INDIRECT($C$2&$C14&"!"&Y$5&$V$4)="","★",INDIRECT($C$2&$C14&"!"&Y$5&$V$4)) -> ★ | Z14: =IF(INDIRECT($C$2&$C14&"!"&Z$5&$V$4)="","★",INDIRECT($C$2&$C14&"!"&Z$5&$V$4)) -> --- | AA14: =IF(INDIRECT($C$2&$C14&"!"&AA$5&$V$4)="","★",INDIRECT($C$2&$C14&"!"&AA$5&$V$4)) -> 0.000436 | AB14: =IF(INDIRECT($C$2&$C14&"!"&AB$5&$V$4)="","★",INDIRECT($C$2&$C14&"!"&AB$5&$V$4)) -> t-CO2/kWh | AC14: =IF(INDIRECT($C$2&$C14&"!"&AC$5&$V$4)="","★",INDIRECT($C$2&$C14&"!"&AC$5&$V$4)) -> 30.956 | AD14: =IF(INDIRECT($C$2&$C14&"!"&AD$5&$V$4)="","★",INDIRECT($C$2&$C14&"!"&AD$5&$V$4)) -> 30.956 | AE14: =IF(INDIRECT($C$2&$C14&"!"&AE$5&$V$4)="","★",INDIRECT($C$2&$C14&"!"&AE$5&$V$4)) -> 3.9131 | AF14: =IF(INDIRECT($C$2&$C14&"!"&AF$5&$AF$4)="","★",INDIRECT($C$2&$C14&"!"&AF$5&$AF$4)) -> 未実施 | AG14: =IF(INDIRECT($C$2&$C14&"!"&AG$5&$AF$4)="","★",INDIRECT($C$2&$C14&"!"&AG$5&$AF$4)) -> TRUE | AH14: =IF(INDIRECT($C$2&$C14&"!"&AH$5&$AH$4)="","★",INDIRECT($C$2&$C14&"!"&AH$5&$AH$4)) -> ★ | AI14: =IF(INDIRECT($C$2&$C14&"!"&AI$5&$AH$4)="","★",INDIRECT($C$2&$C14&"!"&AI$5&$AH$4)) -> FALSE | AJ14: =IF(INDIRECT($C$2&$C14&"!"&AJ$5&$AJ$4)="","★",INDIRECT($C$2&$C14&"!"&AJ$5&$AJ$4)) -> ★ | AK14: =IF(INDIRECT($C$2&$C14&"!"&AK$5&$AJ$4)="","★",INDIRECT($C$2&$C14&"!"&AK$5&$AJ$4)) -> FALSE | AL14: =$AF14 -> 未実施 | AM14: =$AG14 -> TRUE | AN14: =IF(INDIRECT($C$2&$C14&"!"&AN$5&$AN$4)="","★",INDIRECT($C$2&$C14&"!"&AN$5&$AN$4)) -> 系統電力① | AO14: =IF(INDIRECT($C$2&$C14&"!"&AO$5&$AN$4)="","★",INDIRECT($C$2&$C14&"!"&AO$5&$AN$4)) -> 79975 | AP14: =IF(INDIRECT($C$2&$C14&"!"&AP$5&$AN$4)="","★",INDIRECT($C$2&$C14&"!"&AP$5&$AN$4)) -> kWh | AQ14: =IF(INDIRECT($C$2&$C14&"!"&AQ$5&$AN$4)="","★",INDIRECT($C$2&$C14&"!"&AQ$5&$AN$4)) -> ★ | AR14: =IF(INDIRECT($C$2&$C14&"!"&AR$5&$AN$4)="","★",INDIRECT($C$2&$C14&"!"&AR$5&$AN$4)) -> --- | AS14: =IF(INDIRECT($C$2&$C14&"!"&AS$5&$AN$4)="","★",INDIRECT($C$2&$C14&"!"&AS$5&$AN$4)) -> 0.000436 | AT14: =IF(INDIRECT($C$2&$C14&"!"&AT$5&$AN$4)="","★",INDIRECT($C$2&$C14&"!"&AT$5&$AN$4)) -> t-CO2/kWh | AU14: =IF(INDIRECT($C$2&$C14&"!"&AU$5&$AN$4)="","★",INDIRECT($C$2&$C14&"!"&AU$5&$AN$4)) -> 34.8691 | AV14: =IF(INDIRECT($C$2&$C14&"!"&AV$5&$AN$4)="","★",INDIRECT($C$2&$C14&"!"&AV$5&$AN$4)) -> 34.8691 | AW14: =IF(INDIRECT($C$2&$C14&"!"&AW$5&$AN$4)="","★",INDIRECT($C$2&$C14&"!"&AW$5&$AN$4)) -> 0 | AX14: =$AH14 -> ★ | AY14: =$AI14 -> FALSE | AZ14: =IF(INDIRECT($C$2&$C14&"!"&AZ$5&$AZ$4)="","★",INDIRECT($C$2&$C14&"!"&AZ$5&$AZ$4)) -> ★ | BA14: =IF(INDIRECT($C$2&$C14&"!"&BA$5&$AZ$4)="","★",INDIRECT($C$2&$C14&"!"&BA$5&$AZ$4)) -> ★ | BB14: =IF(INDIRECT($C$2&$C14&"!"&BB$5&$AZ$4)="","★",INDIRECT($C$2&$C14&"!"&BB$5&$AZ$4)) -> ★ | BC14: =IF(INDIRECT($C$2&$C14&"!"&BC$5&$AZ$4)="","★",INDIRECT($C$2&$C14&"!"&BC$5&$AZ$4)) -> ★ | BD14: =IF(INDIRECT($C$2&$C14&"!"&BD$5&$AZ$4)="","★",INDIRECT($C$2&$C14&"!"&BD$5&$AZ$4)) -> ★ | BE14: =IF(INDIRECT($C$2&$C14&"!"&BE$5&$AZ$4)="","★",INDIRECT($C$2&$C14&"!"&BE$5&$AZ$4)) -> ★ | BF14: =IF(INDIRECT($C$2&$C14&"!"&BF$5&$AZ$4)="","★",INDIRECT($C$2&$C14&"!"&BF$5&$AZ$4)) -> ★ | BG14: =IF(INDIRECT($C$2&$C14&"!"&BG$5&$AZ$4)="","★",INDIRECT($C$2&$C14&"!"&BG$5&$AZ$4)) -> ★ | BH14: =IF(INDIRECT($C$2&$C14&"!"&BH$5&$AZ$4)="","★",INDIRECT($C$2&$C14&"!"&BH$5&$AZ$4)) -> ★ | BI14: =IF(INDIRECT($C$2&$C14&"!"&BI$5&$AZ$4)="","★",INDIRECT($C$2&$C14&"!"&BI$5&$AZ$4)) -> --- | BJ14: =$AJ14 -> ★ | BK14: =$AK14 -> FALSE | BL14: =IF(INDIRECT($C$2&$C14&"!"&BL$5&$BL$4)="","★",INDIRECT($C$2&$C14&"!"&BL$5&$BL$4)) -> ★ | BM14: =IF(INDIRECT($C$2&$C14&"!"&BM$5&$BL$4)="","★",INDIRECT($C$2&$C14&"!"&BM$5&$BL$4)) -> ★ | BN14: =IF(INDIRECT($C$2&$C14&"!"&BN$5&$BL$4)="","★",INDIRECT($C$2&$C14&"!"&BN$5&$BL$4)) -> ★ | BO14: =IF(INDIRECT($C$2&$C14&"!"&BO$5&$BL$4)="","★",INDIRECT($C$2&$C14&"!"&BO$5&$BL$4)) -> ★ | BP14: =IF(INDIRECT($C$2&$C14&"!"&BP$5&$BL$4)="","★",INDIRECT($C$2&$C14&"!"&BP$5&$BL$4)) -> ★ | BQ14: =IF(INDIRECT($C$2&$C14&"!"&BQ$5&$BL$4)="","★",INDIRECT($C$2&$C14&"!"&BQ$5&$BL$4)) -> ★ | BR14: =IF(INDIRECT($C$2&$C14&"!"&BR$5&$BL$4)="","★",INDIRECT($C$2&$C14&"!"&BR$5&$BL$4)) -> ★ | BS14: =IF(INDIRECT($C$2&$C14&"!"&BS$5&$BL$4)="","★",INDIRECT($C$2&$C14&"!"&BS$5&$BL$4)) -> ★ | BT14: =IF(INDIRECT($C$2&$C14&"!"&BT$5&$BL$4)="","★",INDIRECT($C$2&$C14&"!"&BT$5&$BL$4)) -> ★ | BU14: =IF(INDIRECT($C$2&$C14&"!"&BU$5&$BL$4)="","★",INDIRECT($C$2&$C14&"!"&BU$5&$BL$4)) -> --- | BV14: =IF(INDIRECT($C$2&$C14&"!"&BV$5&$BV$4)="","★",INDIRECT($C$2&$C14&"!"&BV$5&$BV$4)) -> *系統電力* | BW14: =IF(INDIRECT($C$2&$C14&"!"&BW$5&$BV$4)="","★",INDIRECT($C$2&$C14&"!"&BW$5&$BV$4)) -> 79975 | BX14: =IF(INDIRECT($C$2&$C14&"!"&BX$5&$BV$4)="","★",INDIRECT($C$2&$C14&"!"&BX$5&$BV$4)) -> kWh | BY14: =IF(INDIRECT($C$2&$C14&"!"&BY$5&$BV$4)="","★",INDIRECT($C$2&$C14&"!"&BY$5&$BV$4)) -> 0.00976 | BZ14: =IF(INDIRECT($C$2&$C14&"!"&BZ$5&$BV$4)="","★",INDIRECT($C$2&$C14&"!"&BZ$5&$BV$4)) -> GJ/kWh | CA14: =IF(INDIRECT($C$2&$C14&"!"&CA$5&$BV$4)="","★",INDIRECT($C$2&$C14&"!"&CA$5&$BV$4)) -> 780.556 | CB14: =IF(INDIRECT($C$2&$C14&"!"&CB$5&$BV$4)="","★",INDIRECT($C$2&$C14&"!"&CB$5&$BV$4)) -> 780.556 | CC14: =IF(INDIRECT($C$2&$C14&"!"&CC$5&$CC$4)="","★",INDIRECT($C$2&$C14&"!"&CC$5&$CC$4)) -> *系統電力* | CD14: =IF(INDIRECT($C$2&$C14&"!"&CD$5&$CC$4)="","★",INDIRECT($C$2&$C14&"!"&CD$5&$CC$4)) -> 71000 | CE14: =IF(INDIRECT($C$2&$C14&"!"&CE$5&$CC$4)="","★",INDIRECT($C$2&$C14&"!"&CE$5&$CC$4)) -> kWh | CF14: =IF(INDIRECT($C$2&$C14&"!"&CF$5&$CC$4)="","★",INDIRECT($C$2&$C14&"!"&CF$5&$CC$4)) -> 0.00976 | CG14: =IF(INDIRECT($C$2&$C14&"!"&CG$5&$CC$4)="","★",INDIRECT($C$2&$C14&"!"&CG$5&$CC$4)) -> GJ/kWh | CH14: =IF(INDIRECT($C$2&$C14&"!"&CH$5&$CC$4)="","★",INDIRECT($C$2&$C14&"!"&CH$5&$CC$4)) -> 692.96 | CI14: =IF(INDIRECT($C$2&$C14&"!"&CI$5&$CC$4)="","★",INDIRECT($C$2&$C14&"!"&CI$5&$CC$4)) -> 692.96 | CJ14: =IF(INDIRECT($C$2&$C14&"!"&CJ$5&$CC$4)="","★",INDIRECT($C$2&$C14&"!"&CJ$5&$CC$4)) -> 87.596 | CK14: =$AF14 -> 未実施 | CL14: =$AG14 -> TRUE | CM14: =IF(INDIRECT($C$2&$C14&"!"&CM$5&$CM$4)="","★",INDIRECT($C$2&$C14&"!"&CM$5&$CM$4)) -> *系統電力* | CN14: =IF(INDIRECT($C$2&$C14&"!"&CN$5&$CM$4)="","★",INDIRECT($C$2&$C14&"!"&CN$5&$CM$4)) -> 79975 | CO14: =IF(INDIRECT($C$2&$C14&"!"&CO$5&$CM$4)="","★",INDIRECT($C$2&$C14&"!"&CO$5&$CM$4)) -> kWh | CP14: =IF(INDIRECT($C$2&$C14&"!"&CP$5&$CM$4)="","★",INDIRECT($C$2&$C14&"!"&CP$5&$CM$4)) -> 0.00976 | CQ14: =IF(INDIRECT($C$2&$C14&"!"&CQ$5&$CM$4)="","★",INDIRECT($C$2&$C14&"!"&CQ$5&$CM$4)) -> GJ/kWh | CR14: =IF(INDIRECT($C$2&$C14&"!"&CR$5&$CM$4)="","★",INDIRECT($C$2&$C14&"!"&CR$5&$CM$4)) -> 780.556 | CS14: =IF(INDIRECT($C$2&$C14&"!"&CS$5&$CM$4)="","★",INDIRECT($C$2&$C14&"!"&CS$5&$CM$4)) -> 780.556 | CT14: =IF(INDIRECT($C$2&$C14&"!"&CT$5&$CM$4)="","★",INDIRECT($C$2&$C14&"!"&CT$5&$CM$4)) -> 0 | CU14: =$AH14 -> ★ | CV14: =$AI14 -> FALSE | CW14: =IF(INDIRECT($C$2&$C14&"!"&CW$5&$CW$4)="","★",INDIRECT($C$2&$C14&"!"&CW$5&$CW$4)) -> ★ | CX14: =IF(INDIRECT($C$2&$C14&"!"&CX$5&$CW$4)="","★",INDIRECT($C$2&$C14&"!"&CX$5&$CW$4)) -> ★ | CY14: =IF(INDIRECT($C$2&$C14&"!"&CY$5&$CW$4)="","★",INDIRECT($C$2&$C14&"!"&CY$5&$CW$4)) -> ★ | CZ14: =IF(INDIRECT($C$2&$C14&"!"&CZ$5&$CW$4)="","★",INDIRECT($C$2&$C14&"!"&CZ$5&$CW$4)) -> ★ | DA14: =IF(INDIRECT($C$2&$C14&"!"&DA$5&$CW$4)="","★",INDIRECT($C$2&$C14&"!"&DA$5&$CW$4)) -> ★ | DB14: =IF(INDIRECT($C$2&$C14&"!"&DB$5&$CW$4)="","★",INDIRECT($C$2&$C14&"!"&DB$5&$CW$4)) -> ★ | DC14: =IF(INDIRECT($C$2&$C14&"!"&DC$5&$CW$4)="","★",INDIRECT($C$2&$C14&"!"&DC$5&$CW$4)) -> ★ | DD14: =IF(INDIRECT($C$2&$C14&"!"&DD$5&$CW$4)="","★",INDIRECT($C$2&$C14&"!"&DD$5&$CW$4)) -> --- | DE14: =$AJ14 -> ★ | DF14: =$AK14 -> FALSE | DG14: =IF(INDIRECT($C$2&$C14&"!"&DG$5&$DG$4)="","★",INDIRECT($C$2&$C14&"!"&DG$5&$DG$4)) -> ★ | DH14: =IF(INDIRECT($C$2&$C14&"!"&DH$5&$DG$4)="","★",INDIRECT($C$2&$C14&"!"&DH$5&$DG$4)) -> ★ | DI14: =IF(INDIRECT($C$2&$C14&"!"&DI$5&$DG$4)="","★",INDIRECT($C$2&$C14&"!"&DI$5&$DG$4)) -> ★ | DJ14: =IF(INDIRECT($C$2&$C14&"!"&DJ$5&$DG$4)="","★",INDIRECT($C$2&$C14&"!"&DJ$5&$DG$4)) -> ★ | DK14: =IF(INDIRECT($C$2&$C14&"!"&DK$5&$DG$4)="","★",INDIRECT($C$2&$C14&"!"&DK$5&$DG$4)) -> ★ | DL14: =IF(INDIRECT($C$2&$C14&"!"&DL$5&$DG$4)="","★",INDIRECT($C$2&$C14&"!"&DL$5&$DG$4)) -> ★ | DM14: =IF(INDIRECT($C$2&$C14&"!"&DM$5&$DG$4)="","★",INDIRECT($C$2&$C14&"!"&DM$5&$DG$4)) -> ★ | DN14: =IF(INDIRECT($C$2&$C14&"!"&DN$5&$DG$4)="","★",INDIRECT($C$2&$C14&"!"&DN$5&$DG$4)) -> --- | DO14: =IF(INDIRECT($C$2&$C14&"!B57")="","★",INDIRECT($C$2&$C14&"!B57")) -> ★ | DP14: =IF(INDIRECT($C$2&$C14&"!B100")="","★",INDIRECT($C$2&$C14&"!B100")) -> ★ | DQ14: =IF(INDIRECT($C$2&$C14&"!B112")="","★",INDIRECT($C$2&$C14&"!B112")) -> ★ | DR14: =IF(INDIRECT($C$2&$C14&"!B155")="","★",INDIRECT($C$2&$C14&"!B155")) -> ★ | DS14: =IF(INDIRECT($C$2&$C14&"!B167")="","★",INDIRECT($C$2&$C14&"!B167")) -> ★ | DT14: =IF(INDIRECT($C$2&$C14&"!B210")="","★",INDIRECT($C$2&$C14&"!B210")) -> ★
C15: =C14 -> 2 | L15: =$C15&"-2" -> 2-2 | M15: =IF(INDIRECT($C$2&$C15&"!"&M$5&$M$4+1)="","★",INDIRECT($C$2&$C15&"!"&M$5&$M$4+1)) -> ★ | N15: =IF(INDIRECT($C$2&$C15&"!"&N$5&$M$4+1)="","★",INDIRECT($C$2&$C15&"!"&N$5&$M$4+1)) -> ★ | O15: =IF(INDIRECT($C$2&$C15&"!"&O$5&$M$4+1)="","★",INDIRECT($C$2&$C15&"!"&O$5&$M$4+1)) -> ★ | P15: =IF(INDIRECT($C$2&$C15&"!"&P$5&$M$4+1)="","★",INDIRECT($C$2&$C15&"!"&P$5&$M$4+1)) -> ★ | Q15: =IF(INDIRECT($C$2&$C15&"!"&Q$5&$M$4+1)="","★",INDIRECT($C$2&$C15&"!"&Q$5&$M$4+1)) -> ★ | R15: =IF(INDIRECT($C$2&$C15&"!"&R$5&$M$4+1)="","★",INDIRECT($C$2&$C15&"!"&R$5&$M$4+1)) -> ★ | S15: =IF(INDIRECT($C$2&$C15&"!"&S$5&$M$4+1)="","★",INDIRECT($C$2&$C15&"!"&S$5&$M$4+1)) -> ★ | T15: =IF(INDIRECT($C$2&$C15&"!"&T$5&$M$4+1)="","★",INDIRECT($C$2&$C15&"!"&T$5&$M$4+1)) -> ★ | V15: =IF(INDIRECT($C$2&$C15&"!"&V$5&$V$4+1)="","★",INDIRECT($C$2&$C15&"!"&V$5&$V$4+1)) -> ★ | W15: =IF(INDIRECT($C$2&$C15&"!"&W$5&$V$4+1)="","★",INDIRECT($C$2&$C15&"!"&W$5&$V$4+1)) -> ★ | X15: =IF(INDIRECT($C$2&$C15&"!"&X$5&$V$4+1)="","★",INDIRECT($C$2&$C15&"!"&X$5&$V$4+1)) -> ★ | Y15: =IF(INDIRECT($C$2&$C15&"!"&Y$5&$V$4+1)="","★",INDIRECT($C$2&$C15&"!"&Y$5&$V$4+1)) -> ★ | Z15: =IF(INDIRECT($C$2&$C15&"!"&Z$5&$V$4+1)="","★",INDIRECT($C$2&$C15&"!"&Z$5&$V$4+1)) -> ★ | AA15: =IF(INDIRECT($C$2&$C15&"!"&AA$5&$V$4+1)="","★",INDIRECT($C$2&$C15&"!"&AA$5&$V$4+1)) -> ★ | AB15: =IF(INDIRECT($C$2&$C15&"!"&AB$5&$V$4+1)="","★",INDIRECT($C$2&$C15&"!"&AB$5&$V$4+1)) -> ★ | AC15: =IF(INDIRECT($C$2&$C15&"!"&AC$5&$V$4+1)="","★",INDIRECT($C$2&$C15&"!"&AC$5&$V$4+1)) -> ★ | AN15: =IF(INDIRECT($C$2&$C15&"!"&AN$5&$AN$4+1)="","★",INDIRECT($C$2&$C15&"!"&AN$5&$AN$4+1)) -> ★ | AO15: =IF(INDIRECT($C$2&$C15&"!"&AO$5&$AN$4+1)="","★",INDIRECT($C$2&$C15&"!"&AO$5&$AN$4+1)) -> ★ | AP15: =IF(INDIRECT($C$2&$C15&"!"&AP$5&$AN$4+1)="","★",INDIRECT($C$2&$C15&"!"&AP$5&$AN$4+1)) -> ★ | AQ15: =IF(INDIRECT($C$2&$C15&"!"&AQ$5&$AN$4+1)="","★",INDIRECT($C$2&$C15&"!"&AQ$5&$AN$4+1)) -> ★ | AR15: =IF(INDIRECT($C$2&$C15&"!"&AR$5&$AN$4+1)="","★",INDIRECT($C$2&$C15&"!"&AR$5&$AN$4+1)) -> ★ | AS15: =IF(INDIRECT($C$2&$C15&"!"&AS$5&$AN$4+1)="","★",INDIRECT($C$2&$C15&"!"&AS$5&$AN$4+1)) -> ★ | AT15: =IF(INDIRECT($C$2&$C15&"!"&AT$5&$AN$4+1)="","★",INDIRECT($C$2&$C15&"!"&AT$5&$AN$4+1)) -> ★ | AU15: =IF(INDIRECT($C$2&$C15&"!"&AU$5&$AN$4+1)="","★",INDIRECT($C$2&$C15&"!"&AU$5&$AN$4+1)) -> ★ | AZ15: =IF(INDIRECT($C$2&$C15&"!"&AZ$5&$AZ$4+1)="","★",INDIRECT($C$2&$C15&"!"&AZ$5&$AZ$4+1)) -> ★ | BA15: =IF(INDIRECT($C$2&$C15&"!"&BA$5&$AZ$4+1)="","★",INDIRECT($C$2&$C15&"!"&BA$5&$AZ$4+1)) -> ★ | BB15: =IF(INDIRECT($C$2&$C15&"!"&BB$5&$AZ$4+1)="","★",INDIRECT($C$2&$C15&"!"&BB$5&$AZ$4+1)) -> ★ | BC15: =IF(INDIRECT($C$2&$C15&"!"&BC$5&$AZ$4+1)="","★",INDIRECT($C$2&$C15&"!"&BC$5&$AZ$4+1)) -> ★ | BD15: =IF(INDIRECT($C$2&$C15&"!"&BD$5&$AZ$4+1)="","★",INDIRECT($C$2&$C15&"!"&BD$5&$AZ$4+1)) -> ★ | BE15: =IF(INDIRECT($C$2&$C15&"!"&BE$5&$AZ$4+1)="","★",INDIRECT($C$2&$C15&"!"&BE$5&$AZ$4+1)) -> ★ | BF15: =IF(INDIRECT($C$2&$C15&"!"&BF$5&$AZ$4+1)="","★",INDIRECT($C$2&$C15&"!"&BF$5&$AZ$4+1)) -> ★ | BG15: =IF(INDIRECT($C$2&$C15&"!"&BG$5&$AZ$4+1)="","★",INDIRECT($C$2&$C15&"!"&BG$5&$AZ$4+1)) -> ★ | BL15: =IF(INDIRECT($C$2&$C15&"!"&BL$5&$BL$4+1)="","★",INDIRECT($C$2&$C15&"!"&BL$5&$BL$4+1)) -> ★ | BM15: =IF(INDIRECT($C$2&$C15&"!"&BM$5&$BL$4+1)="","★",INDIRECT($C$2&$C15&"!"&BM$5&$BL$4+1)) -> ★ | BN15: =IF(INDIRECT($C$2&$C15&"!"&BN$5&$BL$4+1)="","★",INDIRECT($C$2&$C15&"!"&BN$5&$BL$4+1)) -> ★ | BO15: =IF(INDIRECT($C$2&$C15&"!"&BO$5&$BL$4+1)="","★",INDIRECT($C$2&$C15&"!"&BO$5&$BL$4+1)) -> ★ | BP15: =IF(INDIRECT($C$2&$C15&"!"&BP$5&$BL$4+1)="","★",INDIRECT($C$2&$C15&"!"&BP$5&$BL$4+1)) -> ★ | BQ15: =IF(INDIRECT($C$2&$C15&"!"&BQ$5&$BL$4+1)="","★",INDIRECT($C$2&$C15&"!"&BQ$5&$BL$4+1)) -> ★ | BR15: =IF(INDIRECT($C$2&$C15&"!"&BR$5&$BL$4+1)="","★",INDIRECT($C$2&$C15&"!"&BR$5&$BL$4+1)) -> ★ | BS15: =IF(INDIRECT($C$2&$C15&"!"&BS$5&$BL$4+1)="","★",INDIRECT($C$2&$C15&"!"&BS$5&$BL$4+1)) -> ★ | BV15: =IF(INDIRECT($C$2&$C15&"!"&BV$5&$BV$4+1)="","★",INDIRECT($C$2&$C15&"!"&BV$5&$BV$4+1)) -> ★ | BW15: =IF(INDIRECT($C$2&$C15&"!"&BW$5&$BV$4+1)="","★",INDIRECT($C$2&$C15&"!"&BW$5&$BV$4+1)) -> ★ | BX15: =IF(INDIRECT($C$2&$C15&"!"&BX$5&$BV$4+1)="","★",INDIRECT($C$2&$C15&"!"&BX$5&$BV$4+1)) -> ★ | BY15: =IF(INDIRECT($C$2&$C15&"!"&BY$5&$BV$4+1)="","★",INDIRECT($C$2&$C15&"!"&BY$5&$BV$4+1)) -> ★ | BZ15: =IF(INDIRECT($C$2&$C15&"!"&BZ$5&$BV$4+1)="","★",INDIRECT($C$2&$C15&"!"&BZ$5&$BV$4+1)) -> ★ | CA15: =IF(INDIRECT($C$2&$C15&"!"&CA$5&$BV$4+1)="","★",INDIRECT($C$2&$C15&"!"&CA$5&$BV$4+1)) -> ★ | CC15: =IF(INDIRECT($C$2&$C15&"!"&CC$5&$CC$4+1)="","★",INDIRECT($C$2&$C15&"!"&CC$5&$CC$4+1)) -> ★ | CD15: =IF(INDIRECT($C$2&$C15&"!"&CD$5&$CC$4+1)="","★",INDIRECT($C$2&$C15&"!"&CD$5&$CC$4+1)) -> ★ | CE15: =IF(INDIRECT($C$2&$C15&"!"&CE$5&$CC$4+1)="","★",INDIRECT($C$2&$C15&"!"&CE$5&$CC$4+1)) -> ★ | CF15: =IF(INDIRECT($C$2&$C15&"!"&CF$5&$CC$4+1)="","★",INDIRECT($C$2&$C15&"!"&CF$5&$CC$4+1)) -> ★ | CG15: =IF(INDIRECT($C$2&$C15&"!"&CG$5&$CC$4+1)="","★",INDIRECT($C$2&$C15&"!"&CG$5&$CC$4+1)) -> ★ | CH15: =IF(INDIRECT($C$2&$C15&"!"&CH$5&$CC$4+1)="","★",INDIRECT($C$2&$C15&"!"&CH$5&$CC$4+1)) -> ★ | CM15: =IF(INDIRECT($C$2&$C15&"!"&CM$5&$CM$4+1)="","★",INDIRECT($C$2&$C15&"!"&CM$5&$CM$4+1)) -> ★ | CN15: =IF(INDIRECT($C$2&$C15&"!"&CN$5&$CM$4+1)="","★",INDIRECT($C$2&$C15&"!"&CN$5&$CM$4+1)) -> ★ | CO15: =IF(INDIRECT($C$2&$C15&"!"&CO$5&$CM$4+1)="","★",INDIRECT($C$2&$C15&"!"&CO$5&$CM$4+1)) -> ★ | CP15: =IF(INDIRECT($C$2&$C15&"!"&CP$5&$CM$4+1)="","★",INDIRECT($C$2&$C15&"!"&CP$5&$CM$4+1)) -> ★ | CQ15: =IF(INDIRECT($C$2&$C15&"!"&CQ$5&$CM$4+1)="","★",INDIRECT($C$2&$C15&"!"&CQ$5&$CM$4+1)) -> ★ | CR15: =IF(INDIRECT($C$2&$C15&"!"&CR$5&$CM$4+1)="","★",INDIRECT($C$2&$C15&"!"&CR$5&$CM$4+1)) -> ★ | CW15: =IF(INDIRECT($C$2&$C15&"!"&CW$5&$CW$4+1)="","★",INDIRECT($C$2&$C15&"!"&CW$5&$CW$4+1)) -> ★ | CX15: =IF(INDIRECT($C$2&$C15&"!"&CX$5&$CW$4+1)="","★",INDIRECT($C$2&$C15&"!"&CX$5&$CW$4+1)) -> ★ | CY15: =IF(INDIRECT($C$2&$C15&"!"&CY$5&$CW$4+1)="","★",INDIRECT($C$2&$C15&"!"&CY$5&$CW$4+1)) -> ★ | CZ15: =IF(INDIRECT($C$2&$C15&"!"&CZ$5&$CW$4+1)="","★",INDIRECT($C$2&$C15&"!"&CZ$5&$CW$4+1)) -> ★ | DA15: =IF(INDIRECT($C$2&$C15&"!"&DA$5&$CW$4+1)="","★",INDIRECT($C$2&$C15&"!"&DA$5&$CW$4+1)) -> ★ | DB15: =IF(INDIRECT($C$2&$C15&"!"&DB$5&$CW$4+1)="","★",INDIRECT($C$2&$C15&"!"&DB$5&$CW$4+1)) -> ★ | DG15: =IF(INDIRECT($C$2&$C15&"!"&DG$5&$DG$4+1)="","★",INDIRECT($C$2&$C15&"!"&DG$5&$DG$4+1)) -> ★ | DH15: =IF(INDIRECT($C$2&$C15&"!"&DH$5&$DG$4+1)="","★",INDIRECT($C$2&$C15&"!"&DH$5&$DG$4+1)) -> ★ | DI15: =IF(INDIRECT($C$2&$C15&"!"&DI$5&$DG$4+1)="","★",INDIRECT($C$2&$C15&"!"&DI$5&$DG$4+1)) -> ★ | DJ15: =IF(INDIRECT($C$2&$C15&"!"&DJ$5&$DG$4+1)="","★",INDIRECT($C$2&$C15&"!"&DJ$5&$DG$4+1)) -> ★ | DK15: =IF(INDIRECT($C$2&$C15&"!"&DK$5&$DG$4+1)="","★",INDIRECT($C$2&$C15&"!"&DK$5&$DG$4+1)) -> ★ | DL15: =IF(INDIRECT($C$2&$C15&"!"&DL$5&$DG$4+1)="","★",INDIRECT($C$2&$C15&"!"&DL$5&$DG$4+1)) -> ★
C16: =C15 -> 2 | L16: =$C16&"-3" -> 2-3 | M16: =IF(INDIRECT($C$2&$C16&"!"&M$5&$M$4+2)="","★",INDIRECT($C$2&$C16&"!"&M$5&$M$4+2)) -> ★ | N16: =IF(INDIRECT($C$2&$C16&"!"&N$5&$M$4+2)="","★",INDIRECT($C$2&$C16&"!"&N$5&$M$4+2)) -> ★ | O16: =IF(INDIRECT($C$2&$C16&"!"&O$5&$M$4+2)="","★",INDIRECT($C$2&$C16&"!"&O$5&$M$4+2)) -> ★ | P16: =IF(INDIRECT($C$2&$C16&"!"&P$5&$M$4+2)="","★",INDIRECT($C$2&$C16&"!"&P$5&$M$4+2)) -> ★ | Q16: =IF(INDIRECT($C$2&$C16&"!"&Q$5&$M$4+2)="","★",INDIRECT($C$2&$C16&"!"&Q$5&$M$4+2)) -> ★ | R16: =IF(INDIRECT($C$2&$C16&"!"&R$5&$M$4+2)="","★",INDIRECT($C$2&$C16&"!"&R$5&$M$4+2)) -> ★ | S16: =IF(INDIRECT($C$2&$C16&"!"&S$5&$M$4+2)="","★",INDIRECT($C$2&$C16&"!"&S$5&$M$4+2)) -> ★ | T16: =IF(INDIRECT($C$2&$C16&"!"&T$5&$M$4+2)="","★",INDIRECT($C$2&$C16&"!"&T$5&$M$4+2)) -> ★ | V16: =IF(INDIRECT($C$2&$C16&"!"&V$5&$V$4+2)="","★",INDIRECT($C$2&$C16&"!"&V$5&$V$4+2)) -> ★ | W16: =IF(INDIRECT($C$2&$C16&"!"&W$5&$V$4+2)="","★",INDIRECT($C$2&$C16&"!"&W$5&$V$4+2)) -> ★ | X16: =IF(INDIRECT($C$2&$C16&"!"&X$5&$V$4+2)="","★",INDIRECT($C$2&$C16&"!"&X$5&$V$4+2)) -> ★ | Y16: =IF(INDIRECT($C$2&$C16&"!"&Y$5&$V$4+2)="","★",INDIRECT($C$2&$C16&"!"&Y$5&$V$4+2)) -> ★ | Z16: =IF(INDIRECT($C$2&$C16&"!"&Z$5&$V$4+2)="","★",INDIRECT($C$2&$C16&"!"&Z$5&$V$4+2)) -> ★ | AA16: =IF(INDIRECT($C$2&$C16&"!"&AA$5&$V$4+2)="","★",INDIRECT($C$2&$C16&"!"&AA$5&$V$4+2)) -> ★ | AB16: =IF(INDIRECT($C$2&$C16&"!"&AB$5&$V$4+2)="","★",INDIRECT($C$2&$C16&"!"&AB$5&$V$4+2)) -> ★ | AC16: =IF(INDIRECT($C$2&$C16&"!"&AC$5&$V$4+2)="","★",INDIRECT($C$2&$C16&"!"&AC$5&$V$4+2)) -> ★ | AN16: =IF(INDIRECT($C$2&$C16&"!"&AN$5&$AN$4+2)="","★",INDIRECT($C$2&$C16&"!"&AN$5&$AN$4+2)) -> ★ | AO16: =IF(INDIRECT($C$2&$C16&"!"&AO$5&$AN$4+2)="","★",INDIRECT($C$2&$C16&"!"&AO$5&$AN$4+2)) -> ★ | AP16: =IF(INDIRECT($C$2&$C16&"!"&AP$5&$AN$4+2)="","★",INDIRECT($C$2&$C16&"!"&AP$5&$AN$4+2)) -> ★ | AQ16: =IF(INDIRECT($C$2&$C16&"!"&AQ$5&$AN$4+2)="","★",INDIRECT($C$2&$C16&"!"&AQ$5&$AN$4+2)) -> ★ | AR16: =IF(INDIRECT($C$2&$C16&"!"&AR$5&$AN$4+2)="","★",INDIRECT($C$2&$C16&"!"&AR$5&$AN$4+2)) -> ★ | AS16: =IF(INDIRECT($C$2&$C16&"!"&AS$5&$AN$4+2)="","★",INDIRECT($C$2&$C16&"!"&AS$5&$AN$4+2)) -> ★ | AT16: =IF(INDIRECT($C$2&$C16&"!"&AT$5&$AN$4+2)="","★",INDIRECT($C$2&$C16&"!"&AT$5&$AN$4+2)) -> ★ | AU16: =IF(INDIRECT($C$2&$C16&"!"&AU$5&$AN$4+2)="","★",INDIRECT($C$2&$C16&"!"&AU$5&$AN$4+2)) -> ★ | AZ16: =IF(INDIRECT($C$2&$C16&"!"&AZ$5&$AZ$4+2)="","★",INDIRECT($C$2&$C16&"!"&AZ$5&$AZ$4+2)) -> ★ | BA16: =IF(INDIRECT($C$2&$C16&"!"&BA$5&$AZ$4+2)="","★",INDIRECT($C$2&$C16&"!"&BA$5&$AZ$4+2)) -> ★ | BB16: =IF(INDIRECT($C$2&$C16&"!"&BB$5&$AZ$4+2)="","★",INDIRECT($C$2&$C16&"!"&BB$5&$AZ$4+2)) -> ★ | BC16: =IF(INDIRECT($C$2&$C16&"!"&BC$5&$AZ$4+2)="","★",INDIRECT($C$2&$C16&"!"&BC$5&$AZ$4+2)) -> ★ | BD16: =IF(INDIRECT($C$2&$C16&"!"&BD$5&$AZ$4+2)="","★",INDIRECT($C$2&$C16&"!"&BD$5&$AZ$4+2)) -> ★ | BE16: =IF(INDIRECT($C$2&$C16&"!"&BE$5&$AZ$4+2)="","★",INDIRECT($C$2&$C16&"!"&BE$5&$AZ$4+2)) -> ★ | BF16: =IF(INDIRECT($C$2&$C16&"!"&BF$5&$AZ$4+2)="","★",INDIRECT($C$2&$C16&"!"&BF$5&$AZ$4+2)) -> ★ | BG16: =IF(INDIRECT($C$2&$C16&"!"&BG$5&$AZ$4+2)="","★",INDIRECT($C$2&$C16&"!"&BG$5&$AZ$4+2)) -> ★ | BL16: =IF(INDIRECT($C$2&$C16&"!"&BL$5&$BL$4+2)="","★",INDIRECT($C$2&$C16&"!"&BL$5&$BL$4+2)) -> ★ | BM16: =IF(INDIRECT($C$2&$C16&"!"&BM$5&$BL$4+2)="","★",INDIRECT($C$2&$C16&"!"&BM$5&$BL$4+2)) -> ★ | BN16: =IF(INDIRECT($C$2&$C16&"!"&BN$5&$BL$4+2)="","★",INDIRECT($C$2&$C16&"!"&BN$5&$BL$4+2)) -> ★ | BO16: =IF(INDIRECT($C$2&$C16&"!"&BO$5&$BL$4+2)="","★",INDIRECT($C$2&$C16&"!"&BO$5&$BL$4+2)) -> ★ | BP16: =IF(INDIRECT($C$2&$C16&"!"&BP$5&$BL$4+2)="","★",INDIRECT($C$2&$C16&"!"&BP$5&$BL$4+2)) -> ★ | BQ16: =IF(INDIRECT($C$2&$C16&"!"&BQ$5&$BL$4+2)="","★",INDIRECT($C$2&$C16&"!"&BQ$5&$BL$4+2)) -> ★ | BR16: =IF(INDIRECT($C$2&$C16&"!"&BR$5&$BL$4+2)="","★",INDIRECT($C$2&$C16&"!"&BR$5&$BL$4+2)) -> ★ | BS16: =IF(INDIRECT($C$2&$C16&"!"&BS$5&$BL$4+2)="","★",INDIRECT($C$2&$C16&"!"&BS$5&$BL$4+2)) -> ★ | BV16: =IF(INDIRECT($C$2&$C16&"!"&BV$5&$BV$4+2)="","★",INDIRECT($C$2&$C16&"!"&BV$5&$BV$4+2)) -> ★ | BW16: =IF(INDIRECT($C$2&$C16&"!"&BW$5&$BV$4+2)="","★",INDIRECT($C$2&$C16&"!"&BW$5&$BV$4+2)) -> ★ | BX16: =IF(INDIRECT($C$2&$C16&"!"&BX$5&$BV$4+2)="","★",INDIRECT($C$2&$C16&"!"&BX$5&$BV$4+2)) -> ★ | BY16: =IF(INDIRECT($C$2&$C16&"!"&BY$5&$BV$4+2)="","★",INDIRECT($C$2&$C16&"!"&BY$5&$BV$4+2)) -> ★ | BZ16: =IF(INDIRECT($C$2&$C16&"!"&BZ$5&$BV$4+2)="","★",INDIRECT($C$2&$C16&"!"&BZ$5&$BV$4+2)) -> ★ | CA16: =IF(INDIRECT($C$2&$C16&"!"&CA$5&$BV$4+2)="","★",INDIRECT($C$2&$C16&"!"&CA$5&$BV$4+2)) -> ★ | CC16: =IF(INDIRECT($C$2&$C16&"!"&CC$5&$CC$4+2)="","★",INDIRECT($C$2&$C16&"!"&CC$5&$CC$4+2)) -> ★ | CD16: =IF(INDIRECT($C$2&$C16&"!"&CD$5&$CC$4+2)="","★",INDIRECT($C$2&$C16&"!"&CD$5&$CC$4+2)) -> ★ | CE16: =IF(INDIRECT($C$2&$C16&"!"&CE$5&$CC$4+2)="","★",INDIRECT($C$2&$C16&"!"&CE$5&$CC$4+2)) -> ★ | CF16: =IF(INDIRECT($C$2&$C16&"!"&CF$5&$CC$4+2)="","★",INDIRECT($C$2&$C16&"!"&CF$5&$CC$4+2)) -> ★ | CG16: =IF(INDIRECT($C$2&$C16&"!"&CG$5&$CC$4+2)="","★",INDIRECT($C$2&$C16&"!"&CG$5&$CC$4+2)) -> ★ | CH16: =IF(INDIRECT($C$2&$C16&"!"&CH$5&$CC$4+2)="","★",INDIRECT($C$2&$C16&"!"&CH$5&$CC$4+2)) -> ★ | CM16: =IF(INDIRECT($C$2&$C16&"!"&CM$5&$CM$4+2)="","★",INDIRECT($C$2&$C16&"!"&CM$5&$CM$4+2)) -> ★ | CN16: =IF(INDIRECT($C$2&$C16&"!"&CN$5&$CM$4+2)="","★",INDIRECT($C$2&$C16&"!"&CN$5&$CM$4+2)) -> ★ | CO16: =IF(INDIRECT($C$2&$C16&"!"&CO$5&$CM$4+2)="","★",INDIRECT($C$2&$C16&"!"&CO$5&$CM$4+2)) -> ★ | CP16: =IF(INDIRECT($C$2&$C16&"!"&CP$5&$CM$4+2)="","★",INDIRECT($C$2&$C16&"!"&CP$5&$CM$4+2)) -> ★ | CQ16: =IF(INDIRECT($C$2&$C16&"!"&CQ$5&$CM$4+2)="","★",INDIRECT($C$2&$C16&"!"&CQ$5&$CM$4+2)) -> ★ | CR16: =IF(INDIRECT($C$2&$C16&"!"&CR$5&$CM$4+2)="","★",INDIRECT($C$2&$C16&"!"&CR$5&$CM$4+2)) -> ★ | CW16: =IF(INDIRECT($C$2&$C16&"!"&CW$5&$CW$4+2)="","★",INDIRECT($C$2&$C16&"!"&CW$5&$CW$4+2)) -> ★ | CX16: =IF(INDIRECT($C$2&$C16&"!"&CX$5&$CW$4+2)="","★",INDIRECT($C$2&$C16&"!"&CX$5&$CW$4+2)) -> ★ | CY16: =IF(INDIRECT($C$2&$C16&"!"&CY$5&$CW$4+2)="","★",INDIRECT($C$2&$C16&"!"&CY$5&$CW$4+2)) -> ★ | CZ16: =IF(INDIRECT($C$2&$C16&"!"&CZ$5&$CW$4+2)="","★",INDIRECT($C$2&$C16&"!"&CZ$5&$CW$4+2)) -> ★ | DA16: =IF(INDIRECT($C$2&$C16&"!"&DA$5&$CW$4+2)="","★",INDIRECT($C$2&$C16&"!"&DA$5&$CW$4+2)) -> ★ | DB16: =IF(INDIRECT($C$2&$C16&"!"&DB$5&$CW$4+2)="","★",INDIRECT($C$2&$C16&"!"&DB$5&$CW$4+2)) -> ★ | DG16: =IF(INDIRECT($C$2&$C16&"!"&DG$5&$DG$4+2)="","★",INDIRECT($C$2&$C16&"!"&DG$5&$DG$4+2)) -> ★ | DH16: =IF(INDIRECT($C$2&$C16&"!"&DH$5&$DG$4+2)="","★",INDIRECT($C$2&$C16&"!"&DH$5&$DG$4+2)) -> ★ | DI16: =IF(INDIRECT($C$2&$C16&"!"&DI$5&$DG$4+2)="","★",INDIRECT($C$2&$C16&"!"&DI$5&$DG$4+2)) -> ★ | DJ16: =IF(INDIRECT($C$2&$C16&"!"&DJ$5&$DG$4+2)="","★",INDIRECT($C$2&$C16&"!"&DJ$5&$DG$4+2)) -> ★ | DK16: =IF(INDIRECT($C$2&$C16&"!"&DK$5&$DG$4+2)="","★",INDIRECT($C$2&$C16&"!"&DK$5&$DG$4+2)) -> ★ | DL16: =IF(INDIRECT($C$2&$C16&"!"&DL$5&$DG$4+2)="","★",INDIRECT($C$2&$C16&"!"&DL$5&$DG$4+2)) -> ★
C17: 2 | L17: =$C17&"-4" -> 2-4 | M17: =IF(INDIRECT($C$2&$C17&"!"&M$5&$M$4+3)="","★",INDIRECT($C$2&$C17&"!"&M$5&$M$4+3)) -> ★ | N17: =IF(INDIRECT($C$2&$C17&"!"&N$5&$M$4+3)="","★",INDIRECT($C$2&$C17&"!"&N$5&$M$4+3)) -> ★ | O17: =IF(INDIRECT($C$2&$C17&"!"&O$5&$M$4+3)="","★",INDIRECT($C$2&$C17&"!"&O$5&$M$4+3)) -> ★ | P17: =IF(INDIRECT($C$2&$C17&"!"&P$5&$M$4+3)="","★",INDIRECT($C$2&$C17&"!"&P$5&$M$4+3)) -> ★ | Q17: =IF(INDIRECT($C$2&$C17&"!"&Q$5&$M$4+3)="","★",INDIRECT($C$2&$C17&"!"&Q$5&$M$4+3)) -> ★ | R17: =IF(INDIRECT($C$2&$C17&"!"&R$5&$M$4+3)="","★",INDIRECT($C$2&$C17&"!"&R$5&$M$4+3)) -> ★ | S17: =IF(INDIRECT($C$2&$C17&"!"&S$5&$M$4+3)="","★",INDIRECT($C$2&$C17&"!"&S$5&$M$4+3)) -> ★ | T17: =IF(INDIRECT($C$2&$C17&"!"&T$5&$M$4+3)="","★",INDIRECT($C$2&$C17&"!"&T$5&$M$4+3)) -> ★ | V17: =IF(INDIRECT($C$2&$C17&"!"&V$5&$V$4+3)="","★",INDIRECT($C$2&$C17&"!"&V$5&$V$4+3)) -> ★ | W17: =IF(INDIRECT($C$2&$C17&"!"&W$5&$V$4+3)="","★",INDIRECT($C$2&$C17&"!"&W$5&$V$4+3)) -> ★ | X17: =IF(INDIRECT($C$2&$C17&"!"&X$5&$V$4+3)="","★",INDIRECT($C$2&$C17&"!"&X$5&$V$4+3)) -> ★ | Y17: =IF(INDIRECT($C$2&$C17&"!"&Y$5&$V$4+3)="","★",INDIRECT($C$2&$C17&"!"&Y$5&$V$4+3)) -> ★ | Z17: =IF(INDIRECT($C$2&$C17&"!"&Z$5&$V$4+3)="","★",INDIRECT($C$2&$C17&"!"&Z$5&$V$4+3)) -> ★ | AA17: =IF(INDIRECT($C$2&$C17&"!"&AA$5&$V$4+3)="","★",INDIRECT($C$2&$C17&"!"&AA$5&$V$4+3)) -> ★ | AB17: =IF(INDIRECT($C$2&$C17&"!"&AB$5&$V$4+3)="","★",INDIRECT($C$2&$C17&"!"&AB$5&$V$4+3)) -> ★ | AC17: =IF(INDIRECT($C$2&$C17&"!"&AC$5&$V$4+3)="","★",INDIRECT($C$2&$C17&"!"&AC$5&$V$4+3)) -> ★ | AN17: =IF(INDIRECT($C$2&$C17&"!"&AN$5&$AN$4+3)="","★",INDIRECT($C$2&$C17&"!"&AN$5&$AN$4+3)) -> ★ | AO17: =IF(INDIRECT($C$2&$C17&"!"&AO$5&$AN$4+3)="","★",INDIRECT($C$2&$C17&"!"&AO$5&$AN$4+3)) -> ★ | AP17: =IF(INDIRECT($C$2&$C17&"!"&AP$5&$AN$4+3)="","★",INDIRECT($C$2&$C17&"!"&AP$5&$AN$4+3)) -> ★ | AQ17: =IF(INDIRECT($C$2&$C17&"!"&AQ$5&$AN$4+3)="","★",INDIRECT($C$2&$C17&"!"&AQ$5&$AN$4+3)) -> ★ | AR17: =IF(INDIRECT($C$2&$C17&"!"&AR$5&$AN$4+3)="","★",INDIRECT($C$2&$C17&"!"&AR$5&$AN$4+3)) -> ★ | AS17: =IF(INDIRECT($C$2&$C17&"!"&AS$5&$AN$4+3)="","★",INDIRECT($C$2&$C17&"!"&AS$5&$AN$4+3)) -> ★ | AT17: =IF(INDIRECT($C$2&$C17&"!"&AT$5&$AN$4+3)="","★",INDIRECT($C$2&$C17&"!"&AT$5&$AN$4+3)) -> ★ | AU17: =IF(INDIRECT($C$2&$C17&"!"&AU$5&$AN$4+3)="","★",INDIRECT($C$2&$C17&"!"&AU$5&$AN$4+3)) -> ★ | AZ17: =IF(INDIRECT($C$2&$C17&"!"&AZ$5&$AZ$4+3)="","★",INDIRECT($C$2&$C17&"!"&AZ$5&$AZ$4+3)) -> ★ | BA17: =IF(INDIRECT($C$2&$C17&"!"&BA$5&$AZ$4+3)="","★",INDIRECT($C$2&$C17&"!"&BA$5&$AZ$4+3)) -> ★ | BB17: =IF(INDIRECT($C$2&$C17&"!"&BB$5&$AZ$4+3)="","★",INDIRECT($C$2&$C17&"!"&BB$5&$AZ$4+3)) -> ★ | BC17: =IF(INDIRECT($C$2&$C17&"!"&BC$5&$AZ$4+3)="","★",INDIRECT($C$2&$C17&"!"&BC$5&$AZ$4+3)) -> ★ | BD17: =IF(INDIRECT($C$2&$C17&"!"&BD$5&$AZ$4+3)="","★",INDIRECT($C$2&$C17&"!"&BD$5&$AZ$4+3)) -> ★ | BE17: =IF(INDIRECT($C$2&$C17&"!"&BE$5&$AZ$4+3)="","★",INDIRECT($C$2&$C17&"!"&BE$5&$AZ$4+3)) -> ★ | BF17: =IF(INDIRECT($C$2&$C17&"!"&BF$5&$AZ$4+3)="","★",INDIRECT($C$2&$C17&"!"&BF$5&$AZ$4+3)) -> ★ | BG17: =IF(INDIRECT($C$2&$C17&"!"&BG$5&$AZ$4+3)="","★",INDIRECT($C$2&$C17&"!"&BG$5&$AZ$4+3)) -> ★ | BL17: =IF(INDIRECT($C$2&$C17&"!"&BL$5&$BL$4+3)="","★",INDIRECT($C$2&$C17&"!"&BL$5&$BL$4+3)) -> ★ | BM17: =IF(INDIRECT($C$2&$C17&"!"&BM$5&$BL$4+3)="","★",INDIRECT($C$2&$C17&"!"&BM$5&$BL$4+3)) -> ★ | BN17: =IF(INDIRECT($C$2&$C17&"!"&BN$5&$BL$4+3)="","★",INDIRECT($C$2&$C17&"!"&BN$5&$BL$4+3)) -> ★ | BO17: =IF(INDIRECT($C$2&$C17&"!"&BO$5&$BL$4+3)="","★",INDIRECT($C$2&$C17&"!"&BO$5&$BL$4+3)) -> ★ | BP17: =IF(INDIRECT($C$2&$C17&"!"&BP$5&$BL$4+3)="","★",INDIRECT($C$2&$C17&"!"&BP$5&$BL$4+3)) -> ★ | BQ17: =IF(INDIRECT($C$2&$C17&"!"&BQ$5&$BL$4+3)="","★",INDIRECT($C$2&$C17&"!"&BQ$5&$BL$4+3)) -> ★ | BR17: =IF(INDIRECT($C$2&$C17&"!"&BR$5&$BL$4+3)="","★",INDIRECT($C$2&$C17&"!"&BR$5&$BL$4+3)) -> ★ | BS17: =IF(INDIRECT($C$2&$C17&"!"&BS$5&$BL$4+3)="","★",INDIRECT($C$2&$C17&"!"&BS$5&$BL$4+3)) -> ★ | BV17: =IF(INDIRECT($C$2&$C17&"!"&BV$5&$BV$4+3)="","★",INDIRECT($C$2&$C17&"!"&BV$5&$BV$4+3)) -> ★ | BW17: =IF(INDIRECT($C$2&$C17&"!"&BW$5&$BV$4+3)="","★",INDIRECT($C$2&$C17&"!"&BW$5&$BV$4+3)) -> ★ | BX17: =IF(INDIRECT($C$2&$C17&"!"&BX$5&$BV$4+3)="","★",INDIRECT($C$2&$C17&"!"&BX$5&$BV$4+3)) -> ★ | BY17: =IF(INDIRECT($C$2&$C17&"!"&BY$5&$BV$4+3)="","★",INDIRECT($C$2&$C17&"!"&BY$5&$BV$4+3)) -> ★ | BZ17: =IF(INDIRECT($C$2&$C17&"!"&BZ$5&$BV$4+3)="","★",INDIRECT($C$2&$C17&"!"&BZ$5&$BV$4+3)) -> ★ | CA17: =IF(INDIRECT($C$2&$C17&"!"&CA$5&$BV$4+3)="","★",INDIRECT($C$2&$C17&"!"&CA$5&$BV$4+3)) -> ★ | CC17: =IF(INDIRECT($C$2&$C17&"!"&CC$5&$CC$4+3)="","★",INDIRECT($C$2&$C17&"!"&CC$5&$CC$4+3)) -> ★ | CD17: =IF(INDIRECT($C$2&$C17&"!"&CD$5&$CC$4+3)="","★",INDIRECT($C$2&$C17&"!"&CD$5&$CC$4+3)) -> ★ | CE17: =IF(INDIRECT($C$2&$C17&"!"&CE$5&$CC$4+3)="","★",INDIRECT($C$2&$C17&"!"&CE$5&$CC$4+3)) -> ★ | CF17: =IF(INDIRECT($C$2&$C17&"!"&CF$5&$CC$4+3)="","★",INDIRECT($C$2&$C17&"!"&CF$5&$CC$4+3)) -> ★ | CG17: =IF(INDIRECT($C$2&$C17&"!"&CG$5&$CC$4+3)="","★",INDIRECT($C$2&$C17&"!"&CG$5&$CC$4+3)) -> ★ | CH17: =IF(INDIRECT($C$2&$C17&"!"&CH$5&$CC$4+3)="","★",INDIRECT($C$2&$C17&"!"&CH$5&$CC$4+3)) -> ★ | CM17: =IF(INDIRECT($C$2&$C17&"!"&CM$5&$CM$4+3)="","★",INDIRECT($C$2&$C17&"!"&CM$5&$CM$4+3)) -> ★ | CN17: =IF(INDIRECT($C$2&$C17&"!"&CN$5&$CM$4+3)="","★",INDIRECT($C$2&$C17&"!"&CN$5&$CM$4+3)) -> ★ | CO17: =IF(INDIRECT($C$2&$C17&"!"&CO$5&$CM$4+3)="","★",INDIRECT($C$2&$C17&"!"&CO$5&$CM$4+3)) -> ★ | CP17: =IF(INDIRECT($C$2&$C17&"!"&CP$5&$CM$4+3)="","★",INDIRECT($C$2&$C17&"!"&CP$5&$CM$4+3)) -> ★ | CQ17: =IF(INDIRECT($C$2&$C17&"!"&CQ$5&$CM$4+3)="","★",INDIRECT($C$2&$C17&"!"&CQ$5&$CM$4+3)) -> ★ | CR17: =IF(INDIRECT($C$2&$C17&"!"&CR$5&$CM$4+3)="","★",INDIRECT($C$2&$C17&"!"&CR$5&$CM$4+3)) -> ★ | CW17: =IF(INDIRECT($C$2&$C17&"!"&CW$5&$CW$4+3)="","★",INDIRECT($C$2&$C17&"!"&CW$5&$CW$4+3)) -> ★ | CX17: =IF(INDIRECT($C$2&$C17&"!"&CX$5&$CW$4+3)="","★",INDIRECT($C$2&$C17&"!"&CX$5&$CW$4+3)) -> ★ | CY17: =IF(INDIRECT($C$2&$C17&"!"&CY$5&$CW$4+3)="","★",INDIRECT($C$2&$C17&"!"&CY$5&$CW$4+3)) -> ★ | CZ17: =IF(INDIRECT($C$2&$C17&"!"&CZ$5&$CW$4+3)="","★",INDIRECT($C$2&$C17&"!"&CZ$5&$CW$4+3)) -> ★ | DA17: =IF(INDIRECT($C$2&$C17&"!"&DA$5&$CW$4+3)="","★",INDIRECT($C$2&$C17&"!"&DA$5&$CW$4+3)) -> ★ | DB17: =IF(INDIRECT($C$2&$C17&"!"&DB$5&$CW$4+3)="","★",INDIRECT($C$2&$C17&"!"&DB$5&$CW$4+3)) -> ★ | DG17: =IF(INDIRECT($C$2&$C17&"!"&DG$5&$DG$4+3)="","★",INDIRECT($C$2&$C17&"!"&DG$5&$DG$4+3)) -> ★ | DH17: =IF(INDIRECT($C$2&$C17&"!"&DH$5&$DG$4+3)="","★",INDIRECT($C$2&$C17&"!"&DH$5&$DG$4+3)) -> ★ | DI17: =IF(INDIRECT($C$2&$C17&"!"&DI$5&$DG$4+3)="","★",INDIRECT($C$2&$C17&"!"&DI$5&$DG$4+3)) -> ★ | DJ17: =IF(INDIRECT($C$2&$C17&"!"&DJ$5&$DG$4+3)="","★",INDIRECT($C$2&$C17&"!"&DJ$5&$DG$4+3)) -> ★ | DK17: =IF(INDIRECT($C$2&$C17&"!"&DK$5&$DG$4+3)="","★",INDIRECT($C$2&$C17&"!"&DK$5&$DG$4+3)) -> ★ | DL17: =IF(INDIRECT($C$2&$C17&"!"&DL$5&$DG$4+3)="","★",INDIRECT($C$2&$C17&"!"&DL$5&$DG$4+3)) -> ★
C18: =IF(INDIRECT($B$2&"B23")="","★",INDIRECT($B$2&"B23")) -> ★ | D18: =IF(INDIRECT($C$2&$C18&"!K12")="","★",INDIRECT($C$2&$C18&"!K12")) ->  | E18: =IF(INDIRECT($C$2&$C18&"!L12")="","★",INDIRECT($C$2&$C18&"!L12")) ->  | F18: =IF(INDIRECT($C$2&$C18&"!D13")="","★",INDIRECT($C$2&$C18&"!D13")) ->  | G18: =IF(INDIRECT($C$2&$C18&"!D14")="","★",INDIRECT($C$2&$C18&"!D14")) ->  | H18: =IF(INDIRECT($C$2&$C18&"!D15")="","★",INDIRECT($C$2&$C18&"!D15")) ->  | I18: =IF(INDIRECT($C$2&$C18&"!D16")="","★",INDIRECT($C$2&$C18&"!D16")) ->  | J18: =IF(INDIRECT($C$2&$C18&"!D17")="","★",INDIRECT($C$2&$C18&"!D17")) ->  | K18: =IF(INDIRECT($C$2&$C18&"!D18")="","★",INDIRECT($C$2&$C18&"!D18")) ->  | L18: =$C18&"-1" -> ★-1 | M18: =IF(INDIRECT($C$2&$C18&"!"&M$5&$M$4)="","★",INDIRECT($C$2&$C18&"!"&M$5&$M$4)) ->  | N18: =IF(INDIRECT($C$2&$C18&"!"&N$5&$M$4)="","★",INDIRECT($C$2&$C18&"!"&N$5&$M$4)) ->  | O18: =IF(INDIRECT($C$2&$C18&"!"&O$5&$M$4)="","★",INDIRECT($C$2&$C18&"!"&O$5&$M$4)) ->  | P18: =IF(INDIRECT($C$2&$C18&"!"&P$5&$M$4)="","★",INDIRECT($C$2&$C18&"!"&P$5&$M$4)) ->  | Q18: =IF(INDIRECT($C$2&$C18&"!"&Q$5&$M$4)="","★",INDIRECT($C$2&$C18&"!"&Q$5&$M$4)) ->  | R18: =IF(INDIRECT($C$2&$C18&"!"&R$5&$M$4)="","★",INDIRECT($C$2&$C18&"!"&R$5&$M$4)) ->  | S18: =IF(INDIRECT($C$2&$C18&"!"&S$5&$M$4)="","★",INDIRECT($C$2&$C18&"!"&S$5&$M$4)) ->  | T18: =IF(INDIRECT($C$2&$C18&"!"&T$5&$M$4)="","★",INDIRECT($C$2&$C18&"!"&T$5&$M$4)) ->  | U18: =IF(INDIRECT($C$2&$C18&"!"&U$5&$M$4)="","★",INDIRECT($C$2&$C18&"!"&U$5&$M$4)) ->  | V18: =IF(INDIRECT($C$2&$C18&"!"&V$5&$V$4)="","★",INDIRECT($C$2&$C18&"!"&V$5&$V$4)) ->  | W18: =IF(INDIRECT($C$2&$C18&"!"&W$5&$V$4)="","★",INDIRECT($C$2&$C18&"!"&W$5&$V$4)) ->  | X18: =IF(INDIRECT($C$2&$C18&"!"&X$5&$V$4)="","★",INDIRECT($C$2&$C18&"!"&X$5&$V$4)) ->  | Y18: =IF(INDIRECT($C$2&$C18&"!"&Y$5&$V$4)="","★",INDIRECT($C$2&$C18&"!"&Y$5&$V$4)) ->  | Z18: =IF(INDIRECT($C$2&$C18&"!"&Z$5&$V$4)="","★",INDIRECT($C$2&$C18&"!"&Z$5&$V$4)) ->  | AA18: =IF(INDIRECT($C$2&$C18&"!"&AA$5&$V$4)="","★",INDIRECT($C$2&$C18&"!"&AA$5&$V$4)) ->  | AB18: =IF(INDIRECT($C$2&$C18&"!"&AB$5&$V$4)="","★",INDIRECT($C$2&$C18&"!"&AB$5&$V$4)) ->  | AC18: =IF(INDIRECT($C$2&$C18&"!"&AC$5&$V$4)="","★",INDIRECT($C$2&$C18&"!"&AC$5&$V$4)) ->  | AD18: =IF(INDIRECT($C$2&$C18&"!"&AD$5&$V$4)="","★",INDIRECT($C$2&$C18&"!"&AD$5&$V$4)) ->  | AE18: =IF(INDIRECT($C$2&$C18&"!"&AE$5&$V$4)="","★",INDIRECT($C$2&$C18&"!"&AE$5&$V$4)) ->  | AF18: =IF(INDIRECT($C$2&$C18&"!"&AF$5&$AF$4)="","★",INDIRECT($C$2&$C18&"!"&AF$5&$AF$4)) ->  | AG18: =IF(INDIRECT($C$2&$C18&"!"&AG$5&$AF$4)="","★",INDIRECT($C$2&$C18&"!"&AG$5&$AF$4)) ->  | AH18: =IF(INDIRECT($C$2&$C18&"!"&AH$5&$AH$4)="","★",INDIRECT($C$2&$C18&"!"&AH$5&$AH$4)) ->  | AI18: =IF(INDIRECT($C$2&$C18&"!"&AI$5&$AH$4)="","★",INDIRECT($C$2&$C18&"!"&AI$5&$AH$4)) ->  | AJ18: =IF(INDIRECT($C$2&$C18&"!"&AJ$5&$AJ$4)="","★",INDIRECT($C$2&$C18&"!"&AJ$5&$AJ$4)) ->  | AK18: =IF(INDIRECT($C$2&$C18&"!"&AK$5&$AJ$4)="","★",INDIRECT($C$2&$C18&"!"&AK$5&$AJ$4)) ->  | AL18: =$AF18 ->  | AM18: =$AG18 ->  | AN18: =IF(INDIRECT($C$2&$C18&"!"&AN$5&$AN$4)="","★",INDIRECT($C$2&$C18&"!"&AN$5&$AN$4)) ->  | AO18: =IF(INDIRECT($C$2&$C18&"!"&AO$5&$AN$4)="","★",INDIRECT($C$2&$C18&"!"&AO$5&$AN$4)) ->  | AP18: =IF(INDIRECT($C$2&$C18&"!"&AP$5&$AN$4)="","★",INDIRECT($C$2&$C18&"!"&AP$5&$AN$4)) ->  | AQ18: =IF(INDIRECT($C$2&$C18&"!"&AQ$5&$AN$4)="","★",INDIRECT($C$2&$C18&"!"&AQ$5&$AN$4)) ->  | AR18: =IF(INDIRECT($C$2&$C18&"!"&AR$5&$AN$4)="","★",INDIRECT($C$2&$C18&"!"&AR$5&$AN$4)) ->  | AS18: =IF(INDIRECT($C$2&$C18&"!"&AS$5&$AN$4)="","★",INDIRECT($C$2&$C18&"!"&AS$5&$AN$4)) ->  | AT18: =IF(INDIRECT($C$2&$C18&"!"&AT$5&$AN$4)="","★",INDIRECT($C$2&$C18&"!"&AT$5&$AN$4)) ->  | AU18: =IF(INDIRECT($C$2&$C18&"!"&AU$5&$AN$4)="","★",INDIRECT($C$2&$C18&"!"&AU$5&$AN$4)) ->  | AV18: =IF(INDIRECT($C$2&$C18&"!"&AV$5&$AN$4)="","★",INDIRECT($C$2&$C18&"!"&AV$5&$AN$4)) ->  | AW18: =IF(INDIRECT($C$2&$C18&"!"&AW$5&$AN$4)="","★",INDIRECT($C$2&$C18&"!"&AW$5&$AN$4)) ->  | AX18: =$AH18 ->  | AY18: =$AI18 ->  | AZ18: =IF(INDIRECT($C$2&$C18&"!"&AZ$5&$AZ$4)="","★",INDIRECT($C$2&$C18&"!"&AZ$5&$AZ$4)) ->  | BA18: =IF(INDIRECT($C$2&$C18&"!"&BA$5&$AZ$4)="","★",INDIRECT($C$2&$C18&"!"&BA$5&$AZ$4)) ->  | BB18: =IF(INDIRECT($C$2&$C18&"!"&BB$5&$AZ$4)="","★",INDIRECT($C$2&$C18&"!"&BB$5&$AZ$4)) ->  | BC18: =IF(INDIRECT($C$2&$C18&"!"&BC$5&$AZ$4)="","★",INDIRECT($C$2&$C18&"!"&BC$5&$AZ$4)) ->  | BD18: =IF(INDIRECT($C$2&$C18&"!"&BD$5&$AZ$4)="","★",INDIRECT($C$2&$C18&"!"&BD$5&$AZ$4)) ->  | BE18: =IF(INDIRECT($C$2&$C18&"!"&BE$5&$AZ$4)="","★",INDIRECT($C$2&$C18&"!"&BE$5&$AZ$4)) ->  | BF18: =IF(INDIRECT($C$2&$C18&"!"&BF$5&$AZ$4)="","★",INDIRECT($C$2&$C18&"!"&BF$5&$AZ$4)) ->  | BG18: =IF(INDIRECT($C$2&$C18&"!"&BG$5&$AZ$4)="","★",INDIRECT($C$2&$C18&"!"&BG$5&$AZ$4)) ->  | BH18: =IF(INDIRECT($C$2&$C18&"!"&BH$5&$AZ$4)="","★",INDIRECT($C$2&$C18&"!"&BH$5&$AZ$4)) ->  | BI18: =IF(INDIRECT($C$2&$C18&"!"&BI$5&$AZ$4)="","★",INDIRECT($C$2&$C18&"!"&BI$5&$AZ$4)) ->  | BJ18: =$AJ18 ->  | BK18: =$AK18 ->  | BL18: =IF(INDIRECT($C$2&$C18&"!"&BL$5&$BL$4)="","★",INDIRECT($C$2&$C18&"!"&BL$5&$BL$4)) ->  | BM18: =IF(INDIRECT($C$2&$C18&"!"&BM$5&$BL$4)="","★",INDIRECT($C$2&$C18&"!"&BM$5&$BL$4)) ->  | BN18: =IF(INDIRECT($C$2&$C18&"!"&BN$5&$BL$4)="","★",INDIRECT($C$2&$C18&"!"&BN$5&$BL$4)) ->  | BO18: =IF(INDIRECT($C$2&$C18&"!"&BO$5&$BL$4)="","★",INDIRECT($C$2&$C18&"!"&BO$5&$BL$4)) ->  | BP18: =IF(INDIRECT($C$2&$C18&"!"&BP$5&$BL$4)="","★",INDIRECT($C$2&$C18&"!"&BP$5&$BL$4)) ->  | BQ18: =IF(INDIRECT($C$2&$C18&"!"&BQ$5&$BL$4)="","★",INDIRECT($C$2&$C18&"!"&BQ$5&$BL$4)) ->  | BR18: =IF(INDIRECT($C$2&$C18&"!"&BR$5&$BL$4)="","★",INDIRECT($C$2&$C18&"!"&BR$5&$BL$4)) ->  | BS18: =IF(INDIRECT($C$2&$C18&"!"&BS$5&$BL$4)="","★",INDIRECT($C$2&$C18&"!"&BS$5&$BL$4)) ->  | BT18: =IF(INDIRECT($C$2&$C18&"!"&BT$5&$BL$4)="","★",INDIRECT($C$2&$C18&"!"&BT$5&$BL$4)) ->  | BU18: =IF(INDIRECT($C$2&$C18&"!"&BU$5&$BL$4)="","★",INDIRECT($C$2&$C18&"!"&BU$5&$BL$4)) ->  | BV18: =IF(INDIRECT($C$2&$C18&"!"&BV$5&$BV$4)="","★",INDIRECT($C$2&$C18&"!"&BV$5&$BV$4)) ->  | BW18: =IF(INDIRECT($C$2&$C18&"!"&BW$5&$BV$4)="","★",INDIRECT($C$2&$C18&"!"&BW$5&$BV$4)) ->  | BX18: =IF(INDIRECT($C$2&$C18&"!"&BX$5&$BV$4)="","★",INDIRECT($C$2&$C18&"!"&BX$5&$BV$4)) ->  | BY18: =IF(INDIRECT($C$2&$C18&"!"&BY$5&$BV$4)="","★",INDIRECT($C$2&$C18&"!"&BY$5&$BV$4)) ->  | BZ18: =IF(INDIRECT($C$2&$C18&"!"&BZ$5&$BV$4)="","★",INDIRECT($C$2&$C18&"!"&BZ$5&$BV$4)) ->  | CA18: =IF(INDIRECT($C$2&$C18&"!"&CA$5&$BV$4)="","★",INDIRECT($C$2&$C18&"!"&CA$5&$BV$4)) ->  | CB18: =IF(INDIRECT($C$2&$C18&"!"&CB$5&$BV$4)="","★",INDIRECT($C$2&$C18&"!"&CB$5&$BV$4)) ->  | CC18: =IF(INDIRECT($C$2&$C18&"!"&CC$5&$CC$4)="","★",INDIRECT($C$2&$C18&"!"&CC$5&$CC$4)) ->  | CD18: =IF(INDIRECT($C$2&$C18&"!"&CD$5&$CC$4)="","★",INDIRECT($C$2&$C18&"!"&CD$5&$CC$4)) ->  | CE18: =IF(INDIRECT($C$2&$C18&"!"&CE$5&$CC$4)="","★",INDIRECT($C$2&$C18&"!"&CE$5&$CC$4)) ->  | CF18: =IF(INDIRECT($C$2&$C18&"!"&CF$5&$CC$4)="","★",INDIRECT($C$2&$C18&"!"&CF$5&$CC$4)) ->  | CG18: =IF(INDIRECT($C$2&$C18&"!"&CG$5&$CC$4)="","★",INDIRECT($C$2&$C18&"!"&CG$5&$CC$4)) ->  | CH18: =IF(INDIRECT($C$2&$C18&"!"&CH$5&$CC$4)="","★",INDIRECT($C$2&$C18&"!"&CH$5&$CC$4)) ->  | CI18: =IF(INDIRECT($C$2&$C18&"!"&CI$5&$CC$4)="","★",INDIRECT($C$2&$C18&"!"&CI$5&$CC$4)) ->  | CJ18: =IF(INDIRECT($C$2&$C18&"!"&CJ$5&$CC$4)="","★",INDIRECT($C$2&$C18&"!"&CJ$5&$CC$4)) ->  | CK18: =$AF18 ->  | CL18: =$AG18 ->  | CM18: =IF(INDIRECT($C$2&$C18&"!"&CM$5&$CM$4)="","★",INDIRECT($C$2&$C18&"!"&CM$5&$CM$4)) ->  | CN18: =IF(INDIRECT($C$2&$C18&"!"&CN$5&$CM$4)="","★",INDIRECT($C$2&$C18&"!"&CN$5&$CM$4)) ->  | CO18: =IF(INDIRECT($C$2&$C18&"!"&CO$5&$CM$4)="","★",INDIRECT($C$2&$C18&"!"&CO$5&$CM$4)) ->  | CP18: =IF(INDIRECT($C$2&$C18&"!"&CP$5&$CM$4)="","★",INDIRECT($C$2&$C18&"!"&CP$5&$CM$4)) ->  | CQ18: =IF(INDIRECT($C$2&$C18&"!"&CQ$5&$CM$4)="","★",INDIRECT($C$2&$C18&"!"&CQ$5&$CM$4)) ->  | CR18: =IF(INDIRECT($C$2&$C18&"!"&CR$5&$CM$4)="","★",INDIRECT($C$2&$C18&"!"&CR$5&$CM$4)) ->  | CS18: =IF(INDIRECT($C$2&$C18&"!"&CS$5&$CM$4)="","★",INDIRECT($C$2&$C18&"!"&CS$5&$CM$4)) ->  | CT18: =IF(INDIRECT($C$2&$C18&"!"&CT$5&$CM$4)="","★",INDIRECT($C$2&$C18&"!"&CT$5&$CM$4)) ->  | CU18: =$AH18 ->  | CV18: =$AI18 ->  | CW18: =IF(INDIRECT($C$2&$C18&"!"&CW$5&$CW$4)="","★",INDIRECT($C$2&$C18&"!"&CW$5&$CW$4)) ->  | CX18: =IF(INDIRECT($C$2&$C18&"!"&CX$5&$CW$4)="","★",INDIRECT($C$2&$C18&"!"&CX$5&$CW$4)) ->  | CY18: =IF(INDIRECT($C$2&$C18&"!"&CY$5&$CW$4)="","★",INDIRECT($C$2&$C18&"!"&CY$5&$CW$4)) ->  | CZ18: =IF(INDIRECT($C$2&$C18&"!"&CZ$5&$CW$4)="","★",INDIRECT($C$2&$C18&"!"&CZ$5&$CW$4)) ->  | DA18: =IF(INDIRECT($C$2&$C18&"!"&DA$5&$CW$4)="","★",INDIRECT($C$2&$C18&"!"&DA$5&$CW$4)) ->  | DB18: =IF(INDIRECT($C$2&$C18&"!"&DB$5&$CW$4)="","★",INDIRECT($C$2&$C18&"!"&DB$5&$CW$4)) ->  | DC18: =IF(INDIRECT($C$2&$C18&"!"&DC$5&$CW$4)="","★",INDIRECT($C$2&$C18&"!"&DC$5&$CW$4)) ->  | DD18: =IF(INDIRECT($C$2&$C18&"!"&DD$5&$CW$4)="","★",INDIRECT($C$2&$C18&"!"&DD$5&$CW$4)) ->  | DE18: =$AJ18 ->  | DF18: =$AK18 ->  | DG18: =IF(INDIRECT($C$2&$C18&"!"&DG$5&$DG$4)="","★",INDIRECT($C$2&$C18&"!"&DG$5&$DG$4)) ->  | DH18: =IF(INDIRECT($C$2&$C18&"!"&DH$5&$DG$4)="","★",INDIRECT($C$2&$C18&"!"&DH$5&$DG$4)) ->  | DI18: =IF(INDIRECT($C$2&$C18&"!"&DI$5&$DG$4)="","★",INDIRECT($C$2&$C18&"!"&DI$5&$DG$4)) ->  | DJ18: =IF(INDIRECT($C$2&$C18&"!"&DJ$5&$DG$4)="","★",INDIRECT($C$2&$C18&"!"&DJ$5&$DG$4)) ->  | DK18: =IF(INDIRECT($C$2&$C18&"!"&DK$5&$DG$4)="","★",INDIRECT($C$2&$C18&"!"&DK$5&$DG$4)) ->  | DL18: =IF(INDIRECT($C$2&$C18&"!"&DL$5&$DG$4)="","★",INDIRECT($C$2&$C18&"!"&DL$5&$DG$4)) ->  | DM18: =IF(INDIRECT($C$2&$C18&"!"&DM$5&$DG$4)="","★",INDIRECT($C$2&$C18&"!"&DM$5&$DG$4)) ->  | DN18: =IF(INDIRECT($C$2&$C18&"!"&DN$5&$DG$4)="","★",INDIRECT($C$2&$C18&"!"&DN$5&$DG$4)) ->  | DO18: =IF(INDIRECT($C$2&$C18&"!B57")="","★",INDIRECT($C$2&$C18&"!B57")) ->  | DP18: =IF(INDIRECT($C$2&$C18&"!B100")="","★",INDIRECT($C$2&$C18&"!B100")) ->  | DQ18: =IF(INDIRECT($C$2&$C18&"!B112")="","★",INDIRECT($C$2&$C18&"!B112")) ->  | DR18: =IF(INDIRECT($C$2&$C18&"!B155")="","★",INDIRECT($C$2&$C18&"!B155")) ->  | DS18: =IF(INDIRECT($C$2&$C18&"!B167")="","★",INDIRECT($C$2&$C18&"!B167")) ->  | DT18: =IF(INDIRECT($C$2&$C18&"!B210")="","★",INDIRECT($C$2&$C18&"!B210")) -> 
C19: =C18 -> ★ | L19: =$C19&"-2" -> ★-2 | M19: =IF(INDIRECT($C$2&$C19&"!"&M$5&$M$4+1)="","★",INDIRECT($C$2&$C19&"!"&M$5&$M$4+1)) ->  | N19: =IF(INDIRECT($C$2&$C19&"!"&N$5&$M$4+1)="","★",INDIRECT($C$2&$C19&"!"&N$5&$M$4+1)) ->  | O19: =IF(INDIRECT($C$2&$C19&"!"&O$5&$M$4+1)="","★",INDIRECT($C$2&$C19&"!"&O$5&$M$4+1)) ->  | P19: =IF(INDIRECT($C$2&$C19&"!"&P$5&$M$4+1)="","★",INDIRECT($C$2&$C19&"!"&P$5&$M$4+1)) ->  | Q19: =IF(INDIRECT($C$2&$C19&"!"&Q$5&$M$4+1)="","★",INDIRECT($C$2&$C19&"!"&Q$5&$M$4+1)) ->  | R19: =IF(INDIRECT($C$2&$C19&"!"&R$5&$M$4+1)="","★",INDIRECT($C$2&$C19&"!"&R$5&$M$4+1)) ->  | S19: =IF(INDIRECT($C$2&$C19&"!"&S$5&$M$4+1)="","★",INDIRECT($C$2&$C19&"!"&S$5&$M$4+1)) ->  | T19: =IF(INDIRECT($C$2&$C19&"!"&T$5&$M$4+1)="","★",INDIRECT($C$2&$C19&"!"&T$5&$M$4+1)) ->  | V19: =IF(INDIRECT($C$2&$C19&"!"&V$5&$V$4+1)="","★",INDIRECT($C$2&$C19&"!"&V$5&$V$4+1)) ->  | W19: =IF(INDIRECT($C$2&$C19&"!"&W$5&$V$4+1)="","★",INDIRECT($C$2&$C19&"!"&W$5&$V$4+1)) ->  | X19: =IF(INDIRECT($C$2&$C19&"!"&X$5&$V$4+1)="","★",INDIRECT($C$2&$C19&"!"&X$5&$V$4+1)) ->  | Y19: =IF(INDIRECT($C$2&$C19&"!"&Y$5&$V$4+1)="","★",INDIRECT($C$2&$C19&"!"&Y$5&$V$4+1)) ->  | Z19: =IF(INDIRECT($C$2&$C19&"!"&Z$5&$V$4+1)="","★",INDIRECT($C$2&$C19&"!"&Z$5&$V$4+1)) ->  | AA19: =IF(INDIRECT($C$2&$C19&"!"&AA$5&$V$4+1)="","★",INDIRECT($C$2&$C19&"!"&AA$5&$V$4+1)) ->  | AB19: =IF(INDIRECT($C$2&$C19&"!"&AB$5&$V$4+1)="","★",INDIRECT($C$2&$C19&"!"&AB$5&$V$4+1)) ->  | AC19: =IF(INDIRECT($C$2&$C19&"!"&AC$5&$V$4+1)="","★",INDIRECT($C$2&$C19&"!"&AC$5&$V$4+1)) ->  | AN19: =IF(INDIRECT($C$2&$C19&"!"&AN$5&$AN$4+1)="","★",INDIRECT($C$2&$C19&"!"&AN$5&$AN$4+1)) ->  | AO19: =IF(INDIRECT($C$2&$C19&"!"&AO$5&$AN$4+1)="","★",INDIRECT($C$2&$C19&"!"&AO$5&$AN$4+1)) ->  | AP19: =IF(INDIRECT($C$2&$C19&"!"&AP$5&$AN$4+1)="","★",INDIRECT($C$2&$C19&"!"&AP$5&$AN$4+1)) ->  | AQ19: =IF(INDIRECT($C$2&$C19&"!"&AQ$5&$AN$4+1)="","★",INDIRECT($C$2&$C19&"!"&AQ$5&$AN$4+1)) ->  | AR19: =IF(INDIRECT($C$2&$C19&"!"&AR$5&$AN$4+1)="","★",INDIRECT($C$2&$C19&"!"&AR$5&$AN$4+1)) ->  | AS19: =IF(INDIRECT($C$2&$C19&"!"&AS$5&$AN$4+1)="","★",INDIRECT($C$2&$C19&"!"&AS$5&$AN$4+1)) ->  | AT19: =IF(INDIRECT($C$2&$C19&"!"&AT$5&$AN$4+1)="","★",INDIRECT($C$2&$C19&"!"&AT$5&$AN$4+1)) ->  | AU19: =IF(INDIRECT($C$2&$C19&"!"&AU$5&$AN$4+1)="","★",INDIRECT($C$2&$C19&"!"&AU$5&$AN$4+1)) ->  | AZ19: =IF(INDIRECT($C$2&$C19&"!"&AZ$5&$AZ$4+1)="","★",INDIRECT($C$2&$C19&"!"&AZ$5&$AZ$4+1)) ->  | BA19: =IF(INDIRECT($C$2&$C19&"!"&BA$5&$AZ$4+1)="","★",INDIRECT($C$2&$C19&"!"&BA$5&$AZ$4+1)) ->  | BB19: =IF(INDIRECT($C$2&$C19&"!"&BB$5&$AZ$4+1)="","★",INDIRECT($C$2&$C19&"!"&BB$5&$AZ$4+1)) ->  | BC19: =IF(INDIRECT($C$2&$C19&"!"&BC$5&$AZ$4+1)="","★",INDIRECT($C$2&$C19&"!"&BC$5&$AZ$4+1)) ->  | BD19: =IF(INDIRECT($C$2&$C19&"!"&BD$5&$AZ$4+1)="","★",INDIRECT($C$2&$C19&"!"&BD$5&$AZ$4+1)) ->  | BE19: =IF(INDIRECT($C$2&$C19&"!"&BE$5&$AZ$4+1)="","★",INDIRECT($C$2&$C19&"!"&BE$5&$AZ$4+1)) ->  | BF19: =IF(INDIRECT($C$2&$C19&"!"&BF$5&$AZ$4+1)="","★",INDIRECT($C$2&$C19&"!"&BF$5&$AZ$4+1)) ->  | BG19: =IF(INDIRECT($C$2&$C19&"!"&BG$5&$AZ$4+1)="","★",INDIRECT($C$2&$C19&"!"&BG$5&$AZ$4+1)) ->  | BL19: =IF(INDIRECT($C$2&$C19&"!"&BL$5&$BL$4+1)="","★",INDIRECT($C$2&$C19&"!"&BL$5&$BL$4+1)) ->  | BM19: =IF(INDIRECT($C$2&$C19&"!"&BM$5&$BL$4+1)="","★",INDIRECT($C$2&$C19&"!"&BM$5&$BL$4+1)) ->  | BN19: =IF(INDIRECT($C$2&$C19&"!"&BN$5&$BL$4+1)="","★",INDIRECT($C$2&$C19&"!"&BN$5&$BL$4+1)) ->  | BO19: =IF(INDIRECT($C$2&$C19&"!"&BO$5&$BL$4+1)="","★",INDIRECT($C$2&$C19&"!"&BO$5&$BL$4+1)) ->  | BP19: =IF(INDIRECT($C$2&$C19&"!"&BP$5&$BL$4+1)="","★",INDIRECT($C$2&$C19&"!"&BP$5&$BL$4+1)) ->  | BQ19: =IF(INDIRECT($C$2&$C19&"!"&BQ$5&$BL$4+1)="","★",INDIRECT($C$2&$C19&"!"&BQ$5&$BL$4+1)) ->  | BR19: =IF(INDIRECT($C$2&$C19&"!"&BR$5&$BL$4+1)="","★",INDIRECT($C$2&$C19&"!"&BR$5&$BL$4+1)) ->  | BS19: =IF(INDIRECT($C$2&$C19&"!"&BS$5&$BL$4+1)="","★",INDIRECT($C$2&$C19&"!"&BS$5&$BL$4+1)) ->  | BV19: =IF(INDIRECT($C$2&$C19&"!"&BV$5&$BV$4+1)="","★",INDIRECT($C$2&$C19&"!"&BV$5&$BV$4+1)) ->  | BW19: =IF(INDIRECT($C$2&$C19&"!"&BW$5&$BV$4+1)="","★",INDIRECT($C$2&$C19&"!"&BW$5&$BV$4+1)) ->  | BX19: =IF(INDIRECT($C$2&$C19&"!"&BX$5&$BV$4+1)="","★",INDIRECT($C$2&$C19&"!"&BX$5&$BV$4+1)) ->  | BY19: =IF(INDIRECT($C$2&$C19&"!"&BY$5&$BV$4+1)="","★",INDIRECT($C$2&$C19&"!"&BY$5&$BV$4+1)) ->  | BZ19: =IF(INDIRECT($C$2&$C19&"!"&BZ$5&$BV$4+1)="","★",INDIRECT($C$2&$C19&"!"&BZ$5&$BV$4+1)) ->  | CA19: =IF(INDIRECT($C$2&$C19&"!"&CA$5&$BV$4+1)="","★",INDIRECT($C$2&$C19&"!"&CA$5&$BV$4+1)) ->  | CC19: =IF(INDIRECT($C$2&$C19&"!"&CC$5&$CC$4+1)="","★",INDIRECT($C$2&$C19&"!"&CC$5&$CC$4+1)) ->  | CD19: =IF(INDIRECT($C$2&$C19&"!"&CD$5&$CC$4+1)="","★",INDIRECT($C$2&$C19&"!"&CD$5&$CC$4+1)) ->  | CE19: =IF(INDIRECT($C$2&$C19&"!"&CE$5&$CC$4+1)="","★",INDIRECT($C$2&$C19&"!"&CE$5&$CC$4+1)) ->  | CF19: =IF(INDIRECT($C$2&$C19&"!"&CF$5&$CC$4+1)="","★",INDIRECT($C$2&$C19&"!"&CF$5&$CC$4+1)) ->  | CG19: =IF(INDIRECT($C$2&$C19&"!"&CG$5&$CC$4+1)="","★",INDIRECT($C$2&$C19&"!"&CG$5&$CC$4+1)) ->  | CH19: =IF(INDIRECT($C$2&$C19&"!"&CH$5&$CC$4+1)="","★",INDIRECT($C$2&$C19&"!"&CH$5&$CC$4+1)) ->  | CM19: =IF(INDIRECT($C$2&$C19&"!"&CM$5&$CM$4+1)="","★",INDIRECT($C$2&$C19&"!"&CM$5&$CM$4+1)) ->  | CN19: =IF(INDIRECT($C$2&$C19&"!"&CN$5&$CM$4+1)="","★",INDIRECT($C$2&$C19&"!"&CN$5&$CM$4+1)) ->  | CO19: =IF(INDIRECT($C$2&$C19&"!"&CO$5&$CM$4+1)="","★",INDIRECT($C$2&$C19&"!"&CO$5&$CM$4+1)) ->  | CP19: =IF(INDIRECT($C$2&$C19&"!"&CP$5&$CM$4+1)="","★",INDIRECT($C$2&$C19&"!"&CP$5&$CM$4+1)) ->  | CQ19: =IF(INDIRECT($C$2&$C19&"!"&CQ$5&$CM$4+1)="","★",INDIRECT($C$2&$C19&"!"&CQ$5&$CM$4+1)) ->  | CR19: =IF(INDIRECT($C$2&$C19&"!"&CR$5&$CM$4+1)="","★",INDIRECT($C$2&$C19&"!"&CR$5&$CM$4+1)) ->  | CW19: =IF(INDIRECT($C$2&$C19&"!"&CW$5&$CW$4+1)="","★",INDIRECT($C$2&$C19&"!"&CW$5&$CW$4+1)) ->  | CX19: =IF(INDIRECT($C$2&$C19&"!"&CX$5&$CW$4+1)="","★",INDIRECT($C$2&$C19&"!"&CX$5&$CW$4+1)) ->  | CY19: =IF(INDIRECT($C$2&$C19&"!"&CY$5&$CW$4+1)="","★",INDIRECT($C$2&$C19&"!"&CY$5&$CW$4+1)) ->  | CZ19: =IF(INDIRECT($C$2&$C19&"!"&CZ$5&$CW$4+1)="","★",INDIRECT($C$2&$C19&"!"&CZ$5&$CW$4+1)) ->  | DA19: =IF(INDIRECT($C$2&$C19&"!"&DA$5&$CW$4+1)="","★",INDIRECT($C$2&$C19&"!"&DA$5&$CW$4+1)) ->  | DB19: =IF(INDIRECT($C$2&$C19&"!"&DB$5&$CW$4+1)="","★",INDIRECT($C$2&$C19&"!"&DB$5&$CW$4+1)) ->  | DG19: =IF(INDIRECT($C$2&$C19&"!"&DG$5&$DG$4+1)="","★",INDIRECT($C$2&$C19&"!"&DG$5&$DG$4+1)) ->  | DH19: =IF(INDIRECT($C$2&$C19&"!"&DH$5&$DG$4+1)="","★",INDIRECT($C$2&$C19&"!"&DH$5&$DG$4+1)) ->  | DI19: =IF(INDIRECT($C$2&$C19&"!"&DI$5&$DG$4+1)="","★",INDIRECT($C$2&$C19&"!"&DI$5&$DG$4+1)) ->  | DJ19: =IF(INDIRECT($C$2&$C19&"!"&DJ$5&$DG$4+1)="","★",INDIRECT($C$2&$C19&"!"&DJ$5&$DG$4+1)) ->  | DK19: =IF(INDIRECT($C$2&$C19&"!"&DK$5&$DG$4+1)="","★",INDIRECT($C$2&$C19&"!"&DK$5&$DG$4+1)) ->  | DL19: =IF(INDIRECT($C$2&$C19&"!"&DL$5&$DG$4+1)="","★",INDIRECT($C$2&$C19&"!"&DL$5&$DG$4+1)) -> 
C20: =C19 -> ★ | L20: =$C20&"-3" -> ★-3 | M20: =IF(INDIRECT($C$2&$C20&"!"&M$5&$M$4+2)="","★",INDIRECT($C$2&$C20&"!"&M$5&$M$4+2)) ->  | N20: =IF(INDIRECT($C$2&$C20&"!"&N$5&$M$4+2)="","★",INDIRECT($C$2&$C20&"!"&N$5&$M$4+2)) ->  | O20: =IF(INDIRECT($C$2&$C20&"!"&O$5&$M$4+2)="","★",INDIRECT($C$2&$C20&"!"&O$5&$M$4+2)) ->  | P20: =IF(INDIRECT($C$2&$C20&"!"&P$5&$M$4+2)="","★",INDIRECT($C$2&$C20&"!"&P$5&$M$4+2)) ->  | Q20: =IF(INDIRECT($C$2&$C20&"!"&Q$5&$M$4+2)="","★",INDIRECT($C$2&$C20&"!"&Q$5&$M$4+2)) ->  | R20: =IF(INDIRECT($C$2&$C20&"!"&R$5&$M$4+2)="","★",INDIRECT($C$2&$C20&"!"&R$5&$M$4+2)) ->  | S20: =IF(INDIRECT($C$2&$C20&"!"&S$5&$M$4+2)="","★",INDIRECT($C$2&$C20&"!"&S$5&$M$4+2)) ->  | T20: =IF(INDIRECT($C$2&$C20&"!"&T$5&$M$4+2)="","★",INDIRECT($C$2&$C20&"!"&T$5&$M$4+2)) ->  | V20: =IF(INDIRECT($C$2&$C20&"!"&V$5&$V$4+2)="","★",INDIRECT($C$2&$C20&"!"&V$5&$V$4+2)) ->  | W20: =IF(INDIRECT($C$2&$C20&"!"&W$5&$V$4+2)="","★",INDIRECT($C$2&$C20&"!"&W$5&$V$4+2)) ->  | X20: =IF(INDIRECT($C$2&$C20&"!"&X$5&$V$4+2)="","★",INDIRECT($C$2&$C20&"!"&X$5&$V$4+2)) ->  | Y20: =IF(INDIRECT($C$2&$C20&"!"&Y$5&$V$4+2)="","★",INDIRECT($C$2&$C20&"!"&Y$5&$V$4+2)) ->  | Z20: =IF(INDIRECT($C$2&$C20&"!"&Z$5&$V$4+2)="","★",INDIRECT($C$2&$C20&"!"&Z$5&$V$4+2)) ->  | AA20: =IF(INDIRECT($C$2&$C20&"!"&AA$5&$V$4+2)="","★",INDIRECT($C$2&$C20&"!"&AA$5&$V$4+2)) ->  | AB20: =IF(INDIRECT($C$2&$C20&"!"&AB$5&$V$4+2)="","★",INDIRECT($C$2&$C20&"!"&AB$5&$V$4+2)) ->  | AC20: =IF(INDIRECT($C$2&$C20&"!"&AC$5&$V$4+2)="","★",INDIRECT($C$2&$C20&"!"&AC$5&$V$4+2)) ->  | AN20: =IF(INDIRECT($C$2&$C20&"!"&AN$5&$AN$4+2)="","★",INDIRECT($C$2&$C20&"!"&AN$5&$AN$4+2)) ->  | AO20: =IF(INDIRECT($C$2&$C20&"!"&AO$5&$AN$4+2)="","★",INDIRECT($C$2&$C20&"!"&AO$5&$AN$4+2)) ->  | AP20: =IF(INDIRECT($C$2&$C20&"!"&AP$5&$AN$4+2)="","★",INDIRECT($C$2&$C20&"!"&AP$5&$AN$4+2)) ->  | AQ20: =IF(INDIRECT($C$2&$C20&"!"&AQ$5&$AN$4+2)="","★",INDIRECT($C$2&$C20&"!"&AQ$5&$AN$4+2)) ->  | AR20: =IF(INDIRECT($C$2&$C20&"!"&AR$5&$AN$4+2)="","★",INDIRECT($C$2&$C20&"!"&AR$5&$AN$4+2)) ->  | AS20: =IF(INDIRECT($C$2&$C20&"!"&AS$5&$AN$4+2)="","★",INDIRECT($C$2&$C20&"!"&AS$5&$AN$4+2)) ->  | AT20: =IF(INDIRECT($C$2&$C20&"!"&AT$5&$AN$4+2)="","★",INDIRECT($C$2&$C20&"!"&AT$5&$AN$4+2)) ->  | AU20: =IF(INDIRECT($C$2&$C20&"!"&AU$5&$AN$4+2)="","★",INDIRECT($C$2&$C20&"!"&AU$5&$AN$4+2)) ->  | AZ20: =IF(INDIRECT($C$2&$C20&"!"&AZ$5&$AZ$4+2)="","★",INDIRECT($C$2&$C20&"!"&AZ$5&$AZ$4+2)) ->  | BA20: =IF(INDIRECT($C$2&$C20&"!"&BA$5&$AZ$4+2)="","★",INDIRECT($C$2&$C20&"!"&BA$5&$AZ$4+2)) ->  | BB20: =IF(INDIRECT($C$2&$C20&"!"&BB$5&$AZ$4+2)="","★",INDIRECT($C$2&$C20&"!"&BB$5&$AZ$4+2)) ->  | BC20: =IF(INDIRECT($C$2&$C20&"!"&BC$5&$AZ$4+2)="","★",INDIRECT($C$2&$C20&"!"&BC$5&$AZ$4+2)) ->  | BD20: =IF(INDIRECT($C$2&$C20&"!"&BD$5&$AZ$4+2)="","★",INDIRECT($C$2&$C20&"!"&BD$5&$AZ$4+2)) ->  | BE20: =IF(INDIRECT($C$2&$C20&"!"&BE$5&$AZ$4+2)="","★",INDIRECT($C$2&$C20&"!"&BE$5&$AZ$4+2)) ->  | BF20: =IF(INDIRECT($C$2&$C20&"!"&BF$5&$AZ$4+2)="","★",INDIRECT($C$2&$C20&"!"&BF$5&$AZ$4+2)) ->  | BG20: =IF(INDIRECT($C$2&$C20&"!"&BG$5&$AZ$4+2)="","★",INDIRECT($C$2&$C20&"!"&BG$5&$AZ$4+2)) ->  | BL20: =IF(INDIRECT($C$2&$C20&"!"&BL$5&$BL$4+2)="","★",INDIRECT($C$2&$C20&"!"&BL$5&$BL$4+2)) ->  | BM20: =IF(INDIRECT($C$2&$C20&"!"&BM$5&$BL$4+2)="","★",INDIRECT($C$2&$C20&"!"&BM$5&$BL$4+2)) ->  | BN20: =IF(INDIRECT($C$2&$C20&"!"&BN$5&$BL$4+2)="","★",INDIRECT($C$2&$C20&"!"&BN$5&$BL$4+2)) ->  | BO20: =IF(INDIRECT($C$2&$C20&"!"&BO$5&$BL$4+2)="","★",INDIRECT($C$2&$C20&"!"&BO$5&$BL$4+2)) ->  | BP20: =IF(INDIRECT($C$2&$C20&"!"&BP$5&$BL$4+2)="","★",INDIRECT($C$2&$C20&"!"&BP$5&$BL$4+2)) ->  | BQ20: =IF(INDIRECT($C$2&$C20&"!"&BQ$5&$BL$4+2)="","★",INDIRECT($C$2&$C20&"!"&BQ$5&$BL$4+2)) ->  | BR20: =IF(INDIRECT($C$2&$C20&"!"&BR$5&$BL$4+2)="","★",INDIRECT($C$2&$C20&"!"&BR$5&$BL$4+2)) ->  | BS20: =IF(INDIRECT($C$2&$C20&"!"&BS$5&$BL$4+2)="","★",INDIRECT($C$2&$C20&"!"&BS$5&$BL$4+2)) ->  | BV20: =IF(INDIRECT($C$2&$C20&"!"&BV$5&$BV$4+2)="","★",INDIRECT($C$2&$C20&"!"&BV$5&$BV$4+2)) ->  | BW20: =IF(INDIRECT($C$2&$C20&"!"&BW$5&$BV$4+2)="","★",INDIRECT($C$2&$C20&"!"&BW$5&$BV$4+2)) ->  | BX20: =IF(INDIRECT($C$2&$C20&"!"&BX$5&$BV$4+2)="","★",INDIRECT($C$2&$C20&"!"&BX$5&$BV$4+2)) ->  | BY20: =IF(INDIRECT($C$2&$C20&"!"&BY$5&$BV$4+2)="","★",INDIRECT($C$2&$C20&"!"&BY$5&$BV$4+2)) ->  | BZ20: =IF(INDIRECT($C$2&$C20&"!"&BZ$5&$BV$4+2)="","★",INDIRECT($C$2&$C20&"!"&BZ$5&$BV$4+2)) ->  | CA20: =IF(INDIRECT($C$2&$C20&"!"&CA$5&$BV$4+2)="","★",INDIRECT($C$2&$C20&"!"&CA$5&$BV$4+2)) ->  | CC20: =IF(INDIRECT($C$2&$C20&"!"&CC$5&$CC$4+2)="","★",INDIRECT($C$2&$C20&"!"&CC$5&$CC$4+2)) ->  | CD20: =IF(INDIRECT($C$2&$C20&"!"&CD$5&$CC$4+2)="","★",INDIRECT($C$2&$C20&"!"&CD$5&$CC$4+2)) ->  | CE20: =IF(INDIRECT($C$2&$C20&"!"&CE$5&$CC$4+2)="","★",INDIRECT($C$2&$C20&"!"&CE$5&$CC$4+2)) ->  | CF20: =IF(INDIRECT($C$2&$C20&"!"&CF$5&$CC$4+2)="","★",INDIRECT($C$2&$C20&"!"&CF$5&$CC$4+2)) ->  | CG20: =IF(INDIRECT($C$2&$C20&"!"&CG$5&$CC$4+2)="","★",INDIRECT($C$2&$C20&"!"&CG$5&$CC$4+2)) ->  | CH20: =IF(INDIRECT($C$2&$C20&"!"&CH$5&$CC$4+2)="","★",INDIRECT($C$2&$C20&"!"&CH$5&$CC$4+2)) ->  | CM20: =IF(INDIRECT($C$2&$C20&"!"&CM$5&$CM$4+2)="","★",INDIRECT($C$2&$C20&"!"&CM$5&$CM$4+2)) ->  | CN20: =IF(INDIRECT($C$2&$C20&"!"&CN$5&$CM$4+2)="","★",INDIRECT($C$2&$C20&"!"&CN$5&$CM$4+2)) ->  | CO20: =IF(INDIRECT($C$2&$C20&"!"&CO$5&$CM$4+2)="","★",INDIRECT($C$2&$C20&"!"&CO$5&$CM$4+2)) ->  | CP20: =IF(INDIRECT($C$2&$C20&"!"&CP$5&$CM$4+2)="","★",INDIRECT($C$2&$C20&"!"&CP$5&$CM$4+2)) ->  | CQ20: =IF(INDIRECT($C$2&$C20&"!"&CQ$5&$CM$4+2)="","★",INDIRECT($C$2&$C20&"!"&CQ$5&$CM$4+2)) ->  | CR20: =IF(INDIRECT($C$2&$C20&"!"&CR$5&$CM$4+2)="","★",INDIRECT($C$2&$C20&"!"&CR$5&$CM$4+2)) ->  | CW20: =IF(INDIRECT($C$2&$C20&"!"&CW$5&$CW$4+2)="","★",INDIRECT($C$2&$C20&"!"&CW$5&$CW$4+2)) ->  | CX20: =IF(INDIRECT($C$2&$C20&"!"&CX$5&$CW$4+2)="","★",INDIRECT($C$2&$C20&"!"&CX$5&$CW$4+2)) ->  | CY20: =IF(INDIRECT($C$2&$C20&"!"&CY$5&$CW$4+2)="","★",INDIRECT($C$2&$C20&"!"&CY$5&$CW$4+2)) ->  | CZ20: =IF(INDIRECT($C$2&$C20&"!"&CZ$5&$CW$4+2)="","★",INDIRECT($C$2&$C20&"!"&CZ$5&$CW$4+2)) ->  | DA20: =IF(INDIRECT($C$2&$C20&"!"&DA$5&$CW$4+2)="","★",INDIRECT($C$2&$C20&"!"&DA$5&$CW$4+2)) ->  | DB20: =IF(INDIRECT($C$2&$C20&"!"&DB$5&$CW$4+2)="","★",INDIRECT($C$2&$C20&"!"&DB$5&$CW$4+2)) ->  | DG20: =IF(INDIRECT($C$2&$C20&"!"&DG$5&$DG$4+2)="","★",INDIRECT($C$2&$C20&"!"&DG$5&$DG$4+2)) ->  | DH20: =IF(INDIRECT($C$2&$C20&"!"&DH$5&$DG$4+2)="","★",INDIRECT($C$2&$C20&"!"&DH$5&$DG$4+2)) ->  | DI20: =IF(INDIRECT($C$2&$C20&"!"&DI$5&$DG$4+2)="","★",INDIRECT($C$2&$C20&"!"&DI$5&$DG$4+2)) ->  | DJ20: =IF(INDIRECT($C$2&$C20&"!"&DJ$5&$DG$4+2)="","★",INDIRECT($C$2&$C20&"!"&DJ$5&$DG$4+2)) ->  | DK20: =IF(INDIRECT($C$2&$C20&"!"&DK$5&$DG$4+2)="","★",INDIRECT($C$2&$C20&"!"&DK$5&$DG$4+2)) ->  | DL20: =IF(INDIRECT($C$2&$C20&"!"&DL$5&$DG$4+2)="","★",INDIRECT($C$2&$C20&"!"&DL$5&$DG$4+2)) -> 
C21: ★ | L21: =$C21&"-4" -> ★-4 | M21: =IF(INDIRECT($C$2&$C21&"!"&M$5&$M$4+3)="","★",INDIRECT($C$2&$C21&"!"&M$5&$M$4+3)) ->  | N21: =IF(INDIRECT($C$2&$C21&"!"&N$5&$M$4+3)="","★",INDIRECT($C$2&$C21&"!"&N$5&$M$4+3)) ->  | O21: =IF(INDIRECT($C$2&$C21&"!"&O$5&$M$4+3)="","★",INDIRECT($C$2&$C21&"!"&O$5&$M$4+3)) ->  | P21: =IF(INDIRECT($C$2&$C21&"!"&P$5&$M$4+3)="","★",INDIRECT($C$2&$C21&"!"&P$5&$M$4+3)) ->  | Q21: =IF(INDIRECT($C$2&$C21&"!"&Q$5&$M$4+3)="","★",INDIRECT($C$2&$C21&"!"&Q$5&$M$4+3)) ->  | R21: =IF(INDIRECT($C$2&$C21&"!"&R$5&$M$4+3)="","★",INDIRECT($C$2&$C21&"!"&R$5&$M$4+3)) ->  | S21: =IF(INDIRECT($C$2&$C21&"!"&S$5&$M$4+3)="","★",INDIRECT($C$2&$C21&"!"&S$5&$M$4+3)) ->  | T21: =IF(INDIRECT($C$2&$C21&"!"&T$5&$M$4+3)="","★",INDIRECT($C$2&$C21&"!"&T$5&$M$4+3)) ->  | V21: =IF(INDIRECT($C$2&$C21&"!"&V$5&$V$4+3)="","★",INDIRECT($C$2&$C21&"!"&V$5&$V$4+3)) ->  | W21: =IF(INDIRECT($C$2&$C21&"!"&W$5&$V$4+3)="","★",INDIRECT($C$2&$C21&"!"&W$5&$V$4+3)) ->  | X21: =IF(INDIRECT($C$2&$C21&"!"&X$5&$V$4+3)="","★",INDIRECT($C$2&$C21&"!"&X$5&$V$4+3)) ->  | Y21: =IF(INDIRECT($C$2&$C21&"!"&Y$5&$V$4+3)="","★",INDIRECT($C$2&$C21&"!"&Y$5&$V$4+3)) ->  | Z21: =IF(INDIRECT($C$2&$C21&"!"&Z$5&$V$4+3)="","★",INDIRECT($C$2&$C21&"!"&Z$5&$V$4+3)) ->  | AA21: =IF(INDIRECT($C$2&$C21&"!"&AA$5&$V$4+3)="","★",INDIRECT($C$2&$C21&"!"&AA$5&$V$4+3)) ->  | AB21: =IF(INDIRECT($C$2&$C21&"!"&AB$5&$V$4+3)="","★",INDIRECT($C$2&$C21&"!"&AB$5&$V$4+3)) ->  | AC21: =IF(INDIRECT($C$2&$C21&"!"&AC$5&$V$4+3)="","★",INDIRECT($C$2&$C21&"!"&AC$5&$V$4+3)) ->  | AN21: =IF(INDIRECT($C$2&$C21&"!"&AN$5&$AN$4+3)="","★",INDIRECT($C$2&$C21&"!"&AN$5&$AN$4+3)) ->  | AO21: =IF(INDIRECT($C$2&$C21&"!"&AO$5&$AN$4+3)="","★",INDIRECT($C$2&$C21&"!"&AO$5&$AN$4+3)) ->  | AP21: =IF(INDIRECT($C$2&$C21&"!"&AP$5&$AN$4+3)="","★",INDIRECT($C$2&$C21&"!"&AP$5&$AN$4+3)) ->  | AQ21: =IF(INDIRECT($C$2&$C21&"!"&AQ$5&$AN$4+3)="","★",INDIRECT($C$2&$C21&"!"&AQ$5&$AN$4+3)) ->  | AR21: =IF(INDIRECT($C$2&$C21&"!"&AR$5&$AN$4+3)="","★",INDIRECT($C$2&$C21&"!"&AR$5&$AN$4+3)) ->  | AS21: =IF(INDIRECT($C$2&$C21&"!"&AS$5&$AN$4+3)="","★",INDIRECT($C$2&$C21&"!"&AS$5&$AN$4+3)) ->  | AT21: =IF(INDIRECT($C$2&$C21&"!"&AT$5&$AN$4+3)="","★",INDIRECT($C$2&$C21&"!"&AT$5&$AN$4+3)) ->  | AU21: =IF(INDIRECT($C$2&$C21&"!"&AU$5&$AN$4+3)="","★",INDIRECT($C$2&$C21&"!"&AU$5&$AN$4+3)) ->  | AZ21: =IF(INDIRECT($C$2&$C21&"!"&AZ$5&$AZ$4+3)="","★",INDIRECT($C$2&$C21&"!"&AZ$5&$AZ$4+3)) ->  | BA21: =IF(INDIRECT($C$2&$C21&"!"&BA$5&$AZ$4+3)="","★",INDIRECT($C$2&$C21&"!"&BA$5&$AZ$4+3)) ->  | BB21: =IF(INDIRECT($C$2&$C21&"!"&BB$5&$AZ$4+3)="","★",INDIRECT($C$2&$C21&"!"&BB$5&$AZ$4+3)) ->  | BC21: =IF(INDIRECT($C$2&$C21&"!"&BC$5&$AZ$4+3)="","★",INDIRECT($C$2&$C21&"!"&BC$5&$AZ$4+3)) ->  | BD21: =IF(INDIRECT($C$2&$C21&"!"&BD$5&$AZ$4+3)="","★",INDIRECT($C$2&$C21&"!"&BD$5&$AZ$4+3)) ->  | BE21: =IF(INDIRECT($C$2&$C21&"!"&BE$5&$AZ$4+3)="","★",INDIRECT($C$2&$C21&"!"&BE$5&$AZ$4+3)) ->  | BF21: =IF(INDIRECT($C$2&$C21&"!"&BF$5&$AZ$4+3)="","★",INDIRECT($C$2&$C21&"!"&BF$5&$AZ$4+3)) ->  | BG21: =IF(INDIRECT($C$2&$C21&"!"&BG$5&$AZ$4+3)="","★",INDIRECT($C$2&$C21&"!"&BG$5&$AZ$4+3)) ->  | BL21: =IF(INDIRECT($C$2&$C21&"!"&BL$5&$BL$4+3)="","★",INDIRECT($C$2&$C21&"!"&BL$5&$BL$4+3)) ->  | BM21: =IF(INDIRECT($C$2&$C21&"!"&BM$5&$BL$4+3)="","★",INDIRECT($C$2&$C21&"!"&BM$5&$BL$4+3)) ->  | BN21: =IF(INDIRECT($C$2&$C21&"!"&BN$5&$BL$4+3)="","★",INDIRECT($C$2&$C21&"!"&BN$5&$BL$4+3)) ->  | BO21: =IF(INDIRECT($C$2&$C21&"!"&BO$5&$BL$4+3)="","★",INDIRECT($C$2&$C21&"!"&BO$5&$BL$4+3)) ->  | BP21: =IF(INDIRECT($C$2&$C21&"!"&BP$5&$BL$4+3)="","★",INDIRECT($C$2&$C21&"!"&BP$5&$BL$4+3)) ->  | BQ21: =IF(INDIRECT($C$2&$C21&"!"&BQ$5&$BL$4+3)="","★",INDIRECT($C$2&$C21&"!"&BQ$5&$BL$4+3)) ->  | BR21: =IF(INDIRECT($C$2&$C21&"!"&BR$5&$BL$4+3)="","★",INDIRECT($C$2&$C21&"!"&BR$5&$BL$4+3)) ->  | BS21: =IF(INDIRECT($C$2&$C21&"!"&BS$5&$BL$4+3)="","★",INDIRECT($C$2&$C21&"!"&BS$5&$BL$4+3)) ->  | BV21: =IF(INDIRECT($C$2&$C21&"!"&BV$5&$BV$4+3)="","★",INDIRECT($C$2&$C21&"!"&BV$5&$BV$4+3)) ->  | BW21: =IF(INDIRECT($C$2&$C21&"!"&BW$5&$BV$4+3)="","★",INDIRECT($C$2&$C21&"!"&BW$5&$BV$4+3)) ->  | BX21: =IF(INDIRECT($C$2&$C21&"!"&BX$5&$BV$4+3)="","★",INDIRECT($C$2&$C21&"!"&BX$5&$BV$4+3)) ->  | BY21: =IF(INDIRECT($C$2&$C21&"!"&BY$5&$BV$4+3)="","★",INDIRECT($C$2&$C21&"!"&BY$5&$BV$4+3)) ->  | BZ21: =IF(INDIRECT($C$2&$C21&"!"&BZ$5&$BV$4+3)="","★",INDIRECT($C$2&$C21&"!"&BZ$5&$BV$4+3)) ->  | CA21: =IF(INDIRECT($C$2&$C21&"!"&CA$5&$BV$4+3)="","★",INDIRECT($C$2&$C21&"!"&CA$5&$BV$4+3)) ->  | CC21: =IF(INDIRECT($C$2&$C21&"!"&CC$5&$CC$4+3)="","★",INDIRECT($C$2&$C21&"!"&CC$5&$CC$4+3)) ->  | CD21: =IF(INDIRECT($C$2&$C21&"!"&CD$5&$CC$4+3)="","★",INDIRECT($C$2&$C21&"!"&CD$5&$CC$4+3)) ->  | CE21: =IF(INDIRECT($C$2&$C21&"!"&CE$5&$CC$4+3)="","★",INDIRECT($C$2&$C21&"!"&CE$5&$CC$4+3)) ->  | CF21: =IF(INDIRECT($C$2&$C21&"!"&CF$5&$CC$4+3)="","★",INDIRECT($C$2&$C21&"!"&CF$5&$CC$4+3)) ->  | CG21: =IF(INDIRECT($C$2&$C21&"!"&CG$5&$CC$4+3)="","★",INDIRECT($C$2&$C21&"!"&CG$5&$CC$4+3)) ->  | CH21: =IF(INDIRECT($C$2&$C21&"!"&CH$5&$CC$4+3)="","★",INDIRECT($C$2&$C21&"!"&CH$5&$CC$4+3)) ->  | CM21: =IF(INDIRECT($C$2&$C21&"!"&CM$5&$CM$4+3)="","★",INDIRECT($C$2&$C21&"!"&CM$5&$CM$4+3)) ->  | CN21: =IF(INDIRECT($C$2&$C21&"!"&CN$5&$CM$4+3)="","★",INDIRECT($C$2&$C21&"!"&CN$5&$CM$4+3)) ->  | CO21: =IF(INDIRECT($C$2&$C21&"!"&CO$5&$CM$4+3)="","★",INDIRECT($C$2&$C21&"!"&CO$5&$CM$4+3)) ->  | CP21: =IF(INDIRECT($C$2&$C21&"!"&CP$5&$CM$4+3)="","★",INDIRECT($C$2&$C21&"!"&CP$5&$CM$4+3)) ->  | CQ21: =IF(INDIRECT($C$2&$C21&"!"&CQ$5&$CM$4+3)="","★",INDIRECT($C$2&$C21&"!"&CQ$5&$CM$4+3)) ->  | CR21: =IF(INDIRECT($C$2&$C21&"!"&CR$5&$CM$4+3)="","★",INDIRECT($C$2&$C21&"!"&CR$5&$CM$4+3)) ->  | CW21: =IF(INDIRECT($C$2&$C21&"!"&CW$5&$CW$4+3)="","★",INDIRECT($C$2&$C21&"!"&CW$5&$CW$4+3)) ->  | CX21: =IF(INDIRECT($C$2&$C21&"!"&CX$5&$CW$4+3)="","★",INDIRECT($C$2&$C21&"!"&CX$5&$CW$4+3)) ->  | CY21: =IF(INDIRECT($C$2&$C21&"!"&CY$5&$CW$4+3)="","★",INDIRECT($C$2&$C21&"!"&CY$5&$CW$4+3)) ->  | CZ21: =IF(INDIRECT($C$2&$C21&"!"&CZ$5&$CW$4+3)="","★",INDIRECT($C$2&$C21&"!"&CZ$5&$CW$4+3)) ->  | DA21: =IF(INDIRECT($C$2&$C21&"!"&DA$5&$CW$4+3)="","★",INDIRECT($C$2&$C21&"!"&DA$5&$CW$4+3)) ->  | DB21: =IF(INDIRECT($C$2&$C21&"!"&DB$5&$CW$4+3)="","★",INDIRECT($C$2&$C21&"!"&DB$5&$CW$4+3)) ->  | DG21: =IF(INDIRECT($C$2&$C21&"!"&DG$5&$DG$4+3)="","★",INDIRECT($C$2&$C21&"!"&DG$5&$DG$4+3)) ->  | DH21: =IF(INDIRECT($C$2&$C21&"!"&DH$5&$DG$4+3)="","★",INDIRECT($C$2&$C21&"!"&DH$5&$DG$4+3)) ->  | DI21: =IF(INDIRECT($C$2&$C21&"!"&DI$5&$DG$4+3)="","★",INDIRECT($C$2&$C21&"!"&DI$5&$DG$4+3)) ->  | DJ21: =IF(INDIRECT($C$2&$C21&"!"&DJ$5&$DG$4+3)="","★",INDIRECT($C$2&$C21&"!"&DJ$5&$DG$4+3)) ->  | DK21: =IF(INDIRECT($C$2&$C21&"!"&DK$5&$DG$4+3)="","★",INDIRECT($C$2&$C21&"!"&DK$5&$DG$4+3)) ->  | DL21: =IF(INDIRECT($C$2&$C21&"!"&DL$5&$DG$4+3)="","★",INDIRECT($C$2&$C21&"!"&DL$5&$DG$4+3)) -> 
C22: =IF(INDIRECT($B$2&"B24")="","★",INDIRECT($B$2&"B24")) -> ★ | D22: =IF(INDIRECT($C$2&$C22&"!K12")="","★",INDIRECT($C$2&$C22&"!K12")) ->  | E22: =IF(INDIRECT($C$2&$C22&"!L12")="","★",INDIRECT($C$2&$C22&"!L12")) ->  | F22: =IF(INDIRECT($C$2&$C22&"!D13")="","★",INDIRECT($C$2&$C22&"!D13")) ->  | G22: =IF(INDIRECT($C$2&$C22&"!D14")="","★",INDIRECT($C$2&$C22&"!D14")) ->  | H22: =IF(INDIRECT($C$2&$C22&"!D15")="","★",INDIRECT($C$2&$C22&"!D15")) ->  | I22: =IF(INDIRECT($C$2&$C22&"!D16")="","★",INDIRECT($C$2&$C22&"!D16")) ->  | J22: =IF(INDIRECT($C$2&$C22&"!D17")="","★",INDIRECT($C$2&$C22&"!D17")) ->  | K22: =IF(INDIRECT($C$2&$C22&"!D18")="","★",INDIRECT($C$2&$C22&"!D18")) ->  | L22: =$C22&"-1" -> ★-1 | M22: =IF(INDIRECT($C$2&$C22&"!"&M$5&$M$4)="","★",INDIRECT($C$2&$C22&"!"&M$5&$M$4)) ->  | N22: =IF(INDIRECT($C$2&$C22&"!"&N$5&$M$4)="","★",INDIRECT($C$2&$C22&"!"&N$5&$M$4)) ->  | O22: =IF(INDIRECT($C$2&$C22&"!"&O$5&$M$4)="","★",INDIRECT($C$2&$C22&"!"&O$5&$M$4)) ->  | P22: =IF(INDIRECT($C$2&$C22&"!"&P$5&$M$4)="","★",INDIRECT($C$2&$C22&"!"&P$5&$M$4)) ->  | Q22: =IF(INDIRECT($C$2&$C22&"!"&Q$5&$M$4)="","★",INDIRECT($C$2&$C22&"!"&Q$5&$M$4)) ->  | R22: =IF(INDIRECT($C$2&$C22&"!"&R$5&$M$4)="","★",INDIRECT($C$2&$C22&"!"&R$5&$M$4)) ->  | S22: =IF(INDIRECT($C$2&$C22&"!"&S$5&$M$4)="","★",INDIRECT($C$2&$C22&"!"&S$5&$M$4)) ->  | T22: =IF(INDIRECT($C$2&$C22&"!"&T$5&$M$4)="","★",INDIRECT($C$2&$C22&"!"&T$5&$M$4)) ->  | U22: =IF(INDIRECT($C$2&$C22&"!"&U$5&$M$4)="","★",INDIRECT($C$2&$C22&"!"&U$5&$M$4)) ->  | V22: =IF(INDIRECT($C$2&$C22&"!"&V$5&$V$4)="","★",INDIRECT($C$2&$C22&"!"&V$5&$V$4)) ->  | W22: =IF(INDIRECT($C$2&$C22&"!"&W$5&$V$4)="","★",INDIRECT($C$2&$C22&"!"&W$5&$V$4)) ->  | X22: =IF(INDIRECT($C$2&$C22&"!"&X$5&$V$4)="","★",INDIRECT($C$2&$C22&"!"&X$5&$V$4)) ->  | Y22: =IF(INDIRECT($C$2&$C22&"!"&Y$5&$V$4)="","★",INDIRECT($C$2&$C22&"!"&Y$5&$V$4)) ->  | Z22: =IF(INDIRECT($C$2&$C22&"!"&Z$5&$V$4)="","★",INDIRECT($C$2&$C22&"!"&Z$5&$V$4)) ->  | AA22: =IF(INDIRECT($C$2&$C22&"!"&AA$5&$V$4)="","★",INDIRECT($C$2&$C22&"!"&AA$5&$V$4)) ->  | AB22: =IF(INDIRECT($C$2&$C22&"!"&AB$5&$V$4)="","★",INDIRECT($C$2&$C22&"!"&AB$5&$V$4)) ->  | AC22: =IF(INDIRECT($C$2&$C22&"!"&AC$5&$V$4)="","★",INDIRECT($C$2&$C22&"!"&AC$5&$V$4)) ->  | AD22: =IF(INDIRECT($C$2&$C22&"!"&AD$5&$V$4)="","★",INDIRECT($C$2&$C22&"!"&AD$5&$V$4)) ->  | AE22: =IF(INDIRECT($C$2&$C22&"!"&AE$5&$V$4)="","★",INDIRECT($C$2&$C22&"!"&AE$5&$V$4)) ->  | AF22: =IF(INDIRECT($C$2&$C22&"!"&AF$5&$AF$4)="","★",INDIRECT($C$2&$C22&"!"&AF$5&$AF$4)) ->  | AG22: =IF(INDIRECT($C$2&$C22&"!"&AG$5&$AF$4)="","★",INDIRECT($C$2&$C22&"!"&AG$5&$AF$4)) ->  | AH22: =IF(INDIRECT($C$2&$C22&"!"&AH$5&$AH$4)="","★",INDIRECT($C$2&$C22&"!"&AH$5&$AH$4)) ->  | AI22: =IF(INDIRECT($C$2&$C22&"!"&AI$5&$AH$4)="","★",INDIRECT($C$2&$C22&"!"&AI$5&$AH$4)) ->  | AJ22: =IF(INDIRECT($C$2&$C22&"!"&AJ$5&$AJ$4)="","★",INDIRECT($C$2&$C22&"!"&AJ$5&$AJ$4)) ->  | AK22: =IF(INDIRECT($C$2&$C22&"!"&AK$5&$AJ$4)="","★",INDIRECT($C$2&$C22&"!"&AK$5&$AJ$4)) ->  | AL22: =$AF22 ->  | AM22: =$AG22 ->  | AN22: =IF(INDIRECT($C$2&$C22&"!"&AN$5&$AN$4)="","★",INDIRECT($C$2&$C22&"!"&AN$5&$AN$4)) ->  | AO22: =IF(INDIRECT($C$2&$C22&"!"&AO$5&$AN$4)="","★",INDIRECT($C$2&$C22&"!"&AO$5&$AN$4)) ->  | AP22: =IF(INDIRECT($C$2&$C22&"!"&AP$5&$AN$4)="","★",INDIRECT($C$2&$C22&"!"&AP$5&$AN$4)) ->  | AQ22: =IF(INDIRECT($C$2&$C22&"!"&AQ$5&$AN$4)="","★",INDIRECT($C$2&$C22&"!"&AQ$5&$AN$4)) ->  | AR22: =IF(INDIRECT($C$2&$C22&"!"&AR$5&$AN$4)="","★",INDIRECT($C$2&$C22&"!"&AR$5&$AN$4)) ->  | AS22: =IF(INDIRECT($C$2&$C22&"!"&AS$5&$AN$4)="","★",INDIRECT($C$2&$C22&"!"&AS$5&$AN$4)) ->  | AT22: =IF(INDIRECT($C$2&$C22&"!"&AT$5&$AN$4)="","★",INDIRECT($C$2&$C22&"!"&AT$5&$AN$4)) ->  | AU22: =IF(INDIRECT($C$2&$C22&"!"&AU$5&$AN$4)="","★",INDIRECT($C$2&$C22&"!"&AU$5&$AN$4)) ->  | AV22: =IF(INDIRECT($C$2&$C22&"!"&AV$5&$AN$4)="","★",INDIRECT($C$2&$C22&"!"&AV$5&$AN$4)) ->  | AW22: =IF(INDIRECT($C$2&$C22&"!"&AW$5&$AN$4)="","★",INDIRECT($C$2&$C22&"!"&AW$5&$AN$4)) ->  | AX22: =$AH22 ->  | AY22: =$AI22 ->  | AZ22: =IF(INDIRECT($C$2&$C22&"!"&AZ$5&$AZ$4)="","★",INDIRECT($C$2&$C22&"!"&AZ$5&$AZ$4)) ->  | BA22: =IF(INDIRECT($C$2&$C22&"!"&BA$5&$AZ$4)="","★",INDIRECT($C$2&$C22&"!"&BA$5&$AZ$4)) ->  | BB22: =IF(INDIRECT($C$2&$C22&"!"&BB$5&$AZ$4)="","★",INDIRECT($C$2&$C22&"!"&BB$5&$AZ$4)) ->  | BC22: =IF(INDIRECT($C$2&$C22&"!"&BC$5&$AZ$4)="","★",INDIRECT($C$2&$C22&"!"&BC$5&$AZ$4)) ->  | BD22: =IF(INDIRECT($C$2&$C22&"!"&BD$5&$AZ$4)="","★",INDIRECT($C$2&$C22&"!"&BD$5&$AZ$4)) ->  | BE22: =IF(INDIRECT($C$2&$C22&"!"&BE$5&$AZ$4)="","★",INDIRECT($C$2&$C22&"!"&BE$5&$AZ$4)) ->  | BF22: =IF(INDIRECT($C$2&$C22&"!"&BF$5&$AZ$4)="","★",INDIRECT($C$2&$C22&"!"&BF$5&$AZ$4)) ->  | BG22: =IF(INDIRECT($C$2&$C22&"!"&BG$5&$AZ$4)="","★",INDIRECT($C$2&$C22&"!"&BG$5&$AZ$4)) ->  | BH22: =IF(INDIRECT($C$2&$C22&"!"&BH$5&$AZ$4)="","★",INDIRECT($C$2&$C22&"!"&BH$5&$AZ$4)) ->  | BI22: =IF(INDIRECT($C$2&$C22&"!"&BI$5&$AZ$4)="","★",INDIRECT($C$2&$C22&"!"&BI$5&$AZ$4)) ->  | BJ22: =$AJ22 ->  | BK22: =$AK22 ->  | BL22: =IF(INDIRECT($C$2&$C22&"!"&BL$5&$BL$4)="","★",INDIRECT($C$2&$C22&"!"&BL$5&$BL$4)) ->  | BM22: =IF(INDIRECT($C$2&$C22&"!"&BM$5&$BL$4)="","★",INDIRECT($C$2&$C22&"!"&BM$5&$BL$4)) ->  | BN22: =IF(INDIRECT($C$2&$C22&"!"&BN$5&$BL$4)="","★",INDIRECT($C$2&$C22&"!"&BN$5&$BL$4)) ->  | BO22: =IF(INDIRECT($C$2&$C22&"!"&BO$5&$BL$4)="","★",INDIRECT($C$2&$C22&"!"&BO$5&$BL$4)) ->  | BP22: =IF(INDIRECT($C$2&$C22&"!"&BP$5&$BL$4)="","★",INDIRECT($C$2&$C22&"!"&BP$5&$BL$4)) ->  | BQ22: =IF(INDIRECT($C$2&$C22&"!"&BQ$5&$BL$4)="","★",INDIRECT($C$2&$C22&"!"&BQ$5&$BL$4)) ->  | BR22: =IF(INDIRECT($C$2&$C22&"!"&BR$5&$BL$4)="","★",INDIRECT($C$2&$C22&"!"&BR$5&$BL$4)) ->  | BS22: =IF(INDIRECT($C$2&$C22&"!"&BS$5&$BL$4)="","★",INDIRECT($C$2&$C22&"!"&BS$5&$BL$4)) ->  | BT22: =IF(INDIRECT($C$2&$C22&"!"&BT$5&$BL$4)="","★",INDIRECT($C$2&$C22&"!"&BT$5&$BL$4)) ->  | BU22: =IF(INDIRECT($C$2&$C22&"!"&BU$5&$BL$4)="","★",INDIRECT($C$2&$C22&"!"&BU$5&$BL$4)) ->  | BV22: =IF(INDIRECT($C$2&$C22&"!"&BV$5&$BV$4)="","★",INDIRECT($C$2&$C22&"!"&BV$5&$BV$4)) ->  | BW22: =IF(INDIRECT($C$2&$C22&"!"&BW$5&$BV$4)="","★",INDIRECT($C$2&$C22&"!"&BW$5&$BV$4)) ->  | BX22: =IF(INDIRECT($C$2&$C22&"!"&BX$5&$BV$4)="","★",INDIRECT($C$2&$C22&"!"&BX$5&$BV$4)) ->  | BY22: =IF(INDIRECT($C$2&$C22&"!"&BY$5&$BV$4)="","★",INDIRECT($C$2&$C22&"!"&BY$5&$BV$4)) ->  | BZ22: =IF(INDIRECT($C$2&$C22&"!"&BZ$5&$BV$4)="","★",INDIRECT($C$2&$C22&"!"&BZ$5&$BV$4)) ->  | CA22: =IF(INDIRECT($C$2&$C22&"!"&CA$5&$BV$4)="","★",INDIRECT($C$2&$C22&"!"&CA$5&$BV$4)) ->  | CB22: =IF(INDIRECT($C$2&$C22&"!"&CB$5&$BV$4)="","★",INDIRECT($C$2&$C22&"!"&CB$5&$BV$4)) ->  | CC22: =IF(INDIRECT($C$2&$C22&"!"&CC$5&$CC$4)="","★",INDIRECT($C$2&$C22&"!"&CC$5&$CC$4)) ->  | CD22: =IF(INDIRECT($C$2&$C22&"!"&CD$5&$CC$4)="","★",INDIRECT($C$2&$C22&"!"&CD$5&$CC$4)) ->  | CE22: =IF(INDIRECT($C$2&$C22&"!"&CE$5&$CC$4)="","★",INDIRECT($C$2&$C22&"!"&CE$5&$CC$4)) ->  | CF22: =IF(INDIRECT($C$2&$C22&"!"&CF$5&$CC$4)="","★",INDIRECT($C$2&$C22&"!"&CF$5&$CC$4)) ->  | CG22: =IF(INDIRECT($C$2&$C22&"!"&CG$5&$CC$4)="","★",INDIRECT($C$2&$C22&"!"&CG$5&$CC$4)) ->  | CH22: =IF(INDIRECT($C$2&$C22&"!"&CH$5&$CC$4)="","★",INDIRECT($C$2&$C22&"!"&CH$5&$CC$4)) ->  | CI22: =IF(INDIRECT($C$2&$C22&"!"&CI$5&$CC$4)="","★",INDIRECT($C$2&$C22&"!"&CI$5&$CC$4)) ->  | CJ22: =IF(INDIRECT($C$2&$C22&"!"&CJ$5&$CC$4)="","★",INDIRECT($C$2&$C22&"!"&CJ$5&$CC$4)) ->  | CK22: =$AF22 ->  | CL22: =$AG22 ->  | CM22: =IF(INDIRECT($C$2&$C22&"!"&CM$5&$CM$4)="","★",INDIRECT($C$2&$C22&"!"&CM$5&$CM$4)) ->  | CN22: =IF(INDIRECT($C$2&$C22&"!"&CN$5&$CM$4)="","★",INDIRECT($C$2&$C22&"!"&CN$5&$CM$4)) ->  | CO22: =IF(INDIRECT($C$2&$C22&"!"&CO$5&$CM$4)="","★",INDIRECT($C$2&$C22&"!"&CO$5&$CM$4)) ->  | CP22: =IF(INDIRECT($C$2&$C22&"!"&CP$5&$CM$4)="","★",INDIRECT($C$2&$C22&"!"&CP$5&$CM$4)) ->  | CQ22: =IF(INDIRECT($C$2&$C22&"!"&CQ$5&$CM$4)="","★",INDIRECT($C$2&$C22&"!"&CQ$5&$CM$4)) ->  | CR22: =IF(INDIRECT($C$2&$C22&"!"&CR$5&$CM$4)="","★",INDIRECT($C$2&$C22&"!"&CR$5&$CM$4)) ->  | CS22: =IF(INDIRECT($C$2&$C22&"!"&CS$5&$CM$4)="","★",INDIRECT($C$2&$C22&"!"&CS$5&$CM$4)) ->  | CT22: =IF(INDIRECT($C$2&$C22&"!"&CT$5&$CM$4)="","★",INDIRECT($C$2&$C22&"!"&CT$5&$CM$4)) ->  | CU22: =$AH22 ->  | CV22: =$AI22 ->  | CW22: =IF(INDIRECT($C$2&$C22&"!"&CW$5&$CW$4)="","★",INDIRECT($C$2&$C22&"!"&CW$5&$CW$4)) ->  | CX22: =IF(INDIRECT($C$2&$C22&"!"&CX$5&$CW$4)="","★",INDIRECT($C$2&$C22&"!"&CX$5&$CW$4)) ->  | CY22: =IF(INDIRECT($C$2&$C22&"!"&CY$5&$CW$4)="","★",INDIRECT($C$2&$C22&"!"&CY$5&$CW$4)) ->  | CZ22: =IF(INDIRECT($C$2&$C22&"!"&CZ$5&$CW$4)="","★",INDIRECT($C$2&$C22&"!"&CZ$5&$CW$4)) ->  | DA22: =IF(INDIRECT($C$2&$C22&"!"&DA$5&$CW$4)="","★",INDIRECT($C$2&$C22&"!"&DA$5&$CW$4)) ->  | DB22: =IF(INDIRECT($C$2&$C22&"!"&DB$5&$CW$4)="","★",INDIRECT($C$2&$C22&"!"&DB$5&$CW$4)) ->  | DC22: =IF(INDIRECT($C$2&$C22&"!"&DC$5&$CW$4)="","★",INDIRECT($C$2&$C22&"!"&DC$5&$CW$4)) ->  | DD22: =IF(INDIRECT($C$2&$C22&"!"&DD$5&$CW$4)="","★",INDIRECT($C$2&$C22&"!"&DD$5&$CW$4)) ->  | DE22: =$AJ22 ->  | DF22: =$AK22 ->  | DG22: =IF(INDIRECT($C$2&$C22&"!"&DG$5&$DG$4)="","★",INDIRECT($C$2&$C22&"!"&DG$5&$DG$4)) ->  | DH22: =IF(INDIRECT($C$2&$C22&"!"&DH$5&$DG$4)="","★",INDIRECT($C$2&$C22&"!"&DH$5&$DG$4)) ->  | DI22: =IF(INDIRECT($C$2&$C22&"!"&DI$5&$DG$4)="","★",INDIRECT($C$2&$C22&"!"&DI$5&$DG$4)) ->  | DJ22: =IF(INDIRECT($C$2&$C22&"!"&DJ$5&$DG$4)="","★",INDIRECT($C$2&$C22&"!"&DJ$5&$DG$4)) ->  | DK22: =IF(INDIRECT($C$2&$C22&"!"&DK$5&$DG$4)="","★",INDIRECT($C$2&$C22&"!"&DK$5&$DG$4)) ->  | DL22: =IF(INDIRECT($C$2&$C22&"!"&DL$5&$DG$4)="","★",INDIRECT($C$2&$C22&"!"&DL$5&$DG$4)) ->  | DM22: =IF(INDIRECT($C$2&$C22&"!"&DM$5&$DG$4)="","★",INDIRECT($C$2&$C22&"!"&DM$5&$DG$4)) ->  | DN22: =IF(INDIRECT($C$2&$C22&"!"&DN$5&$DG$4)="","★",INDIRECT($C$2&$C22&"!"&DN$5&$DG$4)) ->  | DO22: =IF(INDIRECT($C$2&$C22&"!B57")="","★",INDIRECT($C$2&$C22&"!B57")) ->  | DP22: =IF(INDIRECT($C$2&$C22&"!B100")="","★",INDIRECT($C$2&$C22&"!B100")) ->  | DQ22: =IF(INDIRECT($C$2&$C22&"!B112")="","★",INDIRECT($C$2&$C22&"!B112")) ->  | DR22: =IF(INDIRECT($C$2&$C22&"!B155")="","★",INDIRECT($C$2&$C22&"!B155")) ->  | DS22: =IF(INDIRECT($C$2&$C22&"!B167")="","★",INDIRECT($C$2&$C22&"!B167")) ->  | DT22: =IF(INDIRECT($C$2&$C22&"!B210")="","★",INDIRECT($C$2&$C22&"!B210")) -> 
C23: =C22 -> ★ | L23: =$C23&"-2" -> ★-2 | M23: =IF(INDIRECT($C$2&$C23&"!"&M$5&$M$4+1)="","★",INDIRECT($C$2&$C23&"!"&M$5&$M$4+1)) ->  | N23: =IF(INDIRECT($C$2&$C23&"!"&N$5&$M$4+1)="","★",INDIRECT($C$2&$C23&"!"&N$5&$M$4+1)) ->  | O23: =IF(INDIRECT($C$2&$C23&"!"&O$5&$M$4+1)="","★",INDIRECT($C$2&$C23&"!"&O$5&$M$4+1)) ->  | P23: =IF(INDIRECT($C$2&$C23&"!"&P$5&$M$4+1)="","★",INDIRECT($C$2&$C23&"!"&P$5&$M$4+1)) ->  | Q23: =IF(INDIRECT($C$2&$C23&"!"&Q$5&$M$4+1)="","★",INDIRECT($C$2&$C23&"!"&Q$5&$M$4+1)) ->  | R23: =IF(INDIRECT($C$2&$C23&"!"&R$5&$M$4+1)="","★",INDIRECT($C$2&$C23&"!"&R$5&$M$4+1)) ->  | S23: =IF(INDIRECT($C$2&$C23&"!"&S$5&$M$4+1)="","★",INDIRECT($C$2&$C23&"!"&S$5&$M$4+1)) ->  | T23: =IF(INDIRECT($C$2&$C23&"!"&T$5&$M$4+1)="","★",INDIRECT($C$2&$C23&"!"&T$5&$M$4+1)) ->  | V23: =IF(INDIRECT($C$2&$C23&"!"&V$5&$V$4+1)="","★",INDIRECT($C$2&$C23&"!"&V$5&$V$4+1)) ->  | W23: =IF(INDIRECT($C$2&$C23&"!"&W$5&$V$4+1)="","★",INDIRECT($C$2&$C23&"!"&W$5&$V$4+1)) ->  | X23: =IF(INDIRECT($C$2&$C23&"!"&X$5&$V$4+1)="","★",INDIRECT($C$2&$C23&"!"&X$5&$V$4+1)) ->  | Y23: =IF(INDIRECT($C$2&$C23&"!"&Y$5&$V$4+1)="","★",INDIRECT($C$2&$C23&"!"&Y$5&$V$4+1)) ->  | Z23: =IF(INDIRECT($C$2&$C23&"!"&Z$5&$V$4+1)="","★",INDIRECT($C$2&$C23&"!"&Z$5&$V$4+1)) ->  | AA23: =IF(INDIRECT($C$2&$C23&"!"&AA$5&$V$4+1)="","★",INDIRECT($C$2&$C23&"!"&AA$5&$V$4+1)) ->  | AB23: =IF(INDIRECT($C$2&$C23&"!"&AB$5&$V$4+1)="","★",INDIRECT($C$2&$C23&"!"&AB$5&$V$4+1)) ->  | AC23: =IF(INDIRECT($C$2&$C23&"!"&AC$5&$V$4+1)="","★",INDIRECT($C$2&$C23&"!"&AC$5&$V$4+1)) ->  | AN23: =IF(INDIRECT($C$2&$C23&"!"&AN$5&$AN$4+1)="","★",INDIRECT($C$2&$C23&"!"&AN$5&$AN$4+1)) ->  | AO23: =IF(INDIRECT($C$2&$C23&"!"&AO$5&$AN$4+1)="","★",INDIRECT($C$2&$C23&"!"&AO$5&$AN$4+1)) ->  | AP23: =IF(INDIRECT($C$2&$C23&"!"&AP$5&$AN$4+1)="","★",INDIRECT($C$2&$C23&"!"&AP$5&$AN$4+1)) ->  | AQ23: =IF(INDIRECT($C$2&$C23&"!"&AQ$5&$AN$4+1)="","★",INDIRECT($C$2&$C23&"!"&AQ$5&$AN$4+1)) ->  | AR23: =IF(INDIRECT($C$2&$C23&"!"&AR$5&$AN$4+1)="","★",INDIRECT($C$2&$C23&"!"&AR$5&$AN$4+1)) ->  | AS23: =IF(INDIRECT($C$2&$C23&"!"&AS$5&$AN$4+1)="","★",INDIRECT($C$2&$C23&"!"&AS$5&$AN$4+1)) ->  | AT23: =IF(INDIRECT($C$2&$C23&"!"&AT$5&$AN$4+1)="","★",INDIRECT($C$2&$C23&"!"&AT$5&$AN$4+1)) ->  | AU23: =IF(INDIRECT($C$2&$C23&"!"&AU$5&$AN$4+1)="","★",INDIRECT($C$2&$C23&"!"&AU$5&$AN$4+1)) ->  | AZ23: =IF(INDIRECT($C$2&$C23&"!"&AZ$5&$AZ$4+1)="","★",INDIRECT($C$2&$C23&"!"&AZ$5&$AZ$4+1)) ->  | BA23: =IF(INDIRECT($C$2&$C23&"!"&BA$5&$AZ$4+1)="","★",INDIRECT($C$2&$C23&"!"&BA$5&$AZ$4+1)) ->  | BB23: =IF(INDIRECT($C$2&$C23&"!"&BB$5&$AZ$4+1)="","★",INDIRECT($C$2&$C23&"!"&BB$5&$AZ$4+1)) ->  | BC23: =IF(INDIRECT($C$2&$C23&"!"&BC$5&$AZ$4+1)="","★",INDIRECT($C$2&$C23&"!"&BC$5&$AZ$4+1)) ->  | BD23: =IF(INDIRECT($C$2&$C23&"!"&BD$5&$AZ$4+1)="","★",INDIRECT($C$2&$C23&"!"&BD$5&$AZ$4+1)) ->  | BE23: =IF(INDIRECT($C$2&$C23&"!"&BE$5&$AZ$4+1)="","★",INDIRECT($C$2&$C23&"!"&BE$5&$AZ$4+1)) ->  | BF23: =IF(INDIRECT($C$2&$C23&"!"&BF$5&$AZ$4+1)="","★",INDIRECT($C$2&$C23&"!"&BF$5&$AZ$4+1)) ->  | BG23: =IF(INDIRECT($C$2&$C23&"!"&BG$5&$AZ$4+1)="","★",INDIRECT($C$2&$C23&"!"&BG$5&$AZ$4+1)) ->  | BL23: =IF(INDIRECT($C$2&$C23&"!"&BL$5&$BL$4+1)="","★",INDIRECT($C$2&$C23&"!"&BL$5&$BL$4+1)) ->  | BM23: =IF(INDIRECT($C$2&$C23&"!"&BM$5&$BL$4+1)="","★",INDIRECT($C$2&$C23&"!"&BM$5&$BL$4+1)) ->  | BN23: =IF(INDIRECT($C$2&$C23&"!"&BN$5&$BL$4+1)="","★",INDIRECT($C$2&$C23&"!"&BN$5&$BL$4+1)) ->  | BO23: =IF(INDIRECT($C$2&$C23&"!"&BO$5&$BL$4+1)="","★",INDIRECT($C$2&$C23&"!"&BO$5&$BL$4+1)) ->  | BP23: =IF(INDIRECT($C$2&$C23&"!"&BP$5&$BL$4+1)="","★",INDIRECT($C$2&$C23&"!"&BP$5&$BL$4+1)) ->  | BQ23: =IF(INDIRECT($C$2&$C23&"!"&BQ$5&$BL$4+1)="","★",INDIRECT($C$2&$C23&"!"&BQ$5&$BL$4+1)) ->  | BR23: =IF(INDIRECT($C$2&$C23&"!"&BR$5&$BL$4+1)="","★",INDIRECT($C$2&$C23&"!"&BR$5&$BL$4+1)) ->  | BS23: =IF(INDIRECT($C$2&$C23&"!"&BS$5&$BL$4+1)="","★",INDIRECT($C$2&$C23&"!"&BS$5&$BL$4+1)) ->  | BV23: =IF(INDIRECT($C$2&$C23&"!"&BV$5&$BV$4+1)="","★",INDIRECT($C$2&$C23&"!"&BV$5&$BV$4+1)) ->  | BW23: =IF(INDIRECT($C$2&$C23&"!"&BW$5&$BV$4+1)="","★",INDIRECT($C$2&$C23&"!"&BW$5&$BV$4+1)) ->  | BX23: =IF(INDIRECT($C$2&$C23&"!"&BX$5&$BV$4+1)="","★",INDIRECT($C$2&$C23&"!"&BX$5&$BV$4+1)) ->  | BY23: =IF(INDIRECT($C$2&$C23&"!"&BY$5&$BV$4+1)="","★",INDIRECT($C$2&$C23&"!"&BY$5&$BV$4+1)) ->  | BZ23: =IF(INDIRECT($C$2&$C23&"!"&BZ$5&$BV$4+1)="","★",INDIRECT($C$2&$C23&"!"&BZ$5&$BV$4+1)) ->  | CA23: =IF(INDIRECT($C$2&$C23&"!"&CA$5&$BV$4+1)="","★",INDIRECT($C$2&$C23&"!"&CA$5&$BV$4+1)) ->  | CC23: =IF(INDIRECT($C$2&$C23&"!"&CC$5&$CC$4+1)="","★",INDIRECT($C$2&$C23&"!"&CC$5&$CC$4+1)) ->  | CD23: =IF(INDIRECT($C$2&$C23&"!"&CD$5&$CC$4+1)="","★",INDIRECT($C$2&$C23&"!"&CD$5&$CC$4+1)) ->  | CE23: =IF(INDIRECT($C$2&$C23&"!"&CE$5&$CC$4+1)="","★",INDIRECT($C$2&$C23&"!"&CE$5&$CC$4+1)) ->  | CF23: =IF(INDIRECT($C$2&$C23&"!"&CF$5&$CC$4+1)="","★",INDIRECT($C$2&$C23&"!"&CF$5&$CC$4+1)) ->  | CG23: =IF(INDIRECT($C$2&$C23&"!"&CG$5&$CC$4+1)="","★",INDIRECT($C$2&$C23&"!"&CG$5&$CC$4+1)) ->  | CH23: =IF(INDIRECT($C$2&$C23&"!"&CH$5&$CC$4+1)="","★",INDIRECT($C$2&$C23&"!"&CH$5&$CC$4+1)) ->  | CM23: =IF(INDIRECT($C$2&$C23&"!"&CM$5&$CM$4+1)="","★",INDIRECT($C$2&$C23&"!"&CM$5&$CM$4+1)) ->  | CN23: =IF(INDIRECT($C$2&$C23&"!"&CN$5&$CM$4+1)="","★",INDIRECT($C$2&$C23&"!"&CN$5&$CM$4+1)) ->  | CO23: =IF(INDIRECT($C$2&$C23&"!"&CO$5&$CM$4+1)="","★",INDIRECT($C$2&$C23&"!"&CO$5&$CM$4+1)) ->  | CP23: =IF(INDIRECT($C$2&$C23&"!"&CP$5&$CM$4+1)="","★",INDIRECT($C$2&$C23&"!"&CP$5&$CM$4+1)) ->  | CQ23: =IF(INDIRECT($C$2&$C23&"!"&CQ$5&$CM$4+1)="","★",INDIRECT($C$2&$C23&"!"&CQ$5&$CM$4+1)) ->  | CR23: =IF(INDIRECT($C$2&$C23&"!"&CR$5&$CM$4+1)="","★",INDIRECT($C$2&$C23&"!"&CR$5&$CM$4+1)) ->  | CW23: =IF(INDIRECT($C$2&$C23&"!"&CW$5&$CW$4+1)="","★",INDIRECT($C$2&$C23&"!"&CW$5&$CW$4+1)) ->  | CX23: =IF(INDIRECT($C$2&$C23&"!"&CX$5&$CW$4+1)="","★",INDIRECT($C$2&$C23&"!"&CX$5&$CW$4+1)) ->  | CY23: =IF(INDIRECT($C$2&$C23&"!"&CY$5&$CW$4+1)="","★",INDIRECT($C$2&$C23&"!"&CY$5&$CW$4+1)) ->  | CZ23: =IF(INDIRECT($C$2&$C23&"!"&CZ$5&$CW$4+1)="","★",INDIRECT($C$2&$C23&"!"&CZ$5&$CW$4+1)) ->  | DA23: =IF(INDIRECT($C$2&$C23&"!"&DA$5&$CW$4+1)="","★",INDIRECT($C$2&$C23&"!"&DA$5&$CW$4+1)) ->  | DB23: =IF(INDIRECT($C$2&$C23&"!"&DB$5&$CW$4+1)="","★",INDIRECT($C$2&$C23&"!"&DB$5&$CW$4+1)) ->  | DG23: =IF(INDIRECT($C$2&$C23&"!"&DG$5&$DG$4+1)="","★",INDIRECT($C$2&$C23&"!"&DG$5&$DG$4+1)) ->  | DH23: =IF(INDIRECT($C$2&$C23&"!"&DH$5&$DG$4+1)="","★",INDIRECT($C$2&$C23&"!"&DH$5&$DG$4+1)) ->  | DI23: =IF(INDIRECT($C$2&$C23&"!"&DI$5&$DG$4+1)="","★",INDIRECT($C$2&$C23&"!"&DI$5&$DG$4+1)) ->  | DJ23: =IF(INDIRECT($C$2&$C23&"!"&DJ$5&$DG$4+1)="","★",INDIRECT($C$2&$C23&"!"&DJ$5&$DG$4+1)) ->  | DK23: =IF(INDIRECT($C$2&$C23&"!"&DK$5&$DG$4+1)="","★",INDIRECT($C$2&$C23&"!"&DK$5&$DG$4+1)) ->  | DL23: =IF(INDIRECT($C$2&$C23&"!"&DL$5&$DG$4+1)="","★",INDIRECT($C$2&$C23&"!"&DL$5&$DG$4+1)) -> 
C24: =C23 -> ★ | L24: =$C24&"-3" -> ★-3 | M24: =IF(INDIRECT($C$2&$C24&"!"&M$5&$M$4+2)="","★",INDIRECT($C$2&$C24&"!"&M$5&$M$4+2)) ->  | N24: =IF(INDIRECT($C$2&$C24&"!"&N$5&$M$4+2)="","★",INDIRECT($C$2&$C24&"!"&N$5&$M$4+2)) ->  | O24: =IF(INDIRECT($C$2&$C24&"!"&O$5&$M$4+2)="","★",INDIRECT($C$2&$C24&"!"&O$5&$M$4+2)) ->  | P24: =IF(INDIRECT($C$2&$C24&"!"&P$5&$M$4+2)="","★",INDIRECT($C$2&$C24&"!"&P$5&$M$4+2)) ->  | Q24: =IF(INDIRECT($C$2&$C24&"!"&Q$5&$M$4+2)="","★",INDIRECT($C$2&$C24&"!"&Q$5&$M$4+2)) ->  | R24: =IF(INDIRECT($C$2&$C24&"!"&R$5&$M$4+2)="","★",INDIRECT($C$2&$C24&"!"&R$5&$M$4+2)) ->  | S24: =IF(INDIRECT($C$2&$C24&"!"&S$5&$M$4+2)="","★",INDIRECT($C$2&$C24&"!"&S$5&$M$4+2)) ->  | T24: =IF(INDIRECT($C$2&$C24&"!"&T$5&$M$4+2)="","★",INDIRECT($C$2&$C24&"!"&T$5&$M$4+2)) ->  | V24: =IF(INDIRECT($C$2&$C24&"!"&V$5&$V$4+2)="","★",INDIRECT($C$2&$C24&"!"&V$5&$V$4+2)) ->  | W24: =IF(INDIRECT($C$2&$C24&"!"&W$5&$V$4+2)="","★",INDIRECT($C$2&$C24&"!"&W$5&$V$4+2)) ->  | X24: =IF(INDIRECT($C$2&$C24&"!"&X$5&$V$4+2)="","★",INDIRECT($C$2&$C24&"!"&X$5&$V$4+2)) ->  | Y24: =IF(INDIRECT($C$2&$C24&"!"&Y$5&$V$4+2)="","★",INDIRECT($C$2&$C24&"!"&Y$5&$V$4+2)) ->  | Z24: =IF(INDIRECT($C$2&$C24&"!"&Z$5&$V$4+2)="","★",INDIRECT($C$2&$C24&"!"&Z$5&$V$4+2)) ->  | AA24: =IF(INDIRECT($C$2&$C24&"!"&AA$5&$V$4+2)="","★",INDIRECT($C$2&$C24&"!"&AA$5&$V$4+2)) ->  | AB24: =IF(INDIRECT($C$2&$C24&"!"&AB$5&$V$4+2)="","★",INDIRECT($C$2&$C24&"!"&AB$5&$V$4+2)) ->  | AC24: =IF(INDIRECT($C$2&$C24&"!"&AC$5&$V$4+2)="","★",INDIRECT($C$2&$C24&"!"&AC$5&$V$4+2)) ->  | AN24: =IF(INDIRECT($C$2&$C24&"!"&AN$5&$AN$4+2)="","★",INDIRECT($C$2&$C24&"!"&AN$5&$AN$4+2)) ->  | AO24: =IF(INDIRECT($C$2&$C24&"!"&AO$5&$AN$4+2)="","★",INDIRECT($C$2&$C24&"!"&AO$5&$AN$4+2)) ->  | AP24: =IF(INDIRECT($C$2&$C24&"!"&AP$5&$AN$4+2)="","★",INDIRECT($C$2&$C24&"!"&AP$5&$AN$4+2)) ->  | AQ24: =IF(INDIRECT($C$2&$C24&"!"&AQ$5&$AN$4+2)="","★",INDIRECT($C$2&$C24&"!"&AQ$5&$AN$4+2)) ->  | AR24: =IF(INDIRECT($C$2&$C24&"!"&AR$5&$AN$4+2)="","★",INDIRECT($C$2&$C24&"!"&AR$5&$AN$4+2)) ->  | AS24: =IF(INDIRECT($C$2&$C24&"!"&AS$5&$AN$4+2)="","★",INDIRECT($C$2&$C24&"!"&AS$5&$AN$4+2)) ->  | AT24: =IF(INDIRECT($C$2&$C24&"!"&AT$5&$AN$4+2)="","★",INDIRECT($C$2&$C24&"!"&AT$5&$AN$4+2)) ->  | AU24: =IF(INDIRECT($C$2&$C24&"!"&AU$5&$AN$4+2)="","★",INDIRECT($C$2&$C24&"!"&AU$5&$AN$4+2)) ->  | AZ24: =IF(INDIRECT($C$2&$C24&"!"&AZ$5&$AZ$4+2)="","★",INDIRECT($C$2&$C24&"!"&AZ$5&$AZ$4+2)) ->  | BA24: =IF(INDIRECT($C$2&$C24&"!"&BA$5&$AZ$4+2)="","★",INDIRECT($C$2&$C24&"!"&BA$5&$AZ$4+2)) ->  | BB24: =IF(INDIRECT($C$2&$C24&"!"&BB$5&$AZ$4+2)="","★",INDIRECT($C$2&$C24&"!"&BB$5&$AZ$4+2)) ->  | BC24: =IF(INDIRECT($C$2&$C24&"!"&BC$5&$AZ$4+2)="","★",INDIRECT($C$2&$C24&"!"&BC$5&$AZ$4+2)) ->  | BD24: =IF(INDIRECT($C$2&$C24&"!"&BD$5&$AZ$4+2)="","★",INDIRECT($C$2&$C24&"!"&BD$5&$AZ$4+2)) ->  | BE24: =IF(INDIRECT($C$2&$C24&"!"&BE$5&$AZ$4+2)="","★",INDIRECT($C$2&$C24&"!"&BE$5&$AZ$4+2)) ->  | BF24: =IF(INDIRECT($C$2&$C24&"!"&BF$5&$AZ$4+2)="","★",INDIRECT($C$2&$C24&"!"&BF$5&$AZ$4+2)) ->  | BG24: =IF(INDIRECT($C$2&$C24&"!"&BG$5&$AZ$4+2)="","★",INDIRECT($C$2&$C24&"!"&BG$5&$AZ$4+2)) ->  | BL24: =IF(INDIRECT($C$2&$C24&"!"&BL$5&$BL$4+2)="","★",INDIRECT($C$2&$C24&"!"&BL$5&$BL$4+2)) ->  | BM24: =IF(INDIRECT($C$2&$C24&"!"&BM$5&$BL$4+2)="","★",INDIRECT($C$2&$C24&"!"&BM$5&$BL$4+2)) ->  | BN24: =IF(INDIRECT($C$2&$C24&"!"&BN$5&$BL$4+2)="","★",INDIRECT($C$2&$C24&"!"&BN$5&$BL$4+2)) ->  | BO24: =IF(INDIRECT($C$2&$C24&"!"&BO$5&$BL$4+2)="","★",INDIRECT($C$2&$C24&"!"&BO$5&$BL$4+2)) ->  | BP24: =IF(INDIRECT($C$2&$C24&"!"&BP$5&$BL$4+2)="","★",INDIRECT($C$2&$C24&"!"&BP$5&$BL$4+2)) ->  | BQ24: =IF(INDIRECT($C$2&$C24&"!"&BQ$5&$BL$4+2)="","★",INDIRECT($C$2&$C24&"!"&BQ$5&$BL$4+2)) ->  | BR24: =IF(INDIRECT($C$2&$C24&"!"&BR$5&$BL$4+2)="","★",INDIRECT($C$2&$C24&"!"&BR$5&$BL$4+2)) ->  | BS24: =IF(INDIRECT($C$2&$C24&"!"&BS$5&$BL$4+2)="","★",INDIRECT($C$2&$C24&"!"&BS$5&$BL$4+2)) ->  | BV24: =IF(INDIRECT($C$2&$C24&"!"&BV$5&$BV$4+2)="","★",INDIRECT($C$2&$C24&"!"&BV$5&$BV$4+2)) ->  | BW24: =IF(INDIRECT($C$2&$C24&"!"&BW$5&$BV$4+2)="","★",INDIRECT($C$2&$C24&"!"&BW$5&$BV$4+2)) ->  | BX24: =IF(INDIRECT($C$2&$C24&"!"&BX$5&$BV$4+2)="","★",INDIRECT($C$2&$C24&"!"&BX$5&$BV$4+2)) ->  | BY24: =IF(INDIRECT($C$2&$C24&"!"&BY$5&$BV$4+2)="","★",INDIRECT($C$2&$C24&"!"&BY$5&$BV$4+2)) ->  | BZ24: =IF(INDIRECT($C$2&$C24&"!"&BZ$5&$BV$4+2)="","★",INDIRECT($C$2&$C24&"!"&BZ$5&$BV$4+2)) ->  | CA24: =IF(INDIRECT($C$2&$C24&"!"&CA$5&$BV$4+2)="","★",INDIRECT($C$2&$C24&"!"&CA$5&$BV$4+2)) ->  | CC24: =IF(INDIRECT($C$2&$C24&"!"&CC$5&$CC$4+2)="","★",INDIRECT($C$2&$C24&"!"&CC$5&$CC$4+2)) ->  | CD24: =IF(INDIRECT($C$2&$C24&"!"&CD$5&$CC$4+2)="","★",INDIRECT($C$2&$C24&"!"&CD$5&$CC$4+2)) ->  | CE24: =IF(INDIRECT($C$2&$C24&"!"&CE$5&$CC$4+2)="","★",INDIRECT($C$2&$C24&"!"&CE$5&$CC$4+2)) ->  | CF24: =IF(INDIRECT($C$2&$C24&"!"&CF$5&$CC$4+2)="","★",INDIRECT($C$2&$C24&"!"&CF$5&$CC$4+2)) ->  | CG24: =IF(INDIRECT($C$2&$C24&"!"&CG$5&$CC$4+2)="","★",INDIRECT($C$2&$C24&"!"&CG$5&$CC$4+2)) ->  | CH24: =IF(INDIRECT($C$2&$C24&"!"&CH$5&$CC$4+2)="","★",INDIRECT($C$2&$C24&"!"&CH$5&$CC$4+2)) ->  | CM24: =IF(INDIRECT($C$2&$C24&"!"&CM$5&$CM$4+2)="","★",INDIRECT($C$2&$C24&"!"&CM$5&$CM$4+2)) ->  | CN24: =IF(INDIRECT($C$2&$C24&"!"&CN$5&$CM$4+2)="","★",INDIRECT($C$2&$C24&"!"&CN$5&$CM$4+2)) ->  | CO24: =IF(INDIRECT($C$2&$C24&"!"&CO$5&$CM$4+2)="","★",INDIRECT($C$2&$C24&"!"&CO$5&$CM$4+2)) ->  | CP24: =IF(INDIRECT($C$2&$C24&"!"&CP$5&$CM$4+2)="","★",INDIRECT($C$2&$C24&"!"&CP$5&$CM$4+2)) ->  | CQ24: =IF(INDIRECT($C$2&$C24&"!"&CQ$5&$CM$4+2)="","★",INDIRECT($C$2&$C24&"!"&CQ$5&$CM$4+2)) ->  | CR24: =IF(INDIRECT($C$2&$C24&"!"&CR$5&$CM$4+2)="","★",INDIRECT($C$2&$C24&"!"&CR$5&$CM$4+2)) ->  | CW24: =IF(INDIRECT($C$2&$C24&"!"&CW$5&$CW$4+2)="","★",INDIRECT($C$2&$C24&"!"&CW$5&$CW$4+2)) ->  | CX24: =IF(INDIRECT($C$2&$C24&"!"&CX$5&$CW$4+2)="","★",INDIRECT($C$2&$C24&"!"&CX$5&$CW$4+2)) ->  | CY24: =IF(INDIRECT($C$2&$C24&"!"&CY$5&$CW$4+2)="","★",INDIRECT($C$2&$C24&"!"&CY$5&$CW$4+2)) ->  | CZ24: =IF(INDIRECT($C$2&$C24&"!"&CZ$5&$CW$4+2)="","★",INDIRECT($C$2&$C24&"!"&CZ$5&$CW$4+2)) ->  | DA24: =IF(INDIRECT($C$2&$C24&"!"&DA$5&$CW$4+2)="","★",INDIRECT($C$2&$C24&"!"&DA$5&$CW$4+2)) ->  | DB24: =IF(INDIRECT($C$2&$C24&"!"&DB$5&$CW$4+2)="","★",INDIRECT($C$2&$C24&"!"&DB$5&$CW$4+2)) ->  | DG24: =IF(INDIRECT($C$2&$C24&"!"&DG$5&$DG$4+2)="","★",INDIRECT($C$2&$C24&"!"&DG$5&$DG$4+2)) ->  | DH24: =IF(INDIRECT($C$2&$C24&"!"&DH$5&$DG$4+2)="","★",INDIRECT($C$2&$C24&"!"&DH$5&$DG$4+2)) ->  | DI24: =IF(INDIRECT($C$2&$C24&"!"&DI$5&$DG$4+2)="","★",INDIRECT($C$2&$C24&"!"&DI$5&$DG$4+2)) ->  | DJ24: =IF(INDIRECT($C$2&$C24&"!"&DJ$5&$DG$4+2)="","★",INDIRECT($C$2&$C24&"!"&DJ$5&$DG$4+2)) ->  | DK24: =IF(INDIRECT($C$2&$C24&"!"&DK$5&$DG$4+2)="","★",INDIRECT($C$2&$C24&"!"&DK$5&$DG$4+2)) ->  | DL24: =IF(INDIRECT($C$2&$C24&"!"&DL$5&$DG$4+2)="","★",INDIRECT($C$2&$C24&"!"&DL$5&$DG$4+2)) -> 
C25: ★ | L25: =$C25&"-4" -> ★-4 | M25: =IF(INDIRECT($C$2&$C25&"!"&M$5&$M$4+3)="","★",INDIRECT($C$2&$C25&"!"&M$5&$M$4+3)) ->  | N25: =IF(INDIRECT($C$2&$C25&"!"&N$5&$M$4+3)="","★",INDIRECT($C$2&$C25&"!"&N$5&$M$4+3)) ->  | O25: =IF(INDIRECT($C$2&$C25&"!"&O$5&$M$4+3)="","★",INDIRECT($C$2&$C25&"!"&O$5&$M$4+3)) ->  | P25: =IF(INDIRECT($C$2&$C25&"!"&P$5&$M$4+3)="","★",INDIRECT($C$2&$C25&"!"&P$5&$M$4+3)) ->  | Q25: =IF(INDIRECT($C$2&$C25&"!"&Q$5&$M$4+3)="","★",INDIRECT($C$2&$C25&"!"&Q$5&$M$4+3)) ->  | R25: =IF(INDIRECT($C$2&$C25&"!"&R$5&$M$4+3)="","★",INDIRECT($C$2&$C25&"!"&R$5&$M$4+3)) ->  | S25: =IF(INDIRECT($C$2&$C25&"!"&S$5&$M$4+3)="","★",INDIRECT($C$2&$C25&"!"&S$5&$M$4+3)) ->  | T25: =IF(INDIRECT($C$2&$C25&"!"&T$5&$M$4+3)="","★",INDIRECT($C$2&$C25&"!"&T$5&$M$4+3)) ->  | V25: =IF(INDIRECT($C$2&$C25&"!"&V$5&$V$4+3)="","★",INDIRECT($C$2&$C25&"!"&V$5&$V$4+3)) ->  | W25: =IF(INDIRECT($C$2&$C25&"!"&W$5&$V$4+3)="","★",INDIRECT($C$2&$C25&"!"&W$5&$V$4+3)) ->  | X25: =IF(INDIRECT($C$2&$C25&"!"&X$5&$V$4+3)="","★",INDIRECT($C$2&$C25&"!"&X$5&$V$4+3)) ->  | Y25: =IF(INDIRECT($C$2&$C25&"!"&Y$5&$V$4+3)="","★",INDIRECT($C$2&$C25&"!"&Y$5&$V$4+3)) ->  | Z25: =IF(INDIRECT($C$2&$C25&"!"&Z$5&$V$4+3)="","★",INDIRECT($C$2&$C25&"!"&Z$5&$V$4+3)) ->  | AA25: =IF(INDIRECT($C$2&$C25&"!"&AA$5&$V$4+3)="","★",INDIRECT($C$2&$C25&"!"&AA$5&$V$4+3)) ->  | AB25: =IF(INDIRECT($C$2&$C25&"!"&AB$5&$V$4+3)="","★",INDIRECT($C$2&$C25&"!"&AB$5&$V$4+3)) ->  | AC25: =IF(INDIRECT($C$2&$C25&"!"&AC$5&$V$4+3)="","★",INDIRECT($C$2&$C25&"!"&AC$5&$V$4+3)) ->  | AN25: =IF(INDIRECT($C$2&$C25&"!"&AN$5&$AN$4+3)="","★",INDIRECT($C$2&$C25&"!"&AN$5&$AN$4+3)) ->  | AO25: =IF(INDIRECT($C$2&$C25&"!"&AO$5&$AN$4+3)="","★",INDIRECT($C$2&$C25&"!"&AO$5&$AN$4+3)) ->  | AP25: =IF(INDIRECT($C$2&$C25&"!"&AP$5&$AN$4+3)="","★",INDIRECT($C$2&$C25&"!"&AP$5&$AN$4+3)) ->  | AQ25: =IF(INDIRECT($C$2&$C25&"!"&AQ$5&$AN$4+3)="","★",INDIRECT($C$2&$C25&"!"&AQ$5&$AN$4+3)) ->  | AR25: =IF(INDIRECT($C$2&$C25&"!"&AR$5&$AN$4+3)="","★",INDIRECT($C$2&$C25&"!"&AR$5&$AN$4+3)) ->  | AS25: =IF(INDIRECT($C$2&$C25&"!"&AS$5&$AN$4+3)="","★",INDIRECT($C$2&$C25&"!"&AS$5&$AN$4+3)) ->  | AT25: =IF(INDIRECT($C$2&$C25&"!"&AT$5&$AN$4+3)="","★",INDIRECT($C$2&$C25&"!"&AT$5&$AN$4+3)) ->  | AU25: =IF(INDIRECT($C$2&$C25&"!"&AU$5&$AN$4+3)="","★",INDIRECT($C$2&$C25&"!"&AU$5&$AN$4+3)) ->  | AZ25: =IF(INDIRECT($C$2&$C25&"!"&AZ$5&$AZ$4+3)="","★",INDIRECT($C$2&$C25&"!"&AZ$5&$AZ$4+3)) ->  | BA25: =IF(INDIRECT($C$2&$C25&"!"&BA$5&$AZ$4+3)="","★",INDIRECT($C$2&$C25&"!"&BA$5&$AZ$4+3)) ->  | BB25: =IF(INDIRECT($C$2&$C25&"!"&BB$5&$AZ$4+3)="","★",INDIRECT($C$2&$C25&"!"&BB$5&$AZ$4+3)) ->  | BC25: =IF(INDIRECT($C$2&$C25&"!"&BC$5&$AZ$4+3)="","★",INDIRECT($C$2&$C25&"!"&BC$5&$AZ$4+3)) ->  | BD25: =IF(INDIRECT($C$2&$C25&"!"&BD$5&$AZ$4+3)="","★",INDIRECT($C$2&$C25&"!"&BD$5&$AZ$4+3)) ->  | BE25: =IF(INDIRECT($C$2&$C25&"!"&BE$5&$AZ$4+3)="","★",INDIRECT($C$2&$C25&"!"&BE$5&$AZ$4+3)) ->  | BF25: =IF(INDIRECT($C$2&$C25&"!"&BF$5&$AZ$4+3)="","★",INDIRECT($C$2&$C25&"!"&BF$5&$AZ$4+3)) ->  | BG25: =IF(INDIRECT($C$2&$C25&"!"&BG$5&$AZ$4+3)="","★",INDIRECT($C$2&$C25&"!"&BG$5&$AZ$4+3)) ->  | BL25: =IF(INDIRECT($C$2&$C25&"!"&BL$5&$BL$4+3)="","★",INDIRECT($C$2&$C25&"!"&BL$5&$BL$4+3)) ->  | BM25: =IF(INDIRECT($C$2&$C25&"!"&BM$5&$BL$4+3)="","★",INDIRECT($C$2&$C25&"!"&BM$5&$BL$4+3)) ->  | BN25: =IF(INDIRECT($C$2&$C25&"!"&BN$5&$BL$4+3)="","★",INDIRECT($C$2&$C25&"!"&BN$5&$BL$4+3)) ->  | BO25: =IF(INDIRECT($C$2&$C25&"!"&BO$5&$BL$4+3)="","★",INDIRECT($C$2&$C25&"!"&BO$5&$BL$4+3)) ->  | BP25: =IF(INDIRECT($C$2&$C25&"!"&BP$5&$BL$4+3)="","★",INDIRECT($C$2&$C25&"!"&BP$5&$BL$4+3)) ->  | BQ25: =IF(INDIRECT($C$2&$C25&"!"&BQ$5&$BL$4+3)="","★",INDIRECT($C$2&$C25&"!"&BQ$5&$BL$4+3)) ->  | BR25: =IF(INDIRECT($C$2&$C25&"!"&BR$5&$BL$4+3)="","★",INDIRECT($C$2&$C25&"!"&BR$5&$BL$4+3)) ->  | BS25: =IF(INDIRECT($C$2&$C25&"!"&BS$5&$BL$4+3)="","★",INDIRECT($C$2&$C25&"!"&BS$5&$BL$4+3)) ->  | BV25: =IF(INDIRECT($C$2&$C25&"!"&BV$5&$BV$4+3)="","★",INDIRECT($C$2&$C25&"!"&BV$5&$BV$4+3)) ->  | BW25: =IF(INDIRECT($C$2&$C25&"!"&BW$5&$BV$4+3)="","★",INDIRECT($C$2&$C25&"!"&BW$5&$BV$4+3)) ->  | BX25: =IF(INDIRECT($C$2&$C25&"!"&BX$5&$BV$4+3)="","★",INDIRECT($C$2&$C25&"!"&BX$5&$BV$4+3)) ->  | BY25: =IF(INDIRECT($C$2&$C25&"!"&BY$5&$BV$4+3)="","★",INDIRECT($C$2&$C25&"!"&BY$5&$BV$4+3)) ->  | BZ25: =IF(INDIRECT($C$2&$C25&"!"&BZ$5&$BV$4+3)="","★",INDIRECT($C$2&$C25&"!"&BZ$5&$BV$4+3)) ->  | CA25: =IF(INDIRECT($C$2&$C25&"!"&CA$5&$BV$4+3)="","★",INDIRECT($C$2&$C25&"!"&CA$5&$BV$4+3)) ->  | CC25: =IF(INDIRECT($C$2&$C25&"!"&CC$5&$CC$4+3)="","★",INDIRECT($C$2&$C25&"!"&CC$5&$CC$4+3)) ->  | CD25: =IF(INDIRECT($C$2&$C25&"!"&CD$5&$CC$4+3)="","★",INDIRECT($C$2&$C25&"!"&CD$5&$CC$4+3)) ->  | CE25: =IF(INDIRECT($C$2&$C25&"!"&CE$5&$CC$4+3)="","★",INDIRECT($C$2&$C25&"!"&CE$5&$CC$4+3)) ->  | CF25: =IF(INDIRECT($C$2&$C25&"!"&CF$5&$CC$4+3)="","★",INDIRECT($C$2&$C25&"!"&CF$5&$CC$4+3)) ->  | CG25: =IF(INDIRECT($C$2&$C25&"!"&CG$5&$CC$4+3)="","★",INDIRECT($C$2&$C25&"!"&CG$5&$CC$4+3)) ->  | CH25: =IF(INDIRECT($C$2&$C25&"!"&CH$5&$CC$4+3)="","★",INDIRECT($C$2&$C25&"!"&CH$5&$CC$4+3)) ->  | CM25: =IF(INDIRECT($C$2&$C25&"!"&CM$5&$CM$4+3)="","★",INDIRECT($C$2&$C25&"!"&CM$5&$CM$4+3)) ->  | CN25: =IF(INDIRECT($C$2&$C25&"!"&CN$5&$CM$4+3)="","★",INDIRECT($C$2&$C25&"!"&CN$5&$CM$4+3)) ->  | CO25: =IF(INDIRECT($C$2&$C25&"!"&CO$5&$CM$4+3)="","★",INDIRECT($C$2&$C25&"!"&CO$5&$CM$4+3)) ->  | CP25: =IF(INDIRECT($C$2&$C25&"!"&CP$5&$CM$4+3)="","★",INDIRECT($C$2&$C25&"!"&CP$5&$CM$4+3)) ->  | CQ25: =IF(INDIRECT($C$2&$C25&"!"&CQ$5&$CM$4+3)="","★",INDIRECT($C$2&$C25&"!"&CQ$5&$CM$4+3)) ->  | CR25: =IF(INDIRECT($C$2&$C25&"!"&CR$5&$CM$4+3)="","★",INDIRECT($C$2&$C25&"!"&CR$5&$CM$4+3)) ->  | CW25: =IF(INDIRECT($C$2&$C25&"!"&CW$5&$CW$4+3)="","★",INDIRECT($C$2&$C25&"!"&CW$5&$CW$4+3)) ->  | CX25: =IF(INDIRECT($C$2&$C25&"!"&CX$5&$CW$4+3)="","★",INDIRECT($C$2&$C25&"!"&CX$5&$CW$4+3)) ->  | CY25: =IF(INDIRECT($C$2&$C25&"!"&CY$5&$CW$4+3)="","★",INDIRECT($C$2&$C25&"!"&CY$5&$CW$4+3)) ->  | CZ25: =IF(INDIRECT($C$2&$C25&"!"&CZ$5&$CW$4+3)="","★",INDIRECT($C$2&$C25&"!"&CZ$5&$CW$4+3)) ->  | DA25: =IF(INDIRECT($C$2&$C25&"!"&DA$5&$CW$4+3)="","★",INDIRECT($C$2&$C25&"!"&DA$5&$CW$4+3)) ->  | DB25: =IF(INDIRECT($C$2&$C25&"!"&DB$5&$CW$4+3)="","★",INDIRECT($C$2&$C25&"!"&DB$5&$CW$4+3)) ->  | DG25: =IF(INDIRECT($C$2&$C25&"!"&DG$5&$DG$4+3)="","★",INDIRECT($C$2&$C25&"!"&DG$5&$DG$4+3)) ->  | DH25: =IF(INDIRECT($C$2&$C25&"!"&DH$5&$DG$4+3)="","★",INDIRECT($C$2&$C25&"!"&DH$5&$DG$4+3)) ->  | DI25: =IF(INDIRECT($C$2&$C25&"!"&DI$5&$DG$4+3)="","★",INDIRECT($C$2&$C25&"!"&DI$5&$DG$4+3)) ->  | DJ25: =IF(INDIRECT($C$2&$C25&"!"&DJ$5&$DG$4+3)="","★",INDIRECT($C$2&$C25&"!"&DJ$5&$DG$4+3)) ->  | DK25: =IF(INDIRECT($C$2&$C25&"!"&DK$5&$DG$4+3)="","★",INDIRECT($C$2&$C25&"!"&DK$5&$DG$4+3)) ->  | DL25: =IF(INDIRECT($C$2&$C25&"!"&DL$5&$DG$4+3)="","★",INDIRECT($C$2&$C25&"!"&DL$5&$DG$4+3)) -> 
C26: =IF(INDIRECT($B$2&"B25")="","★",INDIRECT($B$2&"B25")) -> ★ | D26: =IF(INDIRECT($C$2&$C26&"!K12")="","★",INDIRECT($C$2&$C26&"!K12")) ->  | E26: =IF(INDIRECT($C$2&$C26&"!L12")="","★",INDIRECT($C$2&$C26&"!L12")) ->  | F26: =IF(INDIRECT($C$2&$C26&"!D13")="","★",INDIRECT($C$2&$C26&"!D13")) ->  | G26: =IF(INDIRECT($C$2&$C26&"!D14")="","★",INDIRECT($C$2&$C26&"!D14")) ->  | H26: =IF(INDIRECT($C$2&$C26&"!D15")="","★",INDIRECT($C$2&$C26&"!D15")) ->  | I26: =IF(INDIRECT($C$2&$C26&"!D16")="","★",INDIRECT($C$2&$C26&"!D16")) ->  | J26: =IF(INDIRECT($C$2&$C26&"!D17")="","★",INDIRECT($C$2&$C26&"!D17")) ->  | K26: =IF(INDIRECT($C$2&$C26&"!D18")="","★",INDIRECT($C$2&$C26&"!D18")) ->  | L26: =$C26&"-1" -> ★-1 | M26: =IF(INDIRECT($C$2&$C26&"!"&M$5&$M$4)="","★",INDIRECT($C$2&$C26&"!"&M$5&$M$4)) ->  | N26: =IF(INDIRECT($C$2&$C26&"!"&N$5&$M$4)="","★",INDIRECT($C$2&$C26&"!"&N$5&$M$4)) ->  | O26: =IF(INDIRECT($C$2&$C26&"!"&O$5&$M$4)="","★",INDIRECT($C$2&$C26&"!"&O$5&$M$4)) ->  | P26: =IF(INDIRECT($C$2&$C26&"!"&P$5&$M$4)="","★",INDIRECT($C$2&$C26&"!"&P$5&$M$4)) ->  | Q26: =IF(INDIRECT($C$2&$C26&"!"&Q$5&$M$4)="","★",INDIRECT($C$2&$C26&"!"&Q$5&$M$4)) ->  | R26: =IF(INDIRECT($C$2&$C26&"!"&R$5&$M$4)="","★",INDIRECT($C$2&$C26&"!"&R$5&$M$4)) ->  | S26: =IF(INDIRECT($C$2&$C26&"!"&S$5&$M$4)="","★",INDIRECT($C$2&$C26&"!"&S$5&$M$4)) ->  | T26: =IF(INDIRECT($C$2&$C26&"!"&T$5&$M$4)="","★",INDIRECT($C$2&$C26&"!"&T$5&$M$4)) ->  | U26: =IF(INDIRECT($C$2&$C26&"!"&U$5&$M$4)="","★",INDIRECT($C$2&$C26&"!"&U$5&$M$4)) ->  | V26: =IF(INDIRECT($C$2&$C26&"!"&V$5&$V$4)="","★",INDIRECT($C$2&$C26&"!"&V$5&$V$4)) ->  | W26: =IF(INDIRECT($C$2&$C26&"!"&W$5&$V$4)="","★",INDIRECT($C$2&$C26&"!"&W$5&$V$4)) ->  | X26: =IF(INDIRECT($C$2&$C26&"!"&X$5&$V$4)="","★",INDIRECT($C$2&$C26&"!"&X$5&$V$4)) ->  | Y26: =IF(INDIRECT($C$2&$C26&"!"&Y$5&$V$4)="","★",INDIRECT($C$2&$C26&"!"&Y$5&$V$4)) ->  | Z26: =IF(INDIRECT($C$2&$C26&"!"&Z$5&$V$4)="","★",INDIRECT($C$2&$C26&"!"&Z$5&$V$4)) ->  | AA26: =IF(INDIRECT($C$2&$C26&"!"&AA$5&$V$4)="","★",INDIRECT($C$2&$C26&"!"&AA$5&$V$4)) ->  | AB26: =IF(INDIRECT($C$2&$C26&"!"&AB$5&$V$4)="","★",INDIRECT($C$2&$C26&"!"&AB$5&$V$4)) ->  | AC26: =IF(INDIRECT($C$2&$C26&"!"&AC$5&$V$4)="","★",INDIRECT($C$2&$C26&"!"&AC$5&$V$4)) ->  | AD26: =IF(INDIRECT($C$2&$C26&"!"&AD$5&$V$4)="","★",INDIRECT($C$2&$C26&"!"&AD$5&$V$4)) ->  | AE26: =IF(INDIRECT($C$2&$C26&"!"&AE$5&$V$4)="","★",INDIRECT($C$2&$C26&"!"&AE$5&$V$4)) ->  | AF26: =IF(INDIRECT($C$2&$C26&"!"&AF$5&$AF$4)="","★",INDIRECT($C$2&$C26&"!"&AF$5&$AF$4)) ->  | AG26: =IF(INDIRECT($C$2&$C26&"!"&AG$5&$AF$4)="","★",INDIRECT($C$2&$C26&"!"&AG$5&$AF$4)) ->  | AH26: =IF(INDIRECT($C$2&$C26&"!"&AH$5&$AH$4)="","★",INDIRECT($C$2&$C26&"!"&AH$5&$AH$4)) ->  | AI26: =IF(INDIRECT($C$2&$C26&"!"&AI$5&$AH$4)="","★",INDIRECT($C$2&$C26&"!"&AI$5&$AH$4)) ->  | AJ26: =IF(INDIRECT($C$2&$C26&"!"&AJ$5&$AJ$4)="","★",INDIRECT($C$2&$C26&"!"&AJ$5&$AJ$4)) ->  | AK26: =IF(INDIRECT($C$2&$C26&"!"&AK$5&$AJ$4)="","★",INDIRECT($C$2&$C26&"!"&AK$5&$AJ$4)) ->  | AL26: =$AF26 ->  | AM26: =$AG26 ->  | AN26: =IF(INDIRECT($C$2&$C26&"!"&AN$5&$AN$4)="","★",INDIRECT($C$2&$C26&"!"&AN$5&$AN$4)) ->  | AO26: =IF(INDIRECT($C$2&$C26&"!"&AO$5&$AN$4)="","★",INDIRECT($C$2&$C26&"!"&AO$5&$AN$4)) ->  | AP26: =IF(INDIRECT($C$2&$C26&"!"&AP$5&$AN$4)="","★",INDIRECT($C$2&$C26&"!"&AP$5&$AN$4)) ->  | AQ26: =IF(INDIRECT($C$2&$C26&"!"&AQ$5&$AN$4)="","★",INDIRECT($C$2&$C26&"!"&AQ$5&$AN$4)) ->  | AR26: =IF(INDIRECT($C$2&$C26&"!"&AR$5&$AN$4)="","★",INDIRECT($C$2&$C26&"!"&AR$5&$AN$4)) ->  | AS26: =IF(INDIRECT($C$2&$C26&"!"&AS$5&$AN$4)="","★",INDIRECT($C$2&$C26&"!"&AS$5&$AN$4)) ->  | AT26: =IF(INDIRECT($C$2&$C26&"!"&AT$5&$AN$4)="","★",INDIRECT($C$2&$C26&"!"&AT$5&$AN$4)) ->  | AU26: =IF(INDIRECT($C$2&$C26&"!"&AU$5&$AN$4)="","★",INDIRECT($C$2&$C26&"!"&AU$5&$AN$4)) ->  | AV26: =IF(INDIRECT($C$2&$C26&"!"&AV$5&$AN$4)="","★",INDIRECT($C$2&$C26&"!"&AV$5&$AN$4)) ->  | AW26: =IF(INDIRECT($C$2&$C26&"!"&AW$5&$AN$4)="","★",INDIRECT($C$2&$C26&"!"&AW$5&$AN$4)) ->  | AX26: =$AH26 ->  | AY26: =$AI26 ->  | AZ26: =IF(INDIRECT($C$2&$C26&"!"&AZ$5&$AZ$4)="","★",INDIRECT($C$2&$C26&"!"&AZ$5&$AZ$4)) ->  | BA26: =IF(INDIRECT($C$2&$C26&"!"&BA$5&$AZ$4)="","★",INDIRECT($C$2&$C26&"!"&BA$5&$AZ$4)) ->  | BB26: =IF(INDIRECT($C$2&$C26&"!"&BB$5&$AZ$4)="","★",INDIRECT($C$2&$C26&"!"&BB$5&$AZ$4)) ->  | BC26: =IF(INDIRECT($C$2&$C26&"!"&BC$5&$AZ$4)="","★",INDIRECT($C$2&$C26&"!"&BC$5&$AZ$4)) ->  | BD26: =IF(INDIRECT($C$2&$C26&"!"&BD$5&$AZ$4)="","★",INDIRECT($C$2&$C26&"!"&BD$5&$AZ$4)) ->  | BE26: =IF(INDIRECT($C$2&$C26&"!"&BE$5&$AZ$4)="","★",INDIRECT($C$2&$C26&"!"&BE$5&$AZ$4)) ->  | BF26: =IF(INDIRECT($C$2&$C26&"!"&BF$5&$AZ$4)="","★",INDIRECT($C$2&$C26&"!"&BF$5&$AZ$4)) ->  | BG26: =IF(INDIRECT($C$2&$C26&"!"&BG$5&$AZ$4)="","★",INDIRECT($C$2&$C26&"!"&BG$5&$AZ$4)) ->  | BH26: =IF(INDIRECT($C$2&$C26&"!"&BH$5&$AZ$4)="","★",INDIRECT($C$2&$C26&"!"&BH$5&$AZ$4)) ->  | BI26: =IF(INDIRECT($C$2&$C26&"!"&BI$5&$AZ$4)="","★",INDIRECT($C$2&$C26&"!"&BI$5&$AZ$4)) ->  | BJ26: =$AJ26 ->  | BK26: =$AK26 ->  | BL26: =IF(INDIRECT($C$2&$C26&"!"&BL$5&$BL$4)="","★",INDIRECT($C$2&$C26&"!"&BL$5&$BL$4)) ->  | BM26: =IF(INDIRECT($C$2&$C26&"!"&BM$5&$BL$4)="","★",INDIRECT($C$2&$C26&"!"&BM$5&$BL$4)) ->  | BN26: =IF(INDIRECT($C$2&$C26&"!"&BN$5&$BL$4)="","★",INDIRECT($C$2&$C26&"!"&BN$5&$BL$4)) ->  | BO26: =IF(INDIRECT($C$2&$C26&"!"&BO$5&$BL$4)="","★",INDIRECT($C$2&$C26&"!"&BO$5&$BL$4)) ->  | BP26: =IF(INDIRECT($C$2&$C26&"!"&BP$5&$BL$4)="","★",INDIRECT($C$2&$C26&"!"&BP$5&$BL$4)) ->  | BQ26: =IF(INDIRECT($C$2&$C26&"!"&BQ$5&$BL$4)="","★",INDIRECT($C$2&$C26&"!"&BQ$5&$BL$4)) ->  | BR26: =IF(INDIRECT($C$2&$C26&"!"&BR$5&$BL$4)="","★",INDIRECT($C$2&$C26&"!"&BR$5&$BL$4)) ->  | BS26: =IF(INDIRECT($C$2&$C26&"!"&BS$5&$BL$4)="","★",INDIRECT($C$2&$C26&"!"&BS$5&$BL$4)) ->  | BT26: =IF(INDIRECT($C$2&$C26&"!"&BT$5&$BL$4)="","★",INDIRECT($C$2&$C26&"!"&BT$5&$BL$4)) ->  | BU26: =IF(INDIRECT($C$2&$C26&"!"&BU$5&$BL$4)="","★",INDIRECT($C$2&$C26&"!"&BU$5&$BL$4)) ->  | BV26: =IF(INDIRECT($C$2&$C26&"!"&BV$5&$BV$4)="","★",INDIRECT($C$2&$C26&"!"&BV$5&$BV$4)) ->  | BW26: =IF(INDIRECT($C$2&$C26&"!"&BW$5&$BV$4)="","★",INDIRECT($C$2&$C26&"!"&BW$5&$BV$4)) ->  | BX26: =IF(INDIRECT($C$2&$C26&"!"&BX$5&$BV$4)="","★",INDIRECT($C$2&$C26&"!"&BX$5&$BV$4)) ->  | BY26: =IF(INDIRECT($C$2&$C26&"!"&BY$5&$BV$4)="","★",INDIRECT($C$2&$C26&"!"&BY$5&$BV$4)) ->  | BZ26: =IF(INDIRECT($C$2&$C26&"!"&BZ$5&$BV$4)="","★",INDIRECT($C$2&$C26&"!"&BZ$5&$BV$4)) ->  | CA26: =IF(INDIRECT($C$2&$C26&"!"&CA$5&$BV$4)="","★",INDIRECT($C$2&$C26&"!"&CA$5&$BV$4)) ->  | CB26: =IF(INDIRECT($C$2&$C26&"!"&CB$5&$BV$4)="","★",INDIRECT($C$2&$C26&"!"&CB$5&$BV$4)) ->  | CC26: =IF(INDIRECT($C$2&$C26&"!"&CC$5&$CC$4)="","★",INDIRECT($C$2&$C26&"!"&CC$5&$CC$4)) ->  | CD26: =IF(INDIRECT($C$2&$C26&"!"&CD$5&$CC$4)="","★",INDIRECT($C$2&$C26&"!"&CD$5&$CC$4)) ->  | CE26: =IF(INDIRECT($C$2&$C26&"!"&CE$5&$CC$4)="","★",INDIRECT($C$2&$C26&"!"&CE$5&$CC$4)) ->  | CF26: =IF(INDIRECT($C$2&$C26&"!"&CF$5&$CC$4)="","★",INDIRECT($C$2&$C26&"!"&CF$5&$CC$4)) ->  | CG26: =IF(INDIRECT($C$2&$C26&"!"&CG$5&$CC$4)="","★",INDIRECT($C$2&$C26&"!"&CG$5&$CC$4)) ->  | CH26: =IF(INDIRECT($C$2&$C26&"!"&CH$5&$CC$4)="","★",INDIRECT($C$2&$C26&"!"&CH$5&$CC$4)) ->  | CI26: =IF(INDIRECT($C$2&$C26&"!"&CI$5&$CC$4)="","★",INDIRECT($C$2&$C26&"!"&CI$5&$CC$4)) ->  | CJ26: =IF(INDIRECT($C$2&$C26&"!"&CJ$5&$CC$4)="","★",INDIRECT($C$2&$C26&"!"&CJ$5&$CC$4)) ->  | CK26: =$AF26 ->  | CL26: =$AG26 ->  | CM26: =IF(INDIRECT($C$2&$C26&"!"&CM$5&$CM$4)="","★",INDIRECT($C$2&$C26&"!"&CM$5&$CM$4)) ->  | CN26: =IF(INDIRECT($C$2&$C26&"!"&CN$5&$CM$4)="","★",INDIRECT($C$2&$C26&"!"&CN$5&$CM$4)) ->  | CO26: =IF(INDIRECT($C$2&$C26&"!"&CO$5&$CM$4)="","★",INDIRECT($C$2&$C26&"!"&CO$5&$CM$4)) ->  | CP26: =IF(INDIRECT($C$2&$C26&"!"&CP$5&$CM$4)="","★",INDIRECT($C$2&$C26&"!"&CP$5&$CM$4)) ->  | CQ26: =IF(INDIRECT($C$2&$C26&"!"&CQ$5&$CM$4)="","★",INDIRECT($C$2&$C26&"!"&CQ$5&$CM$4)) ->  | CR26: =IF(INDIRECT($C$2&$C26&"!"&CR$5&$CM$4)="","★",INDIRECT($C$2&$C26&"!"&CR$5&$CM$4)) ->  | CS26: =IF(INDIRECT($C$2&$C26&"!"&CS$5&$CM$4)="","★",INDIRECT($C$2&$C26&"!"&CS$5&$CM$4)) ->  | CT26: =IF(INDIRECT($C$2&$C26&"!"&CT$5&$CM$4)="","★",INDIRECT($C$2&$C26&"!"&CT$5&$CM$4)) ->  | CU26: =$AH26 ->  | CV26: =$AI26 ->  | CW26: =IF(INDIRECT($C$2&$C26&"!"&CW$5&$CW$4)="","★",INDIRECT($C$2&$C26&"!"&CW$5&$CW$4)) ->  | CX26: =IF(INDIRECT($C$2&$C26&"!"&CX$5&$CW$4)="","★",INDIRECT($C$2&$C26&"!"&CX$5&$CW$4)) ->  | CY26: =IF(INDIRECT($C$2&$C26&"!"&CY$5&$CW$4)="","★",INDIRECT($C$2&$C26&"!"&CY$5&$CW$4)) ->  | CZ26: =IF(INDIRECT($C$2&$C26&"!"&CZ$5&$CW$4)="","★",INDIRECT($C$2&$C26&"!"&CZ$5&$CW$4)) ->  | DA26: =IF(INDIRECT($C$2&$C26&"!"&DA$5&$CW$4)="","★",INDIRECT($C$2&$C26&"!"&DA$5&$CW$4)) ->  | DB26: =IF(INDIRECT($C$2&$C26&"!"&DB$5&$CW$4)="","★",INDIRECT($C$2&$C26&"!"&DB$5&$CW$4)) ->  | DC26: =IF(INDIRECT($C$2&$C26&"!"&DC$5&$CW$4)="","★",INDIRECT($C$2&$C26&"!"&DC$5&$CW$4)) ->  | DD26: =IF(INDIRECT($C$2&$C26&"!"&DD$5&$CW$4)="","★",INDIRECT($C$2&$C26&"!"&DD$5&$CW$4)) ->  | DE26: =$AJ26 ->  | DF26: =$AK26 ->  | DG26: =IF(INDIRECT($C$2&$C26&"!"&DG$5&$DG$4)="","★",INDIRECT($C$2&$C26&"!"&DG$5&$DG$4)) ->  | DH26: =IF(INDIRECT($C$2&$C26&"!"&DH$5&$DG$4)="","★",INDIRECT($C$2&$C26&"!"&DH$5&$DG$4)) ->  | DI26: =IF(INDIRECT($C$2&$C26&"!"&DI$5&$DG$4)="","★",INDIRECT($C$2&$C26&"!"&DI$5&$DG$4)) ->  | DJ26: =IF(INDIRECT($C$2&$C26&"!"&DJ$5&$DG$4)="","★",INDIRECT($C$2&$C26&"!"&DJ$5&$DG$4)) ->  | DK26: =IF(INDIRECT($C$2&$C26&"!"&DK$5&$DG$4)="","★",INDIRECT($C$2&$C26&"!"&DK$5&$DG$4)) ->  | DL26: =IF(INDIRECT($C$2&$C26&"!"&DL$5&$DG$4)="","★",INDIRECT($C$2&$C26&"!"&DL$5&$DG$4)) ->  | DM26: =IF(INDIRECT($C$2&$C26&"!"&DM$5&$DG$4)="","★",INDIRECT($C$2&$C26&"!"&DM$5&$DG$4)) ->  | DN26: =IF(INDIRECT($C$2&$C26&"!"&DN$5&$DG$4)="","★",INDIRECT($C$2&$C26&"!"&DN$5&$DG$4)) ->  | DO26: =IF(INDIRECT($C$2&$C26&"!B57")="","★",INDIRECT($C$2&$C26&"!B57")) ->  | DP26: =IF(INDIRECT($C$2&$C26&"!B100")="","★",INDIRECT($C$2&$C26&"!B100")) ->  | DQ26: =IF(INDIRECT($C$2&$C26&"!B112")="","★",INDIRECT($C$2&$C26&"!B112")) ->  | DR26: =IF(INDIRECT($C$2&$C26&"!B155")="","★",INDIRECT($C$2&$C26&"!B155")) ->  | DS26: =IF(INDIRECT($C$2&$C26&"!B167")="","★",INDIRECT($C$2&$C26&"!B167")) ->  | DT26: =IF(INDIRECT($C$2&$C26&"!B210")="","★",INDIRECT($C$2&$C26&"!B210")) -> 
